{"text_format":"1","workbook":"xlsx","n_sheets":27,"sheets":["Inhoudstafel","Legende","Keuzelijsten","Parameters+overzicht info","Budgetcategorieën","Totaal cliënt","Totalen","Totale inkomsten voor cliënt","Totale kosten voor cliënt","Samenvatting W&L","Samenvatting functiegroepen","ZG personeelskost","ZG werking","OG personeelskost","OG werking","Woon- en leefkosten","Personeelsbaremas","ZG personeel","OG personeel","Ander personeel","Vastgoed","Hippo","Energie","Hotel was","Persoonlijke was","Voeding","Grootboekrekeningen"],"not_rendered":{"charts":0,"images":2,"macros":1,"external_links":0,"defined_names":12,"comments":0,"pivot_tables":0},"unopened":[],"bounds":{"document_bytes":16777216,"sheet_cells":100000,"rows_first":2000,"rows_last":500,"rows_between":2000,"halvings":0,"cell_chars":16384,"cell_head_chars":4096},"cells_cut":0,"cells_raw":0,"read":"whole","date_system":"1900"}

{"sheet":"Inhoudstafel","index":0,"n_rows":20,"n_cols":28,"rows_kept":20,"cut":false,"hidden":false,"merged":[[10,15,11,15],[10,23,11,23],[10,19,11,19],[19,19,20,19],[19,15,20,15]]}
[null,null,null,"Schil 4",null,null,null,"Schil 3",null,null,null,"Schil 2",null,null,null,"Schil 1",null,null,null,"Centraal",null,null,null,"Schil 1",null,null,null,"Schil 2"]
[]
[]
[]
[]
[]
[]
[null,null,null,"Zwembad",null,null,null,"ZG personeel",null,null,null,"ZG personeelskost"]
[]
[null,null,null,"Hippo",null,null,null,"OG personeel",null,null,null,"ZG werking"]
[null,null,null,null,null,null,null,null,null,null,null,null,null,null,null,"Totaal kosten cliënt",null,null,null,"Totaal cliënt",null,null,null,"Totaal inkomsten cliënt",null,null,null,"Budgetcategorieën"]
[null,null,null,"Sportzaal",null,null,null,"Ander personeel",null,null,null,"OG personeelskost"]
[]
[null,null,null,"Transport",null,null,null,"Vastgoed",null,null,null,"OG werking"]
[]
[null,null,null,"Voeding",null,null,null,"Personeelsbarema's",null,null,null,"Woon- en leefkosten"]
[]
[null,null,null,"Wasserij",null,null,null,null,null,null,null,"Samenvatting functiegroepen"]
[]
[null,null,null,"…",null,null,null,null,null,null,null,null,null,null,null,"Samenvatting W&L",null,null,null,"Totalen"]

{"sheet":"Legende","index":1,"n_rows":19,"n_cols":3,"rows_kept":19,"cut":false,"hidden":false,"merged":[]}
["Afkorting","Verklaring","Tabblad"]
["APAC","Afgesproken puntenaantal cash","Totale inkomsten voor cliënt"]
["APAV","Afgesproken puntenaantal voucher","Totale inkomsten voor cliënt"]
["GWP","Geïndexeerde waarde van een punt","Parameters+overzicht info"]
["ICOG","Inkomsten cliënt voor organisatiegebonden uitgaven","Totale inkomsten voor cliënt"]
["ICZGP","Inkomsten cliënt voor zorggebonden personeel","Totale inkomsten voor cliënt"]
["KCOGP","Kosten cliënt voor organisatiegebonden personeel","Totale kosten voor cliënt"]
["KCOGW","Kosten cliënt voor organisatiegebonden werking","Totale kosten voor cliënt"]
["KCWL","Kosten cliënt voor woon-en leefkosten","Totale kosten voor cliënt"]
["KCZGP","Kosten cliënt voor zorggebonden personeelskosten","Totale kosten voor cliënt"]
["KCZGW","Kosten cliënt voor zorggebonden werkingskosten","Totale kosten voor cliënt"]
["KOOGP","Kosten organisatie voor organisatiegebonden personeel","OG personeelskost"]
["KOOGW","Kosten organisatie voor organisatiegebonden werking","OG werking"]
["KOZGP","Kosten organisatie voor zorggebonden personeel","ZG personeelskost"]
["KOZGW","Kosten organisatie voor zorggebonden werking","ZG werking"]
["OGPB","Organisatiegebonden personeelsbestand","OG personeelskost"]
["POGK","Percentage organisatiegebonden kosten","Parameters+overzicht info"]
["WPO","Waarde van een punt binnen de organisatie","Samenvatting functiegroepen"]
["ZGPB","Zorggebonden personeelsbestand","ZG personeel"]

{"sheet":"Keuzelijsten","index":2,"n_rows":17,"n_cols":9,"rows_kept":17,"cut":false,"hidden":false,"merged":[]}
["ZG diensten",null,"OG diensten",null,"Verdeelsleutels",null,"Organisatiegebonden",null,"Transitie"]
[null,null,null,null,null,null,"Woon- en leefkost",null,"Nieuw"]
["Leefgroepbegeleider",null,"Directie",null,"Aanwezigheidsdagen",null,"Zorggebonden"]
["Dagbestedingsbegeleider",null,"Administratie",null,"m²"]
["Kinesist",null,"Onderhoud Centraal Gebouw",null,"Halve dagen dagopvang"]
["Logopedist",null,"Technische Dienst",null,"Kilometer"]
["Diëtist",null,"Huiscoördinatoren",null,"Kilo was"]
["Verpleegkundigen",null,"Logistiek Coördinator",null,"Stuks"]
["Dokters",null,"Zinzorg en pastoraat",null,"Aantal maaltijden"]
["Orthoagoog",null,"Preventieadviseur",null,"Aantal ritten"]
["Nachtdienst",null,"Naaisters",null,"Aantal nachten"]
[null,null,"Sociale dienst",null,"Aantal afspraken"]
[null,null,null,null,"Uren"]
[null,null,null,null,"Uitstappen"]
[null,null,null,null,"dagdelen dagondersteuning"]
[null,null,null,null,"aantal nachten woonondersteuning"]
[null,null,null,null,"per m² wooneenheid bewoner"]

{"sheet":"Parameters+overzicht info","index":3,"n_rows":13,"n_cols":3,"rows_kept":13,"cut":false,"hidden":false,"merged":[]}
["Parameters (overheid)"]
[]
["Geïndexeerde waarde van een punt",817.36069999999995]
["Percentage organisatiegebonden kosten",0.2535]
[]
["Overzicht info"]
[null,"Maximum bezetting","Reële bezetting"]
["Waarde van een punt binnen de organisatie",{"$f":"SamenvattingFunctiegroepen[[#Totals],[Euro/punt (maximum bezetting)]]","v":868.03093014991794},{"$f":"SamenvattingFunctiegroepen[[#Totals],[Euro/punt (reële bezetting)]]","v":964.38165885802778}]
[]
["Percentage organisatiegebonden kosten binnen de organisatie",{"$f":"IFERROR((KOOGW[[#Totals],[Werkingskosten]]+KOOGW[[#Totals],[Vastgoedkosten]]+OGPB[[#Totals],[Totale loonkost]])/(KOZGW[[#Totals],[Werkingskost (zonder vastgoed)]]+KOZGW[[#Totals],[Vastgoedkosten]]+ZGPB[[#Totals],[Loonkost]]),0)","v":0.35197759885326391}]
[]
["Totaal loonkosten",{"$f":"SUM(ZGPB[[#Totals],[Loonkost]],OGPB[[#Totals],[Totale loonkost]],NVAPH[[#Totals],[Loonkost]],)","v":8675484.1300000008}]
["Totaal niet VAPH subsidies",{"$f":"NVAPH[[#Totals],[Inkomsten]]","v":27516.87}]

{"sheet":"Budgetcategorieën","index":4,"n_rows":27,"n_cols":9,"rows_kept":27,"cut":false,"hidden":false,"merged":[]}
["Geïndexeerde waarde van een punt",{"$f":"'Parameters+overzicht info'!B3","v":817.36069999999995}]
["Percentage organisatiegebonden kosten",{"$f":"'Parameters+overzicht info'!B4","v":0.2535}]
[]
[]
["Budgetcategorieën",null,null,null,null,"Budgetcategorieën transitie"]
["Budget-categorie","Ondergrens gewichten","Bovengrens gewichten","Bovengrens zorggebonden punten",null,"Budget-categorie","Ondergrens gewichten","Bovengrens gewichten","Bovengrens zorggebonden punten"]
["I","≥ 2,0","< 6,0",12.234500000000001,null,"I a","≥ 2,0","< 3,0",9.0586249999999993]
["II","≥ 6,0","< 9,0",17.128299999999999,null,"I b","≥ 3,0","< 4,0",10.117249999999999]
["III","≥ 9,0","< 13,1",24.268999999999998,null,"I c","≥ 4,0","< 4,9",11.175874999999998]
["IV","≥ 13,1","< 20,0",33.6449,null,"I d","≥ 4,9","< 6,0",12.234500000000001]
["V","≥ 20,0","< 25,5",42.820799999999998,null,"II","≥ 6,0","< 9,0",17.128299999999999]
["VI","≥ 25,5","< 30,0",50.161499999999997,null,"III a","≥ 9,0","< 11,0",20.698650000000001]
["VII","≥ 30,0","< 34,4",53.220100000000002,null,"III b","≥ 11,0","< 13,1",24.268999999999998]
["VIII","≥ 34,4","< 39,5",55.055300000000003,null,"IV a","≥ 13,1","< 16,5",28.956949999999999]
["IX","≥ 39,5","< 50,1",59.0533,null,"IV b","≥ 16,5","< 20,0",33.6449]
["X","≥ 50,1","< 60,1",70.9602,null,"V a","≥ 20,0","< 22,7",38.232849999999999]
["XI","≥ 60,1","≤ 65,0",88.088499999999996,null,"V b","≥ 22,7","< 25,5",42.820799999999998]
["XII","> 65,0",null,103.9933,null,"VI a","≥ 25,5","< 27,7",46.491149999999998]
[null,null,null,null,null,"VI b","≥ 27,7","< 30,0",50.161499999999997]
[null,null,null,null,null,"VII","≥ 30,0","< 34,4",53.220100000000002]
[null,null,null,null,null,"VIII","≥ 34,4","< 39,5",55.055300000000003]
[null,null,null,null,null,"IX","≥ 39,5","< 50,1",59.0533]
[null,null,null,null,null,"X a","≥ 50,1","< 55,0",65.006749999999997]
[null,null,null,null,null,"X b","≥ 55,0","< 60,1",70.9602]
[null,null,null,null,null,"XI a","≥ 60,1","< 62,5",79.524349999999998]
[null,null,null,null,null,"XI b","≥ 62,5","≤ 65,0",88.088499999999996]
[null,null,null,null,null,"XII","> 65,0",null,103.9933]

{"sheet":"Totaal cliënt","index":5,"n_rows":52,"n_cols":16,"rows_kept":52,"cut":false,"hidden":false,"merged":[[12,11,12,12],[20,11,20,12],[0,0,1,13],[2,0,2,4],[2,5,2,9],[4,6,4,8],[2,10,2,13],[4,11,4,12],[12,6,12,8],[20,6,20,8],[4,1,4,3],[12,1,12,3],[20,1,20,3]]}
["Cliënt",null,null,null,null,null,null,null,null,null,null,null,null,null,"Naam",{"$f":"'Totale inkomsten voor cliënt'!B1","v":"Pakket 15"}]
[null,null,null,null,null,null,null,null,null,null,null,null,null,null,"Budgetcategorie",{"$f":"'Totale inkomsten voor cliënt'!B3","v":"X b"}]
["Kosten",null,null,null,null,"Inkomsten",null,null,null,null,"Verschil"]
[]
[null,"Zorggebonden",null,null,null,null,"Zorggebonden",null,null,null,null,"Zorggebonden"]
[null,null,"Punten","Bedrag",null,null,null,"Punten","Bedrag"]
[null,null,null,null,null,null,"Voucher",{"$f":"IFERROR(I7/WPO,0)","v":70.959999999999994},{"$f":"'Totale inkomsten voor cliënt'!B9","v":61595.47480343817}]
[null,null,null,null,null,null,"Cash",{"$f":"I8/GWP","v":0},{"$f":"'Totale inkomsten voor cliënt'!B10","v":0}]
[null,"Personeelskosten",{"$f":"KCZGP[[#Totals],[Punten per jaar]]+KCZGP[[#Totals],[Cash punten per jaar]]","v":75.186021541916858},{"$f":"KCZGP[[#Totals],[Totaal personeelskost per jaar]]","v":65263.792213301851},null,null,"Extern",null,{"$f":"'Totale inkomsten voor cliënt'!B11","v":0}]
[null,"Werkingskosten",null,{"$f":"KCZGW[[#Totals],[Kost per jaar]]","v":960.81747908222678},null,null,"Niet VAPH subsidies",null,{"$f":"ZGSubsidies[[#Totals],[Subsidies per jaar]]","v":0},null,null,"Punten",{"$f":"H11-C11","v":-4.2260215419168645}]
[null,"Totaal",{"$f":"SUM(C9:C10)","v":75.186021541916858},{"$f":"SUM(D9:D10)","v":66224.609692384081},null,null,"Totaal",{"$f":"SUM(H7:H9)","v":70.959999999999994},{"$f":"SUM(I7:I10)","v":61595.47480343817},null,null,"Bedrag",{"$f":"I11-D11","v":-4629.1348889459114}]
[]
[null,"Organisatiegebonden",null,null,null,null,"Organisatiegebonden",null,null,null,null,"Organisatiegebonden"]
[null,null,"Punten","Bedrag",null,null,null,"Punten","Bedrag"]
[null,null,null,null,null,null,"Voucher",{"$f":"IFERROR(I15/WPO,0)","v":17.98836},{"$f":"'Totale inkomsten voor cliënt'!B15","v":15614.452862671576}]
[null,null,null,null,null,null,"Cash",{"$f":"I16/GWP","v":0},{"$f":"'Totale inkomsten voor cliënt'!B16","v":0}]
[null,"Personeelskosten",null,{"$f":"KCOGP[[#Totals],[Kost per jaar]]","v":11180.505959701843},null,null,"Extern",null,{"$f":"'Totale inkomsten voor cliënt'!B17","v":0}]
[null,"Werkingskosten",null,{"$f":"KCOGW[[#Totals],[Kost per jaar]]","v":6182.3109808585505},null,null,"Niet VAPH subsidies",null,{"$f":"OGSubsidies[[#Totals],[Subsidies per jaar]]","v":233.95428721174002},null,null,"Punten",{"$f":"H19-C19","v":-1.0712964608759243}]
[null,"Totaal",{"$f":"C9*POGK","v":19.059656460875924},{"$f":"SUM(D17:D18)","v":17362.816940560391},null,null,"Totaal",{"$f":"SUM(H15:H17)","v":17.98836},{"$f":"SUM(I15:I18)","v":15848.407149883316},null,null,"Bedrag",{"$f":"I19-D19","v":-1514.4097906770749}]
[]
[null,"Woon- & leefkosten",null,null,null,null,"Woon- & leefinkomsten",null,null,null,null,"Woon- & leefkosten"]
[null,"Categorie"," ","Kost",null,null,"Categorie","Subsidies","Gefactureerd",null,null,"Categorie","Verschil"]
[null,{"$f":"IF('Totale kosten voor cliënt'!A146=\"\",\"\",'Totale kosten voor cliënt'!A146)","v":"Ontbijt"},null,{"$f":"IF('Totale kosten voor cliënt'!B146=\"\",\"\",'Totale kosten voor cliënt'!E146)","v":474.5},null,null,{"$f":"B23","v":"Ontbijt"},{"$f":"VLOOKUP(SamenvattingICWL[[#This Row],[Categorie]],VKprijsWenL[],3,)*VLOOKUP(SamenvattingICWL[[#This Row],[Categorie]],KCWL[],3,)","v":0},{"$f":"IF(OR(G23=\"\",D23=0),0,VLOOKUP(SamenvattingICWL[[#This Row],[Categorie]],KCWL[],3,)*VLOOKUP(SamenvattingICWL[[#This Row],[Categorie]],VKprijsWenL[],5,))","v":730},null,null,{"$f":"SamenvattingKCWL[[#This Row],[Categorie]]","v":"Ontbijt"},{"$f":"(SamenvattingICWL[[#This Row],[Gefactureerd]]+SamenvattingICWL[[#This Row],[Subsidies]])-SamenvattingKCWL[[#This Row],[Kost]]","v":255.5}]
[null,{"$f":"IF('Totale kosten voor cliënt'!A147=\"\",\"\",'Totale kosten voor cliënt'!A147)","v":"Middagmaal"},null,{"$f":"IF('Totale kosten voor cliënt'!B147=\"\",\"\",'Totale kosten voor cliënt'!E147)","v":4412.8500000000004},null,null,{"$f":"B24","v":"Middagmaal"},{"$f":"VLOOKUP(SamenvattingICWL[[#This Row],[Categorie]],VKprijsWenL[],3,)*VLOOKUP(SamenvattingICWL[[#This Row],[Categorie]],KCWL[],3,)","v":0},{"$f":"IF(OR(G24=\"\",D24=0),0,VLOOKUP(SamenvattingICWL[[#This Row],[Categorie]],KCWL[],3,)*VLOOKUP(SamenvattingICWL[[#This Row],[Categorie]],VKprijsWenL[],5,))","v":5110},null,null,{"$f":"SamenvattingKCWL[[#This Row],[Categorie]]","v":"Middagmaal"},{"$f":"(SamenvattingICWL[[#This Row],[Gefactureerd]]+SamenvattingICWL[[#This Row],[Subsidies]])-SamenvattingKCWL[[#This Row],[Kost]]","v":697.14999999999964}]
[{"$f":"IF('Totale kosten voor cliënt'!A167=\"\",\"\",'Totale kosten voor cliënt'!A167)","v":""},{"$f":"IF('Totale kosten voor cliënt'!A148=\"\",\"\",'Totale kosten voor cliënt'!A148)","v":"Avondmaal"},null,{"$f":"IF('Totale kosten voor cliënt'!B148=\"\",\"\",'Totale kosten voor cliënt'!E148)","v":711.75},null,null,{"$f":"B25","v":"Avondmaal"},{"$f":"VLOOKUP(SamenvattingICWL[[#This Row],[Categorie]],VKprijsWenL[],3,)*VLOOKUP(SamenvattingICWL[[#This Row],[Categorie]],KCWL[],3,)","v":0},{"$f":"IF(OR(G25=\"\",D25=0),0,VLOOKUP(SamenvattingICWL[[#This Row],[Categorie]],KCWL[],3,)*VLOOKUP(SamenvattingICWL[[#This Row],[Categorie]],VKprijsWenL[],5,))","v":1095},null,null,{"$f":"SamenvattingKCWL[[#This Row],[Categorie]]","v":"Avondmaal"},{"$f":"(SamenvattingICWL[[#This Row],[Gefactureerd]]+SamenvattingICWL[[#This Row],[Subsidies]])-SamenvattingKCWL[[#This Row],[Kost]]","v":383.25}]
[{"$f":"IF('Totale kosten voor cliënt'!A168=\"\",\"\",'Totale kosten voor cliënt'!A168)","v":""},{"$f":"IF('Totale kosten voor cliënt'!A149=\"\",\"\",'Totale kosten voor cliënt'!A149)","v":"Huur kamer"},null,{"$f":"IF('Totale kosten voor cliënt'!B149=\"\",\"\",'Totale kosten voor cliënt'!E149)","v":2784.95},null,null,{"$f":"B26","v":"Huur kamer"},{"$f":"VLOOKUP(SamenvattingICWL[[#This Row],[Categorie]],VKprijsWenL[],3,)*VLOOKUP(SamenvattingICWL[[#This Row],[Categorie]],KCWL[],3,)","v":0},{"$f":"IF(OR(G26=\"\",D26=0),0,VLOOKUP(SamenvattingICWL[[#This Row],[Categorie]],KCWL[],3,)*VLOOKUP(SamenvattingICWL[[#This Row],[Categorie]],VKprijsWenL[],5,))","v":3102.5},null,null,{"$f":"SamenvattingKCWL[[#This Row],[Categorie]]","v":"Huur kamer"},{"$f":"(SamenvattingICWL[[#This Row],[Gefactureerd]]+SamenvattingICWL[[#This Row],[Subsidies]])-SamenvattingKCWL[[#This Row],[Kost]]","v":317.55000000000018}]
[{"$f":"IF('Totale kosten voor cliënt'!A169=\"\",\"\",'Totale kosten voor cliënt'!A169)","v":""},{"$f":"IF('Totale kosten voor cliënt'!A150=\"\",\"\",'Totale kosten voor cliënt'!A150)","v":"Onderhoud kamer"},null,{"$f":"IF('Totale kosten voor cliënt'!B150=\"\",\"\",'Totale kosten voor cliënt'!E150)","v":2923.65},null,null,{"$f":"B27","v":"Onderhoud kamer"},{"$f":"VLOOKUP(SamenvattingICWL[[#This Row],[Categorie]],VKprijsWenL[],3,)*VLOOKUP(SamenvattingICWL[[#This Row],[Categorie]],KCWL[],3,)","v":0},{"$f":"IF(OR(G27=\"\",D27=0),0,VLOOKUP(SamenvattingICWL[[#This Row],[Categorie]],KCWL[],3,)*VLOOKUP(SamenvattingICWL[[#This Row],[Categorie]],VKprijsWenL[],5,))","v":3650},null,null,{"$f":"SamenvattingKCWL[[#This Row],[Categorie]]","v":"Onderhoud kamer"},{"$f":"(SamenvattingICWL[[#This Row],[Gefactureerd]]+SamenvattingICWL[[#This Row],[Subsidies]])-SamenvattingKCWL[[#This Row],[Kost]]","v":726.34999999999991}]
[{"$f":"IF('Totale kosten voor cliënt'!A170=\"\",\"\",'Totale kosten voor cliënt'!A170)","v":""},{"$f":"IF('Totale kosten voor cliënt'!A151=\"\",\"\",'Totale kosten voor cliënt'!A151)","v":"Naaisters"},null,{"$f":"IF('Totale kosten voor cliënt'!B151=\"\",\"\",'Totale kosten voor cliënt'!E151)","v":0},null,null,"Naaisters",{"$f":"VLOOKUP(SamenvattingICWL[[#This Row],[Categorie]],VKprijsWenL[],3,)*VLOOKUP(SamenvattingICWL[[#This Row],[Categorie]],KCWL[],3,)","v":0},{"$f":"IF(OR(G28=\"\",D28=0),0,VLOOKUP(SamenvattingICWL[[#This Row],[Categorie]],KCWL[],3,)*VLOOKUP(SamenvattingICWL[[#This Row],[Categorie]],VKprijsWenL[],5,))","v":0},null,null,{"$f":"SamenvattingKCWL[[#This Row],[Categorie]]","v":"Naaisters"},{"$f":"(SamenvattingICWL[[#This Row],[Gefactureerd]]+SamenvattingICWL[[#This Row],[Subsidies]])-SamenvattingKCWL[[#This Row],[Kost]]","v":0}]
[{"$f":"IF('Totale kosten voor cliënt'!A171=\"\",\"\",'Totale kosten voor cliënt'!A171)","v":""},{"$f":"IF('Totale kosten voor cliënt'!A152=\"\",\"\",'Totale kosten voor cliënt'!A152)","v":"W&L 7"},null,{"$f":"IF('Totale kosten voor cliënt'!B152=\"\",\"\",'Totale kosten voor cliënt'!E152)","v":0},null,null,"W&L 7",{"$f":"VLOOKUP(SamenvattingICWL[[#This Row],[Categorie]],VKprijsWenL[],3,)*VLOOKUP(SamenvattingICWL[[#This Row],[Categorie]],KCWL[],3,)","v":0},{"$f":"IF(OR(G29=\"\",D29=0),0,VLOOKUP(SamenvattingICWL[[#This Row],[Categorie]],KCWL[],3,)*VLOOKUP(SamenvattingICWL[[#This Row],[Categorie]],VKprijsWenL[],5,))","v":0},null,null,{"$f":"SamenvattingKCWL[[#This Row],[Categorie]]","v":"W&L 7"},{"$f":"(SamenvattingICWL[[#This Row],[Gefactureerd]]+SamenvattingICWL[[#This Row],[Subsidies]])-SamenvattingKCWL[[#This Row],[Kost]]","v":0}]
[{"$f":"IF('Totale kosten voor cliënt'!A172=\"\",\"\",'Totale kosten voor cliënt'!A172)","v":""},{"$f":"IF('Totale kosten voor cliënt'!A153=\"\",\"\",'Totale kosten voor cliënt'!A153)","v":"W&L 8"},null,{"$f":"IF('Totale kosten voor cliënt'!B153=\"\",\"\",'Totale kosten voor cliënt'!E153)","v":0},null,null,"W&L 8",{"$f":"VLOOKUP(SamenvattingICWL[[#This Row],[Categorie]],VKprijsWenL[],3,)*VLOOKUP(SamenvattingICWL[[#This Row],[Categorie]],KCWL[],3,)","v":0},{"$f":"IF(OR(G30=\"\",D30=0),0,VLOOKUP(SamenvattingICWL[[#This Row],[Categorie]],KCWL[],3,)*VLOOKUP(SamenvattingICWL[[#This Row],[Categorie]],VKprijsWenL[],5,))","v":0},null,null,{"$f":"SamenvattingKCWL[[#This Row],[Categorie]]","v":"W&L 8"},{"$f":"(SamenvattingICWL[[#This Row],[Gefactureerd]]+SamenvattingICWL[[#This Row],[Subsidies]])-SamenvattingKCWL[[#This Row],[Kost]]","v":0}]
[{"$f":"IF('Totale kosten voor cliënt'!A173=\"\",\"\",'Totale kosten voor cliënt'!A173)","v":""},{"$f":"IF('Totale kosten voor cliënt'!A154=\"\",\"\",'Totale kosten voor cliënt'!A154)","v":"W&L 9"},null,{"$f":"IF('Totale kosten voor cliënt'!B154=\"\",\"\",'Totale kosten voor cliënt'!E154)","v":0},null,null,"W&L 9",{"$f":"VLOOKUP(SamenvattingICWL[[#This Row],[Categorie]],VKprijsWenL[],3,)*VLOOKUP(SamenvattingICWL[[#This Row],[Categorie]],KCWL[],3,)","v":0},{"$f":"IF(OR(G31=\"\",D31=0),0,VLOOKUP(SamenvattingICWL[[#This Row],[Categorie]],KCWL[],3,)*VLOOKUP(SamenvattingICWL[[#This Row],[Categorie]],VKprijsWenL[],5,))","v":0},null,null,{"$f":"SamenvattingKCWL[[#This Row],[Categorie]]","v":"W&L 9"},{"$f":"(SamenvattingICWL[[#This Row],[Gefactureerd]]+SamenvattingICWL[[#This Row],[Subsidies]])-SamenvattingKCWL[[#This Row],[Kost]]","v":0}]
[{"$f":"IF('Totale kosten voor cliënt'!A174=\"\",\"\",'Totale kosten voor cliënt'!A174)","v":""},{"$f":"IF('Totale kosten voor cliënt'!A155=\"\",\"\",'Totale kosten voor cliënt'!A155)","v":"W&L 10"},null,{"$f":"IF('Totale kosten voor cliënt'!B155=\"\",\"\",'Totale kosten voor cliënt'!E155)","v":0},null,null,"W&L 10",{"$f":"VLOOKUP(SamenvattingICWL[[#This Row],[Categorie]],VKprijsWenL[],3,)*VLOOKUP(SamenvattingICWL[[#This Row],[Categorie]],KCWL[],3,)","v":0},{"$f":"IF(OR(G32=\"\",D32=0),0,VLOOKUP(SamenvattingICWL[[#This Row],[Categorie]],KCWL[],3,)*VLOOKUP(SamenvattingICWL[[#This Row],[Categorie]],VKprijsWenL[],5,))","v":0},null,null,{"$f":"SamenvattingKCWL[[#This Row],[Categorie]]","v":"W&L 10"},{"$f":"(SamenvattingICWL[[#This Row],[Gefactureerd]]+SamenvattingICWL[[#This Row],[Subsidies]])-SamenvattingKCWL[[#This Row],[Kost]]","v":0}]
[{"$f":"IF('Totale kosten voor cliënt'!A175=\"\",\"\",'Totale kosten voor cliënt'!A175)","v":""},{"$f":"IF('Totale kosten voor cliënt'!A156=\"\",\"\",'Totale kosten voor cliënt'!A156)","v":"W&L 11"},null,{"$f":"IF('Totale kosten voor cliënt'!B156=\"\",\"\",'Totale kosten voor cliënt'!E156)","v":0},null,null,"W&L 11",{"$f":"VLOOKUP(SamenvattingICWL[[#This Row],[Categorie]],VKprijsWenL[],3,)*VLOOKUP(SamenvattingICWL[[#This Row],[Categorie]],KCWL[],3,)","v":0},{"$f":"IF(OR(G33=\"\",D33=0),0,VLOOKUP(SamenvattingICWL[[#This Row],[Categorie]],KCWL[],3,)*VLOOKUP(SamenvattingICWL[[#This Row],[Categorie]],VKprijsWenL[],5,))","v":0},null,null,{"$f":"SamenvattingKCWL[[#This Row],[Categorie]]","v":"W&L 11"},{"$f":"(SamenvattingICWL[[#This Row],[Gefactureerd]]+SamenvattingICWL[[#This Row],[Subsidies]])-SamenvattingKCWL[[#This Row],[Kost]]","v":0}]
[{"$f":"IF('Totale kosten voor cliënt'!A176=\"\",\"\",'Totale kosten voor cliënt'!A176)","v":""},{"$f":"IF('Totale kosten voor cliënt'!A157=\"\",\"\",'Totale kosten voor cliënt'!A157)","v":"W&L 12"},null,{"$f":"IF('Totale kosten voor cliënt'!B157=\"\",\"\",'Totale kosten voor cliënt'!E157)","v":0},null,null,"W&L 12",{"$f":"VLOOKUP(SamenvattingICWL[[#This Row],[Categorie]],VKprijsWenL[],3,)*VLOOKUP(SamenvattingICWL[[#This Row],[Categorie]],KCWL[],3,)","v":0},{"$f":"IF(OR(G34=\"\",D34=0),0,VLOOKUP(SamenvattingICWL[[#This Row],[Categorie]],KCWL[],3,)*VLOOKUP(SamenvattingICWL[[#This Row],[Categorie]],VKprijsWenL[],5,))","v":0},null,null,{"$f":"SamenvattingKCWL[[#This Row],[Categorie]]","v":"W&L 12"},{"$f":"(SamenvattingICWL[[#This Row],[Gefactureerd]]+SamenvattingICWL[[#This Row],[Subsidies]])-SamenvattingKCWL[[#This Row],[Kost]]","v":0}]
[{"$f":"IF('Totale kosten voor cliënt'!A177=\"\",\"\",'Totale kosten voor cliënt'!A177)","v":""},{"$f":"IF('Totale kosten voor cliënt'!A158=\"\",\"\",'Totale kosten voor cliënt'!A158)","v":"W&L 13"},null,{"$f":"IF('Totale kosten voor cliënt'!B158=\"\",\"\",'Totale kosten voor cliënt'!E158)","v":0},null,null,"W&L 13",{"$f":"VLOOKUP(SamenvattingICWL[[#This Row],[Categorie]],VKprijsWenL[],3,)*VLOOKUP(SamenvattingICWL[[#This Row],[Categorie]],KCWL[],3,)","v":0},{"$f":"IF(OR(G35=\"\",D35=0),0,VLOOKUP(SamenvattingICWL[[#This Row],[Categorie]],KCWL[],3,)*VLOOKUP(SamenvattingICWL[[#This Row],[Categorie]],VKprijsWenL[],5,))","v":0},null,null,{"$f":"SamenvattingKCWL[[#This Row],[Categorie]]","v":"W&L 13"},{"$f":"(SamenvattingICWL[[#This Row],[Gefactureerd]]+SamenvattingICWL[[#This Row],[Subsidies]])-SamenvattingKCWL[[#This Row],[Kost]]","v":0}]
[{"$f":"IF('Totale kosten voor cliënt'!A178=\"\",\"\",'Totale kosten voor cliënt'!A178)","v":""},{"$f":"IF('Totale kosten voor cliënt'!A159=\"\",\"\",'Totale kosten voor cliënt'!A159)","v":"W&L 14"},null,{"$f":"IF('Totale kosten voor cliënt'!B159=\"\",\"\",'Totale kosten voor cliënt'!E159)","v":0},null,null,"W&L 14",{"$f":"VLOOKUP(SamenvattingICWL[[#This Row],[Categorie]],VKprijsWenL[],3,)*VLOOKUP(SamenvattingICWL[[#This Row],[Categorie]],KCWL[],3,)","v":0},{"$f":"IF(OR(G36=\"\",D36=0),0,VLOOKUP(SamenvattingICWL[[#This Row],[Categorie]],KCWL[],3,)*VLOOKUP(SamenvattingICWL[[#This Row],[Categorie]],VKprijsWenL[],5,))","v":0},null,null,{"$f":"SamenvattingKCWL[[#This Row],[Categorie]]","v":"W&L 14"},{"$f":"(SamenvattingICWL[[#This Row],[Gefactureerd]]+SamenvattingICWL[[#This Row],[Subsidies]])-SamenvattingKCWL[[#This Row],[Kost]]","v":0}]
[{"$f":"IF('Totale kosten voor cliënt'!A179=\"\",\"\",'Totale kosten voor cliënt'!A179)","v":""},{"$f":"IF('Totale kosten voor cliënt'!A160=\"\",\"\",'Totale kosten voor cliënt'!A160)","v":"W&L 15"},null,{"$f":"IF('Totale kosten voor cliënt'!B160=\"\",\"\",'Totale kosten voor cliënt'!E160)","v":0},null,null,"W&L 15",{"$f":"VLOOKUP(SamenvattingICWL[[#This Row],[Categorie]],VKprijsWenL[],3,)*VLOOKUP(SamenvattingICWL[[#This Row],[Categorie]],KCWL[],3,)","v":0},{"$f":"IF(OR(G37=\"\",D37=0),0,VLOOKUP(SamenvattingICWL[[#This Row],[Categorie]],KCWL[],3,)*VLOOKUP(SamenvattingICWL[[#This Row],[Categorie]],VKprijsWenL[],5,))","v":0},null,null,{"$f":"SamenvattingKCWL[[#This Row],[Categorie]]","v":"W&L 15"},{"$f":"(SamenvattingICWL[[#This Row],[Gefactureerd]]+SamenvattingICWL[[#This Row],[Subsidies]])-SamenvattingKCWL[[#This Row],[Kost]]","v":0}]
[{"$f":"IF('Totale kosten voor cliënt'!A180=\"\",\"\",'Totale kosten voor cliënt'!A180)","v":""},{"$f":"IF('Totale kosten voor cliënt'!A161=\"\",\"\",'Totale kosten voor cliënt'!A161)","v":"W&L 16"},null,{"$f":"IF('Totale kosten voor cliënt'!B161=\"\",\"\",'Totale kosten voor cliënt'!E161)","v":0},null,null,"W&L 16",{"$f":"VLOOKUP(SamenvattingICWL[[#This Row],[Categorie]],VKprijsWenL[],3,)*VLOOKUP(SamenvattingICWL[[#This Row],[Categorie]],KCWL[],3,)","v":0},{"$f":"IF(OR(G38=\"\",D38=0),0,VLOOKUP(SamenvattingICWL[[#This Row],[Categorie]],KCWL[],3,)*VLOOKUP(SamenvattingICWL[[#This Row],[Categorie]],VKprijsWenL[],5,))","v":0},null,null,{"$f":"SamenvattingKCWL[[#This Row],[Categorie]]","v":"W&L 16"},{"$f":"(SamenvattingICWL[[#This Row],[Gefactureerd]]+SamenvattingICWL[[#This Row],[Subsidies]])-SamenvattingKCWL[[#This Row],[Kost]]","v":0}]
[{"$f":"IF('Totale kosten voor cliënt'!A181=\"\",\"\",'Totale kosten voor cliënt'!A181)","v":""},{"$f":"IF('Totale kosten voor cliënt'!A162=\"\",\"\",'Totale kosten voor cliënt'!A162)","v":"W&L 17"},null,{"$f":"IF('Totale kosten voor cliënt'!B162=\"\",\"\",'Totale kosten voor cliënt'!E162)","v":0},null,null,"W&L 17",{"$f":"VLOOKUP(SamenvattingICWL[[#This Row],[Categorie]],VKprijsWenL[],3,)*VLOOKUP(SamenvattingICWL[[#This Row],[Categorie]],KCWL[],3,)","v":0},{"$f":"IF(OR(G39=\"\",D39=0),0,VLOOKUP(SamenvattingICWL[[#This Row],[Categorie]],KCWL[],3,)*VLOOKUP(SamenvattingICWL[[#This Row],[Categorie]],VKprijsWenL[],5,))","v":0},null,null,{"$f":"SamenvattingKCWL[[#This Row],[Categorie]]","v":"W&L 17"},{"$f":"(SamenvattingICWL[[#This Row],[Gefactureerd]]+SamenvattingICWL[[#This Row],[Subsidies]])-SamenvattingKCWL[[#This Row],[Kost]]","v":0}]
[{"$f":"IF('Totale kosten voor cliënt'!A182=\"\",\"\",'Totale kosten voor cliënt'!A182)","v":""},{"$f":"IF('Totale kosten voor cliënt'!A163=\"\",\"\",'Totale kosten voor cliënt'!A163)","v":"W&L 18"},null,{"$f":"IF('Totale kosten voor cliënt'!B163=\"\",\"\",'Totale kosten voor cliënt'!E163)","v":0},null,null,"W&L 18",{"$f":"VLOOKUP(SamenvattingICWL[[#This Row],[Categorie]],VKprijsWenL[],3,)*VLOOKUP(SamenvattingICWL[[#This Row],[Categorie]],KCWL[],3,)","v":0},{"$f":"IF(OR(G40=\"\",D40=0),0,VLOOKUP(SamenvattingICWL[[#This Row],[Categorie]],KCWL[],3,)*VLOOKUP(SamenvattingICWL[[#This Row],[Categorie]],VKprijsWenL[],5,))","v":0},null,null,{"$f":"SamenvattingKCWL[[#This Row],[Categorie]]","v":"W&L 18"},{"$f":"(SamenvattingICWL[[#This Row],[Gefactureerd]]+SamenvattingICWL[[#This Row],[Subsidies]])-SamenvattingKCWL[[#This Row],[Kost]]","v":0}]
[{"$f":"IF('Totale kosten voor cliënt'!A183=\"\",\"\",'Totale kosten voor cliënt'!A183)","v":""},{"$f":"IF('Totale kosten voor cliënt'!A164=\"\",\"\",'Totale kosten voor cliënt'!A164)","v":"W&L 19"},null,{"$f":"IF('Totale kosten voor cliënt'!B164=\"\",\"\",'Totale kosten voor cliënt'!E164)","v":0},null,null,"W&L 19",{"$f":"VLOOKUP(SamenvattingICWL[[#This Row],[Categorie]],VKprijsWenL[],3,)*VLOOKUP(SamenvattingICWL[[#This Row],[Categorie]],KCWL[],3,)","v":0},{"$f":"IF(OR(G41=\"\",D41=0),0,VLOOKUP(SamenvattingICWL[[#This Row],[Categorie]],KCWL[],3,)*VLOOKUP(SamenvattingICWL[[#This Row],[Categorie]],VKprijsWenL[],5,))","v":0},null,null,{"$f":"SamenvattingKCWL[[#This Row],[Categorie]]","v":"W&L 19"},{"$f":"(SamenvattingICWL[[#This Row],[Gefactureerd]]+SamenvattingICWL[[#This Row],[Subsidies]])-SamenvattingKCWL[[#This Row],[Kost]]","v":0}]
[{"$f":"IF('Totale kosten voor cliënt'!A184=\"\",\"\",'Totale kosten voor cliënt'!A184)","v":""},{"$f":"IF('Totale kosten voor cliënt'!A165=\"\",\"\",'Totale kosten voor cliënt'!A165)","v":"W&L 20"},null,{"$f":"IF('Totale kosten voor cliënt'!B165=\"\",\"\",'Totale kosten voor cliënt'!E165)","v":0},null,null,"W&L 20",{"$f":"VLOOKUP(SamenvattingICWL[[#This Row],[Categorie]],VKprijsWenL[],3,)*VLOOKUP(SamenvattingICWL[[#This Row],[Categorie]],KCWL[],3,)","v":0},{"$f":"IF(OR(G42=\"\",D42=0),0,VLOOKUP(SamenvattingICWL[[#This Row],[Categorie]],KCWL[],3,)*VLOOKUP(SamenvattingICWL[[#This Row],[Categorie]],VKprijsWenL[],5,))","v":0},null,null,{"$f":"SamenvattingKCWL[[#This Row],[Categorie]]","v":"W&L 20"},{"$f":"(SamenvattingICWL[[#This Row],[Gefactureerd]]+SamenvattingICWL[[#This Row],[Subsidies]])-SamenvattingKCWL[[#This Row],[Kost]]","v":0}]
[{"$f":"IF('Totale kosten voor cliënt'!A185=\"\",\"\",'Totale kosten voor cliënt'!A185)","v":""},"Totaal",null,{"$f":"SUBTOTAL(109,SamenvattingKCWL[Kost])","v":11307.699999999999},null,null,"Totaal",{"$f":"SUBTOTAL(109,SamenvattingICWL[Subsidies])","v":0},{"$f":"SUBTOTAL(109,SamenvattingICWL[Gefactureerd])","v":13687.5},null,null,"Verschil",{"$f":"(SamenvattingICWL[[#Totals],[Gefactureerd]]+SamenvattingICWL[[#Totals],[Subsidies]])-SamenvattingKCWL[[#Totals],[Kost]]","v":2379.8000000000011}]
[{"$f":"IF('Totale kosten voor cliënt'!A186=\"\",\"\",'Totale kosten voor cliënt'!A186)","v":""},{"$f":"IF('Totale kosten voor cliënt'!A168=\"\",\"\",'Totale kosten voor cliënt'!A168)","v":""}]
[{"$f":"IF('Totale kosten voor cliënt'!A187=\"\",\"\",'Totale kosten voor cliënt'!A187)","v":""},"Totaal",null,{"$f":"D11+D19+SamenvattingKCWL[[#Totals],[Kost]]","v":94895.126632944462},null,null,"Totaal",null,{"$f":"I11+I19+SamenvattingICWL[[#Totals],[Gefactureerd]]+SamenvattingICWL[[#Totals],[Subsidies]]","v":91131.381953321485},null,null,"Totaal",{"$f":"M11+M19+M43","v":-3763.7446796229851}]
[{"$f":"IF('Totale kosten voor cliënt'!A188=\"\",\"\",'Totale kosten voor cliënt'!A188)","v":""},{"$f":"IF('Totale kosten voor cliënt'!A170=\"\",\"\",'Totale kosten voor cliënt'!A170)","v":""},{"$f":"IF('Totale kosten voor cliënt'!B169=\"\",\"\",'Totale kosten voor cliënt'!E169)","v":""}]
[{"$f":"IF('Totale kosten voor cliënt'!A189=\"\",\"\",'Totale kosten voor cliënt'!A189)","v":""},{"$f":"IF('Totale kosten voor cliënt'!A171=\"\",\"\",'Totale kosten voor cliënt'!A171)","v":""},{"$f":"IF('Totale kosten voor cliënt'!B170=\"\",\"\",'Totale kosten voor cliënt'!E170)","v":""}]
[{"$f":"IF('Totale kosten voor cliënt'!A190=\"\",\"\",'Totale kosten voor cliënt'!A190)","v":""},{"$f":"IF('Totale kosten voor cliënt'!A172=\"\",\"\",'Totale kosten voor cliënt'!A172)","v":""},{"$f":"IF('Totale kosten voor cliënt'!B171=\"\",\"\",'Totale kosten voor cliënt'!E171)","v":""}]
[{"$f":"IF('Totale kosten voor cliënt'!A191=\"\",\"\",'Totale kosten voor cliënt'!A191)","v":""},{"$f":"IF('Totale kosten voor cliënt'!A173=\"\",\"\",'Totale kosten voor cliënt'!A173)","v":""},{"$f":"IF('Totale kosten voor cliënt'!B172=\"\",\"\",'Totale kosten voor cliënt'!E172)","v":""}]
[{"$f":"IF('Totale kosten voor cliënt'!A192=\"\",\"\",'Totale kosten voor cliënt'!A192)","v":""},{"$f":"IF('Totale kosten voor cliënt'!A174=\"\",\"\",'Totale kosten voor cliënt'!A174)","v":""},{"$f":"IF('Totale kosten voor cliënt'!B173=\"\",\"\",'Totale kosten voor cliënt'!E173)","v":""}]
[{"$f":"IF('Totale kosten voor cliënt'!A193=\"\",\"\",'Totale kosten voor cliënt'!A193)","v":""},{"$f":"IF('Totale kosten voor cliënt'!A175=\"\",\"\",'Totale kosten voor cliënt'!A175)","v":""},{"$f":"IF('Totale kosten voor cliënt'!B174=\"\",\"\",'Totale kosten voor cliënt'!E174)","v":""}]
[null,{"$f":"IF('Totale kosten voor cliënt'!B177=\"\",\"\",'Totale kosten voor cliënt'!E177)","v":""}]

{"sheet":"Totalen","index":6,"n_rows":3,"n_cols":13,"rows_kept":3,"cut":false,"hidden":false,"merged":[]}
[]
["Naam","Budgetcategorie","Zorggebonden kosten punten","Zorggebonden kosten cash","Zorggebonden inkomsten punten","Zorggebonden inkomsten cash","Organisatiegebonden kosten punten","Organisatiegebonden kosten cash","Organisatiegebonden inkomsten punten","Organisatiegebonden inkomsten cash","Woon- & leefkosten","Woon-  en leefinkomsten","Woon- en leefsubsidies"]
["Pakket 15","X b",75.186021541916858,66224.609700000001,70.959999999999994,61595.474800000004,19.059656460875924,17362.816900000002,17.98836,15848.4071,11307.7,13687.5,0]

{"sheet":"Totale inkomsten voor cliënt","index":7,"n_rows":66,"n_cols":7,"rows_kept":66,"cut":false,"hidden":false,"merged":[]}
["Naam cliënt","Pakket 15"]
["Type cliënt","Transitie"]
["Budgetcategorie","X b"]
["Afgesproken puntenaantal voucher",70.959999999999994]
["Afgesproken puntenaantal cash",null,null,"Maximum aantal punten"]
["Totaal punten",{"$f":"APAV+APAC","v":70.959999999999994},null,{"$f":"IF($B$2=Keuzelijsten!$I$2,VLOOKUP('Totale inkomsten voor cliënt'!$B$3,Budgetcategorieën!A7:D18,4,),VLOOKUP('Totale inkomsten voor cliënt'!$B$3,Budgetcategorieën!F7:I27,4,))","v":70.9602}]
[]
["Zorggebonden inkomsten","Bedrag"]
["Voucher",{"$f":"APAV*WPO","v":61595.47480343817}]
["Cash",{"$f":"APAC*GWP","v":0}]
["Afgesproken bedrag (extern)",0]
["Totaal",{"$f":"SUBTOTAL(109,ICZGP[Bedrag])","v":61595.47480343817}]
[""]
["Organisatiegebonden inkomsten","Bedrag"]
["Voucher",{"$f":"B9*POGK","v":15614.452862671576}]
["Cash",{"$f":"B10*POGK","v":0}]
["Afgesproken bedrag (extern)",0]
["Totaal",{"$f":"SUBTOTAL(109,ICOG[Bedrag])","v":15614.452862671576}]
[""]
["Woon- & Leefkosten","Brutokost per eenheid","Subsidies per eenheid","Nettokost per eenheid","Verkoopprijs","Aantal eenheden","Omzet"]
[{"$f":"'Woon- en leefkosten'!B2","v":"Ontbijt"},{"$f":"VLOOKUP(VKprijsWenL[[#This Row],[Woon- & Leefkosten]],WoonEnLeefKosten[[Woon- & Leefkost]:[Subsidies per eenheid]],4,)","v":1.3},{"$f":"VLOOKUP(VKprijsWenL[[#This Row],[Woon- & Leefkosten]],WoonEnLeefKosten[[Woon- & Leefkost]:[Subsidies per eenheid]],5,)","v":0},{"$f":"VKprijsWenL[[#This Row],[Brutokost per eenheid]]-VKprijsWenL[[#This Row],[Subsidies per eenheid]]","v":1.3},2,{"$f":"IFERROR(VLOOKUP(VKprijsWenL[[#This Row],[Woon- & Leefkosten]],KCWL[[Woon- en leefkosten]:[Aantal eenheden/jaar]],3,),\"\")","v":365},{"$f":"VKprijsWenL[[#This Row],[Verkoopprijs]]*VKprijsWenL[[#This Row],[Aantal eenheden]]","v":730}]
[{"$f":"'Woon- en leefkosten'!B3","v":"Middagmaal"},{"$f":"VLOOKUP(VKprijsWenL[[#This Row],[Woon- & Leefkosten]],WoonEnLeefKosten[[Woon- & Leefkost]:[Subsidies per eenheid]],4,)","v":12.09},{"$f":"VLOOKUP(VKprijsWenL[[#This Row],[Woon- & Leefkosten]],WoonEnLeefKosten[[Woon- & Leefkost]:[Subsidies per eenheid]],5,)","v":0},{"$f":"VKprijsWenL[[#This Row],[Brutokost per eenheid]]-VKprijsWenL[[#This Row],[Subsidies per eenheid]]","v":12.09},14,{"$f":"IFERROR(VLOOKUP(VKprijsWenL[[#This Row],[Woon- & Leefkosten]],KCWL[[Woon- en leefkosten]:[Aantal eenheden/jaar]],3,),\"\")","v":365},{"$f":"VKprijsWenL[[#This Row],[Verkoopprijs]]*VKprijsWenL[[#This Row],[Aantal eenheden]]","v":5110}]
[{"$f":"'Woon- en leefkosten'!B4","v":"Avondmaal"},{"$f":"VLOOKUP(VKprijsWenL[[#This Row],[Woon- & Leefkosten]],WoonEnLeefKosten[[Woon- & Leefkost]:[Subsidies per eenheid]],4,)","v":1.95},{"$f":"VLOOKUP(VKprijsWenL[[#This Row],[Woon- & Leefkosten]],WoonEnLeefKosten[[Woon- & Leefkost]:[Subsidies per eenheid]],5,)","v":0},{"$f":"VKprijsWenL[[#This Row],[Brutokost per eenheid]]-VKprijsWenL[[#This Row],[Subsidies per eenheid]]","v":1.95},3,{"$f":"IFERROR(VLOOKUP(VKprijsWenL[[#This Row],[Woon- & Leefkosten]],KCWL[[Woon- en leefkosten]:[Aantal eenheden/jaar]],3,),\"\")","v":365},{"$f":"VKprijsWenL[[#This Row],[Verkoopprijs]]*VKprijsWenL[[#This Row],[Aantal eenheden]]","v":1095}]
[{"$f":"'Woon- en leefkosten'!B5","v":"Huur kamer"},{"$f":"VLOOKUP(VKprijsWenL[[#This Row],[Woon- & Leefkosten]],WoonEnLeefKosten[[Woon- & Leefkost]:[Subsidies per eenheid]],4,)","v":7.63},{"$f":"VLOOKUP(VKprijsWenL[[#This Row],[Woon- & Leefkosten]],WoonEnLeefKosten[[Woon- & Leefkost]:[Subsidies per eenheid]],5,)","v":0},{"$f":"VKprijsWenL[[#This Row],[Brutokost per eenheid]]-VKprijsWenL[[#This Row],[Subsidies per eenheid]]","v":7.63},8.5,{"$f":"IFERROR(VLOOKUP(VKprijsWenL[[#This Row],[Woon- & Leefkosten]],KCWL[[Woon- en leefkosten]:[Aantal eenheden/jaar]],3,),\"\")","v":365},{"$f":"VKprijsWenL[[#This Row],[Verkoopprijs]]*VKprijsWenL[[#This Row],[Aantal eenheden]]","v":3102.5}]
[{"$f":"'Woon- en leefkosten'!B6","v":"Onderhoud kamer"},{"$f":"VLOOKUP(VKprijsWenL[[#This Row],[Woon- & Leefkosten]],WoonEnLeefKosten[[Woon- & Leefkost]:[Subsidies per eenheid]],4,)","v":8.01},{"$f":"VLOOKUP(VKprijsWenL[[#This Row],[Woon- & Leefkosten]],WoonEnLeefKosten[[Woon- & Leefkost]:[Subsidies per eenheid]],5,)","v":0},{"$f":"VKprijsWenL[[#This Row],[Brutokost per eenheid]]-VKprijsWenL[[#This Row],[Subsidies per eenheid]]","v":8.01},10,{"$f":"IFERROR(VLOOKUP(VKprijsWenL[[#This Row],[Woon- & Leefkosten]],KCWL[[Woon- en leefkosten]:[Aantal eenheden/jaar]],3,),\"\")","v":365},{"$f":"VKprijsWenL[[#This Row],[Verkoopprijs]]*VKprijsWenL[[#This Row],[Aantal eenheden]]","v":3650}]
[{"$f":"'Woon- en leefkosten'!B7","v":"Naaisters"},{"$f":"VLOOKUP(VKprijsWenL[[#This Row],[Woon- & Leefkosten]],WoonEnLeefKosten[[Woon- & Leefkost]:[Subsidies per eenheid]],4,)","v":0},{"$f":"VLOOKUP(VKprijsWenL[[#This Row],[Woon- & Leefkosten]],WoonEnLeefKosten[[Woon- & Leefkost]:[Subsidies per eenheid]],5,)","v":0},{"$f":"VKprijsWenL[[#This Row],[Brutokost per eenheid]]-VKprijsWenL[[#This Row],[Subsidies per eenheid]]","v":0},null,{"$f":"IFERROR(VLOOKUP(VKprijsWenL[[#This Row],[Woon- & Leefkosten]],KCWL[[Woon- en leefkosten]:[Aantal eenheden/jaar]],3,),\"\")","v":0},{"$f":"VKprijsWenL[[#This Row],[Verkoopprijs]]*VKprijsWenL[[#This Row],[Aantal eenheden]]","v":0}]
[{"$f":"'Woon- en leefkosten'!B8","v":"W&L 7"},{"$f":"VLOOKUP(VKprijsWenL[[#This Row],[Woon- & Leefkosten]],WoonEnLeefKosten[[Woon- & Leefkost]:[Subsidies per eenheid]],4,)","v":0},{"$f":"VLOOKUP(VKprijsWenL[[#This Row],[Woon- & Leefkosten]],WoonEnLeefKosten[[Woon- & Leefkost]:[Subsidies per eenheid]],5,)","v":0},{"$f":"VKprijsWenL[[#This Row],[Brutokost per eenheid]]-VKprijsWenL[[#This Row],[Subsidies per eenheid]]","v":0},null,{"$f":"IFERROR(VLOOKUP(VKprijsWenL[[#This Row],[Woon- & Leefkosten]],KCWL[[Woon- en leefkosten]:[Aantal eenheden/jaar]],3,),\"\")","v":0},{"$f":"VKprijsWenL[[#This Row],[Verkoopprijs]]*VKprijsWenL[[#This Row],[Aantal eenheden]]","v":0}]
[{"$f":"'Woon- en leefkosten'!B9","v":"W&L 8"},{"$f":"VLOOKUP(VKprijsWenL[[#This Row],[Woon- & Leefkosten]],WoonEnLeefKosten[[Woon- & Leefkost]:[Subsidies per eenheid]],4,)","v":0},{"$f":"VLOOKUP(VKprijsWenL[[#This Row],[Woon- & Leefkosten]],WoonEnLeefKosten[[Woon- & Leefkost]:[Subsidies per eenheid]],5,)","v":0},{"$f":"VKprijsWenL[[#This Row],[Brutokost per eenheid]]-VKprijsWenL[[#This Row],[Subsidies per eenheid]]","v":0},null,{"$f":"IFERROR(VLOOKUP(VKprijsWenL[[#This Row],[Woon- & Leefkosten]],KCWL[[Woon- en leefkosten]:[Aantal eenheden/jaar]],3,),\"\")","v":0},{"$f":"VKprijsWenL[[#This Row],[Verkoopprijs]]*VKprijsWenL[[#This Row],[Aantal eenheden]]","v":0}]
[{"$f":"'Woon- en leefkosten'!B10","v":"W&L 9"},{"$f":"VLOOKUP(VKprijsWenL[[#This Row],[Woon- & Leefkosten]],WoonEnLeefKosten[[Woon- & Leefkost]:[Subsidies per eenheid]],4,)","v":0},{"$f":"VLOOKUP(VKprijsWenL[[#This Row],[Woon- & Leefkosten]],WoonEnLeefKosten[[Woon- & Leefkost]:[Subsidies per eenheid]],5,)","v":0},{"$f":"VKprijsWenL[[#This Row],[Brutokost per eenheid]]-VKprijsWenL[[#This Row],[Subsidies per eenheid]]","v":0},null,{"$f":"IFERROR(VLOOKUP(VKprijsWenL[[#This Row],[Woon- & Leefkosten]],KCWL[[Woon- en leefkosten]:[Aantal eenheden/jaar]],3,),\"\")","v":0},{"$f":"VKprijsWenL[[#This Row],[Verkoopprijs]]*VKprijsWenL[[#This Row],[Aantal eenheden]]","v":0}]
[{"$f":"'Woon- en leefkosten'!B11","v":"W&L 10"},{"$f":"VLOOKUP(VKprijsWenL[[#This Row],[Woon- & Leefkosten]],WoonEnLeefKosten[[Woon- & Leefkost]:[Subsidies per eenheid]],4,)","v":0},{"$f":"VLOOKUP(VKprijsWenL[[#This Row],[Woon- & Leefkosten]],WoonEnLeefKosten[[Woon- & Leefkost]:[Subsidies per eenheid]],5,)","v":0},{"$f":"VKprijsWenL[[#This Row],[Brutokost per eenheid]]-VKprijsWenL[[#This Row],[Subsidies per eenheid]]","v":0},null,{"$f":"IFERROR(VLOOKUP(VKprijsWenL[[#This Row],[Woon- & Leefkosten]],KCWL[[Woon- en leefkosten]:[Aantal eenheden/jaar]],3,),\"\")","v":0},{"$f":"VKprijsWenL[[#This Row],[Verkoopprijs]]*VKprijsWenL[[#This Row],[Aantal eenheden]]","v":0}]
[{"$f":"'Woon- en leefkosten'!B12","v":"W&L 11"},{"$f":"VLOOKUP(VKprijsWenL[[#This Row],[Woon- & Leefkosten]],WoonEnLeefKosten[[Woon- & Leefkost]:[Subsidies per eenheid]],4,)","v":0},{"$f":"VLOOKUP(VKprijsWenL[[#This Row],[Woon- & Leefkosten]],WoonEnLeefKosten[[Woon- & Leefkost]:[Subsidies per eenheid]],5,)","v":0},{"$f":"VKprijsWenL[[#This Row],[Brutokost per eenheid]]-VKprijsWenL[[#This Row],[Subsidies per eenheid]]","v":0},null,{"$f":"IFERROR(VLOOKUP(VKprijsWenL[[#This Row],[Woon- & Leefkosten]],KCWL[[Woon- en leefkosten]:[Aantal eenheden/jaar]],3,),\"\")","v":0},{"$f":"VKprijsWenL[[#This Row],[Verkoopprijs]]*VKprijsWenL[[#This Row],[Aantal eenheden]]","v":0}]
[{"$f":"'Woon- en leefkosten'!B13","v":"W&L 12"},{"$f":"VLOOKUP(VKprijsWenL[[#This Row],[Woon- & Leefkosten]],WoonEnLeefKosten[[Woon- & Leefkost]:[Subsidies per eenheid]],4,)","v":0},{"$f":"VLOOKUP(VKprijsWenL[[#This Row],[Woon- & Leefkosten]],WoonEnLeefKosten[[Woon- & Leefkost]:[Subsidies per eenheid]],5,)","v":0},{"$f":"VKprijsWenL[[#This Row],[Brutokost per eenheid]]-VKprijsWenL[[#This Row],[Subsidies per eenheid]]","v":0},null,{"$f":"IFERROR(VLOOKUP(VKprijsWenL[[#This Row],[Woon- & Leefkosten]],KCWL[[Woon- en leefkosten]:[Aantal eenheden/jaar]],3,),\"\")","v":0},{"$f":"VKprijsWenL[[#This Row],[Verkoopprijs]]*VKprijsWenL[[#This Row],[Aantal eenheden]]","v":0}]
[{"$f":"'Woon- en leefkosten'!B14","v":"W&L 13"},{"$f":"VLOOKUP(VKprijsWenL[[#This Row],[Woon- & Leefkosten]],WoonEnLeefKosten[[Woon- & Leefkost]:[Subsidies per eenheid]],4,)","v":0},{"$f":"VLOOKUP(VKprijsWenL[[#This Row],[Woon- & Leefkosten]],WoonEnLeefKosten[[Woon- & Leefkost]:[Subsidies per eenheid]],5,)","v":0},{"$f":"VKprijsWenL[[#This Row],[Brutokost per eenheid]]-VKprijsWenL[[#This Row],[Subsidies per eenheid]]","v":0},null,{"$f":"IFERROR(VLOOKUP(VKprijsWenL[[#This Row],[Woon- & Leefkosten]],KCWL[[Woon- en leefkosten]:[Aantal eenheden/jaar]],3,),\"\")","v":0},{"$f":"VKprijsWenL[[#This Row],[Verkoopprijs]]*VKprijsWenL[[#This Row],[Aantal eenheden]]","v":0}]
[{"$f":"'Woon- en leefkosten'!B15","v":"W&L 14"},{"$f":"VLOOKUP(VKprijsWenL[[#This Row],[Woon- & Leefkosten]],WoonEnLeefKosten[[Woon- & Leefkost]:[Subsidies per eenheid]],4,)","v":0},{"$f":"VLOOKUP(VKprijsWenL[[#This Row],[Woon- & Leefkosten]],WoonEnLeefKosten[[Woon- & Leefkost]:[Subsidies per eenheid]],5,)","v":0},{"$f":"VKprijsWenL[[#This Row],[Brutokost per eenheid]]-VKprijsWenL[[#This Row],[Subsidies per eenheid]]","v":0},null,{"$f":"IFERROR(VLOOKUP(VKprijsWenL[[#This Row],[Woon- & Leefkosten]],KCWL[[Woon- en leefkosten]:[Aantal eenheden/jaar]],3,),\"\")","v":0},{"$f":"VKprijsWenL[[#This Row],[Verkoopprijs]]*VKprijsWenL[[#This Row],[Aantal eenheden]]","v":0}]
[{"$f":"'Woon- en leefkosten'!B16","v":"W&L 15"},{"$f":"VLOOKUP(VKprijsWenL[[#This Row],[Woon- & Leefkosten]],WoonEnLeefKosten[[Woon- & Leefkost]:[Subsidies per eenheid]],4,)","v":0},{"$f":"VLOOKUP(VKprijsWenL[[#This Row],[Woon- & Leefkosten]],WoonEnLeefKosten[[Woon- & Leefkost]:[Subsidies per eenheid]],5,)","v":0},{"$f":"VKprijsWenL[[#This Row],[Brutokost per eenheid]]-VKprijsWenL[[#This Row],[Subsidies per eenheid]]","v":0},null,{"$f":"IFERROR(VLOOKUP(VKprijsWenL[[#This Row],[Woon- & Leefkosten]],KCWL[[Woon- en leefkosten]:[Aantal eenheden/jaar]],3,),\"\")","v":0},{"$f":"VKprijsWenL[[#This Row],[Verkoopprijs]]*VKprijsWenL[[#This Row],[Aantal eenheden]]","v":0}]
[{"$f":"'Woon- en leefkosten'!B17","v":"W&L 16"},{"$f":"VLOOKUP(VKprijsWenL[[#This Row],[Woon- & Leefkosten]],WoonEnLeefKosten[[Woon- & Leefkost]:[Subsidies per eenheid]],4,)","v":0},{"$f":"VLOOKUP(VKprijsWenL[[#This Row],[Woon- & Leefkosten]],WoonEnLeefKosten[[Woon- & Leefkost]:[Subsidies per eenheid]],5,)","v":0},{"$f":"VKprijsWenL[[#This Row],[Brutokost per eenheid]]-VKprijsWenL[[#This Row],[Subsidies per eenheid]]","v":0},null,{"$f":"IFERROR(VLOOKUP(VKprijsWenL[[#This Row],[Woon- & Leefkosten]],KCWL[[Woon- en leefkosten]:[Aantal eenheden/jaar]],3,),\"\")","v":0},{"$f":"VKprijsWenL[[#This Row],[Verkoopprijs]]*VKprijsWenL[[#This Row],[Aantal eenheden]]","v":0}]
[{"$f":"'Woon- en leefkosten'!B18","v":"W&L 17"},{"$f":"VLOOKUP(VKprijsWenL[[#This Row],[Woon- & Leefkosten]],WoonEnLeefKosten[[Woon- & Leefkost]:[Subsidies per eenheid]],4,)","v":0},{"$f":"VLOOKUP(VKprijsWenL[[#This Row],[Woon- & Leefkosten]],WoonEnLeefKosten[[Woon- & Leefkost]:[Subsidies per eenheid]],5,)","v":0},{"$f":"VKprijsWenL[[#This Row],[Brutokost per eenheid]]-VKprijsWenL[[#This Row],[Subsidies per eenheid]]","v":0},null,{"$f":"IFERROR(VLOOKUP(VKprijsWenL[[#This Row],[Woon- & Leefkosten]],KCWL[[Woon- en leefkosten]:[Aantal eenheden/jaar]],3,),\"\")","v":0},{"$f":"VKprijsWenL[[#This Row],[Verkoopprijs]]*VKprijsWenL[[#This Row],[Aantal eenheden]]","v":0}]
[{"$f":"'Woon- en leefkosten'!B19","v":"W&L 18"},{"$f":"VLOOKUP(VKprijsWenL[[#This Row],[Woon- & Leefkosten]],WoonEnLeefKosten[[Woon- & Leefkost]:[Subsidies per eenheid]],4,)","v":0},{"$f":"VLOOKUP(VKprijsWenL[[#This Row],[Woon- & Leefkosten]],WoonEnLeefKosten[[Woon- & Leefkost]:[Subsidies per eenheid]],5,)","v":0},{"$f":"VKprijsWenL[[#This Row],[Brutokost per eenheid]]-VKprijsWenL[[#This Row],[Subsidies per eenheid]]","v":0},null,{"$f":"IFERROR(VLOOKUP(VKprijsWenL[[#This Row],[Woon- & Leefkosten]],KCWL[[Woon- en leefkosten]:[Aantal eenheden/jaar]],3,),\"\")","v":0},{"$f":"VKprijsWenL[[#This Row],[Verkoopprijs]]*VKprijsWenL[[#This Row],[Aantal eenheden]]","v":0}]
[{"$f":"'Woon- en leefkosten'!B20","v":"W&L 19"},{"$f":"VLOOKUP(VKprijsWenL[[#This Row],[Woon- & Leefkosten]],WoonEnLeefKosten[[Woon- & Leefkost]:[Subsidies per eenheid]],4,)","v":0},{"$f":"VLOOKUP(VKprijsWenL[[#This Row],[Woon- & Leefkosten]],WoonEnLeefKosten[[Woon- & Leefkost]:[Subsidies per eenheid]],5,)","v":0},{"$f":"VKprijsWenL[[#This Row],[Brutokost per eenheid]]-VKprijsWenL[[#This Row],[Subsidies per eenheid]]","v":0},null,{"$f":"IFERROR(VLOOKUP(VKprijsWenL[[#This Row],[Woon- & Leefkosten]],KCWL[[Woon- en leefkosten]:[Aantal eenheden/jaar]],3,),\"\")","v":0},{"$f":"VKprijsWenL[[#This Row],[Verkoopprijs]]*VKprijsWenL[[#This Row],[Aantal eenheden]]","v":0}]
[{"$f":"'Woon- en leefkosten'!B21","v":"W&L 20"},{"$f":"VLOOKUP(VKprijsWenL[[#This Row],[Woon- & Leefkosten]],WoonEnLeefKosten[[Woon- & Leefkost]:[Subsidies per eenheid]],4,)","v":0},{"$f":"VLOOKUP(VKprijsWenL[[#This Row],[Woon- & Leefkosten]],WoonEnLeefKosten[[Woon- & Leefkost]:[Subsidies per eenheid]],5,)","v":0},{"$f":"VKprijsWenL[[#This Row],[Brutokost per eenheid]]-VKprijsWenL[[#This Row],[Subsidies per eenheid]]","v":0},null,{"$f":"IFERROR(VLOOKUP(VKprijsWenL[[#This Row],[Woon- & Leefkosten]],KCWL[[Woon- en leefkosten]:[Aantal eenheden/jaar]],3,),\"\")","v":0},{"$f":"VKprijsWenL[[#This Row],[Verkoopprijs]]*VKprijsWenL[[#This Row],[Aantal eenheden]]","v":0}]
["Totaal",null,null,null,null,null,{"$f":"SUBTOTAL(109,VKprijsWenL[Omzet])","v":13687.5}]
[""]
["Organisatiegebonden niet VAPH subsidies","Verdeelsleutel","Aantal eenheden cliënt","Niet VAPH subsidies per eenheid","Subsidies per jaar"]
[{"$f":"Keuzelijsten!C3","v":"Directie"},{"$f":"VLOOKUP(OGSubsidies[[#This Row],[Organisatiegebonden niet VAPH subsidies]],KOOGP[[Dienst]:[Verdeelsleutel]],3,)","v":"Aanwezigheidsdagen"},{"$f":"VLOOKUP(OGSubsidies[[#This Row],[Organisatiegebonden niet VAPH subsidies]],KCOGP[[Organisatiegebonden personeelskosten]:[Aantal eenheden/jaar]],3,)","v":365},{"$f":"VLOOKUP(OGSubsidies[[#This Row],[Organisatiegebonden niet VAPH subsidies]],KOOGP[[Dienst]:[Niet VAPH subsidies per eenheid]],6,)","v":0},{"$f":"OGSubsidies[[#This Row],[Aantal eenheden cliënt]]*OGSubsidies[[#This Row],[Niet VAPH subsidies per eenheid]]","v":0}]
[{"$f":"Keuzelijsten!C4","v":"Administratie"},{"$f":"VLOOKUP(OGSubsidies[[#This Row],[Organisatiegebonden niet VAPH subsidies]],KOOGP[[Dienst]:[Verdeelsleutel]],3,)","v":"Aanwezigheidsdagen"},{"$f":"VLOOKUP(OGSubsidies[[#This Row],[Organisatiegebonden niet VAPH subsidies]],KCOGP[[Organisatiegebonden personeelskosten]:[Aantal eenheden/jaar]],3,)","v":365},{"$f":"VLOOKUP(OGSubsidies[[#This Row],[Organisatiegebonden niet VAPH subsidies]],KOOGP[[Dienst]:[Niet VAPH subsidies per eenheid]],6,)","v":0},{"$f":"OGSubsidies[[#This Row],[Aantal eenheden cliënt]]*OGSubsidies[[#This Row],[Niet VAPH subsidies per eenheid]]","v":0}]
[{"$f":"Keuzelijsten!C5","v":"Onderhoud Centraal Gebouw"},{"$f":"VLOOKUP(OGSubsidies[[#This Row],[Organisatiegebonden niet VAPH subsidies]],KOOGP[[Dienst]:[Verdeelsleutel]],3,)","v":"Aanwezigheidsdagen"},{"$f":"VLOOKUP(OGSubsidies[[#This Row],[Organisatiegebonden niet VAPH subsidies]],KCOGP[[Organisatiegebonden personeelskosten]:[Aantal eenheden/jaar]],3,)","v":365},{"$f":"VLOOKUP(OGSubsidies[[#This Row],[Organisatiegebonden niet VAPH subsidies]],KOOGP[[Dienst]:[Niet VAPH subsidies per eenheid]],6,)","v":0.64097064989517816},{"$f":"OGSubsidies[[#This Row],[Aantal eenheden cliënt]]*OGSubsidies[[#This Row],[Niet VAPH subsidies per eenheid]]","v":233.95428721174002}]
[{"$f":"Keuzelijsten!C6","v":"Technische Dienst"},{"$f":"VLOOKUP(OGSubsidies[[#This Row],[Organisatiegebonden niet VAPH subsidies]],KOOGP[[Dienst]:[Verdeelsleutel]],3,)","v":"Aanwezigheidsdagen"},{"$f":"VLOOKUP(OGSubsidies[[#This Row],[Organisatiegebonden niet VAPH subsidies]],KCOGP[[Organisatiegebonden personeelskosten]:[Aantal eenheden/jaar]],3,)","v":365},{"$f":"VLOOKUP(OGSubsidies[[#This Row],[Organisatiegebonden niet VAPH subsidies]],KOOGP[[Dienst]:[Niet VAPH subsidies per eenheid]],6,)","v":0},{"$f":"OGSubsidies[[#This Row],[Aantal eenheden cliënt]]*OGSubsidies[[#This Row],[Niet VAPH subsidies per eenheid]]","v":0}]
[{"$f":"Keuzelijsten!C7","v":"Huiscoördinatoren"},{"$f":"VLOOKUP(OGSubsidies[[#This Row],[Organisatiegebonden niet VAPH subsidies]],KOOGP[[Dienst]:[Verdeelsleutel]],3,)","v":"Aanwezigheidsdagen"},{"$f":"VLOOKUP(OGSubsidies[[#This Row],[Organisatiegebonden niet VAPH subsidies]],KCOGP[[Organisatiegebonden personeelskosten]:[Aantal eenheden/jaar]],3,)","v":365},{"$f":"VLOOKUP(OGSubsidies[[#This Row],[Organisatiegebonden niet VAPH subsidies]],KOOGP[[Dienst]:[Niet VAPH subsidies per eenheid]],6,)","v":0},{"$f":"OGSubsidies[[#This Row],[Aantal eenheden cliënt]]*OGSubsidies[[#This Row],[Niet VAPH subsidies per eenheid]]","v":0}]
[{"$f":"Keuzelijsten!C8","v":"Logistiek Coördinator"},{"$f":"VLOOKUP(OGSubsidies[[#This Row],[Organisatiegebonden niet VAPH subsidies]],KOOGP[[Dienst]:[Verdeelsleutel]],3,)","v":"Aanwezigheidsdagen"},{"$f":"VLOOKUP(OGSubsidies[[#This Row],[Organisatiegebonden niet VAPH subsidies]],KCOGP[[Organisatiegebonden personeelskosten]:[Aantal eenheden/jaar]],3,)","v":365},{"$f":"VLOOKUP(OGSubsidies[[#This Row],[Organisatiegebonden niet VAPH subsidies]],KOOGP[[Dienst]:[Niet VAPH subsidies per eenheid]],6,)","v":0},{"$f":"OGSubsidies[[#This Row],[Aantal eenheden cliënt]]*OGSubsidies[[#This Row],[Niet VAPH subsidies per eenheid]]","v":0}]
[{"$f":"Keuzelijsten!C9","v":"Zinzorg en pastoraat"},{"$f":"VLOOKUP(OGSubsidies[[#This Row],[Organisatiegebonden niet VAPH subsidies]],KOOGP[[Dienst]:[Verdeelsleutel]],3,)","v":"Aanwezigheidsdagen"},{"$f":"VLOOKUP(OGSubsidies[[#This Row],[Organisatiegebonden niet VAPH subsidies]],KCOGP[[Organisatiegebonden personeelskosten]:[Aantal eenheden/jaar]],3,)","v":365},{"$f":"VLOOKUP(OGSubsidies[[#This Row],[Organisatiegebonden niet VAPH subsidies]],KOOGP[[Dienst]:[Niet VAPH subsidies per eenheid]],6,)","v":0},{"$f":"OGSubsidies[[#This Row],[Aantal eenheden cliënt]]*OGSubsidies[[#This Row],[Niet VAPH subsidies per eenheid]]","v":0}]
[{"$f":"Keuzelijsten!C10","v":"Preventieadviseur"},{"$f":"VLOOKUP(OGSubsidies[[#This Row],[Organisatiegebonden niet VAPH subsidies]],KOOGP[[Dienst]:[Verdeelsleutel]],3,)","v":"Aanwezigheidsdagen"},{"$f":"VLOOKUP(OGSubsidies[[#This Row],[Organisatiegebonden niet VAPH subsidies]],KCOGP[[Organisatiegebonden personeelskosten]:[Aantal eenheden/jaar]],3,)","v":365},{"$f":"VLOOKUP(OGSubsidies[[#This Row],[Organisatiegebonden niet VAPH subsidies]],KOOGP[[Dienst]:[Niet VAPH subsidies per eenheid]],6,)","v":0},{"$f":"OGSubsidies[[#This Row],[Aantal eenheden cliënt]]*OGSubsidies[[#This Row],[Niet VAPH subsidies per eenheid]]","v":0}]
[{"$f":"Keuzelijsten!C11","v":"Naaisters"},{"$f":"VLOOKUP(OGSubsidies[[#This Row],[Organisatiegebonden niet VAPH subsidies]],KOOGP[[Dienst]:[Verdeelsleutel]],3,)","v":"Aanwezigheidsdagen"},{"$f":"VLOOKUP(OGSubsidies[[#This Row],[Organisatiegebonden niet VAPH subsidies]],KCOGP[[Organisatiegebonden personeelskosten]:[Aantal eenheden/jaar]],3,)","v":365},{"$f":"VLOOKUP(OGSubsidies[[#This Row],[Organisatiegebonden niet VAPH subsidies]],KOOGP[[Dienst]:[Niet VAPH subsidies per eenheid]],6,)","v":0},{"$f":"OGSubsidies[[#This Row],[Aantal eenheden cliënt]]*OGSubsidies[[#This Row],[Niet VAPH subsidies per eenheid]]","v":0}]
[{"$f":"Keuzelijsten!C12","v":"Sociale dienst"},{"$f":"VLOOKUP(OGSubsidies[[#This Row],[Organisatiegebonden niet VAPH subsidies]],KOOGP[[Dienst]:[Verdeelsleutel]],3,)","v":"Aanwezigheidsdagen"},{"$f":"VLOOKUP(OGSubsidies[[#This Row],[Organisatiegebonden niet VAPH subsidies]],KCOGP[[Organisatiegebonden personeelskosten]:[Aantal eenheden/jaar]],3,)","v":365},{"$f":"VLOOKUP(OGSubsidies[[#This Row],[Organisatiegebonden niet VAPH subsidies]],KOOGP[[Dienst]:[Niet VAPH subsidies per eenheid]],6,)","v":0},{"$f":"OGSubsidies[[#This Row],[Aantal eenheden cliënt]]*OGSubsidies[[#This Row],[Niet VAPH subsidies per eenheid]]","v":0}]
["Totaal",null,null,null,{"$f":"SUBTOTAL(109,OGSubsidies[Subsidies per jaar])","v":233.95428721174002}]
[""]
["Zorggebonden niet VAPH subsidies","Aantal cash uren cliënt","Niet VAPH subsidies per uur","Subsidies per jaar"]
[{"$f":"Keuzelijsten!A3","v":"Leefgroepbegeleider"},{"$f":"VLOOKUP(ZGSubsidies[[#This Row],[Zorggebonden niet VAPH subsidies]],KCZGP[],3,)","v":0},{"$f":"IFERROR(VLOOKUP(ZGSubsidies[[#This Row],[Zorggebonden niet VAPH subsidies]],NVAPH[[Dienst]:[Inkomsten/uur]],3,),0)","v":16.269033333333333},{"$f":"ZGSubsidies[[#This Row],[Aantal cash uren cliënt]]*ZGSubsidies[[#This Row],[Niet VAPH subsidies per uur]]","v":0}]
[{"$f":"Keuzelijsten!A4","v":"Dagbestedingsbegeleider"},{"$f":"VLOOKUP(ZGSubsidies[[#This Row],[Zorggebonden niet VAPH subsidies]],KCZGP[],3,)","v":0},{"$f":"IFERROR(VLOOKUP(ZGSubsidies[[#This Row],[Zorggebonden niet VAPH subsidies]],NVAPH[[Dienst]:[Inkomsten/uur]],3,),0)","v":0},{"$f":"ZGSubsidies[[#This Row],[Aantal cash uren cliënt]]*ZGSubsidies[[#This Row],[Niet VAPH subsidies per uur]]","v":0}]
[{"$f":"Keuzelijsten!A5","v":"Kinesist"},{"$f":"VLOOKUP(ZGSubsidies[[#This Row],[Zorggebonden niet VAPH subsidies]],KCZGP[],3,)","v":0},{"$f":"IFERROR(VLOOKUP(ZGSubsidies[[#This Row],[Zorggebonden niet VAPH subsidies]],NVAPH[[Dienst]:[Inkomsten/uur]],3,),0)","v":0},{"$f":"ZGSubsidies[[#This Row],[Aantal cash uren cliënt]]*ZGSubsidies[[#This Row],[Niet VAPH subsidies per uur]]","v":0}]
[{"$f":"Keuzelijsten!A6","v":"Logopedist"},{"$f":"VLOOKUP(ZGSubsidies[[#This Row],[Zorggebonden niet VAPH subsidies]],KCZGP[],3,)","v":0},{"$f":"IFERROR(VLOOKUP(ZGSubsidies[[#This Row],[Zorggebonden niet VAPH subsidies]],NVAPH[[Dienst]:[Inkomsten/uur]],3,),0)","v":0},{"$f":"ZGSubsidies[[#This Row],[Aantal cash uren cliënt]]*ZGSubsidies[[#This Row],[Niet VAPH subsidies per uur]]","v":0}]
[{"$f":"Keuzelijsten!A7","v":"Diëtist"},{"$f":"VLOOKUP(ZGSubsidies[[#This Row],[Zorggebonden niet VAPH subsidies]],KCZGP[],3,)","v":0},{"$f":"IFERROR(VLOOKUP(ZGSubsidies[[#This Row],[Zorggebonden niet VAPH subsidies]],NVAPH[[Dienst]:[Inkomsten/uur]],3,),0)","v":0},{"$f":"ZGSubsidies[[#This Row],[Aantal cash uren cliënt]]*ZGSubsidies[[#This Row],[Niet VAPH subsidies per uur]]","v":0}]
[{"$f":"Keuzelijsten!A8","v":"Verpleegkundigen"},{"$f":"VLOOKUP(ZGSubsidies[[#This Row],[Zorggebonden niet VAPH subsidies]],KCZGP[],3,)","v":0},{"$f":"IFERROR(VLOOKUP(ZGSubsidies[[#This Row],[Zorggebonden niet VAPH subsidies]],NVAPH[[Dienst]:[Inkomsten/uur]],3,),0)","v":0},{"$f":"ZGSubsidies[[#This Row],[Aantal cash uren cliënt]]*ZGSubsidies[[#This Row],[Niet VAPH subsidies per uur]]","v":0}]
[{"$f":"Keuzelijsten!A9","v":"Dokters"},{"$f":"VLOOKUP(ZGSubsidies[[#This Row],[Zorggebonden niet VAPH subsidies]],KCZGP[],3,)","v":0},{"$f":"IFERROR(VLOOKUP(ZGSubsidies[[#This Row],[Zorggebonden niet VAPH subsidies]],NVAPH[[Dienst]:[Inkomsten/uur]],3,),0)","v":0},{"$f":"ZGSubsidies[[#This Row],[Aantal cash uren cliënt]]*ZGSubsidies[[#This Row],[Niet VAPH subsidies per uur]]","v":0}]
[{"$f":"Keuzelijsten!A10","v":"Orthoagoog"},{"$f":"VLOOKUP(ZGSubsidies[[#This Row],[Zorggebonden niet VAPH subsidies]],KCZGP[],3,)","v":0},{"$f":"IFERROR(VLOOKUP(ZGSubsidies[[#This Row],[Zorggebonden niet VAPH subsidies]],NVAPH[[Dienst]:[Inkomsten/uur]],3,),0)","v":0},{"$f":"ZGSubsidies[[#This Row],[Aantal cash uren cliënt]]*ZGSubsidies[[#This Row],[Niet VAPH subsidies per uur]]","v":0}]
[{"$f":"Keuzelijsten!A11","v":"Nachtdienst"},{"$f":"VLOOKUP(ZGSubsidies[[#This Row],[Zorggebonden niet VAPH subsidies]],KCZGP[],3,)","v":0},{"$f":"IFERROR(VLOOKUP(ZGSubsidies[[#This Row],[Zorggebonden niet VAPH subsidies]],NVAPH[[Dienst]:[Inkomsten/uur]],3,),0)","v":0},{"$f":"ZGSubsidies[[#This Row],[Aantal cash uren cliënt]]*ZGSubsidies[[#This Row],[Niet VAPH subsidies per uur]]","v":0}]
["Totaal",null,null,{"$f":"SUBTOTAL(109,ZGSubsidies[Subsidies per jaar])","v":0}]

{"sheet":"Totale kosten voor cliënt","index":8,"n_rows":166,"n_cols":9,"rows_kept":166,"cut":false,"hidden":false,"merged":[]}
["Naam cliënt",{"$f":"'Totale inkomsten voor cliënt'!B1","v":"Pakket 15"}]
[]
["Zorggebonden personeelskosten","Voucher uren per jaar","Cash uren per jaar","Punten per uur","Punten per jaar","Voucher kost per jaar","Cash kost per jaar","Cash punten per jaar","Totaal personeelskost per jaar"]
[{"$f":"Keuzelijsten!A3","v":"Leefgroepbegeleider"},1116.1600000000001,null,{"$f":"VLOOKUP(KCZGP[Zorggebonden personeelskosten],KOZGP[],5,)","v":3.8571527643520481E-2},{"$f":"IF(ISERROR(KCZGP[Voucher uren per jaar]*KCZGP[Punten per uur])=TRUE,0,KCZGP[Voucher uren per jaar]*KCZGP[Punten per uur])","v":43.051996294591824},{"$f":"KCZGP[[#This Row],[Punten per jaar]]*WPO","v":37370.464388405358},{"$f":"IFERROR(VLOOKUP(KCZGP[Zorggebonden personeelskosten],KOZGP[],7,),0)*KCZGP[[#This Row],[Cash uren per jaar]]","v":0},{"$f":"KCZGP[[#This Row],[Cash kost per jaar]]/GWP","v":0},{"$f":"KCZGP[[#This Row],[Voucher kost per jaar]]+KCZGP[[#This Row],[Cash kost per jaar]]","v":37370.464388405358}]
[{"$f":"Keuzelijsten!A4","v":"Dagbestedingsbegeleider"},106.09,null,{"$f":"VLOOKUP(KCZGP[Zorggebonden personeelskosten],KOZGP[],5,)","v":3.8720008542318926E-2},{"$f":"IF(ISERROR(KCZGP[Voucher uren per jaar]*KCZGP[Punten per uur])=TRUE,0,KCZGP[Voucher uren per jaar]*KCZGP[Punten per uur])","v":4.1078057062546147},{"$f":"KCZGP[[#This Row],[Punten per jaar]]*WPO","v":3565.702408075334},{"$f":"IFERROR(VLOOKUP(KCZGP[Zorggebonden personeelskosten],KOZGP[],7,),0)*KCZGP[[#This Row],[Cash uren per jaar]]","v":0},{"$f":"KCZGP[[#This Row],[Cash kost per jaar]]/GWP","v":0},{"$f":"KCZGP[[#This Row],[Voucher kost per jaar]]+KCZGP[[#This Row],[Cash kost per jaar]]","v":3565.702408075334}]
[{"$f":"Keuzelijsten!A5","v":"Kinesist"},85.73,null,{"$f":"VLOOKUP(KCZGP[Zorggebonden personeelskosten],KOZGP[],5,)","v":4.4076067053972746E-2},{"$f":"IF(ISERROR(KCZGP[Voucher uren per jaar]*KCZGP[Punten per uur])=TRUE,0,KCZGP[Voucher uren per jaar]*KCZGP[Punten per uur])","v":3.7786412285370838},{"$f":"KCZGP[[#This Row],[Punten per jaar]]*WPO","v":3279.9774603098735},{"$f":"IFERROR(VLOOKUP(KCZGP[Zorggebonden personeelskosten],KOZGP[],7,),0)*KCZGP[[#This Row],[Cash uren per jaar]]","v":0},{"$f":"KCZGP[[#This Row],[Cash kost per jaar]]/GWP","v":0},{"$f":"KCZGP[[#This Row],[Voucher kost per jaar]]+KCZGP[[#This Row],[Cash kost per jaar]]","v":3279.9774603098735}]
[{"$f":"Keuzelijsten!A6","v":"Logopedist"},2.4900000000000002,null,{"$f":"VLOOKUP(KCZGP[Zorggebonden personeelskosten],KOZGP[],5,)","v":3.977056306154915E-2},{"$f":"IF(ISERROR(KCZGP[Voucher uren per jaar]*KCZGP[Punten per uur])=TRUE,0,KCZGP[Voucher uren per jaar]*KCZGP[Punten per uur])","v":9.9028702023257392E-2},{"$f":"KCZGP[[#This Row],[Punten per jaar]]*WPO","v":85.959976328787178},{"$f":"IFERROR(VLOOKUP(KCZGP[Zorggebonden personeelskosten],KOZGP[],7,),0)*KCZGP[[#This Row],[Cash uren per jaar]]","v":0},{"$f":"KCZGP[[#This Row],[Cash kost per jaar]]/GWP","v":0},{"$f":"KCZGP[[#This Row],[Voucher kost per jaar]]+KCZGP[[#This Row],[Cash kost per jaar]]","v":85.959976328787178}]
[{"$f":"Keuzelijsten!A7","v":"Diëtist"},41.22,null,{"$f":"VLOOKUP(KCZGP[Zorggebonden personeelskosten],KOZGP[],5,)","v":3.7677375531993927E-2},{"$f":"IF(ISERROR(KCZGP[Voucher uren per jaar]*KCZGP[Punten per uur])=TRUE,0,KCZGP[Voucher uren per jaar]*KCZGP[Punten per uur])","v":1.5530614194287897},{"$f":"KCZGP[[#This Row],[Punten per jaar]]*WPO","v":1348.1053484867241},{"$f":"IFERROR(VLOOKUP(KCZGP[Zorggebonden personeelskosten],KOZGP[],7,),0)*KCZGP[[#This Row],[Cash uren per jaar]]","v":0},{"$f":"KCZGP[[#This Row],[Cash kost per jaar]]/GWP","v":0},{"$f":"KCZGP[[#This Row],[Voucher kost per jaar]]+KCZGP[[#This Row],[Cash kost per jaar]]","v":1348.1053484867241}]
[{"$f":"Keuzelijsten!A8","v":"Verpleegkundigen"},358.26,null,{"$f":"VLOOKUP(KCZGP[Zorggebonden personeelskosten],KOZGP[],5,)","v":3.9737613133577689E-2},{"$f":"IF(ISERROR(KCZGP[Voucher uren per jaar]*KCZGP[Punten per uur])=TRUE,0,KCZGP[Voucher uren per jaar]*KCZGP[Punten per uur])","v":14.236397281235542},{"$f":"KCZGP[[#This Row],[Punten per jaar]]*WPO","v":12357.633174014651},{"$f":"IFERROR(VLOOKUP(KCZGP[Zorggebonden personeelskosten],KOZGP[],7,),0)*KCZGP[[#This Row],[Cash uren per jaar]]","v":0},{"$f":"KCZGP[[#This Row],[Cash kost per jaar]]/GWP","v":0},{"$f":"KCZGP[[#This Row],[Voucher kost per jaar]]+KCZGP[[#This Row],[Cash kost per jaar]]","v":12357.633174014651}]
[{"$f":"Keuzelijsten!A9","v":"Dokters"},3.22,null,{"$f":"VLOOKUP(KCZGP[Zorggebonden personeelskosten],KOZGP[],5,)","v":0.12775997150997151},{"$f":"IF(ISERROR(KCZGP[Voucher uren per jaar]*KCZGP[Punten per uur])=TRUE,0,KCZGP[Voucher uren per jaar]*KCZGP[Punten per uur])","v":0.41138710826210828},{"$f":"KCZGP[[#This Row],[Punten per jaar]]*WPO","v":357.09673423644284},{"$f":"IFERROR(VLOOKUP(KCZGP[Zorggebonden personeelskosten],KOZGP[],7,),0)*KCZGP[[#This Row],[Cash uren per jaar]]","v":0},{"$f":"KCZGP[[#This Row],[Cash kost per jaar]]/GWP","v":0},{"$f":"KCZGP[[#This Row],[Voucher kost per jaar]]+KCZGP[[#This Row],[Cash kost per jaar]]","v":357.09673423644284}]
[{"$f":"Keuzelijsten!A10","v":"Orthoagoog"},42.81,null,{"$f":"VLOOKUP(KCZGP[Zorggebonden personeelskosten],KOZGP[],5,)","v":5.3378883313761082E-2},{"$f":"IF(ISERROR(KCZGP[Voucher uren per jaar]*KCZGP[Punten per uur])=TRUE,0,KCZGP[Voucher uren per jaar]*KCZGP[Punten per uur])","v":2.2851499946621119},{"$f":"KCZGP[[#This Row],[Punten per jaar]]*WPO","v":1983.580875398633},{"$f":"IFERROR(VLOOKUP(KCZGP[Zorggebonden personeelskosten],KOZGP[],7,),0)*KCZGP[[#This Row],[Cash uren per jaar]]","v":0},{"$f":"KCZGP[[#This Row],[Cash kost per jaar]]/GWP","v":0},{"$f":"KCZGP[[#This Row],[Voucher kost per jaar]]+KCZGP[[#This Row],[Cash kost per jaar]]","v":1983.580875398633}]
[{"$f":"Keuzelijsten!A11","v":"Nachtdienst"},152.82,null,{"$f":"VLOOKUP(KCZGP[Zorggebonden personeelskosten],KOZGP[],5,)","v":3.7053748245789359E-2},{"$f":"IF(ISERROR(KCZGP[Voucher uren per jaar]*KCZGP[Punten per uur])=TRUE,0,KCZGP[Voucher uren per jaar]*KCZGP[Punten per uur])","v":5.6625538069215295},{"$f":"KCZGP[[#This Row],[Punten per jaar]]*WPO","v":4915.2718480460544},{"$f":"IFERROR(VLOOKUP(KCZGP[Zorggebonden personeelskosten],KOZGP[],7,),0)*KCZGP[[#This Row],[Cash uren per jaar]]","v":0},{"$f":"KCZGP[[#This Row],[Cash kost per jaar]]/GWP","v":0},{"$f":"KCZGP[[#This Row],[Voucher kost per jaar]]+KCZGP[[#This Row],[Cash kost per jaar]]","v":4915.2718480460544}]
["Totaal",null,null,null,{"$f":"SUBTOTAL(109,KCZGP[Punten per jaar])","v":75.186021541916858},{"$f":"SUBTOTAL(109,KCZGP[Voucher kost per jaar])","v":65263.792213301851},{"$f":"SUBTOTAL(109,KCZGP[Cash kost per jaar])","v":0},{"$f":"SUBTOTAL(109,KCZGP[Cash punten per jaar])","v":0},{"$f":"SUBTOTAL(109,KCZGP[Totaal personeelskost per jaar])","v":65263.792213301851}]
[""]
["Zorggebonden werkingskosten","Eenheid","Aantal eenheden/jaar","Kost per eenheid","Kost per jaar"]
[{"$f":"'ZG werking'!A2","v":"Beddengoed"},{"$f":"VLOOKUP(KCZGW[[#This Row],[Zorggebonden werkingskosten]],KOZGW[],4,)","v":"Aanwezigheidsdagen"},365,{"$f":"VLOOKUP(KCZGW[[#This Row],[Zorggebonden werkingskosten]],KOZGW[],6,)","v":8.1650128115536916E-2},{"$f":"KCZGW[[#This Row],[Aantal eenheden/jaar]]*KCZGW[[#This Row],[Kost per eenheid]]","v":29.802296762170975}]
[{"$f":"'ZG werking'!A3","v":"Linnen"},{"$f":"VLOOKUP(KCZGW[[#This Row],[Zorggebonden werkingskosten]],KOZGW[],4,)","v":"Aanwezigheidsdagen"},365,{"$f":"VLOOKUP(KCZGW[[#This Row],[Zorggebonden werkingskosten]],KOZGW[],6,)","v":4.3993244817144193E-2},{"$f":"KCZGW[[#This Row],[Aantal eenheden/jaar]]*KCZGW[[#This Row],[Kost per eenheid]]","v":16.05753435825763}]
[{"$f":"'ZG werking'!A4","v":"Kleding"},{"$f":"VLOOKUP(KCZGW[[#This Row],[Zorggebonden werkingskosten]],KOZGW[],4,)","v":"Aanwezigheidsdagen"},365,{"$f":"VLOOKUP(KCZGW[[#This Row],[Zorggebonden werkingskosten]],KOZGW[],6,)","v":0.10307733519683204},{"$f":"KCZGW[[#This Row],[Aantal eenheden/jaar]]*KCZGW[[#This Row],[Kost per eenheid]]","v":37.623227346843699}]
[{"$f":"'ZG werking'!A5","v":"Diverse kosten textiel"},{"$f":"VLOOKUP(KCZGW[[#This Row],[Zorggebonden werkingskosten]],KOZGW[],4,)","v":"Aanwezigheidsdagen"},365,{"$f":"VLOOKUP(KCZGW[[#This Row],[Zorggebonden werkingskosten]],KOZGW[],6,)","v":5.4593757279291874E-2},{"$f":"KCZGW[[#This Row],[Aantal eenheden/jaar]]*KCZGW[[#This Row],[Kost per eenheid]]","v":19.926721406941535}]
[{"$f":"'ZG werking'!A6","v":"Recup textiel"},{"$f":"VLOOKUP(KCZGW[[#This Row],[Zorggebonden werkingskosten]],KOZGW[],4,)","v":"Aanwezigheidsdagen"},365,{"$f":"VLOOKUP(KCZGW[[#This Row],[Zorggebonden werkingskosten]],KOZGW[],6,)","v":-5.554414162590264E-2},{"$f":"KCZGW[[#This Row],[Aantal eenheden/jaar]]*KCZGW[[#This Row],[Kost per eenheid]]","v":-20.273611693454463}]
[{"$f":"'ZG werking'!A7","v":"Toiletartikels"},{"$f":"VLOOKUP(KCZGW[[#This Row],[Zorggebonden werkingskosten]],KOZGW[],4,)","v":"Aanwezigheidsdagen"},365,{"$f":"VLOOKUP(KCZGW[[#This Row],[Zorggebonden werkingskosten]],KOZGW[],6,)","v":0.28833589564407175},{"$f":"KCZGW[[#This Row],[Aantal eenheden/jaar]]*KCZGW[[#This Row],[Kost per eenheid]]","v":105.24260191008619}]
[{"$f":"'ZG werking'!A8","v":"Farmaceutische producten"},{"$f":"VLOOKUP(KCZGW[[#This Row],[Zorggebonden werkingskosten]],KOZGW[],4,)","v":"Aanwezigheidsdagen"},365,{"$f":"VLOOKUP(KCZGW[[#This Row],[Zorggebonden werkingskosten]],KOZGW[],6,)","v":1.8528637316561845},{"$f":"KCZGW[[#This Row],[Aantal eenheden/jaar]]*KCZGW[[#This Row],[Kost per eenheid]]","v":676.29526205450736}]
[{"$f":"'ZG werking'!A9","v":"Rec farm.prod."},{"$f":"VLOOKUP(KCZGW[[#This Row],[Zorggebonden werkingskosten]],KOZGW[],4,)","v":"Aanwezigheidsdagen"},365,{"$f":"VLOOKUP(KCZGW[[#This Row],[Zorggebonden werkingskosten]],KOZGW[],6,)","v":-2.0993640810621943},{"$f":"KCZGW[[#This Row],[Aantal eenheden/jaar]]*KCZGW[[#This Row],[Kost per eenheid]]","v":-766.26788958770089}]
[{"$f":"'ZG werking'!A10","v":"Medische gassen"},{"$f":"VLOOKUP(KCZGW[[#This Row],[Zorggebonden werkingskosten]],KOZGW[],4,)","v":"Aanwezigheidsdagen"},365,{"$f":"VLOOKUP(KCZGW[[#This Row],[Zorggebonden werkingskosten]],KOZGW[],6,)","v":4.0633589564407178E-2},{"$f":"KCZGW[[#This Row],[Aantal eenheden/jaar]]*KCZGW[[#This Row],[Kost per eenheid]]","v":14.831260191008621}]
[{"$f":"'ZG werking'!A11","v":"Farmaceutisch materiaal"},{"$f":"VLOOKUP(KCZGW[[#This Row],[Zorggebonden werkingskosten]],KOZGW[],4,)","v":"Aanwezigheidsdagen"},365,{"$f":"VLOOKUP(KCZGW[[#This Row],[Zorggebonden werkingskosten]],KOZGW[],6,)","v":0.21254623806196135},{"$f":"KCZGW[[#This Row],[Aantal eenheden/jaar]]*KCZGW[[#This Row],[Kost per eenheid]]","v":77.579376892615898}]
[{"$f":"'ZG werking'!A12","v":"Fixatiemateriaal"},{"$f":"VLOOKUP(KCZGW[[#This Row],[Zorggebonden werkingskosten]],KOZGW[],4,)","v":"Aanwezigheidsdagen"},365,{"$f":"VLOOKUP(KCZGW[[#This Row],[Zorggebonden werkingskosten]],KOZGW[],6,)","v":2.6664337293268109E-3},{"$f":"KCZGW[[#This Row],[Aantal eenheden/jaar]]*KCZGW[[#This Row],[Kost per eenheid]]","v":0.97324831120428601}]
[{"$f":"'ZG werking'!A13","v":"Paramedische kosten"},{"$f":"VLOOKUP(KCZGW[[#This Row],[Zorggebonden werkingskosten]],KOZGW[],4,)","v":"Aanwezigheidsdagen"},365,{"$f":"VLOOKUP(KCZGW[[#This Row],[Zorggebonden werkingskosten]],KOZGW[],6,)","v":3.9883531330072219E-2},{"$f":"KCZGW[[#This Row],[Aantal eenheden/jaar]]*KCZGW[[#This Row],[Kost per eenheid]]","v":14.557488935476361}]
[{"$f":"'ZG werking'!A14","v":"Recup paramedische kosten"},{"$f":"VLOOKUP(KCZGW[[#This Row],[Zorggebonden werkingskosten]],KOZGW[],4,)","v":"Aanwezigheidsdagen"},365,{"$f":"VLOOKUP(KCZGW[[#This Row],[Zorggebonden werkingskosten]],KOZGW[],6,)","v":-2.1446540880503142E-3},{"$f":"KCZGW[[#This Row],[Aantal eenheden/jaar]]*KCZGW[[#This Row],[Kost per eenheid]]","v":-0.78279874213836464}]
[{"$f":"'ZG werking'!A15","v":"Educatieve activiteiten+verplaatsingen"},{"$f":"VLOOKUP(KCZGW[[#This Row],[Zorggebonden werkingskosten]],KOZGW[],4,)","v":"Aanwezigheidsdagen"},365,{"$f":"VLOOKUP(KCZGW[[#This Row],[Zorggebonden werkingskosten]],KOZGW[],6,)","v":8.880573025856045E-2},{"$f":"KCZGW[[#This Row],[Aantal eenheden/jaar]]*KCZGW[[#This Row],[Kost per eenheid]]","v":32.414091544374564}]
[{"$f":"'ZG werking'!A16","v":"Recup educatieve act"},{"$f":"VLOOKUP(KCZGW[[#This Row],[Zorggebonden werkingskosten]],KOZGW[],4,)","v":"Aanwezigheidsdagen"},365,{"$f":"VLOOKUP(KCZGW[[#This Row],[Zorggebonden werkingskosten]],KOZGW[],6,)","v":-3.6871651525739575E-2},{"$f":"KCZGW[[#This Row],[Aantal eenheden/jaar]]*KCZGW[[#This Row],[Kost per eenheid]]","v":-13.458152806894946}]
[{"$f":"'ZG werking'!A17","v":"Recup energie (uitstappen)"},{"$f":"VLOOKUP(KCZGW[[#This Row],[Zorggebonden werkingskosten]],KOZGW[],4,)","v":"Aanwezigheidsdagen"},365,{"$f":"VLOOKUP(KCZGW[[#This Row],[Zorggebonden werkingskosten]],KOZGW[],6,)","v":-0.19993920335429768},{"$f":"KCZGW[[#This Row],[Aantal eenheden/jaar]]*KCZGW[[#This Row],[Kost per eenheid]]","v":-72.977809224318648}]
[{"$f":"'ZG werking'!A18","v":"Incontinentiemateriaal"},{"$f":"VLOOKUP(KCZGW[[#This Row],[Zorggebonden werkingskosten]],KOZGW[],4,)","v":"Aanwezigheidsdagen"},365,{"$f":"VLOOKUP(KCZGW[[#This Row],[Zorggebonden werkingskosten]],KOZGW[],6,)","v":2.1278607034707662},{"$f":"KCZGW[[#This Row],[Aantal eenheden/jaar]]*KCZGW[[#This Row],[Kost per eenheid]]","v":776.6691567668297}]
[{"$f":"'ZG werking'!A19","v":"Recup incontinentiemateriaal"},{"$f":"VLOOKUP(KCZGW[[#This Row],[Zorggebonden werkingskosten]],KOZGW[],4,)","v":"Aanwezigheidsdagen"},365,{"$f":"VLOOKUP(KCZGW[[#This Row],[Zorggebonden werkingskosten]],KOZGW[],6,)","v":-1.5843529000698813},{"$f":"KCZGW[[#This Row],[Aantal eenheden/jaar]]*KCZGW[[#This Row],[Kost per eenheid]]","v":-578.28880852550662}]
[{"$f":"'ZG werking'!A20","v":"Wegwerpmateriaal"},{"$f":"VLOOKUP(KCZGW[[#This Row],[Zorggebonden werkingskosten]],KOZGW[],4,)","v":"Aanwezigheidsdagen"},365,{"$f":"VLOOKUP(KCZGW[[#This Row],[Zorggebonden werkingskosten]],KOZGW[],6,)","v":0.21750058234334962},{"$f":"KCZGW[[#This Row],[Aantal eenheden/jaar]]*KCZGW[[#This Row],[Kost per eenheid]]","v":79.387712555322608}]
[{"$f":"'ZG werking'!A21","v":"TV-kabel"},{"$f":"VLOOKUP(KCZGW[[#This Row],[Zorggebonden werkingskosten]],KOZGW[],4,)","v":"Aanwezigheidsdagen"},365,{"$f":"VLOOKUP(KCZGW[[#This Row],[Zorggebonden werkingskosten]],KOZGW[],6,)","v":9.4343815513626833E-2},{"$f":"KCZGW[[#This Row],[Aantal eenheden/jaar]]*KCZGW[[#This Row],[Kost per eenheid]]","v":34.435492662473791}]
[{"$f":"'ZG werking'!A22","v":"Kampen"},{"$f":"VLOOKUP(KCZGW[[#This Row],[Zorggebonden werkingskosten]],KOZGW[],4,)","v":"Aanwezigheidsdagen"},365,{"$f":"VLOOKUP(KCZGW[[#This Row],[Zorggebonden werkingskosten]],KOZGW[],6,)","v":0.10290589331469835},{"$f":"KCZGW[[#This Row],[Aantal eenheden/jaar]]*KCZGW[[#This Row],[Kost per eenheid]]","v":37.560651059864895}]
[{"$f":"'ZG werking'!A23","v":"Recup kampen"},{"$f":"VLOOKUP(KCZGW[[#This Row],[Zorggebonden werkingskosten]],KOZGW[],4,)","v":"Aanwezigheidsdagen"},365,{"$f":"VLOOKUP(KCZGW[[#This Row],[Zorggebonden werkingskosten]],KOZGW[],6,)","v":-0.11402282785930584},{"$f":"KCZGW[[#This Row],[Aantal eenheden/jaar]]*KCZGW[[#This Row],[Kost per eenheid]]","v":-41.618332168646631}]
[{"$f":"'ZG werking'!A24","v":"Dokter+tandarts"},{"$f":"VLOOKUP(KCZGW[[#This Row],[Zorggebonden werkingskosten]],KOZGW[],4,)","v":"Aanwezigheidsdagen"},365,{"$f":"VLOOKUP(KCZGW[[#This Row],[Zorggebonden werkingskosten]],KOZGW[],6,)","v":0.35122129047286282},{"$f":"KCZGW[[#This Row],[Aantal eenheden/jaar]]*KCZGW[[#This Row],[Kost per eenheid]]","v":128.19577102259493}]
[{"$f":"'ZG werking'!A25","v":"Recup dokters+tandarts"},{"$f":"VLOOKUP(KCZGW[[#This Row],[Zorggebonden werkingskosten]],KOZGW[],4,)","v":"Aanwezigheidsdagen"},365,{"$f":"VLOOKUP(KCZGW[[#This Row],[Zorggebonden werkingskosten]],KOZGW[],6,)","v":-0.35645585837409738},{"$f":"KCZGW[[#This Row],[Aantal eenheden/jaar]]*KCZGW[[#This Row],[Kost per eenheid]]","v":-130.10638830654554}]
[{"$f":"'ZG werking'!A26","v":"Hospitalisatie"},{"$f":"VLOOKUP(KCZGW[[#This Row],[Zorggebonden werkingskosten]],KOZGW[],4,)","v":"Aanwezigheidsdagen"},365,{"$f":"VLOOKUP(KCZGW[[#This Row],[Zorggebonden werkingskosten]],KOZGW[],6,)","v":1.9546703936641045E-2},{"$f":"KCZGW[[#This Row],[Aantal eenheden/jaar]]*KCZGW[[#This Row],[Kost per eenheid]]","v":7.1345469368739813}]
[{"$f":"'ZG werking'!A27","v":"Recup hospitalisatie"},{"$f":"VLOOKUP(KCZGW[[#This Row],[Zorggebonden werkingskosten]],KOZGW[],4,)","v":"Aanwezigheidsdagen"},365,{"$f":"VLOOKUP(KCZGW[[#This Row],[Zorggebonden werkingskosten]],KOZGW[],6,)","v":-1.9546703936641045E-2},{"$f":"KCZGW[[#This Row],[Aantal eenheden/jaar]]*KCZGW[[#This Row],[Kost per eenheid]]","v":-7.1345469368739813}]
[{"$f":"'ZG werking'!A28","v":"Medisch vervoer"},{"$f":"VLOOKUP(KCZGW[[#This Row],[Zorggebonden werkingskosten]],KOZGW[],4,)","v":"Aanwezigheidsdagen"},365,{"$f":"VLOOKUP(KCZGW[[#This Row],[Zorggebonden werkingskosten]],KOZGW[],6,)","v":3.6515024458420683E-2},{"$f":"KCZGW[[#This Row],[Aantal eenheden/jaar]]*KCZGW[[#This Row],[Kost per eenheid]]","v":13.327983927323549}]
[{"$f":"'ZG werking'!A29","v":"Recup medisch vervoer"},{"$f":"VLOOKUP(KCZGW[[#This Row],[Zorggebonden werkingskosten]],KOZGW[],4,)","v":"Aanwezigheidsdagen"},365,{"$f":"VLOOKUP(KCZGW[[#This Row],[Zorggebonden werkingskosten]],KOZGW[],6,)","v":-3.6515024458420683E-2},{"$f":"KCZGW[[#This Row],[Aantal eenheden/jaar]]*KCZGW[[#This Row],[Kost per eenheid]]","v":-13.327983927323549}]
[{"$f":"'ZG werking'!A30","v":"Diverse medische kosten"},{"$f":"VLOOKUP(KCZGW[[#This Row],[Zorggebonden werkingskosten]],KOZGW[],4,)","v":"Aanwezigheidsdagen"},365,{"$f":"VLOOKUP(KCZGW[[#This Row],[Zorggebonden werkingskosten]],KOZGW[],6,)","v":1.1218262287444676E-3},{"$f":"KCZGW[[#This Row],[Aantal eenheden/jaar]]*KCZGW[[#This Row],[Kost per eenheid]]","v":0.40946657349173066}]
[{"$f":"'ZG werking'!A31","v":"Recup diverse medische kosten"},{"$f":"VLOOKUP(KCZGW[[#This Row],[Zorggebonden werkingskosten]],KOZGW[],4,)","v":"Aanwezigheidsdagen"},365,{"$f":"VLOOKUP(KCZGW[[#This Row],[Zorggebonden werkingskosten]],KOZGW[],6,)","v":-1.1218262287444676E-3},{"$f":"KCZGW[[#This Row],[Aantal eenheden/jaar]]*KCZGW[[#This Row],[Kost per eenheid]]","v":-0.40946657349173066}]
[{"$f":"'ZG werking'!A32","v":"Kinesist"},{"$f":"VLOOKUP(KCZGW[[#This Row],[Zorggebonden werkingskosten]],KOZGW[],4,)","v":"Aanwezigheidsdagen"},365,{"$f":"VLOOKUP(KCZGW[[#This Row],[Zorggebonden werkingskosten]],KOZGW[],6,)","v":5.3322618215699974E-2},{"$f":"KCZGW[[#This Row],[Aantal eenheden/jaar]]*KCZGW[[#This Row],[Kost per eenheid]]","v":19.462755648730489}]
[{"$f":"'ZG werking'!A33","v":"Recup verzekering (kinesist)"},{"$f":"VLOOKUP(KCZGW[[#This Row],[Zorggebonden werkingskosten]],KOZGW[],4,)","v":"Aanwezigheidsdagen"},365,{"$f":"VLOOKUP(KCZGW[[#This Row],[Zorggebonden werkingskosten]],KOZGW[],6,)","v":-4.4684369904495697E-3},{"$f":"KCZGW[[#This Row],[Aantal eenheden/jaar]]*KCZGW[[#This Row],[Kost per eenheid]]","v":-1.6309795015140929}]
[{"$f":"'ZG werking'!A34","v":"Recup ziekenfonds (kinesist)"},{"$f":"VLOOKUP(KCZGW[[#This Row],[Zorggebonden werkingskosten]],KOZGW[],4,)","v":"Aanwezigheidsdagen"},365,{"$f":"VLOOKUP(KCZGW[[#This Row],[Zorggebonden werkingskosten]],KOZGW[],6,)","v":-4.9232704402515724E-2},{"$f":"KCZGW[[#This Row],[Aantal eenheden/jaar]]*KCZGW[[#This Row],[Kost per eenheid]]","v":-17.969937106918238}]
[{"$f":"'ZG werking'!A35","v":"Elektriciteit"},{"$f":"VLOOKUP(KCZGW[[#This Row],[Zorggebonden werkingskosten]],KOZGW[],4,)","v":"Aanwezigheidsdagen"},365,{"$f":"VLOOKUP(KCZGW[[#This Row],[Zorggebonden werkingskosten]],KOZGW[],6,)","v":0},{"$f":"KCZGW[[#This Row],[Aantal eenheden/jaar]]*KCZGW[[#This Row],[Kost per eenheid]]","v":0}]
[{"$f":"'ZG werking'!A36","v":"Water"},{"$f":"VLOOKUP(KCZGW[[#This Row],[Zorggebonden werkingskosten]],KOZGW[],4,)","v":"Aanwezigheidsdagen"},365,{"$f":"VLOOKUP(KCZGW[[#This Row],[Zorggebonden werkingskosten]],KOZGW[],6,)","v":0.54281232704402527},{"$f":"KCZGW[[#This Row],[Aantal eenheden/jaar]]*KCZGW[[#This Row],[Kost per eenheid]]","v":198.12649937106923}]
[{"$f":"'ZG werking'!A37","v":"Gas"},{"$f":"VLOOKUP(KCZGW[[#This Row],[Zorggebonden werkingskosten]],KOZGW[],4,)","v":"Aanwezigheidsdagen"},365,{"$f":"VLOOKUP(KCZGW[[#This Row],[Zorggebonden werkingskosten]],KOZGW[],6,)","v":0.83575626834381544},{"$f":"KCZGW[[#This Row],[Aantal eenheden/jaar]]*KCZGW[[#This Row],[Kost per eenheid]]","v":305.05103794549262}]
["Totaal",null,null,null,{"$f":"SUBTOTAL(109,KCZGW[Kost per jaar])","v":960.81747908222678}]
[""]
["Organisatiegebonden personeelskosten","Eenheid","Aantal eenheden/jaar","Kost per eenheid","Kost per jaar"]
[{"$f":"Keuzelijsten!C3","v":"Directie"},{"$f":"VLOOKUP(KCOGP[[#This Row],[Organisatiegebonden personeelskosten]],KOOGP[[Dienst]:[Kost per eenheid]],3,)","v":"Aanwezigheidsdagen"},365,{"$f":"VLOOKUP(KCOGP[[#This Row],[Organisatiegebonden personeelskosten]],KOOGP[[Dienst]:[Kost per eenheid]],5,)","v":6.7778469601677145},{"$f":"KCOGP[[#This Row],[Aantal eenheden/jaar]]*KCOGP[[#This Row],[Kost per eenheid]]","v":2473.914140461216}]
[{"$f":"Keuzelijsten!C4","v":"Administratie"},{"$f":"VLOOKUP(KCOGP[[#This Row],[Organisatiegebonden personeelskosten]],KOOGP[[Dienst]:[Kost per eenheid]],3,)","v":"Aanwezigheidsdagen"},365,{"$f":"VLOOKUP(KCOGP[[#This Row],[Organisatiegebonden personeelskosten]],KOOGP[[Dienst]:[Kost per eenheid]],5,)","v":6.2030591660843237},{"$f":"KCOGP[[#This Row],[Aantal eenheden/jaar]]*KCOGP[[#This Row],[Kost per eenheid]]","v":2264.1165956207783}]
[{"$f":"Keuzelijsten!C5","v":"Onderhoud Centraal Gebouw"},{"$f":"VLOOKUP(KCOGP[[#This Row],[Organisatiegebonden personeelskosten]],KOOGP[[Dienst]:[Kost per eenheid]],3,)","v":"Aanwezigheidsdagen"},365,{"$f":"VLOOKUP(KCOGP[[#This Row],[Organisatiegebonden personeelskosten]],KOOGP[[Dienst]:[Kost per eenheid]],5,)","v":1.9282380619613326},{"$f":"KCOGP[[#This Row],[Aantal eenheden/jaar]]*KCOGP[[#This Row],[Kost per eenheid]]","v":703.80689261588645}]
[{"$f":"Keuzelijsten!C6","v":"Technische Dienst"},{"$f":"VLOOKUP(KCOGP[[#This Row],[Organisatiegebonden personeelskosten]],KOOGP[[Dienst]:[Kost per eenheid]],3,)","v":"Aanwezigheidsdagen"},365,{"$f":"VLOOKUP(KCOGP[[#This Row],[Organisatiegebonden personeelskosten]],KOOGP[[Dienst]:[Kost per eenheid]],5,)","v":5.3416049382716047},{"$f":"KCOGP[[#This Row],[Aantal eenheden/jaar]]*KCOGP[[#This Row],[Kost per eenheid]]","v":1949.6858024691358}]
[{"$f":"Keuzelijsten!C7","v":"Huiscoördinatoren"},{"$f":"VLOOKUP(KCOGP[[#This Row],[Organisatiegebonden personeelskosten]],KOOGP[[Dienst]:[Kost per eenheid]],3,)","v":"Aanwezigheidsdagen"},365,{"$f":"VLOOKUP(KCOGP[[#This Row],[Organisatiegebonden personeelskosten]],KOOGP[[Dienst]:[Kost per eenheid]],5,)","v":4.9273810854880038},{"$f":"KCOGP[[#This Row],[Aantal eenheden/jaar]]*KCOGP[[#This Row],[Kost per eenheid]]","v":1798.4940962031214}]
[{"$f":"Keuzelijsten!C8","v":"Logistiek Coördinator"},{"$f":"VLOOKUP(KCOGP[[#This Row],[Organisatiegebonden personeelskosten]],KOOGP[[Dienst]:[Kost per eenheid]],3,)","v":"Aanwezigheidsdagen"},365,{"$f":"VLOOKUP(KCOGP[[#This Row],[Organisatiegebonden personeelskosten]],KOOGP[[Dienst]:[Kost per eenheid]],5,)","v":0.80933938970416963},{"$f":"KCOGP[[#This Row],[Aantal eenheden/jaar]]*KCOGP[[#This Row],[Kost per eenheid]]","v":295.4088772420219}]
[{"$f":"Keuzelijsten!C9","v":"Zinzorg en pastoraat"},{"$f":"VLOOKUP(KCOGP[[#This Row],[Organisatiegebonden personeelskosten]],KOOGP[[Dienst]:[Kost per eenheid]],3,)","v":"Aanwezigheidsdagen"},365,{"$f":"VLOOKUP(KCOGP[[#This Row],[Organisatiegebonden personeelskosten]],KOOGP[[Dienst]:[Kost per eenheid]],5,)","v":0.89459166084323316},{"$f":"KCOGP[[#This Row],[Aantal eenheden/jaar]]*KCOGP[[#This Row],[Kost per eenheid]]","v":326.5259562077801}]
[{"$f":"Keuzelijsten!C10","v":"Preventieadviseur"},{"$f":"VLOOKUP(KCOGP[[#This Row],[Organisatiegebonden personeelskosten]],KOOGP[[Dienst]:[Kost per eenheid]],3,)","v":"Aanwezigheidsdagen"},365,{"$f":"VLOOKUP(KCOGP[[#This Row],[Organisatiegebonden personeelskosten]],KOOGP[[Dienst]:[Kost per eenheid]],5,)","v":1.6003573258793384},{"$f":"KCOGP[[#This Row],[Aantal eenheden/jaar]]*KCOGP[[#This Row],[Kost per eenheid]]","v":584.13042394595857}]
[{"$f":"Keuzelijsten!C11","v":"Naaisters"},{"$f":"VLOOKUP(KCOGP[[#This Row],[Organisatiegebonden personeelskosten]],KOOGP[[Dienst]:[Kost per eenheid]],3,)","v":"Aanwezigheidsdagen"},365,{"$f":"VLOOKUP(KCOGP[[#This Row],[Organisatiegebonden personeelskosten]],KOOGP[[Dienst]:[Kost per eenheid]],5,)","v":0},{"$f":"KCOGP[[#This Row],[Aantal eenheden/jaar]]*KCOGP[[#This Row],[Kost per eenheid]]","v":0}]
[{"$f":"Keuzelijsten!C12","v":"Sociale dienst"},{"$f":"VLOOKUP(KCOGP[[#This Row],[Organisatiegebonden personeelskosten]],KOOGP[[Dienst]:[Kost per eenheid]],3,)","v":"Aanwezigheidsdagen"},365,{"$f":"VLOOKUP(KCOGP[[#This Row],[Organisatiegebonden personeelskosten]],KOOGP[[Dienst]:[Kost per eenheid]],5,)","v":2.1491045888655953},{"$f":"KCOGP[[#This Row],[Aantal eenheden/jaar]]*KCOGP[[#This Row],[Kost per eenheid]]","v":784.42317493594226}]
["Totaal",null,null,null,{"$f":"SUBTOTAL(109,KCOGP[Kost per jaar])","v":11180.505959701843}]
[""]
["Organisatiegebonden werkingskosten","Eenheid","Aantal eenheden/jaar","Kost per eenheid","Kost per jaar"]
[{"$f":"'OG werking'!B2","v":"Verzekeringen"},{"$f":"VLOOKUP(KCOGW[[#This Row],[Organisatiegebonden werkingskosten]],KOOGW[[Rubriek]:[Kost per eenheid]],4,)","v":"Aanwezigheidsdagen"},365,{"$f":"VLOOKUP(KCOGW[[#This Row],[Organisatiegebonden werkingskosten]],KOOGW[[Rubriek]:[Kost per eenheid]],6,)","v":7.4520472368690394},{"$f":"KCOGW[[#This Row],[Aantal eenheden/jaar]]*KCOGW[[#This Row],[Kost per eenheid]]","v":2719.9972414571994}]
[{"$f":"'OG werking'!B3","v":"Opleidingen"},{"$f":"VLOOKUP(KCOGW[[#This Row],[Organisatiegebonden werkingskosten]],KOOGW[[Rubriek]:[Kost per eenheid]],4,)","v":"Aanwezigheidsdagen"},365,{"$f":"VLOOKUP(KCOGW[[#This Row],[Organisatiegebonden werkingskosten]],KOOGW[[Rubriek]:[Kost per eenheid]],6,)","v":0.17934917307244352},{"$f":"KCOGW[[#This Row],[Aantal eenheden/jaar]]*KCOGW[[#This Row],[Kost per eenheid]]","v":65.462448171441892}]
[{"$f":"'OG werking'!B4","v":"Recup opleidingen"},{"$f":"VLOOKUP(KCOGW[[#This Row],[Organisatiegebonden werkingskosten]],KOOGW[[Rubriek]:[Kost per eenheid]],4,)","v":"Aanwezigheidsdagen"},365,{"$f":"VLOOKUP(KCOGW[[#This Row],[Organisatiegebonden werkingskosten]],KOOGW[[Rubriek]:[Kost per eenheid]],6,)","v":-0.15288772420218963},{"$f":"KCOGW[[#This Row],[Aantal eenheden/jaar]]*KCOGW[[#This Row],[Kost per eenheid]]","v":-55.804019333799218}]
[{"$f":"'OG werking'!B5","v":"Recup opleidingen"},{"$f":"VLOOKUP(KCOGW[[#This Row],[Organisatiegebonden werkingskosten]],KOOGW[[Rubriek]:[Kost per eenheid]],4,)","v":"Aanwezigheidsdagen"},365,{"$f":"VLOOKUP(KCOGW[[#This Row],[Organisatiegebonden werkingskosten]],KOOGW[[Rubriek]:[Kost per eenheid]],6,)","v":-0.15288772420218963},{"$f":"KCOGW[[#This Row],[Aantal eenheden/jaar]]*KCOGW[[#This Row],[Kost per eenheid]]","v":-55.804019333799218}]
[{"$f":"'OG werking'!B6","v":"Dienstverplaatsingen"},{"$f":"VLOOKUP(KCOGW[[#This Row],[Organisatiegebonden werkingskosten]],KOOGW[[Rubriek]:[Kost per eenheid]],4,)","v":"Aanwezigheidsdagen"},365,{"$f":"VLOOKUP(KCOGW[[#This Row],[Organisatiegebonden werkingskosten]],KOOGW[[Rubriek]:[Kost per eenheid]],6,)","v":0.1472585604472397},{"$f":"KCOGW[[#This Row],[Aantal eenheden/jaar]]*KCOGW[[#This Row],[Kost per eenheid]]","v":53.74937456324249}]
[{"$f":"'OG werking'!B7","v":"Recup verplaatsingen"},{"$f":"VLOOKUP(KCOGW[[#This Row],[Organisatiegebonden werkingskosten]],KOOGW[[Rubriek]:[Kost per eenheid]],4,)","v":"Aanwezigheidsdagen"},365,{"$f":"VLOOKUP(KCOGW[[#This Row],[Organisatiegebonden werkingskosten]],KOOGW[[Rubriek]:[Kost per eenheid]],6,)","v":-9.6668996040065236E-5},{"$f":"KCOGW[[#This Row],[Aantal eenheden/jaar]]*KCOGW[[#This Row],[Kost per eenheid]]","v":-3.5284183554623809E-2}]
[{"$f":"'OG werking'!B8","v":"Pastorale werking"},{"$f":"VLOOKUP(KCOGW[[#This Row],[Organisatiegebonden werkingskosten]],KOOGW[[Rubriek]:[Kost per eenheid]],4,)","v":"Aanwezigheidsdagen"},365,{"$f":"VLOOKUP(KCOGW[[#This Row],[Organisatiegebonden werkingskosten]],KOOGW[[Rubriek]:[Kost per eenheid]],6,)","v":1.3597717214069415E-2},{"$f":"KCOGW[[#This Row],[Aantal eenheden/jaar]]*KCOGW[[#This Row],[Kost per eenheid]]","v":4.9631667831353363}]
[{"$f":"'OG werking'!B9","v":"Klein materieel en meubilair"},{"$f":"VLOOKUP(KCOGW[[#This Row],[Organisatiegebonden werkingskosten]],KOOGW[[Rubriek]:[Kost per eenheid]],4,)","v":"Aanwezigheidsdagen"},365,{"$f":"VLOOKUP(KCOGW[[#This Row],[Organisatiegebonden werkingskosten]],KOOGW[[Rubriek]:[Kost per eenheid]],6,)","v":3.3108315863032839E-2},{"$f":"KCOGW[[#This Row],[Aantal eenheden/jaar]]*KCOGW[[#This Row],[Kost per eenheid]]","v":12.084535290006986}]
[{"$f":"'OG werking'!B10","v":"Huur"},{"$f":"VLOOKUP(KCOGW[[#This Row],[Organisatiegebonden werkingskosten]],KOOGW[[Rubriek]:[Kost per eenheid]],4,)","v":"Aanwezigheidsdagen"},365,{"$f":"VLOOKUP(KCOGW[[#This Row],[Organisatiegebonden werkingskosten]],KOOGW[[Rubriek]:[Kost per eenheid]],6,)","v":0.42195853715350573},{"$f":"KCOGW[[#This Row],[Aantal eenheden/jaar]]*KCOGW[[#This Row],[Kost per eenheid]]","v":154.01486606102958}]
[{"$f":"'OG werking'!B11","v":"Onderhoudsproducten"},{"$f":"VLOOKUP(KCOGW[[#This Row],[Organisatiegebonden werkingskosten]],KOOGW[[Rubriek]:[Kost per eenheid]],4,)","v":"Aanwezigheidsdagen"},365,{"$f":"VLOOKUP(KCOGW[[#This Row],[Organisatiegebonden werkingskosten]],KOOGW[[Rubriek]:[Kost per eenheid]],6,)","v":0.3166328907523876},{"$f":"KCOGW[[#This Row],[Aantal eenheden/jaar]]*KCOGW[[#This Row],[Kost per eenheid]]","v":115.57100512462148}]
[{"$f":"'OG werking'!B12","v":"Benodigdheden technische dienst"},{"$f":"VLOOKUP(KCOGW[[#This Row],[Organisatiegebonden werkingskosten]],KOOGW[[Rubriek]:[Kost per eenheid]],4,)","v":"Aanwezigheidsdagen"},365,{"$f":"VLOOKUP(KCOGW[[#This Row],[Organisatiegebonden werkingskosten]],KOOGW[[Rubriek]:[Kost per eenheid]],6,)","v":3.3409736780805964E-2},{"$f":"KCOGW[[#This Row],[Aantal eenheden/jaar]]*KCOGW[[#This Row],[Kost per eenheid]]","v":12.194553924994176}]
[{"$f":"'OG werking'!B13","v":"Kleine schilderwerken"},{"$f":"VLOOKUP(KCOGW[[#This Row],[Organisatiegebonden werkingskosten]],KOOGW[[Rubriek]:[Kost per eenheid]],4,)","v":"Aanwezigheidsdagen"},365,{"$f":"VLOOKUP(KCOGW[[#This Row],[Organisatiegebonden werkingskosten]],KOOGW[[Rubriek]:[Kost per eenheid]],6,)","v":0.20994735616119267},{"$f":"KCOGW[[#This Row],[Aantal eenheden/jaar]]*KCOGW[[#This Row],[Kost per eenheid]]","v":76.630784998835324}]
[{"$f":"'OG werking'!B14","v":"Herstel gebouwen"},{"$f":"VLOOKUP(KCOGW[[#This Row],[Organisatiegebonden werkingskosten]],KOOGW[[Rubriek]:[Kost per eenheid]],4,)","v":"Aanwezigheidsdagen"},365,{"$f":"VLOOKUP(KCOGW[[#This Row],[Organisatiegebonden werkingskosten]],KOOGW[[Rubriek]:[Kost per eenheid]],6,)","v":2.872327044025157E-2},{"$f":"KCOGW[[#This Row],[Aantal eenheden/jaar]]*KCOGW[[#This Row],[Kost per eenheid]]","v":10.483993710691824}]
[{"$f":"'OG werking'!B15","v":"Recup schade (brand,storm)"},{"$f":"VLOOKUP(KCOGW[[#This Row],[Organisatiegebonden werkingskosten]],KOOGW[[Rubriek]:[Kost per eenheid]],4,)","v":"Aanwezigheidsdagen"},365,{"$f":"VLOOKUP(KCOGW[[#This Row],[Organisatiegebonden werkingskosten]],KOOGW[[Rubriek]:[Kost per eenheid]],6,)","v":-7.056603773584906E-3},{"$f":"KCOGW[[#This Row],[Aantal eenheden/jaar]]*KCOGW[[#This Row],[Kost per eenheid]]","v":-2.5756603773584907}]
[{"$f":"'OG werking'!B16","v":"Recup verhuur"},{"$f":"VLOOKUP(KCOGW[[#This Row],[Organisatiegebonden werkingskosten]],KOOGW[[Rubriek]:[Kost per eenheid]],4,)","v":"Aanwezigheidsdagen"},365,{"$f":"VLOOKUP(KCOGW[[#This Row],[Organisatiegebonden werkingskosten]],KOOGW[[Rubriek]:[Kost per eenheid]],6,)","v":-0.18486023759608666},{"$f":"KCOGW[[#This Row],[Aantal eenheden/jaar]]*KCOGW[[#This Row],[Kost per eenheid]]","v":-67.473986722571638}]
[{"$f":"'OG werking'!B17","v":"Herstel binnenschrijnwerk"},{"$f":"VLOOKUP(KCOGW[[#This Row],[Organisatiegebonden werkingskosten]],KOOGW[[Rubriek]:[Kost per eenheid]],4,)","v":"Aanwezigheidsdagen"},365,{"$f":"VLOOKUP(KCOGW[[#This Row],[Organisatiegebonden werkingskosten]],KOOGW[[Rubriek]:[Kost per eenheid]],6,)","v":6.988166783135337E-2},{"$f":"KCOGW[[#This Row],[Aantal eenheden/jaar]]*KCOGW[[#This Row],[Kost per eenheid]]","v":25.506808758443981}]
[{"$f":"'OG werking'!B18","v":"Herstel technische installaties"},{"$f":"VLOOKUP(KCOGW[[#This Row],[Organisatiegebonden werkingskosten]],KOOGW[[Rubriek]:[Kost per eenheid]],4,)","v":"Aanwezigheidsdagen"},365,{"$f":"VLOOKUP(KCOGW[[#This Row],[Organisatiegebonden werkingskosten]],KOOGW[[Rubriek]:[Kost per eenheid]],6,)","v":1.0897274633123689E-2},{"$f":"KCOGW[[#This Row],[Aantal eenheden/jaar]]*KCOGW[[#This Row],[Kost per eenheid]]","v":3.9775052410901464}]
[{"$f":"'OG werking'!B19","v":"Herstel medische installaties"},{"$f":"VLOOKUP(KCOGW[[#This Row],[Organisatiegebonden werkingskosten]],KOOGW[[Rubriek]:[Kost per eenheid]],4,)","v":"Aanwezigheidsdagen"},365,{"$f":"VLOOKUP(KCOGW[[#This Row],[Organisatiegebonden werkingskosten]],KOOGW[[Rubriek]:[Kost per eenheid]],6,)","v":0.25837456324248775},{"$f":"KCOGW[[#This Row],[Aantal eenheden/jaar]]*KCOGW[[#This Row],[Kost per eenheid]]","v":94.306715583508037}]
[{"$f":"'OG werking'!B20","v":"Herstel computerinstallaties"},{"$f":"VLOOKUP(KCOGW[[#This Row],[Organisatiegebonden werkingskosten]],KOOGW[[Rubriek]:[Kost per eenheid]],4,)","v":"Aanwezigheidsdagen"},365,{"$f":"VLOOKUP(KCOGW[[#This Row],[Organisatiegebonden werkingskosten]],KOOGW[[Rubriek]:[Kost per eenheid]],6,)","v":1.314232471465176E-3},{"$f":"KCOGW[[#This Row],[Aantal eenheden/jaar]]*KCOGW[[#This Row],[Kost per eenheid]]","v":0.47969485208478924}]
[{"$f":"'OG werking'!B21","v":"Herstel verwarming/sanitair"},{"$f":"VLOOKUP(KCOGW[[#This Row],[Organisatiegebonden werkingskosten]],KOOGW[[Rubriek]:[Kost per eenheid]],4,)","v":"Aanwezigheidsdagen"},365,{"$f":"VLOOKUP(KCOGW[[#This Row],[Organisatiegebonden werkingskosten]],KOOGW[[Rubriek]:[Kost per eenheid]],6,)","v":0.26236338225017469},{"$f":"KCOGW[[#This Row],[Aantal eenheden/jaar]]*KCOGW[[#This Row],[Kost per eenheid]]","v":95.762634521313757}]
[{"$f":"'OG werking'!B22","v":"Herstel diverse installaties"},{"$f":"VLOOKUP(KCOGW[[#This Row],[Organisatiegebonden werkingskosten]],KOOGW[[Rubriek]:[Kost per eenheid]],4,)","v":"Aanwezigheidsdagen"},365,{"$f":"VLOOKUP(KCOGW[[#This Row],[Organisatiegebonden werkingskosten]],KOOGW[[Rubriek]:[Kost per eenheid]],6,)","v":5.9616585138597723E-2},{"$f":"KCOGW[[#This Row],[Aantal eenheden/jaar]]*KCOGW[[#This Row],[Kost per eenheid]]","v":21.76005357558817}]
[{"$f":"'OG werking'!B23","v":"Herstel elektrische installaties"},{"$f":"VLOOKUP(KCOGW[[#This Row],[Organisatiegebonden werkingskosten]],KOOGW[[Rubriek]:[Kost per eenheid]],4,)","v":"Aanwezigheidsdagen"},365,{"$f":"VLOOKUP(KCOGW[[#This Row],[Organisatiegebonden werkingskosten]],KOOGW[[Rubriek]:[Kost per eenheid]],6,)","v":7.8211041229909156E-2},{"$f":"KCOGW[[#This Row],[Aantal eenheden/jaar]]*KCOGW[[#This Row],[Kost per eenheid]]","v":28.547030048916842}]
[{"$f":"'OG werking'!B24","v":"Herstel telefooninstallatie"},{"$f":"VLOOKUP(KCOGW[[#This Row],[Organisatiegebonden werkingskosten]],KOOGW[[Rubriek]:[Kost per eenheid]],4,)","v":"Aanwezigheidsdagen"},365,{"$f":"VLOOKUP(KCOGW[[#This Row],[Organisatiegebonden werkingskosten]],KOOGW[[Rubriek]:[Kost per eenheid]],6,)","v":5.7975308641975309E-2},{"$f":"KCOGW[[#This Row],[Aantal eenheden/jaar]]*KCOGW[[#This Row],[Kost per eenheid]]","v":21.160987654320987}]
[{"$f":"'OG werking'!B25","v":"Herstel meubilair"},{"$f":"VLOOKUP(KCOGW[[#This Row],[Organisatiegebonden werkingskosten]],KOOGW[[Rubriek]:[Kost per eenheid]],4,)","v":"Aanwezigheidsdagen"},365,{"$f":"VLOOKUP(KCOGW[[#This Row],[Organisatiegebonden werkingskosten]],KOOGW[[Rubriek]:[Kost per eenheid]],6,)","v":1.2880969019333799E-2},{"$f":"KCOGW[[#This Row],[Aantal eenheden/jaar]]*KCOGW[[#This Row],[Kost per eenheid]]","v":4.7015536920568364}]
[{"$f":"'OG werking'!B26","v":"Herstel rollend materieel"},{"$f":"VLOOKUP(KCOGW[[#This Row],[Organisatiegebonden werkingskosten]],KOOGW[[Rubriek]:[Kost per eenheid]],4,)","v":"Aanwezigheidsdagen"},365,{"$f":"VLOOKUP(KCOGW[[#This Row],[Organisatiegebonden werkingskosten]],KOOGW[[Rubriek]:[Kost per eenheid]],6,)","v":6.9774982529699506E-2},{"$f":"KCOGW[[#This Row],[Aantal eenheden/jaar]]*KCOGW[[#This Row],[Kost per eenheid]]","v":25.467868623340319}]
[{"$f":"'OG werking'!B27","v":"Onderhoud tuinen,terreinen"},{"$f":"VLOOKUP(KCOGW[[#This Row],[Organisatiegebonden werkingskosten]],KOOGW[[Rubriek]:[Kost per eenheid]],4,)","v":"Aanwezigheidsdagen"},365,{"$f":"VLOOKUP(KCOGW[[#This Row],[Organisatiegebonden werkingskosten]],KOOGW[[Rubriek]:[Kost per eenheid]],6,)","v":8.7711157698579081E-2},{"$f":"KCOGW[[#This Row],[Aantal eenheden/jaar]]*KCOGW[[#This Row],[Kost per eenheid]]","v":32.014572559981367}]
[{"$f":"'OG werking'!B28","v":"Huisvuil"},{"$f":"VLOOKUP(KCOGW[[#This Row],[Organisatiegebonden werkingskosten]],KOOGW[[Rubriek]:[Kost per eenheid]],4,)","v":"Aanwezigheidsdagen"},365,{"$f":"VLOOKUP(KCOGW[[#This Row],[Organisatiegebonden werkingskosten]],KOOGW[[Rubriek]:[Kost per eenheid]],6,)","v":0.31642394595853718},{"$f":"KCOGW[[#This Row],[Aantal eenheden/jaar]]*KCOGW[[#This Row],[Kost per eenheid]]","v":115.49474027486607}]
[{"$f":"'OG werking'!B29","v":"Ongediertebestrijding"},{"$f":"VLOOKUP(KCOGW[[#This Row],[Organisatiegebonden werkingskosten]],KOOGW[[Rubriek]:[Kost per eenheid]],4,)","v":"Aanwezigheidsdagen"},365,{"$f":"VLOOKUP(KCOGW[[#This Row],[Organisatiegebonden werkingskosten]],KOOGW[[Rubriek]:[Kost per eenheid]],6,)","v":3.3845795481015603E-4},{"$f":"KCOGW[[#This Row],[Aantal eenheden/jaar]]*KCOGW[[#This Row],[Kost per eenheid]]","v":0.12353715350570695}]
[{"$f":"'OG werking'!B30","v":"Brandbeveiliging"},{"$f":"VLOOKUP(KCOGW[[#This Row],[Organisatiegebonden werkingskosten]],KOOGW[[Rubriek]:[Kost per eenheid]],4,)","v":"Aanwezigheidsdagen"},365,{"$f":"VLOOKUP(KCOGW[[#This Row],[Organisatiegebonden werkingskosten]],KOOGW[[Rubriek]:[Kost per eenheid]],6,)","v":2.8876077335196836E-2},{"$f":"KCOGW[[#This Row],[Aantal eenheden/jaar]]*KCOGW[[#This Row],[Kost per eenheid]]","v":10.539768227346846}]
[{"$f":"'OG werking'!B31","v":"Onderhoudscontracten"},{"$f":"VLOOKUP(KCOGW[[#This Row],[Organisatiegebonden werkingskosten]],KOOGW[[Rubriek]:[Kost per eenheid]],4,)","v":"Aanwezigheidsdagen"},365,{"$f":"VLOOKUP(KCOGW[[#This Row],[Organisatiegebonden werkingskosten]],KOOGW[[Rubriek]:[Kost per eenheid]],6,)","v":0.1554593524341952},{"$f":"KCOGW[[#This Row],[Aantal eenheden/jaar]]*KCOGW[[#This Row],[Kost per eenheid]]","v":56.742663638481247}]
[{"$f":"'OG werking'!B32","v":"Brandstof rollend materieel"},{"$f":"VLOOKUP(KCOGW[[#This Row],[Organisatiegebonden werkingskosten]],KOOGW[[Rubriek]:[Kost per eenheid]],4,)","v":"Aanwezigheidsdagen"},365,{"$f":"VLOOKUP(KCOGW[[#This Row],[Organisatiegebonden werkingskosten]],KOOGW[[Rubriek]:[Kost per eenheid]],6,)","v":0.14198835313300723},{"$f":"KCOGW[[#This Row],[Aantal eenheden/jaar]]*KCOGW[[#This Row],[Kost per eenheid]]","v":51.82574889354764}]
[{"$f":"'OG werking'!B33","v":"Kantoorkosten"},{"$f":"VLOOKUP(KCOGW[[#This Row],[Organisatiegebonden werkingskosten]],KOOGW[[Rubriek]:[Kost per eenheid]],4,)","v":"Aanwezigheidsdagen"},365,{"$f":"VLOOKUP(KCOGW[[#This Row],[Organisatiegebonden werkingskosten]],KOOGW[[Rubriek]:[Kost per eenheid]],6,)","v":6.6104821802935018E-2},{"$f":"KCOGW[[#This Row],[Aantal eenheden/jaar]]*KCOGW[[#This Row],[Kost per eenheid]]","v":24.128259958071283}]
[{"$f":"'OG werking'!B34","v":"Recup kantoor gebruikers"},{"$f":"VLOOKUP(KCOGW[[#This Row],[Organisatiegebonden werkingskosten]],KOOGW[[Rubriek]:[Kost per eenheid]],4,)","v":"Aanwezigheidsdagen"},365,{"$f":"VLOOKUP(KCOGW[[#This Row],[Organisatiegebonden werkingskosten]],KOOGW[[Rubriek]:[Kost per eenheid]],6,)","v":-2.566969485208479E-3},{"$f":"KCOGW[[#This Row],[Aantal eenheden/jaar]]*KCOGW[[#This Row],[Kost per eenheid]]","v":-0.93694386210109482}]
[{"$f":"'OG werking'!B35","v":"Recup kantoor personeel"},{"$f":"VLOOKUP(KCOGW[[#This Row],[Organisatiegebonden werkingskosten]],KOOGW[[Rubriek]:[Kost per eenheid]],4,)","v":"Aanwezigheidsdagen"},365,{"$f":"VLOOKUP(KCOGW[[#This Row],[Organisatiegebonden werkingskosten]],KOOGW[[Rubriek]:[Kost per eenheid]],6,)","v":-9.317493594223154E-5},{"$f":"KCOGW[[#This Row],[Aantal eenheden/jaar]]*KCOGW[[#This Row],[Kost per eenheid]]","v":-3.400885161891451E-2}]
[{"$f":"'OG werking'!B36","v":"Recup kantoor derden"},{"$f":"VLOOKUP(KCOGW[[#This Row],[Organisatiegebonden werkingskosten]],KOOGW[[Rubriek]:[Kost per eenheid]],4,)","v":"Aanwezigheidsdagen"},365,{"$f":"VLOOKUP(KCOGW[[#This Row],[Organisatiegebonden werkingskosten]],KOOGW[[Rubriek]:[Kost per eenheid]],6,)","v":-3.1097134870719778E-4},{"$f":"KCOGW[[#This Row],[Aantal eenheden/jaar]]*KCOGW[[#This Row],[Kost per eenheid]]","v":-0.11350454227812719}]
[{"$f":"'OG werking'!B37","v":"Verzendingkosten"},{"$f":"VLOOKUP(KCOGW[[#This Row],[Organisatiegebonden werkingskosten]],KOOGW[[Rubriek]:[Kost per eenheid]],4,)","v":"Aanwezigheidsdagen"},365,{"$f":"VLOOKUP(KCOGW[[#This Row],[Organisatiegebonden werkingskosten]],KOOGW[[Rubriek]:[Kost per eenheid]],6,)","v":7.2450733752620539E-2},{"$f":"KCOGW[[#This Row],[Aantal eenheden/jaar]]*KCOGW[[#This Row],[Kost per eenheid]]","v":26.444517819706498}]
[{"$f":"'OG werking'!B38","v":"Telefoon/internet"},{"$f":"VLOOKUP(KCOGW[[#This Row],[Organisatiegebonden werkingskosten]],KOOGW[[Rubriek]:[Kost per eenheid]],4,)","v":"Aanwezigheidsdagen"},365,{"$f":"VLOOKUP(KCOGW[[#This Row],[Organisatiegebonden werkingskosten]],KOOGW[[Rubriek]:[Kost per eenheid]],6,)","v":0.1323696715583508},{"$f":"KCOGW[[#This Row],[Aantal eenheden/jaar]]*KCOGW[[#This Row],[Kost per eenheid]]","v":48.314930118798046}]
[{"$f":"'OG werking'!B39","v":"Drukwerk"},{"$f":"VLOOKUP(KCOGW[[#This Row],[Organisatiegebonden werkingskosten]],KOOGW[[Rubriek]:[Kost per eenheid]],4,)","v":"Aanwezigheidsdagen"},365,{"$f":"VLOOKUP(KCOGW[[#This Row],[Organisatiegebonden werkingskosten]],KOOGW[[Rubriek]:[Kost per eenheid]],6,)","v":9.0757046354530638E-3},{"$f":"KCOGW[[#This Row],[Aantal eenheden/jaar]]*KCOGW[[#This Row],[Kost per eenheid]]","v":3.3126321919403683}]
[{"$f":"'OG werking'!B40","v":"Fotokopiekosten"},{"$f":"VLOOKUP(KCOGW[[#This Row],[Organisatiegebonden werkingskosten]],KOOGW[[Rubriek]:[Kost per eenheid]],4,)","v":"Aanwezigheidsdagen"},365,{"$f":"VLOOKUP(KCOGW[[#This Row],[Organisatiegebonden werkingskosten]],KOOGW[[Rubriek]:[Kost per eenheid]],6,)","v":4.0776380153738641E-2},{"$f":"KCOGW[[#This Row],[Aantal eenheden/jaar]]*KCOGW[[#This Row],[Kost per eenheid]]","v":14.883378756114604}]
[{"$f":"'OG werking'!B41","v":"Papier"},{"$f":"VLOOKUP(KCOGW[[#This Row],[Organisatiegebonden werkingskosten]],KOOGW[[Rubriek]:[Kost per eenheid]],4,)","v":"Aanwezigheidsdagen"},365,{"$f":"VLOOKUP(KCOGW[[#This Row],[Organisatiegebonden werkingskosten]],KOOGW[[Rubriek]:[Kost per eenheid]],6,)","v":2.0361285814116004E-2},{"$f":"KCOGW[[#This Row],[Aantal eenheden/jaar]]*KCOGW[[#This Row],[Kost per eenheid]]","v":7.4318693221523411}]
[{"$f":"'OG werking'!B42","v":"Wettelijke formaliteiten"},{"$f":"VLOOKUP(KCOGW[[#This Row],[Organisatiegebonden werkingskosten]],KOOGW[[Rubriek]:[Kost per eenheid]],4,)","v":"Aanwezigheidsdagen"},365,{"$f":"VLOOKUP(KCOGW[[#This Row],[Organisatiegebonden werkingskosten]],KOOGW[[Rubriek]:[Kost per eenheid]],6,)","v":1.8418355462380617E-3},{"$f":"KCOGW[[#This Row],[Aantal eenheden/jaar]]*KCOGW[[#This Row],[Kost per eenheid]]","v":0.67226997437689251}]
[{"$f":"'OG werking'!B43","v":"Computerkosten"},{"$f":"VLOOKUP(KCOGW[[#This Row],[Organisatiegebonden werkingskosten]],KOOGW[[Rubriek]:[Kost per eenheid]],4,)","v":"Aanwezigheidsdagen"},365,{"$f":"VLOOKUP(KCOGW[[#This Row],[Organisatiegebonden werkingskosten]],KOOGW[[Rubriek]:[Kost per eenheid]],6,)","v":0.11192476123922665},{"$f":"KCOGW[[#This Row],[Aantal eenheden/jaar]]*KCOGW[[#This Row],[Kost per eenheid]]","v":40.852537852317724}]
[{"$f":"'OG werking'!B44","v":"Sociaal secretariaat"},{"$f":"VLOOKUP(KCOGW[[#This Row],[Organisatiegebonden werkingskosten]],KOOGW[[Rubriek]:[Kost per eenheid]],4,)","v":"Aanwezigheidsdagen"},365,{"$f":"VLOOKUP(KCOGW[[#This Row],[Organisatiegebonden werkingskosten]],KOOGW[[Rubriek]:[Kost per eenheid]],6,)","v":0.71040531097134874},{"$f":"KCOGW[[#This Row],[Aantal eenheden/jaar]]*KCOGW[[#This Row],[Kost per eenheid]]","v":259.29793850454229}]
[{"$f":"'OG werking'!B45","v":"Centrale administratie"},{"$f":"VLOOKUP(KCOGW[[#This Row],[Organisatiegebonden werkingskosten]],KOOGW[[Rubriek]:[Kost per eenheid]],4,)","v":"Aanwezigheidsdagen"},365,{"$f":"VLOOKUP(KCOGW[[#This Row],[Organisatiegebonden werkingskosten]],KOOGW[[Rubriek]:[Kost per eenheid]],6,)","v":0.82547891917074301},{"$f":"KCOGW[[#This Row],[Aantal eenheden/jaar]]*KCOGW[[#This Row],[Kost per eenheid]]","v":301.29980549732119}]
[{"$f":"'OG werking'!B46","v":"Controle en keuring"},{"$f":"VLOOKUP(KCOGW[[#This Row],[Organisatiegebonden werkingskosten]],KOOGW[[Rubriek]:[Kost per eenheid]],4,)","v":"Aanwezigheidsdagen"},365,{"$f":"VLOOKUP(KCOGW[[#This Row],[Organisatiegebonden werkingskosten]],KOOGW[[Rubriek]:[Kost per eenheid]],6,)","v":6.3915443745632419E-2},{"$f":"KCOGW[[#This Row],[Aantal eenheden/jaar]]*KCOGW[[#This Row],[Kost per eenheid]]","v":23.329136967155833}]
[{"$f":"'OG werking'!B47","v":"Informatica-computerprestaties"},{"$f":"VLOOKUP(KCOGW[[#This Row],[Organisatiegebonden werkingskosten]],KOOGW[[Rubriek]:[Kost per eenheid]],4,)","v":"Aanwezigheidsdagen"},365,{"$f":"VLOOKUP(KCOGW[[#This Row],[Organisatiegebonden werkingskosten]],KOOGW[[Rubriek]:[Kost per eenheid]],6,)","v":2.4058467272303749E-2},{"$f":"KCOGW[[#This Row],[Aantal eenheden/jaar]]*KCOGW[[#This Row],[Kost per eenheid]]","v":8.7813405543908676}]
[{"$f":"'OG werking'!B48","v":"Boekhouding"},{"$f":"VLOOKUP(KCOGW[[#This Row],[Organisatiegebonden werkingskosten]],KOOGW[[Rubriek]:[Kost per eenheid]],4,)","v":"Aanwezigheidsdagen"},365,{"$f":"VLOOKUP(KCOGW[[#This Row],[Organisatiegebonden werkingskosten]],KOOGW[[Rubriek]:[Kost per eenheid]],6,)","v":3.2113207547169807E-2},{"$f":"KCOGW[[#This Row],[Aantal eenheden/jaar]]*KCOGW[[#This Row],[Kost per eenheid]]","v":11.721320754716979}]
[{"$f":"'OG werking'!B49","v":"Orbis"},{"$f":"VLOOKUP(KCOGW[[#This Row],[Organisatiegebonden werkingskosten]],KOOGW[[Rubriek]:[Kost per eenheid]],4,)","v":"Aanwezigheidsdagen"},365,{"$f":"VLOOKUP(KCOGW[[#This Row],[Organisatiegebonden werkingskosten]],KOOGW[[Rubriek]:[Kost per eenheid]],6,)","v":0.13626717912881434},{"$f":"KCOGW[[#This Row],[Aantal eenheden/jaar]]*KCOGW[[#This Row],[Kost per eenheid]]","v":49.73752038201723}]
[{"$f":"'OG werking'!B50","v":"Ereloon bedrijfsrevisor"},{"$f":"VLOOKUP(KCOGW[[#This Row],[Organisatiegebonden werkingskosten]],KOOGW[[Rubriek]:[Kost per eenheid]],4,)","v":"Aanwezigheidsdagen"},365,{"$f":"VLOOKUP(KCOGW[[#This Row],[Organisatiegebonden werkingskosten]],KOOGW[[Rubriek]:[Kost per eenheid]],6,)","v":0.10823200559049614},{"$f":"KCOGW[[#This Row],[Aantal eenheden/jaar]]*KCOGW[[#This Row],[Kost per eenheid]]","v":39.504682040531094}]
[{"$f":"'OG werking'!B51","v":"Lidgeld Vlaams Welzijn"},{"$f":"VLOOKUP(KCOGW[[#This Row],[Organisatiegebonden werkingskosten]],KOOGW[[Rubriek]:[Kost per eenheid]],4,)","v":"Aanwezigheidsdagen"},365,{"$f":"VLOOKUP(KCOGW[[#This Row],[Organisatiegebonden werkingskosten]],KOOGW[[Rubriek]:[Kost per eenheid]],6,)","v":0.17894619147449337},{"$f":"KCOGW[[#This Row],[Aantal eenheden/jaar]]*KCOGW[[#This Row],[Kost per eenheid]]","v":65.315359888190073}]
[{"$f":"'OG werking'!B52","v":"Giften en geschenken"},{"$f":"VLOOKUP(KCOGW[[#This Row],[Organisatiegebonden werkingskosten]],KOOGW[[Rubriek]:[Kost per eenheid]],4,)","v":"Aanwezigheidsdagen"},365,{"$f":"VLOOKUP(KCOGW[[#This Row],[Organisatiegebonden werkingskosten]],KOOGW[[Rubriek]:[Kost per eenheid]],6,)","v":4.7945492662473796E-3},{"$f":"KCOGW[[#This Row],[Aantal eenheden/jaar]]*KCOGW[[#This Row],[Kost per eenheid]]","v":1.7500104821802935}]
[{"$f":"'OG werking'!B53","v":"Lidgelden"},{"$f":"VLOOKUP(KCOGW[[#This Row],[Organisatiegebonden werkingskosten]],KOOGW[[Rubriek]:[Kost per eenheid]],4,)","v":"Aanwezigheidsdagen"},365,{"$f":"VLOOKUP(KCOGW[[#This Row],[Organisatiegebonden werkingskosten]],KOOGW[[Rubriek]:[Kost per eenheid]],6,)","v":1.2275797810389006E-2},{"$f":"KCOGW[[#This Row],[Aantal eenheden/jaar]]*KCOGW[[#This Row],[Kost per eenheid]]","v":4.4806662007919869}]
[{"$f":"'OG werking'!B54","v":"Public relations"},{"$f":"VLOOKUP(KCOGW[[#This Row],[Organisatiegebonden werkingskosten]],KOOGW[[Rubriek]:[Kost per eenheid]],4,)","v":"Aanwezigheidsdagen"},365,{"$f":"VLOOKUP(KCOGW[[#This Row],[Organisatiegebonden werkingskosten]],KOOGW[[Rubriek]:[Kost per eenheid]],6,)","v":6.7050547402748656E-2},{"$f":"KCOGW[[#This Row],[Aantal eenheden/jaar]]*KCOGW[[#This Row],[Kost per eenheid]]","v":24.473449802003259}]
[{"$f":"'OG werking'!B55","v":"Andere erelonen"},{"$f":"VLOOKUP(KCOGW[[#This Row],[Organisatiegebonden werkingskosten]],KOOGW[[Rubriek]:[Kost per eenheid]],4,)","v":"Aanwezigheidsdagen"},365,{"$f":"VLOOKUP(KCOGW[[#This Row],[Organisatiegebonden werkingskosten]],KOOGW[[Rubriek]:[Kost per eenheid]],6,)","v":1.6487071977638015E-2},{"$f":"KCOGW[[#This Row],[Aantal eenheden/jaar]]*KCOGW[[#This Row],[Kost per eenheid]]","v":6.0177812718378751}]
[{"$f":"'OG werking'!B56","v":"Diverse notoriteitsuitgaven"},{"$f":"VLOOKUP(KCOGW[[#This Row],[Organisatiegebonden werkingskosten]],KOOGW[[Rubriek]:[Kost per eenheid]],4,)","v":"Aanwezigheidsdagen"},365,{"$f":"VLOOKUP(KCOGW[[#This Row],[Organisatiegebonden werkingskosten]],KOOGW[[Rubriek]:[Kost per eenheid]],6,)","v":1.8904961565338923E-2},{"$f":"KCOGW[[#This Row],[Aantal eenheden/jaar]]*KCOGW[[#This Row],[Kost per eenheid]]","v":6.9003109713487065}]
[{"$f":"'OG werking'!B57","v":"Buitenwettelijke verzekeringen"},{"$f":"VLOOKUP(KCOGW[[#This Row],[Organisatiegebonden werkingskosten]],KOOGW[[Rubriek]:[Kost per eenheid]],4,)","v":"Aanwezigheidsdagen"},365,{"$f":"VLOOKUP(KCOGW[[#This Row],[Organisatiegebonden werkingskosten]],KOOGW[[Rubriek]:[Kost per eenheid]],6,)","v":8.7350803633822499E-2},{"$f":"KCOGW[[#This Row],[Aantal eenheden/jaar]]*KCOGW[[#This Row],[Kost per eenheid]]","v":31.883043326345213}]
[{"$f":"'OG werking'!B58","v":"Verzekering arbeidsongevallen"},{"$f":"VLOOKUP(KCOGW[[#This Row],[Organisatiegebonden werkingskosten]],KOOGW[[Rubriek]:[Kost per eenheid]],4,)","v":"Aanwezigheidsdagen"},365,{"$f":"VLOOKUP(KCOGW[[#This Row],[Organisatiegebonden werkingskosten]],KOOGW[[Rubriek]:[Kost per eenheid]],6,)","v":0.52170719776380148},{"$f":"KCOGW[[#This Row],[Aantal eenheden/jaar]]*KCOGW[[#This Row],[Kost per eenheid]]","v":190.42312718378753}]
[{"$f":"'OG werking'!B59","v":"BA personeel"},{"$f":"VLOOKUP(KCOGW[[#This Row],[Organisatiegebonden werkingskosten]],KOOGW[[Rubriek]:[Kost per eenheid]],4,)","v":"Aanwezigheidsdagen"},365,{"$f":"VLOOKUP(KCOGW[[#This Row],[Organisatiegebonden werkingskosten]],KOOGW[[Rubriek]:[Kost per eenheid]],6,)","v":2.3963428837642672E-2},{"$f":"KCOGW[[#This Row],[Aantal eenheden/jaar]]*KCOGW[[#This Row],[Kost per eenheid]]","v":8.7466515257395763}]
[{"$f":"'OG werking'!B60","v":"Bedrijfsgeneeskunde"},{"$f":"VLOOKUP(KCOGW[[#This Row],[Organisatiegebonden werkingskosten]],KOOGW[[Rubriek]:[Kost per eenheid]],4,)","v":"Aanwezigheidsdagen"},365,{"$f":"VLOOKUP(KCOGW[[#This Row],[Organisatiegebonden werkingskosten]],KOOGW[[Rubriek]:[Kost per eenheid]],6,)","v":0.53194246447705573},{"$f":"KCOGW[[#This Row],[Aantal eenheden/jaar]]*KCOGW[[#This Row],[Kost per eenheid]]","v":194.15899953412534}]
[{"$f":"'OG werking'!B61","v":"Woon-werkverkeer"},{"$f":"VLOOKUP(KCOGW[[#This Row],[Organisatiegebonden werkingskosten]],KOOGW[[Rubriek]:[Kost per eenheid]],4,)","v":"Aanwezigheidsdagen"},365,{"$f":"VLOOKUP(KCOGW[[#This Row],[Organisatiegebonden werkingskosten]],KOOGW[[Rubriek]:[Kost per eenheid]],6,)","v":1.3285385511297461},{"$f":"KCOGW[[#This Row],[Aantal eenheden/jaar]]*KCOGW[[#This Row],[Kost per eenheid]]","v":484.91657116235729}]
[{"$f":"'OG werking'!B62","v":"Syndicale premie"},{"$f":"VLOOKUP(KCOGW[[#This Row],[Organisatiegebonden werkingskosten]],KOOGW[[Rubriek]:[Kost per eenheid]],4,)","v":"Aanwezigheidsdagen"},365,{"$f":"VLOOKUP(KCOGW[[#This Row],[Organisatiegebonden werkingskosten]],KOOGW[[Rubriek]:[Kost per eenheid]],6,)","v":4.2774749592359655E-2},{"$f":"KCOGW[[#This Row],[Aantal eenheden/jaar]]*KCOGW[[#This Row],[Kost per eenheid]]","v":15.612783601211275}]
[{"$f":"'OG werking'!B63","v":"Kamppremie"},{"$f":"VLOOKUP(KCOGW[[#This Row],[Organisatiegebonden werkingskosten]],KOOGW[[Rubriek]:[Kost per eenheid]],4,)","v":"Aanwezigheidsdagen"},365,{"$f":"VLOOKUP(KCOGW[[#This Row],[Organisatiegebonden werkingskosten]],KOOGW[[Rubriek]:[Kost per eenheid]],6,)","v":4.9883298392732353E-2},{"$f":"KCOGW[[#This Row],[Aantal eenheden/jaar]]*KCOGW[[#This Row],[Kost per eenheid]]","v":18.20740391334731}]
[{"$f":"'OG werking'!B64","v":"Werkkledij"},{"$f":"VLOOKUP(KCOGW[[#This Row],[Organisatiegebonden werkingskosten]],KOOGW[[Rubriek]:[Kost per eenheid]],4,)","v":"Aanwezigheidsdagen"},365,{"$f":"VLOOKUP(KCOGW[[#This Row],[Organisatiegebonden werkingskosten]],KOOGW[[Rubriek]:[Kost per eenheid]],6,)","v":4.8765897973445139E-2},{"$f":"KCOGW[[#This Row],[Aantal eenheden/jaar]]*KCOGW[[#This Row],[Kost per eenheid]]","v":17.799552760307478}]
[{"$f":"'OG werking'!B65","v":"Diverse andere personeelskosten"},{"$f":"VLOOKUP(KCOGW[[#This Row],[Organisatiegebonden werkingskosten]],KOOGW[[Rubriek]:[Kost per eenheid]],4,)","v":"Aanwezigheidsdagen"},365,{"$f":"VLOOKUP(KCOGW[[#This Row],[Organisatiegebonden werkingskosten]],KOOGW[[Rubriek]:[Kost per eenheid]],6,)","v":0.14004728627999066},{"$f":"KCOGW[[#This Row],[Aantal eenheden/jaar]]*KCOGW[[#This Row],[Kost per eenheid]]","v":51.117259492196595}]
[{"$f":"'OG werking'!B66","v":"Bedrijfsbelastingen"},{"$f":"VLOOKUP(KCOGW[[#This Row],[Organisatiegebonden werkingskosten]],KOOGW[[Rubriek]:[Kost per eenheid]],4,)","v":"Aanwezigheidsdagen"},365,{"$f":"VLOOKUP(KCOGW[[#This Row],[Organisatiegebonden werkingskosten]],KOOGW[[Rubriek]:[Kost per eenheid]],6,)","v":0.50060470533426504},{"$f":"KCOGW[[#This Row],[Aantal eenheden/jaar]]*KCOGW[[#This Row],[Kost per eenheid]]","v":182.72071744700673}]
[{"$f":"'OG werking'!B67","v":"Bibliotheek"},{"$f":"VLOOKUP(KCOGW[[#This Row],[Organisatiegebonden werkingskosten]],KOOGW[[Rubriek]:[Kost per eenheid]],4,)","v":"Aanwezigheidsdagen"},365,{"$f":"VLOOKUP(KCOGW[[#This Row],[Organisatiegebonden werkingskosten]],KOOGW[[Rubriek]:[Kost per eenheid]],6,)","v":1.0364313999534126E-2},{"$f":"KCOGW[[#This Row],[Aantal eenheden/jaar]]*KCOGW[[#This Row],[Kost per eenheid]]","v":3.7829746098299557}]
[{"$f":"'OG werking'!B68","v":"Georganiseerde activiteiten"},{"$f":"VLOOKUP(KCOGW[[#This Row],[Organisatiegebonden werkingskosten]],KOOGW[[Rubriek]:[Kost per eenheid]],4,)","v":"Aanwezigheidsdagen"},365,{"$f":"VLOOKUP(KCOGW[[#This Row],[Organisatiegebonden werkingskosten]],KOOGW[[Rubriek]:[Kost per eenheid]],6,)","v":8.6135336594456088E-2},{"$f":"KCOGW[[#This Row],[Aantal eenheden/jaar]]*KCOGW[[#This Row],[Kost per eenheid]]","v":31.439397856976473}]
[{"$f":"'OG werking'!B69","v":"Recup georganiseerde act"},{"$f":"VLOOKUP(KCOGW[[#This Row],[Organisatiegebonden werkingskosten]],KOOGW[[Rubriek]:[Kost per eenheid]],4,)","v":"Aanwezigheidsdagen"},365,{"$f":"VLOOKUP(KCOGW[[#This Row],[Organisatiegebonden werkingskosten]],KOOGW[[Rubriek]:[Kost per eenheid]],6,)","v":-0.19721663172606568},{"$f":"KCOGW[[#This Row],[Aantal eenheden/jaar]]*KCOGW[[#This Row],[Kost per eenheid]]","v":-71.984070580013977}]
[{"$f":"'OG werking'!B70","v":"Arbeidsgerichte activiteiten"},{"$f":"VLOOKUP(KCOGW[[#This Row],[Organisatiegebonden werkingskosten]],KOOGW[[Rubriek]:[Kost per eenheid]],4,)","v":"Aanwezigheidsdagen"},365,{"$f":"VLOOKUP(KCOGW[[#This Row],[Organisatiegebonden werkingskosten]],KOOGW[[Rubriek]:[Kost per eenheid]],6,)","v":3.4005823433496389E-2},{"$f":"KCOGW[[#This Row],[Aantal eenheden/jaar]]*KCOGW[[#This Row],[Kost per eenheid]]","v":12.412125553226183}]
[{"$f":"'OG werking'!B71","v":"Recup arbeidsgerichte act"},{"$f":"VLOOKUP(KCOGW[[#This Row],[Organisatiegebonden werkingskosten]],KOOGW[[Rubriek]:[Kost per eenheid]],4,)","v":"Aanwezigheidsdagen"},365,{"$f":"VLOOKUP(KCOGW[[#This Row],[Organisatiegebonden werkingskosten]],KOOGW[[Rubriek]:[Kost per eenheid]],6,)","v":-2.6890752387607735E-2},{"$f":"KCOGW[[#This Row],[Aantal eenheden/jaar]]*KCOGW[[#This Row],[Kost per eenheid]]","v":-9.8151246214768229}]
[{"$f":"'OG werking'!B72","v":"Financiële kosten"},{"$f":"VLOOKUP(KCOGW[[#This Row],[Organisatiegebonden werkingskosten]],KOOGW[[Rubriek]:[Kost per eenheid]],4,)","v":"Aanwezigheidsdagen"},365,{"$f":"VLOOKUP(KCOGW[[#This Row],[Organisatiegebonden werkingskosten]],KOOGW[[Rubriek]:[Kost per eenheid]],6,)","v":1.2673540647565806},{"$f":"KCOGW[[#This Row],[Aantal eenheden/jaar]]*KCOGW[[#This Row],[Kost per eenheid]]","v":462.58423363615191}]
[{"$f":"'OG werking'!B73","v":"Financiële opbrengsten"},{"$f":"VLOOKUP(KCOGW[[#This Row],[Organisatiegebonden werkingskosten]],KOOGW[[Rubriek]:[Kost per eenheid]],4,)","v":"Aanwezigheidsdagen"},365,{"$f":"VLOOKUP(KCOGW[[#This Row],[Organisatiegebonden werkingskosten]],KOOGW[[Rubriek]:[Kost per eenheid]],6,)","v":-1.805083857442348},{"$f":"KCOGW[[#This Row],[Aantal eenheden/jaar]]*KCOGW[[#This Row],[Kost per eenheid]]","v":-658.855607966457}]
[{"$f":"'OG werking'!B74","v":"Elektriciteit"},{"$f":"VLOOKUP(KCOGW[[#This Row],[Organisatiegebonden werkingskosten]],KOOGW[[Rubriek]:[Kost per eenheid]],4,)","v":"Aanwezigheidsdagen"},365,{"$f":"VLOOKUP(KCOGW[[#This Row],[Organisatiegebonden werkingskosten]],KOOGW[[Rubriek]:[Kost per eenheid]],6,)","v":0.84535714651758664},{"$f":"KCOGW[[#This Row],[Aantal eenheden/jaar]]*KCOGW[[#This Row],[Kost per eenheid]]","v":308.55535847891912}]
[{"$f":"'OG werking'!B75","v":"Water"},{"$f":"VLOOKUP(KCOGW[[#This Row],[Organisatiegebonden werkingskosten]],KOOGW[[Rubriek]:[Kost per eenheid]],4,)","v":"Aanwezigheidsdagen"},365,{"$f":"VLOOKUP(KCOGW[[#This Row],[Organisatiegebonden werkingskosten]],KOOGW[[Rubriek]:[Kost per eenheid]],6,)","v":0.13067704169578384},{"$f":"KCOGW[[#This Row],[Aantal eenheden/jaar]]*KCOGW[[#This Row],[Kost per eenheid]]","v":47.697120218961103}]
[{"$f":"'OG werking'!B76","v":"Gas"},{"$f":"VLOOKUP(KCOGW[[#This Row],[Organisatiegebonden werkingskosten]],KOOGW[[Rubriek]:[Kost per eenheid]],4,)","v":"Aanwezigheidsdagen"},365,{"$f":"VLOOKUP(KCOGW[[#This Row],[Organisatiegebonden werkingskosten]],KOOGW[[Rubriek]:[Kost per eenheid]],6,)","v":0.71636251572327037},{"$f":"KCOGW[[#This Row],[Aantal eenheden/jaar]]*KCOGW[[#This Row],[Kost per eenheid]]","v":261.47231823899369}]
["Totaal",null,null,null,{"$f":"SUBTOTAL(109,KCOGW[Kost per jaar])","v":6182.3109808585505}]
[""]
["Woon- en leefkosten","Eenheid","Aantal eenheden/jaar","Brutokost per eenheid","Kost per jaar"]
[{"$f":"'Woon- en leefkosten'!B2","v":"Ontbijt"},{"$f":"VLOOKUP(KCWL[Woon- en leefkosten],WoonEnLeefKosten[[Woon- & Leefkost]:[Subsidies per eenheid]],2,)","v":"aantal nachten woonondersteuning"},365,{"$f":"VLOOKUP(KCWL[[#This Row],[Woon- en leefkosten]],WoonEnLeefKosten[[Woon- & Leefkost]:[Brutokost per eenheid]],4,)","v":1.3},{"$f":"KCWL[Aantal eenheden/jaar]*KCWL[Brutokost per eenheid]","v":474.5}]
[{"$f":"'Woon- en leefkosten'!B3","v":"Middagmaal"},{"$f":"VLOOKUP(KCWL[Woon- en leefkosten],WoonEnLeefKosten[[Woon- & Leefkost]:[Subsidies per eenheid]],2,)","v":"Aanwezigheidsdagen"},365,{"$f":"VLOOKUP(KCWL[[#This Row],[Woon- en leefkosten]],WoonEnLeefKosten[[Woon- & Leefkost]:[Brutokost per eenheid]],4,)","v":12.09},{"$f":"KCWL[Aantal eenheden/jaar]*KCWL[Brutokost per eenheid]","v":4412.8500000000004}]
[{"$f":"'Woon- en leefkosten'!B4","v":"Avondmaal"},{"$f":"VLOOKUP(KCWL[Woon- en leefkosten],WoonEnLeefKosten[[Woon- & Leefkost]:[Subsidies per eenheid]],2,)","v":"Aanwezigheidsdagen"},365,{"$f":"VLOOKUP(KCWL[[#This Row],[Woon- en leefkosten]],WoonEnLeefKosten[[Woon- & Leefkost]:[Brutokost per eenheid]],4,)","v":1.95},{"$f":"KCWL[Aantal eenheden/jaar]*KCWL[Brutokost per eenheid]","v":711.75}]
[{"$f":"'Woon- en leefkosten'!B5","v":"Huur kamer"},{"$f":"VLOOKUP(KCWL[Woon- en leefkosten],WoonEnLeefKosten[[Woon- & Leefkost]:[Subsidies per eenheid]],2,)","v":"Aanwezigheidsdagen"},365,{"$f":"VLOOKUP(KCWL[[#This Row],[Woon- en leefkosten]],WoonEnLeefKosten[[Woon- & Leefkost]:[Brutokost per eenheid]],4,)","v":7.63},{"$f":"KCWL[Aantal eenheden/jaar]*KCWL[Brutokost per eenheid]","v":2784.95}]
[{"$f":"'Woon- en leefkosten'!B6","v":"Onderhoud kamer"},{"$f":"VLOOKUP(KCWL[Woon- en leefkosten],WoonEnLeefKosten[[Woon- & Leefkost]:[Subsidies per eenheid]],2,)","v":"Aanwezigheidsdagen"},365,{"$f":"VLOOKUP(KCWL[[#This Row],[Woon- en leefkosten]],WoonEnLeefKosten[[Woon- & Leefkost]:[Brutokost per eenheid]],4,)","v":8.01},{"$f":"KCWL[Aantal eenheden/jaar]*KCWL[Brutokost per eenheid]","v":2923.65}]
[{"$f":"'Woon- en leefkosten'!B7","v":"Naaisters"},{"$f":"VLOOKUP(KCWL[Woon- en leefkosten],WoonEnLeefKosten[[Woon- & Leefkost]:[Subsidies per eenheid]],2,)","v":"Uren"},null,{"$f":"VLOOKUP(KCWL[[#This Row],[Woon- en leefkosten]],WoonEnLeefKosten[[Woon- & Leefkost]:[Brutokost per eenheid]],4,)","v":0},{"$f":"KCWL[Aantal eenheden/jaar]*KCWL[Brutokost per eenheid]","v":0}]
[{"$f":"'Woon- en leefkosten'!B8","v":"W&L 7"},{"$f":"VLOOKUP(KCWL[Woon- en leefkosten],WoonEnLeefKosten[[Woon- & Leefkost]:[Subsidies per eenheid]],2,)","v":"Aanwezigheidsdagen"},null,{"$f":"VLOOKUP(KCWL[[#This Row],[Woon- en leefkosten]],WoonEnLeefKosten[[Woon- & Leefkost]:[Brutokost per eenheid]],4,)","v":0},{"$f":"KCWL[Aantal eenheden/jaar]*KCWL[Brutokost per eenheid]","v":0}]
[{"$f":"'Woon- en leefkosten'!B9","v":"W&L 8"},{"$f":"VLOOKUP(KCWL[Woon- en leefkosten],WoonEnLeefKosten[[Woon- & Leefkost]:[Subsidies per eenheid]],2,)","v":"Aanwezigheidsdagen"},null,{"$f":"VLOOKUP(KCWL[[#This Row],[Woon- en leefkosten]],WoonEnLeefKosten[[Woon- & Leefkost]:[Brutokost per eenheid]],4,)","v":0},{"$f":"KCWL[Aantal eenheden/jaar]*KCWL[Brutokost per eenheid]","v":0}]
[{"$f":"'Woon- en leefkosten'!B10","v":"W&L 9"},{"$f":"VLOOKUP(KCWL[Woon- en leefkosten],WoonEnLeefKosten[[Woon- & Leefkost]:[Subsidies per eenheid]],2,)","v":"Aanwezigheidsdagen"},null,{"$f":"VLOOKUP(KCWL[[#This Row],[Woon- en leefkosten]],WoonEnLeefKosten[[Woon- & Leefkost]:[Brutokost per eenheid]],4,)","v":0},{"$f":"KCWL[Aantal eenheden/jaar]*KCWL[Brutokost per eenheid]","v":0}]
[{"$f":"'Woon- en leefkosten'!B11","v":"W&L 10"},{"$f":"VLOOKUP(KCWL[Woon- en leefkosten],WoonEnLeefKosten[[Woon- & Leefkost]:[Subsidies per eenheid]],2,)","v":"Aanwezigheidsdagen"},null,{"$f":"VLOOKUP(KCWL[[#This Row],[Woon- en leefkosten]],WoonEnLeefKosten[[Woon- & Leefkost]:[Brutokost per eenheid]],4,)","v":0},{"$f":"KCWL[Aantal eenheden/jaar]*KCWL[Brutokost per eenheid]","v":0}]
[{"$f":"'Woon- en leefkosten'!B12","v":"W&L 11"},{"$f":"VLOOKUP(KCWL[Woon- en leefkosten],WoonEnLeefKosten[[Woon- & Leefkost]:[Subsidies per eenheid]],2,)","v":"Aanwezigheidsdagen"},null,{"$f":"VLOOKUP(KCWL[[#This Row],[Woon- en leefkosten]],WoonEnLeefKosten[[Woon- & Leefkost]:[Brutokost per eenheid]],4,)","v":0},{"$f":"KCWL[Aantal eenheden/jaar]*KCWL[Brutokost per eenheid]","v":0}]
[{"$f":"'Woon- en leefkosten'!B13","v":"W&L 12"},{"$f":"VLOOKUP(KCWL[Woon- en leefkosten],WoonEnLeefKosten[[Woon- & Leefkost]:[Subsidies per eenheid]],2,)","v":"Aanwezigheidsdagen"},null,{"$f":"VLOOKUP(KCWL[[#This Row],[Woon- en leefkosten]],WoonEnLeefKosten[[Woon- & Leefkost]:[Brutokost per eenheid]],4,)","v":0},{"$f":"KCWL[Aantal eenheden/jaar]*KCWL[Brutokost per eenheid]","v":0}]
[{"$f":"'Woon- en leefkosten'!B14","v":"W&L 13"},{"$f":"VLOOKUP(KCWL[Woon- en leefkosten],WoonEnLeefKosten[[Woon- & Leefkost]:[Subsidies per eenheid]],2,)","v":"Aanwezigheidsdagen"},null,{"$f":"VLOOKUP(KCWL[[#This Row],[Woon- en leefkosten]],WoonEnLeefKosten[[Woon- & Leefkost]:[Brutokost per eenheid]],4,)","v":0},{"$f":"KCWL[Aantal eenheden/jaar]*KCWL[Brutokost per eenheid]","v":0}]
[{"$f":"'Woon- en leefkosten'!B15","v":"W&L 14"},{"$f":"VLOOKUP(KCWL[Woon- en leefkosten],WoonEnLeefKosten[[Woon- & Leefkost]:[Subsidies per eenheid]],2,)","v":"Aanwezigheidsdagen"},null,{"$f":"VLOOKUP(KCWL[[#This Row],[Woon- en leefkosten]],WoonEnLeefKosten[[Woon- & Leefkost]:[Brutokost per eenheid]],4,)","v":0},{"$f":"KCWL[Aantal eenheden/jaar]*KCWL[Brutokost per eenheid]","v":0}]
[{"$f":"'Woon- en leefkosten'!B16","v":"W&L 15"},{"$f":"VLOOKUP(KCWL[Woon- en leefkosten],WoonEnLeefKosten[[Woon- & Leefkost]:[Subsidies per eenheid]],2,)","v":"Aanwezigheidsdagen"},null,{"$f":"VLOOKUP(KCWL[[#This Row],[Woon- en leefkosten]],WoonEnLeefKosten[[Woon- & Leefkost]:[Brutokost per eenheid]],4,)","v":0},{"$f":"KCWL[Aantal eenheden/jaar]*KCWL[Brutokost per eenheid]","v":0}]
[{"$f":"'Woon- en leefkosten'!B17","v":"W&L 16"},{"$f":"VLOOKUP(KCWL[Woon- en leefkosten],WoonEnLeefKosten[[Woon- & Leefkost]:[Subsidies per eenheid]],2,)","v":"Aanwezigheidsdagen"},null,{"$f":"VLOOKUP(KCWL[[#This Row],[Woon- en leefkosten]],WoonEnLeefKosten[[Woon- & Leefkost]:[Brutokost per eenheid]],4,)","v":0},{"$f":"KCWL[Aantal eenheden/jaar]*KCWL[Brutokost per eenheid]","v":0}]
[{"$f":"'Woon- en leefkosten'!B18","v":"W&L 17"},{"$f":"VLOOKUP(KCWL[Woon- en leefkosten],WoonEnLeefKosten[[Woon- & Leefkost]:[Subsidies per eenheid]],2,)","v":"Aanwezigheidsdagen"},null,{"$f":"VLOOKUP(KCWL[[#This Row],[Woon- en leefkosten]],WoonEnLeefKosten[[Woon- & Leefkost]:[Brutokost per eenheid]],4,)","v":0},{"$f":"KCWL[Aantal eenheden/jaar]*KCWL[Brutokost per eenheid]","v":0}]
[{"$f":"'Woon- en leefkosten'!B19","v":"W&L 18"},{"$f":"VLOOKUP(KCWL[Woon- en leefkosten],WoonEnLeefKosten[[Woon- & Leefkost]:[Subsidies per eenheid]],2,)","v":"Aanwezigheidsdagen"},null,{"$f":"VLOOKUP(KCWL[[#This Row],[Woon- en leefkosten]],WoonEnLeefKosten[[Woon- & Leefkost]:[Brutokost per eenheid]],4,)","v":0},{"$f":"KCWL[Aantal eenheden/jaar]*KCWL[Brutokost per eenheid]","v":0}]
[{"$f":"'Woon- en leefkosten'!B20","v":"W&L 19"},{"$f":"VLOOKUP(KCWL[Woon- en leefkosten],WoonEnLeefKosten[[Woon- & Leefkost]:[Subsidies per eenheid]],2,)","v":"Aanwezigheidsdagen"},null,{"$f":"VLOOKUP(KCWL[[#This Row],[Woon- en leefkosten]],WoonEnLeefKosten[[Woon- & Leefkost]:[Brutokost per eenheid]],4,)","v":0},{"$f":"KCWL[Aantal eenheden/jaar]*KCWL[Brutokost per eenheid]","v":0}]
[{"$f":"'Woon- en leefkosten'!B21","v":"W&L 20"},{"$f":"VLOOKUP(KCWL[Woon- en leefkosten],WoonEnLeefKosten[[Woon- & Leefkost]:[Subsidies per eenheid]],2,)","v":"Aanwezigheidsdagen"},null,{"$f":"VLOOKUP(KCWL[[#This Row],[Woon- en leefkosten]],WoonEnLeefKosten[[Woon- & Leefkost]:[Brutokost per eenheid]],4,)","v":0},{"$f":"KCWL[Aantal eenheden/jaar]*KCWL[Brutokost per eenheid]","v":0}]
["Totaal",null,null,null,{"$f":"SUBTOTAL(109,KCWL[Kost per jaar])","v":11307.699999999999}]

{"sheet":"Samenvatting W&L","index":9,"n_rows":6,"n_cols":23,"rows_kept":6,"cut":false,"hidden":false,"merged":[]}
[]
[null,"Naam","Budgetcategorie",{"$f":"'Totale kosten voor cliënt'!A146","v":"Ontbijt"},{"$f":"'Totale kosten voor cliënt'!A147","v":"Middagmaal"},{"$f":"'Totale kosten voor cliënt'!A148","v":"Avondmaal"},{"$f":"'Totale kosten voor cliënt'!A149","v":"Huur kamer"},{"$f":"'Totale kosten voor cliënt'!A150","v":"Onderhoud kamer"},{"$f":"'Totale kosten voor cliënt'!A151","v":"Naaisters"},{"$f":"'Totale kosten voor cliënt'!A152","v":"W&L 7"},{"$f":"'Totale kosten voor cliënt'!A153","v":"W&L 8"},{"$f":"'Totale kosten voor cliënt'!A154","v":"W&L 9"},{"$f":"'Totale kosten voor cliënt'!A155","v":"W&L 10"},{"$f":"'Totale kosten voor cliënt'!A156","v":"W&L 11"},{"$f":"'Totale kosten voor cliënt'!A157","v":"W&L 12"},{"$f":"'Totale kosten voor cliënt'!A158","v":"W&L 13"},{"$f":"'Totale kosten voor cliënt'!A159","v":"W&L 14"},{"$f":"'Totale kosten voor cliënt'!A160","v":"W&L 15"},{"$f":"'Totale kosten voor cliënt'!A161","v":"W&L 16"},{"$f":"'Totale kosten voor cliënt'!A162","v":"W&L 17"},{"$f":"'Totale kosten voor cliënt'!A163","v":"W&L 18"},{"$f":"'Totale kosten voor cliënt'!A164","v":"W&L 19"},{"$f":"'Totale kosten voor cliënt'!A165","v":"W&L 20"}]
["Totaal aantal eenheden",null,null,{"$f":"'Woon- en leefkosten'!D2","v":42930},{"$f":"'Woon- en leefkosten'!D3","v":42930},{"$f":"'Woon- en leefkosten'!D4","v":42930},{"$f":"'Woon- en leefkosten'!D5","v":42930},{"$f":"'Woon- en leefkosten'!D6","v":42930},{"$f":"'Woon- en leefkosten'!D7","v":0},{"$f":"'Woon- en leefkosten'!D8","v":0},{"$f":"'Woon- en leefkosten'!D9","v":0},{"$f":"'Woon- en leefkosten'!D10","v":0},{"$f":"'Woon- en leefkosten'!D11","v":0},{"$f":"'Woon- en leefkosten'!D12","v":0},{"$f":"'Woon- en leefkosten'!D13","v":0},{"$f":"'Woon- en leefkosten'!D14","v":0},{"$f":"'Woon- en leefkosten'!D15","v":0},{"$f":"'Woon- en leefkosten'!D16","v":0},{"$f":"'Woon- en leefkosten'!D17","v":0},{"$f":"'Woon- en leefkosten'!D18","v":0},{"$f":"'Woon- en leefkosten'!D19","v":0},{"$f":"'Woon- en leefkosten'!D20","v":0},{"$f":"'Woon- en leefkosten'!D21","v":0}]
["Som ingevulde eenheden",null,null,{"$f":"SUM(D6:D1048576)","v":365},365,365,365,365,0,0,0,0,0,0,0,0,0,0,0,0,0,0,0]
["Bezettingsgraad",null,null,{"$f":"IFERROR(D4/D3,0)","v":8.5022129047286274E-3},{"$f":"IFERROR(E4/E3,0)","v":8.5022129047286274E-3},8.5022129047286274E-3,8.5022129047286274E-3,8.5022129047286274E-3,0,0,0,0,0,0,0,0,0,0,0,0,0,0,0]
[null,"Pakket 15","X b",365,365,365,365,365,0,0,0,0,0,0,0,0,0,0,0,0,0,0,0]

{"sheet":"Samenvatting functiegroepen","index":10,"n_rows":30,"n_cols":7,"rows_kept":30,"cut":false,"hidden":false,"merged":[]}
["Functiegroep","Barema","Loonkost","Maximale punten","Reële bezette punten","Euro/punt (maximum bezetting)","Euro/punt (reële bezetting)"]
["Logistiek personeel klasse 4",{"$f":"VLOOKUP(A2,Personeelsbaremas!$A$2:$B$29,2,)","v":"barema 1"},{"$f":"SUMIF('ZG personeel'!$F:$F,SamenvattingFunctiegroepen[[#This Row],[Barema]],'ZG personeel'!B:B)+SUMIF('OG personeel'!$I:$I,SamenvattingFunctiegroepen[[#This Row],[Barema]],'OG personeel'!B:B)","v":0},{"$f":"SUMIF('ZG personeel'!$F:$F,'Samenvatting functiegroepen'!$B:$B,'ZG personeel'!O:O)+SUMIF('OG personeel'!$I:$I,SamenvattingFunctiegroepen[[#This Row],[Barema]],'OG personeel'!N:N)","v":0},{"$f":"SUMIF('ZG personeel'!$F:$F,'Samenvatting functiegroepen'!$B:$B,'ZG personeel'!P:P)+SUMIF('OG personeel'!$I:$I,SamenvattingFunctiegroepen[[#This Row],[Barema]],'OG personeel'!N:N)","v":0},{"$f":"IF(ISERROR(C2/D2)=TRUE,0,C2/D2)","v":0},{"$f":"IF(ISERROR(C2/E2)=TRUE,0,C2/E2)","v":0}]
["Logistiek personeel onderhoud cat II",{"$f":"VLOOKUP(A3,Personeelsbaremas!$A$2:$B$29,2,)","v":"barema 2"},{"$f":"SUMIF('ZG personeel'!$F:$F,SamenvattingFunctiegroepen[[#This Row],[Barema]],'ZG personeel'!B:B)+SUMIF('OG personeel'!$I:$I,SamenvattingFunctiegroepen[[#This Row],[Barema]],'OG personeel'!B:B)","v":0},{"$f":"SUMIF('ZG personeel'!$F:$F,'Samenvatting functiegroepen'!$B:$B,'ZG personeel'!O:O)+SUMIF('OG personeel'!$I:$I,SamenvattingFunctiegroepen[[#This Row],[Barema]],'OG personeel'!N:N)","v":0},{"$f":"SUMIF('ZG personeel'!$F:$F,'Samenvatting functiegroepen'!$B:$B,'ZG personeel'!P:P)+SUMIF('OG personeel'!$I:$I,SamenvattingFunctiegroepen[[#This Row],[Barema]],'OG personeel'!N:N)","v":0},0,0]
["Logistiek personeel onderhoud cat III",{"$f":"VLOOKUP(A4,Personeelsbaremas!$A$2:$B$29,2,)","v":"barema 3"},{"$f":"SUMIF('ZG personeel'!$F:$F,SamenvattingFunctiegroepen[[#This Row],[Barema]],'ZG personeel'!B:B)+SUMIF('OG personeel'!$I:$I,SamenvattingFunctiegroepen[[#This Row],[Barema]],'OG personeel'!B:B)","v":0},{"$f":"SUMIF('ZG personeel'!$F:$F,'Samenvatting functiegroepen'!$B:$B,'ZG personeel'!O:O)+SUMIF('OG personeel'!$I:$I,SamenvattingFunctiegroepen[[#This Row],[Barema]],'OG personeel'!N:N)","v":0},{"$f":"SUMIF('ZG personeel'!$F:$F,'Samenvatting functiegroepen'!$B:$B,'ZG personeel'!P:P)+SUMIF('OG personeel'!$I:$I,SamenvattingFunctiegroepen[[#This Row],[Barema]],'OG personeel'!N:N)","v":0},0,0]
["Logistiek personeel onderhoud cat IV",{"$f":"VLOOKUP(A5,Personeelsbaremas!$A$2:$B$29,2,)","v":"barema 4"},{"$f":"SUMIF('ZG personeel'!$F:$F,SamenvattingFunctiegroepen[[#This Row],[Barema]],'ZG personeel'!B:B)+SUMIF('OG personeel'!$I:$I,SamenvattingFunctiegroepen[[#This Row],[Barema]],'OG personeel'!B:B)","v":0},{"$f":"SUMIF('ZG personeel'!$F:$F,'Samenvatting functiegroepen'!$B:$B,'ZG personeel'!O:O)+SUMIF('OG personeel'!$I:$I,SamenvattingFunctiegroepen[[#This Row],[Barema]],'OG personeel'!N:N)","v":0},{"$f":"SUMIF('ZG personeel'!$F:$F,'Samenvatting functiegroepen'!$B:$B,'ZG personeel'!P:P)+SUMIF('OG personeel'!$I:$I,SamenvattingFunctiegroepen[[#This Row],[Barema]],'OG personeel'!N:N)","v":0},0,0]
["Logistiek personeel onderhoud cat V",{"$f":"VLOOKUP(A6,Personeelsbaremas!$A$2:$B$29,2,)","v":"barema 5"},{"$f":"SUMIF('ZG personeel'!$F:$F,SamenvattingFunctiegroepen[[#This Row],[Barema]],'ZG personeel'!B:B)+SUMIF('OG personeel'!$I:$I,SamenvattingFunctiegroepen[[#This Row],[Barema]],'OG personeel'!B:B)","v":0},{"$f":"SUMIF('ZG personeel'!$F:$F,'Samenvatting functiegroepen'!$B:$B,'ZG personeel'!O:O)+SUMIF('OG personeel'!$I:$I,SamenvattingFunctiegroepen[[#This Row],[Barema]],'OG personeel'!N:N)","v":0},{"$f":"SUMIF('ZG personeel'!$F:$F,'Samenvatting functiegroepen'!$B:$B,'ZG personeel'!P:P)+SUMIF('OG personeel'!$I:$I,SamenvattingFunctiegroepen[[#This Row],[Barema]],'OG personeel'!N:N)","v":0},0,{"$f":"IF(ISERROR(C6/E6)=TRUE,0,C6/E6)","v":0}]
["Logistiek personeel klasse 3 (In dienst voor 1/11/93)",{"$f":"VLOOKUP(A7,Personeelsbaremas!$A$2:$B$29,2,)","v":"barema 6"},{"$f":"SUMIF('ZG personeel'!$F:$F,SamenvattingFunctiegroepen[[#This Row],[Barema]],'ZG personeel'!B:B)+SUMIF('OG personeel'!$I:$I,SamenvattingFunctiegroepen[[#This Row],[Barema]],'OG personeel'!B:B)","v":0},{"$f":"SUMIF('ZG personeel'!$F:$F,'Samenvatting functiegroepen'!$B:$B,'ZG personeel'!O:O)+SUMIF('OG personeel'!$I:$I,SamenvattingFunctiegroepen[[#This Row],[Barema]],'OG personeel'!N:N)","v":0},{"$f":"SUMIF('ZG personeel'!$F:$F,'Samenvatting functiegroepen'!$B:$B,'ZG personeel'!P:P)+SUMIF('OG personeel'!$I:$I,SamenvattingFunctiegroepen[[#This Row],[Barema]],'OG personeel'!N:N)","v":0},0,0]
["Logistiek personeel klasse 3 (In dienst na 1/11/93)",{"$f":"VLOOKUP(A8,Personeelsbaremas!$A$2:$B$29,2,)","v":"barema 7"},{"$f":"SUMIF('ZG personeel'!$F:$F,SamenvattingFunctiegroepen[[#This Row],[Barema]],'ZG personeel'!B:B)+SUMIF('OG personeel'!$I:$I,SamenvattingFunctiegroepen[[#This Row],[Barema]],'OG personeel'!B:B)","v":29657.15},{"$f":"SUMIF('ZG personeel'!$F:$F,'Samenvatting functiegroepen'!$B:$B,'ZG personeel'!O:O)+SUMIF('OG personeel'!$I:$I,SamenvattingFunctiegroepen[[#This Row],[Barema]],'OG personeel'!N:N)","v":34.72},{"$f":"SUMIF('ZG personeel'!$F:$F,'Samenvatting functiegroepen'!$B:$B,'ZG personeel'!P:P)+SUMIF('OG personeel'!$I:$I,SamenvattingFunctiegroepen[[#This Row],[Barema]],'OG personeel'!N:N)","v":34.72},854.18058755760376,854.18058755760376]
["Logistiek personeel klasse 2",{"$f":"VLOOKUP(A9,Personeelsbaremas!$A$2:$B$29,2,)","v":"barema 8"},{"$f":"SUMIF('ZG personeel'!$F:$F,SamenvattingFunctiegroepen[[#This Row],[Barema]],'ZG personeel'!B:B)+SUMIF('OG personeel'!$I:$I,SamenvattingFunctiegroepen[[#This Row],[Barema]],'OG personeel'!B:B)","v":589006.15},{"$f":"SUMIF('ZG personeel'!$F:$F,'Samenvatting functiegroepen'!$B:$B,'ZG personeel'!O:O)+SUMIF('OG personeel'!$I:$I,SamenvattingFunctiegroepen[[#This Row],[Barema]],'OG personeel'!N:N)","v":710.04},{"$f":"SUMIF('ZG personeel'!$F:$F,'Samenvatting functiegroepen'!$B:$B,'ZG personeel'!P:P)+SUMIF('OG personeel'!$I:$I,SamenvattingFunctiegroepen[[#This Row],[Barema]],'OG personeel'!N:N)","v":710.04},829.53939214692139,829.53939214692139]
["Administratief + logistiek personeel klasse 1",{"$f":"VLOOKUP(A10,Personeelsbaremas!$A$2:$B$29,2,)","v":"barema 9"},{"$f":"SUMIF('ZG personeel'!$F:$F,SamenvattingFunctiegroepen[[#This Row],[Barema]],'ZG personeel'!B:B)+SUMIF('OG personeel'!$I:$I,SamenvattingFunctiegroepen[[#This Row],[Barema]],'OG personeel'!B:B)","v":301884.75},{"$f":"SUMIF('ZG personeel'!$F:$F,'Samenvatting functiegroepen'!$B:$B,'ZG personeel'!O:O)+SUMIF('OG personeel'!$I:$I,SamenvattingFunctiegroepen[[#This Row],[Barema]],'OG personeel'!N:N)","v":360.68},{"$f":"SUMIF('ZG personeel'!$F:$F,'Samenvatting functiegroepen'!$B:$B,'ZG personeel'!P:P)+SUMIF('OG personeel'!$I:$I,SamenvattingFunctiegroepen[[#This Row],[Barema]],'OG personeel'!N:N)","v":360.68},836.98777309526452,836.98777309526452]
["Administratief + logistiek personeel klasse 2",{"$f":"VLOOKUP(A11,Personeelsbaremas!$A$2:$B$29,2,)","v":"barema 10"},{"$f":"SUMIF('ZG personeel'!$F:$F,SamenvattingFunctiegroepen[[#This Row],[Barema]],'ZG personeel'!B:B)+SUMIF('OG personeel'!$I:$I,SamenvattingFunctiegroepen[[#This Row],[Barema]],'OG personeel'!B:B)","v":94812.49},{"$f":"SUMIF('ZG personeel'!$F:$F,'Samenvatting functiegroepen'!$B:$B,'ZG personeel'!O:O)+SUMIF('OG personeel'!$I:$I,SamenvattingFunctiegroepen[[#This Row],[Barema]],'OG personeel'!N:N)","v":109.8},{"$f":"SUMIF('ZG personeel'!$F:$F,'Samenvatting functiegroepen'!$B:$B,'ZG personeel'!P:P)+SUMIF('OG personeel'!$I:$I,SamenvattingFunctiegroepen[[#This Row],[Barema]],'OG personeel'!N:N)","v":109.8},863.50173041894357,863.50173041894357]
["Administratief personeel boekhouder klasse II",{"$f":"VLOOKUP(A12,Personeelsbaremas!$A$2:$B$29,2,)","v":"barema 11"},{"$f":"SUMIF('ZG personeel'!$F:$F,SamenvattingFunctiegroepen[[#This Row],[Barema]],'ZG personeel'!B:B)+SUMIF('OG personeel'!$I:$I,SamenvattingFunctiegroepen[[#This Row],[Barema]],'OG personeel'!B:B)","v":0},{"$f":"SUMIF('ZG personeel'!$F:$F,'Samenvatting functiegroepen'!$B:$B,'ZG personeel'!O:O)+SUMIF('OG personeel'!$I:$I,SamenvattingFunctiegroepen[[#This Row],[Barema]],'OG personeel'!N:N)","v":0},{"$f":"SUMIF('ZG personeel'!$F:$F,'Samenvatting functiegroepen'!$B:$B,'ZG personeel'!P:P)+SUMIF('OG personeel'!$I:$I,SamenvattingFunctiegroepen[[#This Row],[Barema]],'OG personeel'!N:N)","v":0},0,0]
["Administratief personeel klasse 3",{"$f":"VLOOKUP(A13,Personeelsbaremas!$A$2:$B$29,2,)","v":"barema 12"},{"$f":"SUMIF('ZG personeel'!$F:$F,SamenvattingFunctiegroepen[[#This Row],[Barema]],'ZG personeel'!B:B)+SUMIF('OG personeel'!$I:$I,SamenvattingFunctiegroepen[[#This Row],[Barema]],'OG personeel'!B:B)","v":0},{"$f":"SUMIF('ZG personeel'!$F:$F,'Samenvatting functiegroepen'!$B:$B,'ZG personeel'!O:O)+SUMIF('OG personeel'!$I:$I,SamenvattingFunctiegroepen[[#This Row],[Barema]],'OG personeel'!N:N)","v":0},{"$f":"SUMIF('ZG personeel'!$F:$F,'Samenvatting functiegroepen'!$B:$B,'ZG personeel'!P:P)+SUMIF('OG personeel'!$I:$I,SamenvattingFunctiegroepen[[#This Row],[Barema]],'OG personeel'!N:N)","v":0},0,0]
["Verzorgend personeel",{"$f":"VLOOKUP(A14,Personeelsbaremas!$A$2:$B$29,2,)","v":"barema 13"},{"$f":"SUMIF('ZG personeel'!$F:$F,SamenvattingFunctiegroepen[[#This Row],[Barema]],'ZG personeel'!B:B)+SUMIF('OG personeel'!$I:$I,SamenvattingFunctiegroepen[[#This Row],[Barema]],'OG personeel'!B:B)","v":394556.02},{"$f":"SUMIF('ZG personeel'!$F:$F,'Samenvatting functiegroepen'!$B:$B,'ZG personeel'!O:O)+SUMIF('OG personeel'!$I:$I,SamenvattingFunctiegroepen[[#This Row],[Barema]],'OG personeel'!N:N)","v":592.94999999999993},{"$f":"SUMIF('ZG personeel'!$F:$F,'Samenvatting functiegroepen'!$B:$B,'ZG personeel'!P:P)+SUMIF('OG personeel'!$I:$I,SamenvattingFunctiegroepen[[#This Row],[Barema]],'OG personeel'!N:N)","v":504.00749999999994},665.41195716333596,782.83759666274818]
["Begeleidend en verzorgend personeel klasse 3",{"$f":"VLOOKUP(A15,Personeelsbaremas!$A$2:$B$29,2,)","v":"barema 14"},{"$f":"SUMIF('ZG personeel'!$F:$F,SamenvattingFunctiegroepen[[#This Row],[Barema]],'ZG personeel'!B:B)+SUMIF('OG personeel'!$I:$I,SamenvattingFunctiegroepen[[#This Row],[Barema]],'OG personeel'!B:B)","v":7119.38},{"$f":"SUMIF('ZG personeel'!$F:$F,'Samenvatting functiegroepen'!$B:$B,'ZG personeel'!O:O)+SUMIF('OG personeel'!$I:$I,SamenvattingFunctiegroepen[[#This Row],[Barema]],'OG personeel'!N:N)","v":10.925000000000001},{"$f":"SUMIF('ZG personeel'!$F:$F,'Samenvatting functiegroepen'!$B:$B,'ZG personeel'!P:P)+SUMIF('OG personeel'!$I:$I,SamenvattingFunctiegroepen[[#This Row],[Barema]],'OG personeel'!N:N)","v":9.8325000000000014},651.6594965675057,724.06610729722854]
["Begeleidend en verzorgend personeel klasse 2B ",{"$f":"VLOOKUP(A16,Personeelsbaremas!$A$2:$B$29,2,)","v":"barema 15"},{"$f":"SUMIF('ZG personeel'!$F:$F,SamenvattingFunctiegroepen[[#This Row],[Barema]],'ZG personeel'!B:B)+SUMIF('OG personeel'!$I:$I,SamenvattingFunctiegroepen[[#This Row],[Barema]],'OG personeel'!B:B)","v":75766.39},{"$f":"SUMIF('ZG personeel'!$F:$F,'Samenvatting functiegroepen'!$B:$B,'ZG personeel'!O:O)+SUMIF('OG personeel'!$I:$I,SamenvattingFunctiegroepen[[#This Row],[Barema]],'OG personeel'!N:N)","v":130.54},{"$f":"SUMIF('ZG personeel'!$F:$F,'Samenvatting functiegroepen'!$B:$B,'ZG personeel'!P:P)+SUMIF('OG personeel'!$I:$I,SamenvattingFunctiegroepen[[#This Row],[Barema]],'OG personeel'!N:N)","v":110.95899999999999},580.40746131453966,682.83230742887019]
["Begeleidend en verzorgend personeel klasse 2A",{"$f":"VLOOKUP(A17,Personeelsbaremas!$A$2:$B$29,2,)","v":"barema 16"},{"$f":"SUMIF('ZG personeel'!$F:$F,SamenvattingFunctiegroepen[[#This Row],[Barema]],'ZG personeel'!B:B)+SUMIF('OG personeel'!$I:$I,SamenvattingFunctiegroepen[[#This Row],[Barema]],'OG personeel'!B:B)","v":4086958.29},{"$f":"SUMIF('ZG personeel'!$F:$F,'Samenvatting functiegroepen'!$B:$B,'ZG personeel'!O:O)+SUMIF('OG personeel'!$I:$I,SamenvattingFunctiegroepen[[#This Row],[Barema]],'OG personeel'!N:N)","v":4155.4400000000005},{"$f":"SUMIF('ZG personeel'!$F:$F,'Samenvatting functiegroepen'!$B:$B,'ZG personeel'!P:P)+SUMIF('OG personeel'!$I:$I,SamenvattingFunctiegroepen[[#This Row],[Barema]],'OG personeel'!N:N)","v":3561.3022499999997},983.51998584987382,1147.6021980442688]
["Opvoedend personeel klasse 1",{"$f":"VLOOKUP(A18,Personeelsbaremas!$A$2:$B$29,2,)","v":"barema 17"},{"$f":"SUMIF('ZG personeel'!$F:$F,SamenvattingFunctiegroepen[[#This Row],[Barema]],'ZG personeel'!B:B)+SUMIF('OG personeel'!$I:$I,SamenvattingFunctiegroepen[[#This Row],[Barema]],'OG personeel'!B:B)","v":703085.49},{"$f":"SUMIF('ZG personeel'!$F:$F,'Samenvatting functiegroepen'!$B:$B,'ZG personeel'!O:O)+SUMIF('OG personeel'!$I:$I,SamenvattingFunctiegroepen[[#This Row],[Barema]],'OG personeel'!N:N)","v":849.16000000000008},{"$f":"SUMIF('ZG personeel'!$F:$F,'Samenvatting functiegroepen'!$B:$B,'ZG personeel'!P:P)+SUMIF('OG personeel'!$I:$I,SamenvattingFunctiegroepen[[#This Row],[Barema]],'OG personeel'!N:N)","v":752.70650000000001},827.97763672335009,934.07654909317239]
["Hoofdopvoeder",{"$f":"VLOOKUP(A19,Personeelsbaremas!$A$2:$B$29,2,)","v":"barema 18"},{"$f":"SUMIF('ZG personeel'!$F:$F,SamenvattingFunctiegroepen[[#This Row],[Barema]],'ZG personeel'!B:B)+SUMIF('OG personeel'!$I:$I,SamenvattingFunctiegroepen[[#This Row],[Barema]],'OG personeel'!B:B)","v":742109.80999999994},{"$f":"SUMIF('ZG personeel'!$F:$F,'Samenvatting functiegroepen'!$B:$B,'ZG personeel'!O:O)+SUMIF('OG personeel'!$I:$I,SamenvattingFunctiegroepen[[#This Row],[Barema]],'OG personeel'!N:N)","v":1094.1500000000001},{"$f":"SUMIF('ZG personeel'!$F:$F,'Samenvatting functiegroepen'!$B:$B,'ZG personeel'!P:P)+SUMIF('OG personeel'!$I:$I,SamenvattingFunctiegroepen[[#This Row],[Barema]],'OG personeel'!N:N)","v":1032.53},678.25235114015436,718.72953812480023]
["Opvoeder-groepchef",{"$f":"VLOOKUP(A20,Personeelsbaremas!$A$2:$B$29,2,)","v":"barema 19"},{"$f":"SUMIF('ZG personeel'!$F:$F,SamenvattingFunctiegroepen[[#This Row],[Barema]],'ZG personeel'!B:B)+SUMIF('OG personeel'!$I:$I,SamenvattingFunctiegroepen[[#This Row],[Barema]],'OG personeel'!B:B)","v":284682.23},{"$f":"SUMIF('ZG personeel'!$F:$F,'Samenvatting functiegroepen'!$B:$B,'ZG personeel'!O:O)+SUMIF('OG personeel'!$I:$I,SamenvattingFunctiegroepen[[#This Row],[Barema]],'OG personeel'!N:N)","v":391.3},{"$f":"SUMIF('ZG personeel'!$F:$F,'Samenvatting functiegroepen'!$B:$B,'ZG personeel'!P:P)+SUMIF('OG personeel'!$I:$I,SamenvattingFunctiegroepen[[#This Row],[Barema]],'OG personeel'!N:N)","v":391.3},727.52933810375669,727.52933810375669]
["Sociaal paramedisch en therapeutisch personeel",{"$f":"VLOOKUP(A21,Personeelsbaremas!$A$2:$B$29,2,)","v":"barema 20"},{"$f":"SUMIF('ZG personeel'!$F:$F,SamenvattingFunctiegroepen[[#This Row],[Barema]],'ZG personeel'!B:B)+SUMIF('OG personeel'!$I:$I,SamenvattingFunctiegroepen[[#This Row],[Barema]],'OG personeel'!B:B)","v":582322.71},{"$f":"SUMIF('ZG personeel'!$F:$F,'Samenvatting functiegroepen'!$B:$B,'ZG personeel'!O:O)+SUMIF('OG personeel'!$I:$I,SamenvattingFunctiegroepen[[#This Row],[Barema]],'OG personeel'!N:N)","v":656.75000000000011},{"$f":"SUMIF('ZG personeel'!$F:$F,'Samenvatting functiegroepen'!$B:$B,'ZG personeel'!P:P)+SUMIF('OG personeel'!$I:$I,SamenvattingFunctiegroepen[[#This Row],[Barema]],'OG personeel'!N:N)","v":597.60699999999997},886.67333079558409,974.42417843164492]
["Licentiaten en tandarts",{"$f":"VLOOKUP(A22,Personeelsbaremas!$A$2:$B$29,2,)","v":"barema 21"},{"$f":"SUMIF('ZG personeel'!$F:$F,SamenvattingFunctiegroepen[[#This Row],[Barema]],'ZG personeel'!B:B)+SUMIF('OG personeel'!$I:$I,SamenvattingFunctiegroepen[[#This Row],[Barema]],'OG personeel'!B:B)","v":225203.84000000003},{"$f":"SUMIF('ZG personeel'!$F:$F,'Samenvatting functiegroepen'!$B:$B,'ZG personeel'!O:O)+SUMIF('OG personeel'!$I:$I,SamenvattingFunctiegroepen[[#This Row],[Barema]],'OG personeel'!N:N)","v":310.5},{"$f":"SUMIF('ZG personeel'!$F:$F,'Samenvatting functiegroepen'!$B:$B,'ZG personeel'!P:P)+SUMIF('OG personeel'!$I:$I,SamenvattingFunctiegroepen[[#This Row],[Barema]],'OG personeel'!N:N)","v":263.92500000000001},725.29417069243163,853.28725963815486]
["Onderdirecteur",{"$f":"VLOOKUP(A23,Personeelsbaremas!$A$2:$B$29,2,)","v":"barema 22"},{"$f":"SUMIF('ZG personeel'!$F:$F,SamenvattingFunctiegroepen[[#This Row],[Barema]],'ZG personeel'!B:B)+SUMIF('OG personeel'!$I:$I,SamenvattingFunctiegroepen[[#This Row],[Barema]],'OG personeel'!B:B)","v":171801.47},{"$f":"SUMIF('ZG personeel'!$F:$F,'Samenvatting functiegroepen'!$B:$B,'ZG personeel'!O:O)+SUMIF('OG personeel'!$I:$I,SamenvattingFunctiegroepen[[#This Row],[Barema]],'OG personeel'!N:N)","v":177.3},{"$f":"SUMIF('ZG personeel'!$F:$F,'Samenvatting functiegroepen'!$B:$B,'ZG personeel'!P:P)+SUMIF('OG personeel'!$I:$I,SamenvattingFunctiegroepen[[#This Row],[Barema]],'OG personeel'!N:N)","v":177.3},968.98742244782852,968.98742244782852]
["Directeur 30-59 bedden",{"$f":"VLOOKUP(A24,Personeelsbaremas!$A$2:$B$29,2,)","v":"barema 23"},{"$f":"SUMIF('ZG personeel'!$F:$F,SamenvattingFunctiegroepen[[#This Row],[Barema]],'ZG personeel'!B:B)+SUMIF('OG personeel'!$I:$I,SamenvattingFunctiegroepen[[#This Row],[Barema]],'OG personeel'!B:B)","v":0},{"$f":"SUMIF('ZG personeel'!$F:$F,'Samenvatting functiegroepen'!$B:$B,'ZG personeel'!O:O)+SUMIF('OG personeel'!$I:$I,SamenvattingFunctiegroepen[[#This Row],[Barema]],'OG personeel'!N:N)","v":0},{"$f":"SUMIF('ZG personeel'!$F:$F,'Samenvatting functiegroepen'!$B:$B,'ZG personeel'!P:P)+SUMIF('OG personeel'!$I:$I,SamenvattingFunctiegroepen[[#This Row],[Barema]],'OG personeel'!N:N)","v":0},0,0]
["Directeur 60-89 bedden",{"$f":"VLOOKUP(A25,Personeelsbaremas!$A$2:$B$29,2,)","v":"barema 24"},{"$f":"SUMIF('ZG personeel'!$F:$F,SamenvattingFunctiegroepen[[#This Row],[Barema]],'ZG personeel'!B:B)+SUMIF('OG personeel'!$I:$I,SamenvattingFunctiegroepen[[#This Row],[Barema]],'OG personeel'!B:B)","v":0},{"$f":"SUMIF('ZG personeel'!$F:$F,'Samenvatting functiegroepen'!$B:$B,'ZG personeel'!O:O)+SUMIF('OG personeel'!$I:$I,SamenvattingFunctiegroepen[[#This Row],[Barema]],'OG personeel'!N:N)","v":0},{"$f":"SUMIF('ZG personeel'!$F:$F,'Samenvatting functiegroepen'!$B:$B,'ZG personeel'!P:P)+SUMIF('OG personeel'!$I:$I,SamenvattingFunctiegroepen[[#This Row],[Barema]],'OG personeel'!N:N)","v":0},0,0]
["Directeur + 90 bedden",{"$f":"VLOOKUP(A26,Personeelsbaremas!$A$2:$B$29,2,)","v":"barema 25"},{"$f":"SUMIF('ZG personeel'!$F:$F,SamenvattingFunctiegroepen[[#This Row],[Barema]],'ZG personeel'!B:B)+SUMIF('OG personeel'!$I:$I,SamenvattingFunctiegroepen[[#This Row],[Barema]],'OG personeel'!B:B)","v":119171.5},{"$f":"SUMIF('ZG personeel'!$F:$F,'Samenvatting functiegroepen'!$B:$B,'ZG personeel'!O:O)+SUMIF('OG personeel'!$I:$I,SamenvattingFunctiegroepen[[#This Row],[Barema]],'OG personeel'!N:N)","v":100},{"$f":"SUMIF('ZG personeel'!$F:$F,'Samenvatting functiegroepen'!$B:$B,'ZG personeel'!P:P)+SUMIF('OG personeel'!$I:$I,SamenvattingFunctiegroepen[[#This Row],[Barema]],'OG personeel'!N:N)","v":100},1191.7149999999999,1191.7149999999999]
["Geneesheer omnipracticus",{"$f":"VLOOKUP(A27,Personeelsbaremas!$A$2:$B$29,2,)","v":"barema 26"},{"$f":"SUMIF('ZG personeel'!$F:$F,SamenvattingFunctiegroepen[[#This Row],[Barema]],'ZG personeel'!B:B)+SUMIF('OG personeel'!$I:$I,SamenvattingFunctiegroepen[[#This Row],[Barema]],'OG personeel'!B:B)","v":0},{"$f":"SUMIF('ZG personeel'!$F:$F,'Samenvatting functiegroepen'!$B:$B,'ZG personeel'!O:O)+SUMIF('OG personeel'!$I:$I,SamenvattingFunctiegroepen[[#This Row],[Barema]],'OG personeel'!N:N)","v":0},{"$f":"SUMIF('ZG personeel'!$F:$F,'Samenvatting functiegroepen'!$B:$B,'ZG personeel'!P:P)+SUMIF('OG personeel'!$I:$I,SamenvattingFunctiegroepen[[#This Row],[Barema]],'OG personeel'!N:N)","v":0},0,0]
["Geneesheer specialist",{"$f":"VLOOKUP(A28,Personeelsbaremas!$A$2:$B$29,2,)","v":"barema 27"},{"$f":"SUMIF('ZG personeel'!$F:$F,SamenvattingFunctiegroepen[[#This Row],[Barema]],'ZG personeel'!B:B)+SUMIF('OG personeel'!$I:$I,SamenvattingFunctiegroepen[[#This Row],[Barema]],'OG personeel'!B:B)","v":19270.82},{"$f":"SUMIF('ZG personeel'!$F:$F,'Samenvatting functiegroepen'!$B:$B,'ZG personeel'!O:O)+SUMIF('OG personeel'!$I:$I,SamenvattingFunctiegroepen[[#This Row],[Barema]],'OG personeel'!N:N)","v":24.395000000000003},{"$f":"SUMIF('ZG personeel'!$F:$F,'Samenvatting functiegroepen'!$B:$B,'ZG personeel'!P:P)+SUMIF('OG personeel'!$I:$I,SamenvattingFunctiegroepen[[#This Row],[Barema]],'OG personeel'!N:N)","v":21.955500000000004},789.94957983193262,877.721755368814]
["ADL-assistent",{"$f":"VLOOKUP(A29,Personeelsbaremas!$A$2:$B$29,2,)","v":"barema 28"},{"$f":"SUMIF('ZG personeel'!$F:$F,SamenvattingFunctiegroepen[[#This Row],[Barema]],'ZG personeel'!B:B)+SUMIF('OG personeel'!$I:$I,SamenvattingFunctiegroepen[[#This Row],[Barema]],'OG personeel'!B:B)","v":0},{"$f":"SUMIF('ZG personeel'!$F:$F,'Samenvatting functiegroepen'!$B:$B,'ZG personeel'!O:O)+SUMIF('OG personeel'!$I:$I,SamenvattingFunctiegroepen[[#This Row],[Barema]],'OG personeel'!N:N)","v":0},{"$f":"SUMIF('ZG personeel'!$F:$F,'Samenvatting functiegroepen'!$B:$B,'ZG personeel'!P:P)+SUMIF('OG personeel'!$I:$I,SamenvattingFunctiegroepen[[#This Row],[Barema]],'OG personeel'!N:N)","v":0},0,0]
["Totaal",null,{"$f":"SUBTOTAL(109,SamenvattingFunctiegroepen[Loonkost])","v":8427408.4900000002},{"$f":"SUBTOTAL(109,SamenvattingFunctiegroepen[Maximale punten])","v":9708.65},{"$f":"SUBTOTAL(109,SamenvattingFunctiegroepen[Reële bezette punten])","v":8738.6652499999982},{"$f":"IFERROR(SamenvattingFunctiegroepen[[#Totals],[Loonkost]]/SamenvattingFunctiegroepen[[#Totals],[Maximale punten]],0)","v":868.03093014991794},{"$f":"IFERROR(SamenvattingFunctiegroepen[[#Totals],[Loonkost]]/SamenvattingFunctiegroepen[[#Totals],[Reële bezette punten]],0)","v":964.38165885802778}]

{"sheet":"ZG personeelskost","index":11,"n_rows":10,"n_cols":7,"rows_kept":10,"cut":false,"hidden":false,"merged":[]}
["Dienst","Punten","Besteedbare uren","Reële bezette uren","Punten/uur","Voucherkost per uur","Cashkost per uur"]
[{"$f":"Keuzelijsten!A3","v":"Leefgroepbegeleider"},{"$f":"SUMIF('ZG personeel'!D:D,KOZGP[[#This Row],[Dienst]],'ZG personeel'!O:O)","v":5257.15},{"$f":"SUMIF('ZG personeel'!D:D,KOZGP[[#This Row],[Dienst]],'ZG personeel'!L:L)","v":156486.204},{"$f":"SUMIF('ZG personeel'!$D:$D,KOZGP[[#This Row],[Dienst]],'ZG personeel'!N:N)","v":136296.13139999998},{"$f":"IF(ISERROR(KOZGP[[#This Row],[Punten]]/KOZGP[[#This Row],[Reële bezette uren]]),0,KOZGP[[#This Row],[Punten]]/KOZGP[[#This Row],[Reële bezette uren]])","v":3.8571527643520481E-2},{"$f":"IF(KOZGP[[#This Row],[Punten/uur]]=\"\",0,(KOZGP[[#This Row],[Punten/uur]]*WPO))","v":33.481279017708353},{"$f":"IFERROR((SUMIF('ZG personeel'!D:D,KOZGP[[#This Row],[Dienst]],'ZG personeel'!B:B)+SUMIF(NVAPH[Dienst],KOZGP[[#This Row],[Dienst]],NVAPH[Loonkost]))/(KOZGP[[#This Row],[Reële bezette uren]]+SUMIF(NVAPH[Dienst],KOZGP[[#This Row],[Dienst]],NVAPH[Reële bezette uren (enkel voor zorggebonden)])),0)","v":32.321980808126796}]
[{"$f":"Keuzelijsten!A4","v":"Dagbestedingsbegeleider"},{"$f":"SUMIF('ZG personeel'!D:D,KOZGP[[#This Row],[Dienst]],'ZG personeel'!O:O)","v":644.01},{"$f":"SUMIF('ZG personeel'!D:D,KOZGP[[#This Row],[Dienst]],'ZG personeel'!L:L)","v":18566.495999999999},{"$f":"SUMIF('ZG personeel'!$D:$D,KOZGP[[#This Row],[Dienst]],'ZG personeel'!N:N)","v":16632.486000000001},{"$f":"IF(ISERROR(KOZGP[[#This Row],[Punten]]/KOZGP[[#This Row],[Reële bezette uren]]),0,KOZGP[[#This Row],[Punten]]/KOZGP[[#This Row],[Reële bezette uren]])","v":3.8720008542318926E-2},{"$f":"IF(KOZGP[[#This Row],[Punten/uur]]=\"\",0,(KOZGP[[#This Row],[Punten/uur]]*WPO))","v":33.610165030401866},{"$f":"IFERROR((SUMIF('ZG personeel'!D:D,KOZGP[[#This Row],[Dienst]],'ZG personeel'!B:B)+SUMIF(NVAPH[Dienst],KOZGP[[#This Row],[Dienst]],NVAPH[Loonkost]))/(KOZGP[[#This Row],[Reële bezette uren]]+SUMIF(NVAPH[Dienst],KOZGP[[#This Row],[Dienst]],NVAPH[Reële bezette uren (enkel voor zorggebonden)])),0)","v":33.908744609795548}]
[{"$f":"Keuzelijsten!A5","v":"Kinesist"},{"$f":"SUMIF('ZG personeel'!D:D,KOZGP[[#This Row],[Dienst]],'ZG personeel'!O:O)","v":349.28000000000003},{"$f":"SUMIF('ZG personeel'!D:D,KOZGP[[#This Row],[Dienst]],'ZG personeel'!L:L)","v":9322.92},{"$f":"SUMIF('ZG personeel'!$D:$D,KOZGP[[#This Row],[Dienst]],'ZG personeel'!N:N)","v":7924.4819999999991},{"$f":"IF(ISERROR(KOZGP[[#This Row],[Punten]]/KOZGP[[#This Row],[Reële bezette uren]]),0,KOZGP[[#This Row],[Punten]]/KOZGP[[#This Row],[Reële bezette uren]])","v":4.4076067053972746E-2},{"$f":"IF(KOZGP[[#This Row],[Punten/uur]]=\"\",0,(KOZGP[[#This Row],[Punten/uur]]*WPO))","v":38.259389482210118},{"$f":"IFERROR((SUMIF('ZG personeel'!D:D,KOZGP[[#This Row],[Dienst]],'ZG personeel'!B:B)+SUMIF(NVAPH[Dienst],KOZGP[[#This Row],[Dienst]],NVAPH[Loonkost]))/(KOZGP[[#This Row],[Reële bezette uren]]+SUMIF(NVAPH[Dienst],KOZGP[[#This Row],[Dienst]],NVAPH[Reële bezette uren (enkel voor zorggebonden)])),0)","v":41.514560825553019}]
[{"$f":"Keuzelijsten!A6","v":"Logopedist"},{"$f":"SUMIF('ZG personeel'!D:D,KOZGP[[#This Row],[Dienst]],'ZG personeel'!O:O)","v":71},{"$f":"SUMIF('ZG personeel'!D:D,KOZGP[[#This Row],[Dienst]],'ZG personeel'!L:L)","v":1983.6},{"$f":"SUMIF('ZG personeel'!$D:$D,KOZGP[[#This Row],[Dienst]],'ZG personeel'!N:N)","v":1785.24},{"$f":"IF(ISERROR(KOZGP[[#This Row],[Punten]]/KOZGP[[#This Row],[Reële bezette uren]]),0,KOZGP[[#This Row],[Punten]]/KOZGP[[#This Row],[Reële bezette uren]])","v":3.977056306154915E-2},{"$f":"IF(KOZGP[[#This Row],[Punten/uur]]=\"\",0,(KOZGP[[#This Row],[Punten/uur]]*WPO))","v":34.522078846902474},{"$f":"IFERROR((SUMIF('ZG personeel'!D:D,KOZGP[[#This Row],[Dienst]],'ZG personeel'!B:B)+SUMIF(NVAPH[Dienst],KOZGP[[#This Row],[Dienst]],NVAPH[Loonkost]))/(KOZGP[[#This Row],[Reële bezette uren]]+SUMIF(NVAPH[Dienst],KOZGP[[#This Row],[Dienst]],NVAPH[Reële bezette uren (enkel voor zorggebonden)])),0)","v":26.8104456543658}]
[{"$f":"Keuzelijsten!A7","v":"Diëtist"},{"$f":"SUMIF('ZG personeel'!D:D,KOZGP[[#This Row],[Dienst]],'ZG personeel'!O:O)","v":56.800000000000004},{"$f":"SUMIF('ZG personeel'!D:D,KOZGP[[#This Row],[Dienst]],'ZG personeel'!L:L)","v":1586.88},{"$f":"SUMIF('ZG personeel'!$D:$D,KOZGP[[#This Row],[Dienst]],'ZG personeel'!N:N)","v":1507.5360000000001},{"$f":"IF(ISERROR(KOZGP[[#This Row],[Punten]]/KOZGP[[#This Row],[Reële bezette uren]]),0,KOZGP[[#This Row],[Punten]]/KOZGP[[#This Row],[Reële bezette uren]])","v":3.7677375531993927E-2},{"$f":"IF(KOZGP[[#This Row],[Punten/uur]]=\"\",0,(KOZGP[[#This Row],[Punten/uur]]*WPO))","v":32.705127328644444},{"$f":"IFERROR((SUMIF('ZG personeel'!D:D,KOZGP[[#This Row],[Dienst]],'ZG personeel'!B:B)+SUMIF(NVAPH[Dienst],KOZGP[[#This Row],[Dienst]],NVAPH[Loonkost]))/(KOZGP[[#This Row],[Reële bezette uren]]+SUMIF(NVAPH[Dienst],KOZGP[[#This Row],[Dienst]],NVAPH[Reële bezette uren (enkel voor zorggebonden)])),0)","v":28.612172445633135}]
[{"$f":"Keuzelijsten!A8","v":"Verpleegkundigen"},{"$f":"SUMIF('ZG personeel'!D:D,KOZGP[[#This Row],[Dienst]],'ZG personeel'!O:O)","v":592.94999999999993},{"$f":"SUMIF('ZG personeel'!D:D,KOZGP[[#This Row],[Dienst]],'ZG personeel'!L:L)","v":17554.859999999997},{"$f":"SUMIF('ZG personeel'!$D:$D,KOZGP[[#This Row],[Dienst]],'ZG personeel'!N:N)","v":14921.630999999998},{"$f":"IF(ISERROR(KOZGP[[#This Row],[Punten]]/KOZGP[[#This Row],[Reële bezette uren]]),0,KOZGP[[#This Row],[Punten]]/KOZGP[[#This Row],[Reële bezette uren]])","v":3.9737613133577689E-2},{"$f":"IF(KOZGP[[#This Row],[Punten/uur]]=\"\",0,(KOZGP[[#This Row],[Punten/uur]]*WPO))","v":34.493477290277035},{"$f":"IFERROR((SUMIF('ZG personeel'!D:D,KOZGP[[#This Row],[Dienst]],'ZG personeel'!B:B)+SUMIF(NVAPH[Dienst],KOZGP[[#This Row],[Dienst]],NVAPH[Loonkost]))/(KOZGP[[#This Row],[Reële bezette uren]]+SUMIF(NVAPH[Dienst],KOZGP[[#This Row],[Dienst]],NVAPH[Reële bezette uren (enkel voor zorggebonden)])),0)","v":26.441882928213417}]
[{"$f":"Keuzelijsten!A9","v":"Dokters"},{"$f":"SUMIF('ZG personeel'!D:D,KOZGP[[#This Row],[Dienst]],'ZG personeel'!O:O)","v":24.395000000000003},{"$f":"SUMIF('ZG personeel'!D:D,KOZGP[[#This Row],[Dienst]],'ZG personeel'!L:L)","v":212.16000000000003},{"$f":"SUMIF('ZG personeel'!$D:$D,KOZGP[[#This Row],[Dienst]],'ZG personeel'!N:N)","v":190.94400000000002},{"$f":"IF(ISERROR(KOZGP[[#This Row],[Punten]]/KOZGP[[#This Row],[Reële bezette uren]]),0,KOZGP[[#This Row],[Punten]]/KOZGP[[#This Row],[Reële bezette uren]])","v":0.12775997150997151},{"$f":"IF(KOZGP[[#This Row],[Punten/uur]]=\"\",0,(KOZGP[[#This Row],[Punten/uur]]*WPO))","v":110.89960690572758},{"$f":"IFERROR((SUMIF('ZG personeel'!D:D,KOZGP[[#This Row],[Dienst]],'ZG personeel'!B:B)+SUMIF(NVAPH[Dienst],KOZGP[[#This Row],[Dienst]],NVAPH[Loonkost]))/(KOZGP[[#This Row],[Reële bezette uren]]+SUMIF(NVAPH[Dienst],KOZGP[[#This Row],[Dienst]],NVAPH[Reële bezette uren (enkel voor zorggebonden)])),0)","v":100.92393581364169}]
[{"$f":"Keuzelijsten!A10","v":"Orthoagoog"},{"$f":"SUMIF('ZG personeel'!D:D,KOZGP[[#This Row],[Dienst]],'ZG personeel'!O:O)","v":236.7},{"$f":"SUMIF('ZG personeel'!D:D,KOZGP[[#This Row],[Dienst]],'ZG personeel'!L:L)","v":5216.8679999999995},{"$f":"SUMIF('ZG personeel'!$D:$D,KOZGP[[#This Row],[Dienst]],'ZG personeel'!N:N)","v":4434.3377999999993},{"$f":"IF(ISERROR(KOZGP[[#This Row],[Punten]]/KOZGP[[#This Row],[Reële bezette uren]]),0,KOZGP[[#This Row],[Punten]]/KOZGP[[#This Row],[Reële bezette uren]])","v":5.3378883313761082E-2},{"$f":"IF(KOZGP[[#This Row],[Punten/uur]]=\"\",0,(KOZGP[[#This Row],[Punten/uur]]*WPO))","v":46.334521733207964},{"$f":"IFERROR((SUMIF('ZG personeel'!D:D,KOZGP[[#This Row],[Dienst]],'ZG personeel'!B:B)+SUMIF(NVAPH[Dienst],KOZGP[[#This Row],[Dienst]],NVAPH[Loonkost]))/(KOZGP[[#This Row],[Reële bezette uren]]+SUMIF(NVAPH[Dienst],KOZGP[[#This Row],[Dienst]],NVAPH[Reële bezette uren (enkel voor zorggebonden)])),0)","v":37.124007557565875}]
[{"$f":"Keuzelijsten!A11","v":"Nachtdienst"},{"$f":"SUMIF('ZG personeel'!D:D,KOZGP[[#This Row],[Dienst]],'ZG personeel'!O:O)","v":496.67500000000001},{"$f":"SUMIF('ZG personeel'!D:D,KOZGP[[#This Row],[Dienst]],'ZG personeel'!L:L)","v":14976.18},{"$f":"SUMIF('ZG personeel'!$D:$D,KOZGP[[#This Row],[Dienst]],'ZG personeel'!N:N)","v":13404.177},{"$f":"IF(ISERROR(KOZGP[[#This Row],[Punten]]/KOZGP[[#This Row],[Reële bezette uren]]),0,KOZGP[[#This Row],[Punten]]/KOZGP[[#This Row],[Reële bezette uren]])","v":3.7053748245789359E-2},{"$f":"IF(KOZGP[[#This Row],[Punten/uur]]=\"\",0,(KOZGP[[#This Row],[Punten/uur]]*WPO))","v":32.163799555333426},{"$f":"IFERROR((SUMIF('ZG personeel'!D:D,KOZGP[[#This Row],[Dienst]],'ZG personeel'!B:B)+SUMIF(NVAPH[Dienst],KOZGP[[#This Row],[Dienst]],NVAPH[Loonkost]))/(KOZGP[[#This Row],[Reële bezette uren]]+SUMIF(NVAPH[Dienst],KOZGP[[#This Row],[Dienst]],NVAPH[Reële bezette uren (enkel voor zorggebonden)])),0)","v":35.336496974040259}]

{"sheet":"ZG werking","index":12,"n_rows":38,"n_cols":6,"rows_kept":38,"cut":false,"hidden":false,"merged":[]}
["Rubriek","Werkingskost (zonder vastgoed)","Vastgoedkosten","Verdeelsleutel","Totaal aantal per jaar","Kost per eenheid"]
["Beddengoed",3505.24,{"$f":"IF(ISERROR(VLOOKUP(KOZGW[[#This Row],[Rubriek]],VastgoedVerdelingZG[],3,))=TRUE,0,VLOOKUP(KOZGW[[#This Row],[Rubriek]],VastgoedVerdelingZG[],3,))","v":0},"Aanwezigheidsdagen",42930,{"$f":"IF(ISERROR((KOZGW[[#This Row],[Werkingskost (zonder vastgoed)]]+KOZGW[[#This Row],[Vastgoedkosten]])/KOZGW[[#This Row],[Totaal aantal per jaar]])=TRUE,0,(KOZGW[[#This Row],[Werkingskost (zonder vastgoed)]]+KOZGW[[#This Row],[Vastgoedkosten]])/KOZGW[[#This Row],[Totaal aantal per jaar]])","v":8.1650128115536916E-2}]
["Linnen",1888.63,{"$f":"IF(ISERROR(VLOOKUP(KOZGW[[#This Row],[Rubriek]],VastgoedVerdelingZG[],3,))=TRUE,0,VLOOKUP(KOZGW[[#This Row],[Rubriek]],VastgoedVerdelingZG[],3,))","v":0},"Aanwezigheidsdagen",42930,{"$f":"IF(ISERROR((KOZGW[[#This Row],[Werkingskost (zonder vastgoed)]]+KOZGW[[#This Row],[Vastgoedkosten]])/KOZGW[[#This Row],[Totaal aantal per jaar]])=TRUE,0,(KOZGW[[#This Row],[Werkingskost (zonder vastgoed)]]+KOZGW[[#This Row],[Vastgoedkosten]])/KOZGW[[#This Row],[Totaal aantal per jaar]])","v":4.3993244817144193E-2}]
["Kleding",4425.1099999999997,{"$f":"IF(ISERROR(VLOOKUP(KOZGW[[#This Row],[Rubriek]],VastgoedVerdelingZG[],3,))=TRUE,0,VLOOKUP(KOZGW[[#This Row],[Rubriek]],VastgoedVerdelingZG[],3,))","v":0},"Aanwezigheidsdagen",42930,{"$f":"IF(ISERROR((KOZGW[[#This Row],[Werkingskost (zonder vastgoed)]]+KOZGW[[#This Row],[Vastgoedkosten]])/KOZGW[[#This Row],[Totaal aantal per jaar]])=TRUE,0,(KOZGW[[#This Row],[Werkingskost (zonder vastgoed)]]+KOZGW[[#This Row],[Vastgoedkosten]])/KOZGW[[#This Row],[Totaal aantal per jaar]])","v":0.10307733519683204}]
["Diverse kosten textiel",2343.71,{"$f":"IF(ISERROR(VLOOKUP(KOZGW[[#This Row],[Rubriek]],VastgoedVerdelingZG[],3,))=TRUE,0,VLOOKUP(KOZGW[[#This Row],[Rubriek]],VastgoedVerdelingZG[],3,))","v":0},"Aanwezigheidsdagen",42930,{"$f":"IF(ISERROR((KOZGW[[#This Row],[Werkingskost (zonder vastgoed)]]+KOZGW[[#This Row],[Vastgoedkosten]])/KOZGW[[#This Row],[Totaal aantal per jaar]])=TRUE,0,(KOZGW[[#This Row],[Werkingskost (zonder vastgoed)]]+KOZGW[[#This Row],[Vastgoedkosten]])/KOZGW[[#This Row],[Totaal aantal per jaar]])","v":5.4593757279291874E-2}]
["Recup textiel",-2384.5100000000002,{"$f":"IF(ISERROR(VLOOKUP(KOZGW[[#This Row],[Rubriek]],VastgoedVerdelingZG[],3,))=TRUE,0,VLOOKUP(KOZGW[[#This Row],[Rubriek]],VastgoedVerdelingZG[],3,))","v":0},"Aanwezigheidsdagen",42930,{"$f":"IF(ISERROR((KOZGW[[#This Row],[Werkingskost (zonder vastgoed)]]+KOZGW[[#This Row],[Vastgoedkosten]])/KOZGW[[#This Row],[Totaal aantal per jaar]])=TRUE,0,(KOZGW[[#This Row],[Werkingskost (zonder vastgoed)]]+KOZGW[[#This Row],[Vastgoedkosten]])/KOZGW[[#This Row],[Totaal aantal per jaar]])","v":-5.554414162590264E-2}]
["Toiletartikels",12378.26,{"$f":"IF(ISERROR(VLOOKUP(KOZGW[[#This Row],[Rubriek]],VastgoedVerdelingZG[],3,))=TRUE,0,VLOOKUP(KOZGW[[#This Row],[Rubriek]],VastgoedVerdelingZG[],3,))","v":0},"Aanwezigheidsdagen",42930,{"$f":"IF(ISERROR((KOZGW[[#This Row],[Werkingskost (zonder vastgoed)]]+KOZGW[[#This Row],[Vastgoedkosten]])/KOZGW[[#This Row],[Totaal aantal per jaar]])=TRUE,0,(KOZGW[[#This Row],[Werkingskost (zonder vastgoed)]]+KOZGW[[#This Row],[Vastgoedkosten]])/KOZGW[[#This Row],[Totaal aantal per jaar]])","v":0.28833589564407175}]
["Farmaceutische producten",79543.44,{"$f":"IF(ISERROR(VLOOKUP(KOZGW[[#This Row],[Rubriek]],VastgoedVerdelingZG[],3,))=TRUE,0,VLOOKUP(KOZGW[[#This Row],[Rubriek]],VastgoedVerdelingZG[],3,))","v":0},"Aanwezigheidsdagen",42930,{"$f":"IF(ISERROR((KOZGW[[#This Row],[Werkingskost (zonder vastgoed)]]+KOZGW[[#This Row],[Vastgoedkosten]])/KOZGW[[#This Row],[Totaal aantal per jaar]])=TRUE,0,(KOZGW[[#This Row],[Werkingskost (zonder vastgoed)]]+KOZGW[[#This Row],[Vastgoedkosten]])/KOZGW[[#This Row],[Totaal aantal per jaar]])","v":1.8528637316561845}]
["Rec farm.prod.",-90125.7,{"$f":"IF(ISERROR(VLOOKUP(KOZGW[[#This Row],[Rubriek]],VastgoedVerdelingZG[],3,))=TRUE,0,VLOOKUP(KOZGW[[#This Row],[Rubriek]],VastgoedVerdelingZG[],3,))","v":0},"Aanwezigheidsdagen",42930,{"$f":"IF(ISERROR((KOZGW[[#This Row],[Werkingskost (zonder vastgoed)]]+KOZGW[[#This Row],[Vastgoedkosten]])/KOZGW[[#This Row],[Totaal aantal per jaar]])=TRUE,0,(KOZGW[[#This Row],[Werkingskost (zonder vastgoed)]]+KOZGW[[#This Row],[Vastgoedkosten]])/KOZGW[[#This Row],[Totaal aantal per jaar]])","v":-2.0993640810621943}]
["Medische gassen",1744.4,{"$f":"IF(ISERROR(VLOOKUP(KOZGW[[#This Row],[Rubriek]],VastgoedVerdelingZG[],3,))=TRUE,0,VLOOKUP(KOZGW[[#This Row],[Rubriek]],VastgoedVerdelingZG[],3,))","v":0},"Aanwezigheidsdagen",42930,{"$f":"IF(ISERROR((KOZGW[[#This Row],[Werkingskost (zonder vastgoed)]]+KOZGW[[#This Row],[Vastgoedkosten]])/KOZGW[[#This Row],[Totaal aantal per jaar]])=TRUE,0,(KOZGW[[#This Row],[Werkingskost (zonder vastgoed)]]+KOZGW[[#This Row],[Vastgoedkosten]])/KOZGW[[#This Row],[Totaal aantal per jaar]])","v":4.0633589564407178E-2}]
["Farmaceutisch materiaal",9124.61,{"$f":"IF(ISERROR(VLOOKUP(KOZGW[[#This Row],[Rubriek]],VastgoedVerdelingZG[],3,))=TRUE,0,VLOOKUP(KOZGW[[#This Row],[Rubriek]],VastgoedVerdelingZG[],3,))","v":0},"Aanwezigheidsdagen",42930,{"$f":"IF(ISERROR((KOZGW[[#This Row],[Werkingskost (zonder vastgoed)]]+KOZGW[[#This Row],[Vastgoedkosten]])/KOZGW[[#This Row],[Totaal aantal per jaar]])=TRUE,0,(KOZGW[[#This Row],[Werkingskost (zonder vastgoed)]]+KOZGW[[#This Row],[Vastgoedkosten]])/KOZGW[[#This Row],[Totaal aantal per jaar]])","v":0.21254623806196135}]
["Fixatiemateriaal",114.47,{"$f":"IF(ISERROR(VLOOKUP(KOZGW[[#This Row],[Rubriek]],VastgoedVerdelingZG[],3,))=TRUE,0,VLOOKUP(KOZGW[[#This Row],[Rubriek]],VastgoedVerdelingZG[],3,))","v":0},"Aanwezigheidsdagen",42930,{"$f":"IF(ISERROR((KOZGW[[#This Row],[Werkingskost (zonder vastgoed)]]+KOZGW[[#This Row],[Vastgoedkosten]])/KOZGW[[#This Row],[Totaal aantal per jaar]])=TRUE,0,(KOZGW[[#This Row],[Werkingskost (zonder vastgoed)]]+KOZGW[[#This Row],[Vastgoedkosten]])/KOZGW[[#This Row],[Totaal aantal per jaar]])","v":2.6664337293268109E-3}]
["Paramedische kosten",{"$f":"847.37+312.72+461.94+90.17","v":1712.2000000000003},{"$f":"IF(ISERROR(VLOOKUP(KOZGW[[#This Row],[Rubriek]],VastgoedVerdelingZG[],3,))=TRUE,0,VLOOKUP(KOZGW[[#This Row],[Rubriek]],VastgoedVerdelingZG[],3,))","v":0},"Aanwezigheidsdagen",42930,{"$f":"IF(ISERROR((KOZGW[[#This Row],[Werkingskost (zonder vastgoed)]]+KOZGW[[#This Row],[Vastgoedkosten]])/KOZGW[[#This Row],[Totaal aantal per jaar]])=TRUE,0,(KOZGW[[#This Row],[Werkingskost (zonder vastgoed)]]+KOZGW[[#This Row],[Vastgoedkosten]])/KOZGW[[#This Row],[Totaal aantal per jaar]])","v":3.9883531330072219E-2}]
["Recup paramedische kosten",-92.07,{"$f":"IF(ISERROR(VLOOKUP(KOZGW[[#This Row],[Rubriek]],VastgoedVerdelingZG[],3,))=TRUE,0,VLOOKUP(KOZGW[[#This Row],[Rubriek]],VastgoedVerdelingZG[],3,))","v":0},"Aanwezigheidsdagen",42930,{"$f":"IF(ISERROR((KOZGW[[#This Row],[Werkingskost (zonder vastgoed)]]+KOZGW[[#This Row],[Vastgoedkosten]])/KOZGW[[#This Row],[Totaal aantal per jaar]])=TRUE,0,(KOZGW[[#This Row],[Werkingskost (zonder vastgoed)]]+KOZGW[[#This Row],[Vastgoedkosten]])/KOZGW[[#This Row],[Totaal aantal per jaar]])","v":-2.1446540880503142E-3}]
["Educatieve activiteiten+verplaatsingen",{"$f":"2939.68+50.19+822.56","v":3812.43},{"$f":"IF(ISERROR(VLOOKUP(KOZGW[[#This Row],[Rubriek]],VastgoedVerdelingZG[],3,))=TRUE,0,VLOOKUP(KOZGW[[#This Row],[Rubriek]],VastgoedVerdelingZG[],3,))","v":0},"Aanwezigheidsdagen",42930,{"$f":"IF(ISERROR((KOZGW[[#This Row],[Werkingskost (zonder vastgoed)]]+KOZGW[[#This Row],[Vastgoedkosten]])/KOZGW[[#This Row],[Totaal aantal per jaar]])=TRUE,0,(KOZGW[[#This Row],[Werkingskost (zonder vastgoed)]]+KOZGW[[#This Row],[Vastgoedkosten]])/KOZGW[[#This Row],[Totaal aantal per jaar]])","v":8.880573025856045E-2}]
["Recup educatieve act",-1582.9,{"$f":"IF(ISERROR(VLOOKUP(KOZGW[[#This Row],[Rubriek]],VastgoedVerdelingZG[],3,))=TRUE,0,VLOOKUP(KOZGW[[#This Row],[Rubriek]],VastgoedVerdelingZG[],3,))","v":0},"Aanwezigheidsdagen",42930,{"$f":"IF(ISERROR((KOZGW[[#This Row],[Werkingskost (zonder vastgoed)]]+KOZGW[[#This Row],[Vastgoedkosten]])/KOZGW[[#This Row],[Totaal aantal per jaar]])=TRUE,0,(KOZGW[[#This Row],[Werkingskost (zonder vastgoed)]]+KOZGW[[#This Row],[Vastgoedkosten]])/KOZGW[[#This Row],[Totaal aantal per jaar]])","v":-3.6871651525739575E-2}]
["Recup energie (uitstappen)",-8583.39,{"$f":"IF(ISERROR(VLOOKUP(KOZGW[[#This Row],[Rubriek]],VastgoedVerdelingZG[],3,))=TRUE,0,VLOOKUP(KOZGW[[#This Row],[Rubriek]],VastgoedVerdelingZG[],3,))","v":0},"Aanwezigheidsdagen",42930,{"$f":"IF(ISERROR((KOZGW[[#This Row],[Werkingskost (zonder vastgoed)]]+KOZGW[[#This Row],[Vastgoedkosten]])/KOZGW[[#This Row],[Totaal aantal per jaar]])=TRUE,0,(KOZGW[[#This Row],[Werkingskost (zonder vastgoed)]]+KOZGW[[#This Row],[Vastgoedkosten]])/KOZGW[[#This Row],[Totaal aantal per jaar]])","v":-0.19993920335429768}]
["Incontinentiemateriaal",91349.06,{"$f":"IF(ISERROR(VLOOKUP(KOZGW[[#This Row],[Rubriek]],VastgoedVerdelingZG[],3,))=TRUE,0,VLOOKUP(KOZGW[[#This Row],[Rubriek]],VastgoedVerdelingZG[],3,))","v":0},"Aanwezigheidsdagen",42930,{"$f":"IF(ISERROR((KOZGW[[#This Row],[Werkingskost (zonder vastgoed)]]+KOZGW[[#This Row],[Vastgoedkosten]])/KOZGW[[#This Row],[Totaal aantal per jaar]])=TRUE,0,(KOZGW[[#This Row],[Werkingskost (zonder vastgoed)]]+KOZGW[[#This Row],[Vastgoedkosten]])/KOZGW[[#This Row],[Totaal aantal per jaar]])","v":2.1278607034707662}]
["Recup incontinentiemateriaal",-68016.27,{"$f":"IF(ISERROR(VLOOKUP(KOZGW[[#This Row],[Rubriek]],VastgoedVerdelingZG[],3,))=TRUE,0,VLOOKUP(KOZGW[[#This Row],[Rubriek]],VastgoedVerdelingZG[],3,))","v":0},"Aanwezigheidsdagen",42930,{"$f":"IF(ISERROR((KOZGW[[#This Row],[Werkingskost (zonder vastgoed)]]+KOZGW[[#This Row],[Vastgoedkosten]])/KOZGW[[#This Row],[Totaal aantal per jaar]])=TRUE,0,(KOZGW[[#This Row],[Werkingskost (zonder vastgoed)]]+KOZGW[[#This Row],[Vastgoedkosten]])/KOZGW[[#This Row],[Totaal aantal per jaar]])","v":-1.5843529000698813}]
["Wegwerpmateriaal",9337.2999999999993,{"$f":"IF(ISERROR(VLOOKUP(KOZGW[[#This Row],[Rubriek]],VastgoedVerdelingZG[],3,))=TRUE,0,VLOOKUP(KOZGW[[#This Row],[Rubriek]],VastgoedVerdelingZG[],3,))","v":0},"Aanwezigheidsdagen",42930,{"$f":"IF(ISERROR((KOZGW[[#This Row],[Werkingskost (zonder vastgoed)]]+KOZGW[[#This Row],[Vastgoedkosten]])/KOZGW[[#This Row],[Totaal aantal per jaar]])=TRUE,0,(KOZGW[[#This Row],[Werkingskost (zonder vastgoed)]]+KOZGW[[#This Row],[Vastgoedkosten]])/KOZGW[[#This Row],[Totaal aantal per jaar]])","v":0.21750058234334962}]
["TV-kabel",4050.18,{"$f":"IF(ISERROR(VLOOKUP(KOZGW[[#This Row],[Rubriek]],VastgoedVerdelingZG[],3,))=TRUE,0,VLOOKUP(KOZGW[[#This Row],[Rubriek]],VastgoedVerdelingZG[],3,))","v":0},"Aanwezigheidsdagen",42930,{"$f":"IF(ISERROR((KOZGW[[#This Row],[Werkingskost (zonder vastgoed)]]+KOZGW[[#This Row],[Vastgoedkosten]])/KOZGW[[#This Row],[Totaal aantal per jaar]])=TRUE,0,(KOZGW[[#This Row],[Werkingskost (zonder vastgoed)]]+KOZGW[[#This Row],[Vastgoedkosten]])/KOZGW[[#This Row],[Totaal aantal per jaar]])","v":9.4343815513626833E-2}]
["Kampen",4417.75,{"$f":"IF(ISERROR(VLOOKUP(KOZGW[[#This Row],[Rubriek]],VastgoedVerdelingZG[],3,))=TRUE,0,VLOOKUP(KOZGW[[#This Row],[Rubriek]],VastgoedVerdelingZG[],3,))","v":0},"Aanwezigheidsdagen",42930,{"$f":"IF(ISERROR((KOZGW[[#This Row],[Werkingskost (zonder vastgoed)]]+KOZGW[[#This Row],[Vastgoedkosten]])/KOZGW[[#This Row],[Totaal aantal per jaar]])=TRUE,0,(KOZGW[[#This Row],[Werkingskost (zonder vastgoed)]]+KOZGW[[#This Row],[Vastgoedkosten]])/KOZGW[[#This Row],[Totaal aantal per jaar]])","v":0.10290589331469835}]
["Recup kampen",-4895,{"$f":"IF(ISERROR(VLOOKUP(KOZGW[[#This Row],[Rubriek]],VastgoedVerdelingZG[],3,))=TRUE,0,VLOOKUP(KOZGW[[#This Row],[Rubriek]],VastgoedVerdelingZG[],3,))","v":0},"Aanwezigheidsdagen",42930,{"$f":"IF(ISERROR((KOZGW[[#This Row],[Werkingskost (zonder vastgoed)]]+KOZGW[[#This Row],[Vastgoedkosten]])/KOZGW[[#This Row],[Totaal aantal per jaar]])=TRUE,0,(KOZGW[[#This Row],[Werkingskost (zonder vastgoed)]]+KOZGW[[#This Row],[Vastgoedkosten]])/KOZGW[[#This Row],[Totaal aantal per jaar]])","v":-0.11402282785930584}]
["Dokter+tandarts",15077.93,{"$f":"IF(ISERROR(VLOOKUP(KOZGW[[#This Row],[Rubriek]],VastgoedVerdelingZG[],3,))=TRUE,0,VLOOKUP(KOZGW[[#This Row],[Rubriek]],VastgoedVerdelingZG[],3,))","v":0},"Aanwezigheidsdagen",42930,{"$f":"IF(ISERROR((KOZGW[[#This Row],[Werkingskost (zonder vastgoed)]]+KOZGW[[#This Row],[Vastgoedkosten]])/KOZGW[[#This Row],[Totaal aantal per jaar]])=TRUE,0,(KOZGW[[#This Row],[Werkingskost (zonder vastgoed)]]+KOZGW[[#This Row],[Vastgoedkosten]])/KOZGW[[#This Row],[Totaal aantal per jaar]])","v":0.35122129047286282}]
["Recup dokters+tandarts",-15302.65,{"$f":"IF(ISERROR(VLOOKUP(KOZGW[[#This Row],[Rubriek]],VastgoedVerdelingZG[],3,))=TRUE,0,VLOOKUP(KOZGW[[#This Row],[Rubriek]],VastgoedVerdelingZG[],3,))","v":0},"Aanwezigheidsdagen",42930,{"$f":"IF(ISERROR((KOZGW[[#This Row],[Werkingskost (zonder vastgoed)]]+KOZGW[[#This Row],[Vastgoedkosten]])/KOZGW[[#This Row],[Totaal aantal per jaar]])=TRUE,0,(KOZGW[[#This Row],[Werkingskost (zonder vastgoed)]]+KOZGW[[#This Row],[Vastgoedkosten]])/KOZGW[[#This Row],[Totaal aantal per jaar]])","v":-0.35645585837409738}]
["Hospitalisatie",839.14,{"$f":"IF(ISERROR(VLOOKUP(KOZGW[[#This Row],[Rubriek]],VastgoedVerdelingZG[],3,))=TRUE,0,VLOOKUP(KOZGW[[#This Row],[Rubriek]],VastgoedVerdelingZG[],3,))","v":0},"Aanwezigheidsdagen",42930,{"$f":"IF(ISERROR((KOZGW[[#This Row],[Werkingskost (zonder vastgoed)]]+KOZGW[[#This Row],[Vastgoedkosten]])/KOZGW[[#This Row],[Totaal aantal per jaar]])=TRUE,0,(KOZGW[[#This Row],[Werkingskost (zonder vastgoed)]]+KOZGW[[#This Row],[Vastgoedkosten]])/KOZGW[[#This Row],[Totaal aantal per jaar]])","v":1.9546703936641045E-2}]
["Recup hospitalisatie",-839.14,{"$f":"IF(ISERROR(VLOOKUP(KOZGW[[#This Row],[Rubriek]],VastgoedVerdelingZG[],3,))=TRUE,0,VLOOKUP(KOZGW[[#This Row],[Rubriek]],VastgoedVerdelingZG[],3,))","v":0},"Aanwezigheidsdagen",42930,{"$f":"IF(ISERROR((KOZGW[[#This Row],[Werkingskost (zonder vastgoed)]]+KOZGW[[#This Row],[Vastgoedkosten]])/KOZGW[[#This Row],[Totaal aantal per jaar]])=TRUE,0,(KOZGW[[#This Row],[Werkingskost (zonder vastgoed)]]+KOZGW[[#This Row],[Vastgoedkosten]])/KOZGW[[#This Row],[Totaal aantal per jaar]])","v":-1.9546703936641045E-2}]
["Medisch vervoer",1567.59,{"$f":"IF(ISERROR(VLOOKUP(KOZGW[[#This Row],[Rubriek]],VastgoedVerdelingZG[],3,))=TRUE,0,VLOOKUP(KOZGW[[#This Row],[Rubriek]],VastgoedVerdelingZG[],3,))","v":0},"Aanwezigheidsdagen",42930,{"$f":"IF(ISERROR((KOZGW[[#This Row],[Werkingskost (zonder vastgoed)]]+KOZGW[[#This Row],[Vastgoedkosten]])/KOZGW[[#This Row],[Totaal aantal per jaar]])=TRUE,0,(KOZGW[[#This Row],[Werkingskost (zonder vastgoed)]]+KOZGW[[#This Row],[Vastgoedkosten]])/KOZGW[[#This Row],[Totaal aantal per jaar]])","v":3.6515024458420683E-2}]
["Recup medisch vervoer",-1567.59,{"$f":"IF(ISERROR(VLOOKUP(KOZGW[[#This Row],[Rubriek]],VastgoedVerdelingZG[],3,))=TRUE,0,VLOOKUP(KOZGW[[#This Row],[Rubriek]],VastgoedVerdelingZG[],3,))","v":0},"Aanwezigheidsdagen",42930,{"$f":"IF(ISERROR((KOZGW[[#This Row],[Werkingskost (zonder vastgoed)]]+KOZGW[[#This Row],[Vastgoedkosten]])/KOZGW[[#This Row],[Totaal aantal per jaar]])=TRUE,0,(KOZGW[[#This Row],[Werkingskost (zonder vastgoed)]]+KOZGW[[#This Row],[Vastgoedkosten]])/KOZGW[[#This Row],[Totaal aantal per jaar]])","v":-3.6515024458420683E-2}]
["Diverse medische kosten",48.16,{"$f":"IF(ISERROR(VLOOKUP(KOZGW[[#This Row],[Rubriek]],VastgoedVerdelingZG[],3,))=TRUE,0,VLOOKUP(KOZGW[[#This Row],[Rubriek]],VastgoedVerdelingZG[],3,))","v":0},"Aanwezigheidsdagen",42930,{"$f":"IF(ISERROR((KOZGW[[#This Row],[Werkingskost (zonder vastgoed)]]+KOZGW[[#This Row],[Vastgoedkosten]])/KOZGW[[#This Row],[Totaal aantal per jaar]])=TRUE,0,(KOZGW[[#This Row],[Werkingskost (zonder vastgoed)]]+KOZGW[[#This Row],[Vastgoedkosten]])/KOZGW[[#This Row],[Totaal aantal per jaar]])","v":1.1218262287444676E-3}]
["Recup diverse medische kosten",-48.16,{"$f":"IF(ISERROR(VLOOKUP(KOZGW[[#This Row],[Rubriek]],VastgoedVerdelingZG[],3,))=TRUE,0,VLOOKUP(KOZGW[[#This Row],[Rubriek]],VastgoedVerdelingZG[],3,))","v":0},"Aanwezigheidsdagen",42930,{"$f":"IF(ISERROR((KOZGW[[#This Row],[Werkingskost (zonder vastgoed)]]+KOZGW[[#This Row],[Vastgoedkosten]])/KOZGW[[#This Row],[Totaal aantal per jaar]])=TRUE,0,(KOZGW[[#This Row],[Werkingskost (zonder vastgoed)]]+KOZGW[[#This Row],[Vastgoedkosten]])/KOZGW[[#This Row],[Totaal aantal per jaar]])","v":-1.1218262287444676E-3}]
["Kinesist",2289.14,{"$f":"IF(ISERROR(VLOOKUP(KOZGW[[#This Row],[Rubriek]],VastgoedVerdelingZG[],3,))=TRUE,0,VLOOKUP(KOZGW[[#This Row],[Rubriek]],VastgoedVerdelingZG[],3,))","v":0},"Aanwezigheidsdagen",42930,{"$f":"IF(ISERROR((KOZGW[[#This Row],[Werkingskost (zonder vastgoed)]]+KOZGW[[#This Row],[Vastgoedkosten]])/KOZGW[[#This Row],[Totaal aantal per jaar]])=TRUE,0,(KOZGW[[#This Row],[Werkingskost (zonder vastgoed)]]+KOZGW[[#This Row],[Vastgoedkosten]])/KOZGW[[#This Row],[Totaal aantal per jaar]])","v":5.3322618215699974E-2}]
["Recup verzekering (kinesist)",-191.83,{"$f":"IF(ISERROR(VLOOKUP(KOZGW[[#This Row],[Rubriek]],VastgoedVerdelingZG[],3,))=TRUE,0,VLOOKUP(KOZGW[[#This Row],[Rubriek]],VastgoedVerdelingZG[],3,))","v":0},"Aanwezigheidsdagen",42930,{"$f":"IF(ISERROR((KOZGW[[#This Row],[Werkingskost (zonder vastgoed)]]+KOZGW[[#This Row],[Vastgoedkosten]])/KOZGW[[#This Row],[Totaal aantal per jaar]])=TRUE,0,(KOZGW[[#This Row],[Werkingskost (zonder vastgoed)]]+KOZGW[[#This Row],[Vastgoedkosten]])/KOZGW[[#This Row],[Totaal aantal per jaar]])","v":-4.4684369904495697E-3}]
["Recup ziekenfonds (kinesist)",-2113.56,{"$f":"IF(ISERROR(VLOOKUP(KOZGW[[#This Row],[Rubriek]],VastgoedVerdelingZG[],3,))=TRUE,0,VLOOKUP(KOZGW[[#This Row],[Rubriek]],VastgoedVerdelingZG[],3,))","v":0},"Aanwezigheidsdagen",42930,{"$f":"IF(ISERROR((KOZGW[[#This Row],[Werkingskost (zonder vastgoed)]]+KOZGW[[#This Row],[Vastgoedkosten]])/KOZGW[[#This Row],[Totaal aantal per jaar]])=TRUE,0,(KOZGW[[#This Row],[Werkingskost (zonder vastgoed)]]+KOZGW[[#This Row],[Vastgoedkosten]])/KOZGW[[#This Row],[Totaal aantal per jaar]])","v":-4.9232704402515724E-2}]
["Elektriciteit",{"$f":"Energie!E9","v":0},{"$f":"IF(ISERROR(VLOOKUP(KOZGW[[#This Row],[Rubriek]],VastgoedVerdelingZG[],3,))=TRUE,0,VLOOKUP(KOZGW[[#This Row],[Rubriek]],VastgoedVerdelingZG[],3,))","v":0},"Aanwezigheidsdagen",42930,{"$f":"IF(ISERROR((KOZGW[[#This Row],[Werkingskost (zonder vastgoed)]]+KOZGW[[#This Row],[Vastgoedkosten]])/KOZGW[[#This Row],[Totaal aantal per jaar]])=TRUE,0,(KOZGW[[#This Row],[Werkingskost (zonder vastgoed)]]+KOZGW[[#This Row],[Vastgoedkosten]])/KOZGW[[#This Row],[Totaal aantal per jaar]])","v":0}]
["Water",{"$f":"Energie!E39","v":23302.933200000003},{"$f":"IF(ISERROR(VLOOKUP(KOZGW[[#This Row],[Rubriek]],VastgoedVerdelingZG[],3,))=TRUE,0,VLOOKUP(KOZGW[[#This Row],[Rubriek]],VastgoedVerdelingZG[],3,))","v":0},"Aanwezigheidsdagen",42930,{"$f":"IF(ISERROR((KOZGW[[#This Row],[Werkingskost (zonder vastgoed)]]+KOZGW[[#This Row],[Vastgoedkosten]])/KOZGW[[#This Row],[Totaal aantal per jaar]])=TRUE,0,(KOZGW[[#This Row],[Werkingskost (zonder vastgoed)]]+KOZGW[[#This Row],[Vastgoedkosten]])/KOZGW[[#This Row],[Totaal aantal per jaar]])","v":0.54281232704402527}]
["Gas",{"$f":"Energie!E19","v":35879.016599999995},{"$f":"IF(ISERROR(VLOOKUP(KOZGW[[#This Row],[Rubriek]],VastgoedVerdelingZG[],3,))=TRUE,0,VLOOKUP(KOZGW[[#This Row],[Rubriek]],VastgoedVerdelingZG[],3,))","v":0},"Aanwezigheidsdagen",42930,{"$f":"IF(ISERROR((KOZGW[[#This Row],[Werkingskost (zonder vastgoed)]]+KOZGW[[#This Row],[Vastgoedkosten]])/KOZGW[[#This Row],[Totaal aantal per jaar]])=TRUE,0,(KOZGW[[#This Row],[Werkingskost (zonder vastgoed)]]+KOZGW[[#This Row],[Vastgoedkosten]])/KOZGW[[#This Row],[Totaal aantal per jaar]])","v":0.83575626834381544}]
["Totaal",{"$f":"SUBTOTAL(109,KOZGW[Werkingskost (zonder vastgoed)])","v":113007.92980000001},{"$f":"SUBTOTAL(109,KOZGW[Vastgoedkosten])","v":0}]

{"sheet":"OG personeelskost","index":13,"n_rows":12,"n_cols":7,"rows_kept":12,"cut":false,"hidden":false,"merged":[]}
["Grootboekrekening igv eigen personeel","Dienst","Kosten","Verdeelsleutel","Totaal aantal per jaar","Kost per eenheid","Niet VAPH subsidies per eenheid"]
["620 -621 - 622 -623 - 624 -628",{"$f":"Keuzelijsten!C3","v":"Directie"},{"$f":"SUMIF('OG personeel'!G:G,KOOGP[[#This Row],[Dienst]],'OG personeel'!B:B)+SUMIF('Ander personeel'!$F:$F,KOOGP[[#This Row],[Dienst]],'Ander personeel'!B:B)-SUMIF(OGPB[Dienst],KOOGP[[#This Row],[Dienst]],OGPB[Loon toewijsbaar aan woon- & leefkosten])","v":290972.96999999997},"Aanwezigheidsdagen",42930,{"$f":"IFERROR(KOOGP[[#This Row],[Kosten]]/KOOGP[[#This Row],[Totaal aantal per jaar]],0)","v":6.7778469601677145},{"$f":"IFERROR(SUMIF(NVAPH[Dienst],KOOGP[[#This Row],[Dienst]],NVAPH[Inkomsten])/KOOGP[[#This Row],[Totaal aantal per jaar]],0)","v":0}]
[null,{"$f":"Keuzelijsten!C4","v":"Administratie"},{"$f":"SUMIF('OG personeel'!G:G,KOOGP[[#This Row],[Dienst]],'OG personeel'!B:B)+SUMIF('Ander personeel'!$F:$F,KOOGP[[#This Row],[Dienst]],'Ander personeel'!B:B)-SUMIF(OGPB[Dienst],KOOGP[[#This Row],[Dienst]],OGPB[Loon toewijsbaar aan woon- & leefkosten])","v":266297.33},"Aanwezigheidsdagen",42930,{"$f":"IFERROR(KOOGP[[#This Row],[Kosten]]/KOOGP[[#This Row],[Totaal aantal per jaar]],0)","v":6.2030591660843237},{"$f":"IFERROR(SUMIF(NVAPH[Dienst],KOOGP[[#This Row],[Dienst]],NVAPH[Inkomsten])/KOOGP[[#This Row],[Totaal aantal per jaar]],0)","v":0}]
[null,{"$f":"Keuzelijsten!C5","v":"Onderhoud Centraal Gebouw"},{"$f":"SUMIF('OG personeel'!G:G,KOOGP[[#This Row],[Dienst]],'OG personeel'!B:B)+SUMIF('Ander personeel'!$F:$F,KOOGP[[#This Row],[Dienst]],'Ander personeel'!B:B)-SUMIF(OGPB[Dienst],KOOGP[[#This Row],[Dienst]],OGPB[Loon toewijsbaar aan woon- & leefkosten])","v":82779.260000000009},"Aanwezigheidsdagen",42930,{"$f":"IFERROR(KOOGP[[#This Row],[Kosten]]/KOOGP[[#This Row],[Totaal aantal per jaar]],0)","v":1.9282380619613326},{"$f":"IFERROR(SUMIF(NVAPH[Dienst],KOOGP[[#This Row],[Dienst]],NVAPH[Inkomsten])/KOOGP[[#This Row],[Totaal aantal per jaar]],0)","v":0.64097064989517816}]
[null,{"$f":"Keuzelijsten!C6","v":"Technische Dienst"},{"$f":"SUMIF('OG personeel'!G:G,KOOGP[[#This Row],[Dienst]],'OG personeel'!B:B)+SUMIF('Ander personeel'!$F:$F,KOOGP[[#This Row],[Dienst]],'Ander personeel'!B:B)-SUMIF(OGPB[Dienst],KOOGP[[#This Row],[Dienst]],OGPB[Loon toewijsbaar aan woon- & leefkosten])","v":229315.1},"Aanwezigheidsdagen",42930,{"$f":"IFERROR(KOOGP[[#This Row],[Kosten]]/KOOGP[[#This Row],[Totaal aantal per jaar]],0)","v":5.3416049382716047},{"$f":"IFERROR(SUMIF(NVAPH[Dienst],KOOGP[[#This Row],[Dienst]],NVAPH[Inkomsten])/KOOGP[[#This Row],[Totaal aantal per jaar]],0)","v":0}]
[null,{"$f":"Keuzelijsten!C7","v":"Huiscoördinatoren"},{"$f":"SUMIF('OG personeel'!G:G,KOOGP[[#This Row],[Dienst]],'OG personeel'!B:B)+SUMIF('Ander personeel'!$F:$F,KOOGP[[#This Row],[Dienst]],'Ander personeel'!B:B)-SUMIF(OGPB[Dienst],KOOGP[[#This Row],[Dienst]],OGPB[Loon toewijsbaar aan woon- & leefkosten])","v":211532.47},"Aanwezigheidsdagen",42930,{"$f":"IFERROR(KOOGP[[#This Row],[Kosten]]/KOOGP[[#This Row],[Totaal aantal per jaar]],0)","v":4.9273810854880038},{"$f":"IFERROR(SUMIF(NVAPH[Dienst],KOOGP[[#This Row],[Dienst]],NVAPH[Inkomsten])/KOOGP[[#This Row],[Totaal aantal per jaar]],0)","v":0}]
[null,{"$f":"Keuzelijsten!C8","v":"Logistiek Coördinator"},{"$f":"SUMIF('OG personeel'!G:G,KOOGP[[#This Row],[Dienst]],'OG personeel'!B:B)+SUMIF('Ander personeel'!$F:$F,KOOGP[[#This Row],[Dienst]],'Ander personeel'!B:B)-SUMIF(OGPB[Dienst],KOOGP[[#This Row],[Dienst]],OGPB[Loon toewijsbaar aan woon- & leefkosten])","v":34744.94},"Aanwezigheidsdagen",42930,{"$f":"IFERROR(KOOGP[[#This Row],[Kosten]]/KOOGP[[#This Row],[Totaal aantal per jaar]],0)","v":0.80933938970416963},{"$f":"IFERROR(SUMIF(NVAPH[Dienst],KOOGP[[#This Row],[Dienst]],NVAPH[Inkomsten])/KOOGP[[#This Row],[Totaal aantal per jaar]],0)","v":0}]
[null,{"$f":"Keuzelijsten!C9","v":"Zinzorg en pastoraat"},{"$f":"SUMIF('OG personeel'!G:G,KOOGP[[#This Row],[Dienst]],'OG personeel'!B:B)+SUMIF('Ander personeel'!$F:$F,KOOGP[[#This Row],[Dienst]],'Ander personeel'!B:B)-SUMIF(OGPB[Dienst],KOOGP[[#This Row],[Dienst]],OGPB[Loon toewijsbaar aan woon- & leefkosten])","v":38404.82},"Aanwezigheidsdagen",42930,{"$f":"IFERROR(KOOGP[[#This Row],[Kosten]]/KOOGP[[#This Row],[Totaal aantal per jaar]],0)","v":0.89459166084323316},{"$f":"IFERROR(SUMIF(NVAPH[Dienst],KOOGP[[#This Row],[Dienst]],NVAPH[Inkomsten])/KOOGP[[#This Row],[Totaal aantal per jaar]],0)","v":0}]
[null,{"$f":"Keuzelijsten!C10","v":"Preventieadviseur"},{"$f":"SUMIF('OG personeel'!G:G,KOOGP[[#This Row],[Dienst]],'OG personeel'!B:B)+SUMIF('Ander personeel'!$F:$F,KOOGP[[#This Row],[Dienst]],'Ander personeel'!B:B)-SUMIF(OGPB[Dienst],KOOGP[[#This Row],[Dienst]],OGPB[Loon toewijsbaar aan woon- & leefkosten])","v":68703.34},"Aanwezigheidsdagen",42930,{"$f":"IFERROR(KOOGP[[#This Row],[Kosten]]/KOOGP[[#This Row],[Totaal aantal per jaar]],0)","v":1.6003573258793384},{"$f":"IFERROR(SUMIF(NVAPH[Dienst],KOOGP[[#This Row],[Dienst]],NVAPH[Inkomsten])/KOOGP[[#This Row],[Totaal aantal per jaar]],0)","v":0}]
[null,{"$f":"Keuzelijsten!C11","v":"Naaisters"},{"$f":"SUMIF('OG personeel'!G:G,KOOGP[[#This Row],[Dienst]],'OG personeel'!B:B)+SUMIF('Ander personeel'!$F:$F,KOOGP[[#This Row],[Dienst]],'Ander personeel'!B:B)-SUMIF(OGPB[Dienst],KOOGP[[#This Row],[Dienst]],OGPB[Loon toewijsbaar aan woon- & leefkosten])","v":0},"Aanwezigheidsdagen",42930,{"$f":"IFERROR(KOOGP[[#This Row],[Kosten]]/KOOGP[[#This Row],[Totaal aantal per jaar]],0)","v":0},{"$f":"IFERROR(SUMIF(NVAPH[Dienst],KOOGP[[#This Row],[Dienst]],NVAPH[Inkomsten])/KOOGP[[#This Row],[Totaal aantal per jaar]],0)","v":0}]
[null,{"$f":"Keuzelijsten!C12","v":"Sociale dienst"},{"$f":"SUMIF('OG personeel'!G:G,KOOGP[[#This Row],[Dienst]],'OG personeel'!B:B)+SUMIF('Ander personeel'!$F:$F,KOOGP[[#This Row],[Dienst]],'Ander personeel'!B:B)-SUMIF(OGPB[Dienst],KOOGP[[#This Row],[Dienst]],OGPB[Loon toewijsbaar aan woon- & leefkosten])","v":92261.06},"Aanwezigheidsdagen",42930,{"$f":"IFERROR(KOOGP[[#This Row],[Kosten]]/KOOGP[[#This Row],[Totaal aantal per jaar]],0)","v":2.1491045888655953},{"$f":"IFERROR(SUMIF(NVAPH[Dienst],KOOGP[[#This Row],[Dienst]],NVAPH[Inkomsten])/KOOGP[[#This Row],[Totaal aantal per jaar]],0)","v":0}]
[null,"Totaal",{"$f":"SUBTOTAL(109,KOOGP[Kosten])","v":1315011.2900000003}]

{"sheet":"OG werking","index":14,"n_rows":77,"n_cols":7,"rows_kept":77,"cut":false,"hidden":false,"merged":[]}
["Grootboekrekening","Rubriek","Werkingskosten","Vastgoedkosten","Verdeelsleutel","Totaal aantal per jaar","Kost per eenheid"]
[614,"Verzekeringen",14855.07,{"$f":"IFERROR(VLOOKUP(KOOGW[[#This Row],[Rubriek]],VastgoedVerdelingOG[],3,),0)","v":305061.31787878787},"Aanwezigheidsdagen",42930,{"$f":"IFERROR((KOOGW[[#This Row],[Werkingskosten]]+KOOGW[[#This Row],[Vastgoedkosten]])/KOOGW[[#This Row],[Totaal aantal per jaar]],0)","v":7.4520472368690394}]
[644,"Opleidingen",7699.46,{"$f":"IFERROR(VLOOKUP(KOOGW[[#This Row],[Rubriek]],VastgoedVerdelingOG[],3,),0)","v":0},"Aanwezigheidsdagen",42930,{"$f":"IFERROR((KOOGW[[#This Row],[Werkingskosten]]+KOOGW[[#This Row],[Vastgoedkosten]])/KOOGW[[#This Row],[Totaal aantal per jaar]],0)","v":0.17934917307244352}]
[74036000,"Recup opleidingen",-6563.47,{"$f":"IFERROR(VLOOKUP(KOOGW[[#This Row],[Rubriek]],VastgoedVerdelingOG[],3,),0)","v":0},"Aanwezigheidsdagen",42930,{"$f":"IFERROR((KOOGW[[#This Row],[Werkingskosten]]+KOOGW[[#This Row],[Vastgoedkosten]])/KOOGW[[#This Row],[Totaal aantal per jaar]],0)","v":-0.15288772420218963}]
[74036100,"Recup opleidingen",-3422.13,{"$f":"IFERROR(VLOOKUP(KOOGW[[#This Row],[Rubriek]],VastgoedVerdelingOG[],3,),0)","v":0},"Aanwezigheidsdagen",42930,{"$f":"IFERROR((KOOGW[[#This Row],[Werkingskosten]]+KOOGW[[#This Row],[Vastgoedkosten]])/KOOGW[[#This Row],[Totaal aantal per jaar]],0)","v":-7.9714185883997202E-2}]
[615,"Dienstverplaatsingen",6321.81,{"$f":"IFERROR(VLOOKUP(KOOGW[[#This Row],[Rubriek]],VastgoedVerdelingOG[],3,),0)","v":0},"Aanwezigheidsdagen",42930,{"$f":"IFERROR((KOOGW[[#This Row],[Werkingskosten]]+KOOGW[[#This Row],[Vastgoedkosten]])/KOOGW[[#This Row],[Totaal aantal per jaar]],0)","v":0.1472585604472397}]
[74015000,"Recup verplaatsingen",-4.1500000000000004,{"$f":"IFERROR(VLOOKUP(KOOGW[[#This Row],[Rubriek]],VastgoedVerdelingOG[],3,),0)","v":0},"Aanwezigheidsdagen",42930,{"$f":"IFERROR((KOOGW[[#This Row],[Werkingskosten]]+KOOGW[[#This Row],[Vastgoedkosten]])/KOOGW[[#This Row],[Totaal aantal per jaar]],0)","v":-9.6668996040065236E-5}]
[60052000,"Pastorale werking",583.75,{"$f":"IFERROR(VLOOKUP(KOOGW[[#This Row],[Rubriek]],VastgoedVerdelingOG[],3,),0)","v":0},"Aanwezigheidsdagen",42930,{"$f":"IFERROR((KOOGW[[#This Row],[Werkingskosten]]+KOOGW[[#This Row],[Vastgoedkosten]])/KOOGW[[#This Row],[Totaal aantal per jaar]],0)","v":1.3597717214069415E-2}]
[60091000,"Klein materieel en meubilair",1421.34,{"$f":"IFERROR(VLOOKUP(KOOGW[[#This Row],[Rubriek]],VastgoedVerdelingOG[],3,),0)","v":0},"Aanwezigheidsdagen",42930,{"$f":"IFERROR((KOOGW[[#This Row],[Werkingskosten]]+KOOGW[[#This Row],[Vastgoedkosten]])/KOOGW[[#This Row],[Totaal aantal per jaar]],0)","v":3.3108315863032839E-2}]
[610,"Huur",18114.68,{"$f":"IFERROR(VLOOKUP(KOOGW[[#This Row],[Rubriek]],VastgoedVerdelingOG[],3,),0)","v":0},"Aanwezigheidsdagen",42930,{"$f":"IFERROR((KOOGW[[#This Row],[Werkingskosten]]+KOOGW[[#This Row],[Vastgoedkosten]])/KOOGW[[#This Row],[Totaal aantal per jaar]],0)","v":0.42195853715350573}]
[61100000,"Onderhoudsproducten",13593.05,{"$f":"IFERROR(VLOOKUP(KOOGW[[#This Row],[Rubriek]],VastgoedVerdelingOG[],3,),0)","v":0},"Aanwezigheidsdagen",42930,{"$f":"IFERROR((KOOGW[[#This Row],[Werkingskosten]]+KOOGW[[#This Row],[Vastgoedkosten]])/KOOGW[[#This Row],[Totaal aantal per jaar]],0)","v":0.3166328907523876}]
[61110000,"Benodigdheden technische dienst",1434.28,{"$f":"IFERROR(VLOOKUP(KOOGW[[#This Row],[Rubriek]],VastgoedVerdelingOG[],3,),0)","v":0},"Aanwezigheidsdagen",42930,{"$f":"IFERROR((KOOGW[[#This Row],[Werkingskosten]]+KOOGW[[#This Row],[Vastgoedkosten]])/KOOGW[[#This Row],[Totaal aantal per jaar]],0)","v":3.3409736780805964E-2}]
[61111000,"Kleine schilderwerken",9013.0400000000009,{"$f":"IFERROR(VLOOKUP(KOOGW[[#This Row],[Rubriek]],VastgoedVerdelingOG[],3,),0)","v":0},"Aanwezigheidsdagen",42930,{"$f":"IFERROR((KOOGW[[#This Row],[Werkingskosten]]+KOOGW[[#This Row],[Vastgoedkosten]])/KOOGW[[#This Row],[Totaal aantal per jaar]],0)","v":0.20994735616119267}]
[61120000,"Herstel gebouwen",1233.0899999999999,{"$f":"IFERROR(VLOOKUP(KOOGW[[#This Row],[Rubriek]],VastgoedVerdelingOG[],3,),0)","v":0},"Aanwezigheidsdagen",42930,{"$f":"IFERROR((KOOGW[[#This Row],[Werkingskosten]]+KOOGW[[#This Row],[Vastgoedkosten]])/KOOGW[[#This Row],[Totaal aantal per jaar]],0)","v":2.872327044025157E-2}]
[74040000,"Recup schade (brand,storm)",-302.94,{"$f":"IFERROR(VLOOKUP(KOOGW[[#This Row],[Rubriek]],VastgoedVerdelingOG[],3,),0)","v":0},"Aanwezigheidsdagen",42930,{"$f":"IFERROR((KOOGW[[#This Row],[Werkingskosten]]+KOOGW[[#This Row],[Vastgoedkosten]])/KOOGW[[#This Row],[Totaal aantal per jaar]],0)","v":-7.056603773584906E-3}]
[74051000,"Recup verhuur",-7936.05,{"$f":"IFERROR(VLOOKUP(KOOGW[[#This Row],[Rubriek]],VastgoedVerdelingOG[],3,),0)","v":0},"Aanwezigheidsdagen",42930,{"$f":"IFERROR((KOOGW[[#This Row],[Werkingskosten]]+KOOGW[[#This Row],[Vastgoedkosten]])/KOOGW[[#This Row],[Totaal aantal per jaar]],0)","v":-0.18486023759608666}]
[61121000,"Herstel binnenschrijnwerk",3000.02,{"$f":"IFERROR(VLOOKUP(KOOGW[[#This Row],[Rubriek]],VastgoedVerdelingOG[],3,),0)","v":0},"Aanwezigheidsdagen",42930,{"$f":"IFERROR((KOOGW[[#This Row],[Werkingskosten]]+KOOGW[[#This Row],[Vastgoedkosten]])/KOOGW[[#This Row],[Totaal aantal per jaar]],0)","v":6.988166783135337E-2}]
[61130000,"Herstel technische installaties",467.82,{"$f":"IFERROR(VLOOKUP(KOOGW[[#This Row],[Rubriek]],VastgoedVerdelingOG[],3,),0)","v":0},"Aanwezigheidsdagen",42930,{"$f":"IFERROR((KOOGW[[#This Row],[Werkingskosten]]+KOOGW[[#This Row],[Vastgoedkosten]])/KOOGW[[#This Row],[Totaal aantal per jaar]],0)","v":1.0897274633123689E-2}]
[61133000,"Herstel medische installaties",11092.02,{"$f":"IFERROR(VLOOKUP(KOOGW[[#This Row],[Rubriek]],VastgoedVerdelingOG[],3,),0)","v":0},"Aanwezigheidsdagen",42930,{"$f":"IFERROR((KOOGW[[#This Row],[Werkingskosten]]+KOOGW[[#This Row],[Vastgoedkosten]])/KOOGW[[#This Row],[Totaal aantal per jaar]],0)","v":0.25837456324248775}]
[61135000,"Herstel computerinstallaties",56.42,{"$f":"IFERROR(VLOOKUP(KOOGW[[#This Row],[Rubriek]],VastgoedVerdelingOG[],3,),0)","v":0},"Aanwezigheidsdagen",42930,{"$f":"IFERROR((KOOGW[[#This Row],[Werkingskosten]]+KOOGW[[#This Row],[Vastgoedkosten]])/KOOGW[[#This Row],[Totaal aantal per jaar]],0)","v":1.314232471465176E-3}]
[61136000,"Herstel verwarming/sanitair",11263.26,{"$f":"IFERROR(VLOOKUP(KOOGW[[#This Row],[Rubriek]],VastgoedVerdelingOG[],3,),0)","v":0},"Aanwezigheidsdagen",42930,{"$f":"IFERROR((KOOGW[[#This Row],[Werkingskosten]]+KOOGW[[#This Row],[Vastgoedkosten]])/KOOGW[[#This Row],[Totaal aantal per jaar]],0)","v":0.26236338225017469}]
[61137000,"Herstel diverse installaties",2559.34,{"$f":"IFERROR(VLOOKUP(KOOGW[[#This Row],[Rubriek]],VastgoedVerdelingOG[],3,),0)","v":0},"Aanwezigheidsdagen",42930,{"$f":"IFERROR((KOOGW[[#This Row],[Werkingskosten]]+KOOGW[[#This Row],[Vastgoedkosten]])/KOOGW[[#This Row],[Totaal aantal per jaar]],0)","v":5.9616585138597723E-2}]
[61138000,"Herstel elektrische installaties",3357.6,{"$f":"IFERROR(VLOOKUP(KOOGW[[#This Row],[Rubriek]],VastgoedVerdelingOG[],3,),0)","v":0},"Aanwezigheidsdagen",42930,{"$f":"IFERROR((KOOGW[[#This Row],[Werkingskosten]]+KOOGW[[#This Row],[Vastgoedkosten]])/KOOGW[[#This Row],[Totaal aantal per jaar]],0)","v":7.8211041229909156E-2}]
[61139000,"Herstel telefooninstallatie",2488.88,{"$f":"IFERROR(VLOOKUP(KOOGW[[#This Row],[Rubriek]],VastgoedVerdelingOG[],3,),0)","v":0},"Aanwezigheidsdagen",42930,{"$f":"IFERROR((KOOGW[[#This Row],[Werkingskosten]]+KOOGW[[#This Row],[Vastgoedkosten]])/KOOGW[[#This Row],[Totaal aantal per jaar]],0)","v":5.7975308641975309E-2}]
[61140000,"Herstel meubilair",552.98,{"$f":"IFERROR(VLOOKUP(KOOGW[[#This Row],[Rubriek]],VastgoedVerdelingOG[],3,),0)","v":0},"Aanwezigheidsdagen",42930,{"$f":"IFERROR((KOOGW[[#This Row],[Werkingskosten]]+KOOGW[[#This Row],[Vastgoedkosten]])/KOOGW[[#This Row],[Totaal aantal per jaar]],0)","v":1.2880969019333799E-2}]
[61141000,"Herstel rollend materieel",2995.44,{"$f":"IFERROR(VLOOKUP(KOOGW[[#This Row],[Rubriek]],VastgoedVerdelingOG[],3,),0)","v":0},"Aanwezigheidsdagen",42930,{"$f":"IFERROR((KOOGW[[#This Row],[Werkingskosten]]+KOOGW[[#This Row],[Vastgoedkosten]])/KOOGW[[#This Row],[Totaal aantal per jaar]],0)","v":6.9774982529699506E-2}]
[61150000,"Onderhoud tuinen,terreinen",3765.44,{"$f":"IFERROR(VLOOKUP(KOOGW[[#This Row],[Rubriek]],VastgoedVerdelingOG[],3,),0)","v":0},"Aanwezigheidsdagen",42930,{"$f":"IFERROR((KOOGW[[#This Row],[Werkingskosten]]+KOOGW[[#This Row],[Vastgoedkosten]])/KOOGW[[#This Row],[Totaal aantal per jaar]],0)","v":8.7711157698579081E-2}]
[61160000,"Huisvuil",13584.08,{"$f":"IFERROR(VLOOKUP(KOOGW[[#This Row],[Rubriek]],VastgoedVerdelingOG[],3,),0)","v":0},"Aanwezigheidsdagen",42930,{"$f":"IFERROR((KOOGW[[#This Row],[Werkingskosten]]+KOOGW[[#This Row],[Vastgoedkosten]])/KOOGW[[#This Row],[Totaal aantal per jaar]],0)","v":0.31642394595853718}]
[61161000,"Ongediertebestrijding",14.53,{"$f":"IFERROR(VLOOKUP(KOOGW[[#This Row],[Rubriek]],VastgoedVerdelingOG[],3,),0)","v":0},"Aanwezigheidsdagen",42930,{"$f":"IFERROR((KOOGW[[#This Row],[Werkingskosten]]+KOOGW[[#This Row],[Vastgoedkosten]])/KOOGW[[#This Row],[Totaal aantal per jaar]],0)","v":3.3845795481015603E-4}]
[61162000,"Brandbeveiliging",1239.6500000000001,{"$f":"IFERROR(VLOOKUP(KOOGW[[#This Row],[Rubriek]],VastgoedVerdelingOG[],3,),0)","v":0},"Aanwezigheidsdagen",42930,{"$f":"IFERROR((KOOGW[[#This Row],[Werkingskosten]]+KOOGW[[#This Row],[Vastgoedkosten]])/KOOGW[[#This Row],[Totaal aantal per jaar]],0)","v":2.8876077335196836E-2}]
[61170000,"Onderhoudscontracten",6673.87,{"$f":"IFERROR(VLOOKUP(KOOGW[[#This Row],[Rubriek]],VastgoedVerdelingOG[],3,),0)","v":0},"Aanwezigheidsdagen",42930,{"$f":"IFERROR((KOOGW[[#This Row],[Werkingskosten]]+KOOGW[[#This Row],[Vastgoedkosten]])/KOOGW[[#This Row],[Totaal aantal per jaar]],0)","v":0.1554593524341952}]
[61250000,"Brandstof rollend materieel",6095.56,{"$f":"IFERROR(VLOOKUP(KOOGW[[#This Row],[Rubriek]],VastgoedVerdelingOG[],3,),0)","v":0},"Aanwezigheidsdagen",42930,{"$f":"IFERROR((KOOGW[[#This Row],[Werkingskosten]]+KOOGW[[#This Row],[Vastgoedkosten]])/KOOGW[[#This Row],[Totaal aantal per jaar]],0)","v":0.14198835313300723}]
[61300000,"Kantoorkosten",2837.88,{"$f":"IFERROR(VLOOKUP(KOOGW[[#This Row],[Rubriek]],VastgoedVerdelingOG[],3,),0)","v":0},"Aanwezigheidsdagen",42930,{"$f":"IFERROR((KOOGW[[#This Row],[Werkingskosten]]+KOOGW[[#This Row],[Vastgoedkosten]])/KOOGW[[#This Row],[Totaal aantal per jaar]],0)","v":6.6104821802935018E-2}]
[74013000,"Recup kantoor gebruikers",-110.2,{"$f":"IFERROR(VLOOKUP(KOOGW[[#This Row],[Rubriek]],VastgoedVerdelingOG[],3,),0)","v":0},"Aanwezigheidsdagen",42930,{"$f":"IFERROR((KOOGW[[#This Row],[Werkingskosten]]+KOOGW[[#This Row],[Vastgoedkosten]])/KOOGW[[#This Row],[Totaal aantal per jaar]],0)","v":-2.566969485208479E-3}]
[74021300,"Recup kantoor personeel",-4,{"$f":"IFERROR(VLOOKUP(KOOGW[[#This Row],[Rubriek]],VastgoedVerdelingOG[],3,),0)","v":0},"Aanwezigheidsdagen",42930,{"$f":"IFERROR((KOOGW[[#This Row],[Werkingskosten]]+KOOGW[[#This Row],[Vastgoedkosten]])/KOOGW[[#This Row],[Totaal aantal per jaar]],0)","v":-9.317493594223154E-5}]
[74051300,"Recup kantoor derden",-13.35,{"$f":"IFERROR(VLOOKUP(KOOGW[[#This Row],[Rubriek]],VastgoedVerdelingOG[],3,),0)","v":0},"Aanwezigheidsdagen",42930,{"$f":"IFERROR((KOOGW[[#This Row],[Werkingskosten]]+KOOGW[[#This Row],[Vastgoedkosten]])/KOOGW[[#This Row],[Totaal aantal per jaar]],0)","v":-3.1097134870719778E-4}]
[61310000,"Verzendingkosten",3110.31,{"$f":"IFERROR(VLOOKUP(KOOGW[[#This Row],[Rubriek]],VastgoedVerdelingOG[],3,),0)","v":0},"Aanwezigheidsdagen",42930,{"$f":"IFERROR((KOOGW[[#This Row],[Werkingskosten]]+KOOGW[[#This Row],[Vastgoedkosten]])/KOOGW[[#This Row],[Totaal aantal per jaar]],0)","v":7.2450733752620539E-2}]
[61320000,"Telefoon/internet",5682.63,{"$f":"IFERROR(VLOOKUP(KOOGW[[#This Row],[Rubriek]],VastgoedVerdelingOG[],3,),0)","v":0},"Aanwezigheidsdagen",42930,{"$f":"IFERROR((KOOGW[[#This Row],[Werkingskosten]]+KOOGW[[#This Row],[Vastgoedkosten]])/KOOGW[[#This Row],[Totaal aantal per jaar]],0)","v":0.1323696715583508}]
[61330000,"Drukwerk",389.62,{"$f":"IFERROR(VLOOKUP(KOOGW[[#This Row],[Rubriek]],VastgoedVerdelingOG[],3,),0)","v":0},"Aanwezigheidsdagen",42930,{"$f":"IFERROR((KOOGW[[#This Row],[Werkingskosten]]+KOOGW[[#This Row],[Vastgoedkosten]])/KOOGW[[#This Row],[Totaal aantal per jaar]],0)","v":9.0757046354530638E-3}]
[61340000,"Fotokopiekosten",1750.53,{"$f":"IFERROR(VLOOKUP(KOOGW[[#This Row],[Rubriek]],VastgoedVerdelingOG[],3,),0)","v":0},"Aanwezigheidsdagen",42930,{"$f":"IFERROR((KOOGW[[#This Row],[Werkingskosten]]+KOOGW[[#This Row],[Vastgoedkosten]])/KOOGW[[#This Row],[Totaal aantal per jaar]],0)","v":4.0776380153738641E-2}]
[61350000,"Papier",874.11,{"$f":"IFERROR(VLOOKUP(KOOGW[[#This Row],[Rubriek]],VastgoedVerdelingOG[],3,),0)","v":0},"Aanwezigheidsdagen",42930,{"$f":"IFERROR((KOOGW[[#This Row],[Werkingskosten]]+KOOGW[[#This Row],[Vastgoedkosten]])/KOOGW[[#This Row],[Totaal aantal per jaar]],0)","v":2.0361285814116004E-2}]
[61360000,"Wettelijke formaliteiten",79.069999999999993,{"$f":"IFERROR(VLOOKUP(KOOGW[[#This Row],[Rubriek]],VastgoedVerdelingOG[],3,),0)","v":0},"Aanwezigheidsdagen",42930,{"$f":"IFERROR((KOOGW[[#This Row],[Werkingskosten]]+KOOGW[[#This Row],[Vastgoedkosten]])/KOOGW[[#This Row],[Totaal aantal per jaar]],0)","v":1.8418355462380617E-3}]
[61380000,"Computerkosten",4804.93,{"$f":"IFERROR(VLOOKUP(KOOGW[[#This Row],[Rubriek]],VastgoedVerdelingOG[],3,),0)","v":0},"Aanwezigheidsdagen",42930,{"$f":"IFERROR((KOOGW[[#This Row],[Werkingskosten]]+KOOGW[[#This Row],[Vastgoedkosten]])/KOOGW[[#This Row],[Totaal aantal per jaar]],0)","v":0.11192476123922665}]
[61610000,"Sociaal secretariaat",30497.7,{"$f":"IFERROR(VLOOKUP(KOOGW[[#This Row],[Rubriek]],VastgoedVerdelingOG[],3,),0)","v":0},"Aanwezigheidsdagen",42930,{"$f":"IFERROR((KOOGW[[#This Row],[Werkingskosten]]+KOOGW[[#This Row],[Vastgoedkosten]])/KOOGW[[#This Row],[Totaal aantal per jaar]],0)","v":0.71040531097134874}]
[61611000,"Centrale administratie",35437.81,{"$f":"IFERROR(VLOOKUP(KOOGW[[#This Row],[Rubriek]],VastgoedVerdelingOG[],3,),0)","v":0},"Aanwezigheidsdagen",42930,{"$f":"IFERROR((KOOGW[[#This Row],[Werkingskosten]]+KOOGW[[#This Row],[Vastgoedkosten]])/KOOGW[[#This Row],[Totaal aantal per jaar]],0)","v":0.82547891917074301}]
[61612000,"Controle en keuring",2743.89,{"$f":"IFERROR(VLOOKUP(KOOGW[[#This Row],[Rubriek]],VastgoedVerdelingOG[],3,),0)","v":0},"Aanwezigheidsdagen",42930,{"$f":"IFERROR((KOOGW[[#This Row],[Werkingskosten]]+KOOGW[[#This Row],[Vastgoedkosten]])/KOOGW[[#This Row],[Totaal aantal per jaar]],0)","v":6.3915443745632419E-2}]
[61614000,"Informatica-computerprestaties",1032.83,{"$f":"IFERROR(VLOOKUP(KOOGW[[#This Row],[Rubriek]],VastgoedVerdelingOG[],3,),0)","v":0},"Aanwezigheidsdagen",42930,{"$f":"IFERROR((KOOGW[[#This Row],[Werkingskosten]]+KOOGW[[#This Row],[Vastgoedkosten]])/KOOGW[[#This Row],[Totaal aantal per jaar]],0)","v":2.4058467272303749E-2}]
[61617000,"Boekhouding",1378.62,{"$f":"IFERROR(VLOOKUP(KOOGW[[#This Row],[Rubriek]],VastgoedVerdelingOG[],3,),0)","v":0},"Aanwezigheidsdagen",42930,{"$f":"IFERROR((KOOGW[[#This Row],[Werkingskosten]]+KOOGW[[#This Row],[Vastgoedkosten]])/KOOGW[[#This Row],[Totaal aantal per jaar]],0)","v":3.2113207547169807E-2}]
[61618000,"Orbis",5849.95,{"$f":"IFERROR(VLOOKUP(KOOGW[[#This Row],[Rubriek]],VastgoedVerdelingOG[],3,),0)","v":0},"Aanwezigheidsdagen",42930,{"$f":"IFERROR((KOOGW[[#This Row],[Werkingskosten]]+KOOGW[[#This Row],[Vastgoedkosten]])/KOOGW[[#This Row],[Totaal aantal per jaar]],0)","v":0.13626717912881434}]
[61620000,"Ereloon bedrijfsrevisor",4646.3999999999996,{"$f":"IFERROR(VLOOKUP(KOOGW[[#This Row],[Rubriek]],VastgoedVerdelingOG[],3,),0)","v":0},"Aanwezigheidsdagen",42930,{"$f":"IFERROR((KOOGW[[#This Row],[Werkingskosten]]+KOOGW[[#This Row],[Vastgoedkosten]])/KOOGW[[#This Row],[Totaal aantal per jaar]],0)","v":0.10823200559049614}]
[61621000,"Lidgeld Vlaams Welzijn",7682.16,{"$f":"IFERROR(VLOOKUP(KOOGW[[#This Row],[Rubriek]],VastgoedVerdelingOG[],3,),0)","v":0},"Aanwezigheidsdagen",42930,{"$f":"IFERROR((KOOGW[[#This Row],[Werkingskosten]]+KOOGW[[#This Row],[Vastgoedkosten]])/KOOGW[[#This Row],[Totaal aantal per jaar]],0)","v":0.17894619147449337}]
[61622000,"Giften en geschenken",205.83,{"$f":"IFERROR(VLOOKUP(KOOGW[[#This Row],[Rubriek]],VastgoedVerdelingOG[],3,),0)","v":0},"Aanwezigheidsdagen",42930,{"$f":"IFERROR((KOOGW[[#This Row],[Werkingskosten]]+KOOGW[[#This Row],[Vastgoedkosten]])/KOOGW[[#This Row],[Totaal aantal per jaar]],0)","v":4.7945492662473796E-3}]
[61623000,"Lidgelden",527,{"$f":"IFERROR(VLOOKUP(KOOGW[[#This Row],[Rubriek]],VastgoedVerdelingOG[],3,),0)","v":0},"Aanwezigheidsdagen",42930,{"$f":"IFERROR((KOOGW[[#This Row],[Werkingskosten]]+KOOGW[[#This Row],[Vastgoedkosten]])/KOOGW[[#This Row],[Totaal aantal per jaar]],0)","v":1.2275797810389006E-2}]
[61624000,"Public relations",2878.48,{"$f":"IFERROR(VLOOKUP(KOOGW[[#This Row],[Rubriek]],VastgoedVerdelingOG[],3,),0)","v":0},"Aanwezigheidsdagen",42930,{"$f":"IFERROR((KOOGW[[#This Row],[Werkingskosten]]+KOOGW[[#This Row],[Vastgoedkosten]])/KOOGW[[#This Row],[Totaal aantal per jaar]],0)","v":6.7050547402748656E-2}]
[61626000,"Andere erelonen",707.79,{"$f":"IFERROR(VLOOKUP(KOOGW[[#This Row],[Rubriek]],VastgoedVerdelingOG[],3,),0)","v":0},"Aanwezigheidsdagen",42930,{"$f":"IFERROR((KOOGW[[#This Row],[Werkingskosten]]+KOOGW[[#This Row],[Vastgoedkosten]])/KOOGW[[#This Row],[Totaal aantal per jaar]],0)","v":1.6487071977638015E-2}]
[61629000,"Diverse notoriteitsuitgaven",811.59,{"$f":"IFERROR(VLOOKUP(KOOGW[[#This Row],[Rubriek]],VastgoedVerdelingOG[],3,),0)","v":0},"Aanwezigheidsdagen",42930,{"$f":"IFERROR((KOOGW[[#This Row],[Werkingskosten]]+KOOGW[[#This Row],[Vastgoedkosten]])/KOOGW[[#This Row],[Totaal aantal per jaar]],0)","v":1.8904961565338923E-2}]
[62200000,"Buitenwettelijke verzekeringen",3749.97,{"$f":"IFERROR(VLOOKUP(KOOGW[[#This Row],[Rubriek]],VastgoedVerdelingOG[],3,),0)","v":0},"Aanwezigheidsdagen",42930,{"$f":"IFERROR((KOOGW[[#This Row],[Werkingskosten]]+KOOGW[[#This Row],[Vastgoedkosten]])/KOOGW[[#This Row],[Totaal aantal per jaar]],0)","v":8.7350803633822499E-2}]
[62300000,"Verzekering arbeidsongevallen",22396.89,{"$f":"IFERROR(VLOOKUP(KOOGW[[#This Row],[Rubriek]],VastgoedVerdelingOG[],3,),0)","v":0},"Aanwezigheidsdagen",42930,{"$f":"IFERROR((KOOGW[[#This Row],[Werkingskosten]]+KOOGW[[#This Row],[Vastgoedkosten]])/KOOGW[[#This Row],[Totaal aantal per jaar]],0)","v":0.52170719776380148}]
[62301000,"BA personeel",1028.75,{"$f":"IFERROR(VLOOKUP(KOOGW[[#This Row],[Rubriek]],VastgoedVerdelingOG[],3,),0)","v":0},"Aanwezigheidsdagen",42930,{"$f":"IFERROR((KOOGW[[#This Row],[Werkingskosten]]+KOOGW[[#This Row],[Vastgoedkosten]])/KOOGW[[#This Row],[Totaal aantal per jaar]],0)","v":2.3963428837642672E-2}]
[62310000,"Bedrijfsgeneeskunde",22836.29,{"$f":"IFERROR(VLOOKUP(KOOGW[[#This Row],[Rubriek]],VastgoedVerdelingOG[],3,),0)","v":0},"Aanwezigheidsdagen",42930,{"$f":"IFERROR((KOOGW[[#This Row],[Werkingskosten]]+KOOGW[[#This Row],[Vastgoedkosten]])/KOOGW[[#This Row],[Totaal aantal per jaar]],0)","v":0.53194246447705573}]
[6232,"Woon-werkverkeer",{"$f":"46745.2+10288.96","v":57034.159999999996},{"$f":"IFERROR(VLOOKUP(KOOGW[[#This Row],[Rubriek]],VastgoedVerdelingOG[],3,),0)","v":0},"Aanwezigheidsdagen",42930,{"$f":"IFERROR((KOOGW[[#This Row],[Werkingskosten]]+KOOGW[[#This Row],[Vastgoedkosten]])/KOOGW[[#This Row],[Totaal aantal per jaar]],0)","v":1.3285385511297461}]
[6234000,"Syndicale premie",1836.32,{"$f":"IFERROR(VLOOKUP(KOOGW[[#This Row],[Rubriek]],VastgoedVerdelingOG[],3,),0)","v":0},"Aanwezigheidsdagen",42930,{"$f":"IFERROR((KOOGW[[#This Row],[Werkingskosten]]+KOOGW[[#This Row],[Vastgoedkosten]])/KOOGW[[#This Row],[Totaal aantal per jaar]],0)","v":4.2774749592359655E-2}]
[62350000,"Kamppremie",2141.4899999999998,{"$f":"IFERROR(VLOOKUP(KOOGW[[#This Row],[Rubriek]],VastgoedVerdelingOG[],3,),0)","v":0},"Aanwezigheidsdagen",42930,{"$f":"IFERROR((KOOGW[[#This Row],[Werkingskosten]]+KOOGW[[#This Row],[Vastgoedkosten]])/KOOGW[[#This Row],[Totaal aantal per jaar]],0)","v":4.9883298392732353E-2}]
[62360000,"Werkkledij",2093.52,{"$f":"IFERROR(VLOOKUP(KOOGW[[#This Row],[Rubriek]],VastgoedVerdelingOG[],3,),0)","v":0},"Aanwezigheidsdagen",42930,{"$f":"IFERROR((KOOGW[[#This Row],[Werkingskosten]]+KOOGW[[#This Row],[Vastgoedkosten]])/KOOGW[[#This Row],[Totaal aantal per jaar]],0)","v":4.8765897973445139E-2}]
[6239000,"Diverse andere personeelskosten",6012.23,{"$f":"IFERROR(VLOOKUP(KOOGW[[#This Row],[Rubriek]],VastgoedVerdelingOG[],3,),0)","v":0},"Aanwezigheidsdagen",42930,{"$f":"IFERROR((KOOGW[[#This Row],[Werkingskosten]]+KOOGW[[#This Row],[Vastgoedkosten]])/KOOGW[[#This Row],[Totaal aantal per jaar]],0)","v":0.14004728627999066}]
[64000000,"Bedrijfsbelastingen",21490.959999999999,{"$f":"IFERROR(VLOOKUP(KOOGW[[#This Row],[Rubriek]],VastgoedVerdelingOG[],3,),0)","v":0},"Aanwezigheidsdagen",42930,{"$f":"IFERROR((KOOGW[[#This Row],[Werkingskosten]]+KOOGW[[#This Row],[Vastgoedkosten]])/KOOGW[[#This Row],[Totaal aantal per jaar]],0)","v":0.50060470533426504}]
[64500000,"Bibliotheek",444.94,{"$f":"IFERROR(VLOOKUP(KOOGW[[#This Row],[Rubriek]],VastgoedVerdelingOG[],3,),0)","v":0},"Aanwezigheidsdagen",42930,{"$f":"IFERROR((KOOGW[[#This Row],[Werkingskosten]]+KOOGW[[#This Row],[Vastgoedkosten]])/KOOGW[[#This Row],[Totaal aantal per jaar]],0)","v":1.0364313999534126E-2}]
[647,"Georganiseerde activiteiten",3697.79,{"$f":"IFERROR(VLOOKUP(KOOGW[[#This Row],[Rubriek]],VastgoedVerdelingOG[],3,),0)","v":0},"Aanwezigheidsdagen",42930,{"$f":"IFERROR((KOOGW[[#This Row],[Werkingskosten]]+KOOGW[[#This Row],[Vastgoedkosten]])/KOOGW[[#This Row],[Totaal aantal per jaar]],0)","v":8.6135336594456088E-2}]
[747,"Recup georganiseerde act",-8466.51,{"$f":"IFERROR(VLOOKUP(KOOGW[[#This Row],[Rubriek]],VastgoedVerdelingOG[],3,),0)","v":0},"Aanwezigheidsdagen",42930,{"$f":"IFERROR((KOOGW[[#This Row],[Werkingskosten]]+KOOGW[[#This Row],[Vastgoedkosten]])/KOOGW[[#This Row],[Totaal aantal per jaar]],0)","v":-0.19721663172606568}]
[648,"Arbeidsgerichte activiteiten",1459.87,{"$f":"IFERROR(VLOOKUP(KOOGW[[#This Row],[Rubriek]],VastgoedVerdelingOG[],3,),0)","v":0},"Aanwezigheidsdagen",42930,{"$f":"IFERROR((KOOGW[[#This Row],[Werkingskosten]]+KOOGW[[#This Row],[Vastgoedkosten]])/KOOGW[[#This Row],[Totaal aantal per jaar]],0)","v":3.4005823433496389E-2}]
[748,"Recup arbeidsgerichte act",-1154.42,{"$f":"IFERROR(VLOOKUP(KOOGW[[#This Row],[Rubriek]],VastgoedVerdelingOG[],3,),0)","v":0},"Aanwezigheidsdagen",42930,{"$f":"IFERROR((KOOGW[[#This Row],[Werkingskosten]]+KOOGW[[#This Row],[Vastgoedkosten]])/KOOGW[[#This Row],[Totaal aantal per jaar]],0)","v":-2.6890752387607735E-2}]
[65,"Financiële kosten",54407.51,{"$f":"IFERROR(VLOOKUP(KOOGW[[#This Row],[Rubriek]],VastgoedVerdelingOG[],3,),0)","v":0},"Aanwezigheidsdagen",42930,{"$f":"IFERROR((KOOGW[[#This Row],[Werkingskosten]]+KOOGW[[#This Row],[Vastgoedkosten]])/KOOGW[[#This Row],[Totaal aantal per jaar]],0)","v":1.2673540647565806}]
[75,"Financiële opbrengsten",-77492.25,{"$f":"IFERROR(VLOOKUP(KOOGW[[#This Row],[Rubriek]],VastgoedVerdelingOG[],3,),0)","v":0},"Aanwezigheidsdagen",42930,{"$f":"IFERROR((KOOGW[[#This Row],[Werkingskosten]]+KOOGW[[#This Row],[Vastgoedkosten]])/KOOGW[[#This Row],[Totaal aantal per jaar]],0)","v":-1.805083857442348}]
[null,"Elektriciteit",{"$f":"Energie!E10","v":36291.182299999993},{"$f":"IFERROR(VLOOKUP(KOOGW[[#This Row],[Rubriek]],VastgoedVerdelingOG[],3,),0)","v":0},"Aanwezigheidsdagen",42930,{"$f":"IFERROR((KOOGW[[#This Row],[Werkingskosten]]+KOOGW[[#This Row],[Vastgoedkosten]])/KOOGW[[#This Row],[Totaal aantal per jaar]],0)","v":0.84535714651758664}]
[null,"Water",{"$f":"Energie!E40","v":5609.9654},{"$f":"IFERROR(VLOOKUP(KOOGW[[#This Row],[Rubriek]],VastgoedVerdelingOG[],3,),0)","v":0},"Aanwezigheidsdagen",42930,{"$f":"IFERROR((KOOGW[[#This Row],[Werkingskosten]]+KOOGW[[#This Row],[Vastgoedkosten]])/KOOGW[[#This Row],[Totaal aantal per jaar]],0)","v":0.13067704169578384}]
[null,"Gas",{"$f":"Energie!E20","v":30753.442799999997},{"$f":"IFERROR(VLOOKUP(KOOGW[[#This Row],[Rubriek]],VastgoedVerdelingOG[],3,),0)","v":0},"Aanwezigheidsdagen",42930,{"$f":"IFERROR((KOOGW[[#This Row],[Werkingskosten]]+KOOGW[[#This Row],[Vastgoedkosten]])/KOOGW[[#This Row],[Totaal aantal per jaar]],0)","v":0.71636251572327037}]
[null,"Totaal",{"$f":"SUBTOTAL(109,KOOGW[Werkingskosten])","v":425221.42049999995},{"$f":"SUBTOTAL(109,KOOGW[Vastgoedkosten])","v":305061.31787878787}]

{"sheet":"Woon- en leefkosten","index":15,"n_rows":22,"n_cols":7,"rows_kept":22,"cut":false,"hidden":false,"merged":[]}
["Grootboekrekening","Woon- & Leefkost","Gebruikte verdeelsleutel","Totaal aantal eenheden","Brutokost per eenheid","Subsidies per eenheid","Nettokost per eenheid"]
[null,"Ontbijt","aantal nachten woonondersteuning",42930,1.3,0,{"$f":"WoonEnLeefKosten[[#This Row],[Brutokost per eenheid]]-WoonEnLeefKosten[[#This Row],[Subsidies per eenheid]]","v":1.3}]
[null,"Middagmaal","Aanwezigheidsdagen",42930,12.09,0,{"$f":"WoonEnLeefKosten[[#This Row],[Brutokost per eenheid]]-WoonEnLeefKosten[[#This Row],[Subsidies per eenheid]]","v":12.09}]
[null,"Avondmaal","Aanwezigheidsdagen",42930,1.95,0,{"$f":"WoonEnLeefKosten[[#This Row],[Brutokost per eenheid]]-WoonEnLeefKosten[[#This Row],[Subsidies per eenheid]]","v":1.95}]
[null,"Huur kamer","Aanwezigheidsdagen",42930,7.63,0,{"$f":"WoonEnLeefKosten[[#This Row],[Brutokost per eenheid]]-WoonEnLeefKosten[[#This Row],[Subsidies per eenheid]]","v":7.63}]
[null,"Onderhoud kamer","Aanwezigheidsdagen",42930,8.01,0,{"$f":"WoonEnLeefKosten[[#This Row],[Brutokost per eenheid]]-WoonEnLeefKosten[[#This Row],[Subsidies per eenheid]]","v":8.01}]
[null,"Naaisters","Uren",null,0,0,{"$f":"WoonEnLeefKosten[[#This Row],[Brutokost per eenheid]]-WoonEnLeefKosten[[#This Row],[Subsidies per eenheid]]","v":0}]
[null,"W&L 7","Aanwezigheidsdagen",null,0,0,{"$f":"WoonEnLeefKosten[[#This Row],[Brutokost per eenheid]]-WoonEnLeefKosten[[#This Row],[Subsidies per eenheid]]","v":0}]
[null,"W&L 8","Aanwezigheidsdagen",null,0,0,{"$f":"WoonEnLeefKosten[[#This Row],[Brutokost per eenheid]]-WoonEnLeefKosten[[#This Row],[Subsidies per eenheid]]","v":0}]
[null,"W&L 9","Aanwezigheidsdagen",null,0,0,{"$f":"WoonEnLeefKosten[[#This Row],[Brutokost per eenheid]]-WoonEnLeefKosten[[#This Row],[Subsidies per eenheid]]","v":0}]
[null,"W&L 10","Aanwezigheidsdagen",null,0,0,{"$f":"WoonEnLeefKosten[[#This Row],[Brutokost per eenheid]]-WoonEnLeefKosten[[#This Row],[Subsidies per eenheid]]","v":0}]
[null,"W&L 11","Aanwezigheidsdagen",null,0,0,{"$f":"WoonEnLeefKosten[[#This Row],[Brutokost per eenheid]]-WoonEnLeefKosten[[#This Row],[Subsidies per eenheid]]","v":0}]
[null,"W&L 12","Aanwezigheidsdagen",null,0,0,{"$f":"WoonEnLeefKosten[[#This Row],[Brutokost per eenheid]]-WoonEnLeefKosten[[#This Row],[Subsidies per eenheid]]","v":0}]
[null,"W&L 13","Aanwezigheidsdagen",null,0,0,{"$f":"WoonEnLeefKosten[[#This Row],[Brutokost per eenheid]]-WoonEnLeefKosten[[#This Row],[Subsidies per eenheid]]","v":0}]
[null,"W&L 14","Aanwezigheidsdagen",null,0,0,{"$f":"WoonEnLeefKosten[[#This Row],[Brutokost per eenheid]]-WoonEnLeefKosten[[#This Row],[Subsidies per eenheid]]","v":0}]
[null,"W&L 15","Aanwezigheidsdagen",null,0,0,{"$f":"WoonEnLeefKosten[[#This Row],[Brutokost per eenheid]]-WoonEnLeefKosten[[#This Row],[Subsidies per eenheid]]","v":0}]
[null,"W&L 16","Aanwezigheidsdagen",null,0,0,{"$f":"WoonEnLeefKosten[[#This Row],[Brutokost per eenheid]]-WoonEnLeefKosten[[#This Row],[Subsidies per eenheid]]","v":0}]
[null,"W&L 17","Aanwezigheidsdagen",null,0,0,{"$f":"WoonEnLeefKosten[[#This Row],[Brutokost per eenheid]]-WoonEnLeefKosten[[#This Row],[Subsidies per eenheid]]","v":0}]
[null,"W&L 18","Aanwezigheidsdagen",null,0,0,{"$f":"WoonEnLeefKosten[[#This Row],[Brutokost per eenheid]]-WoonEnLeefKosten[[#This Row],[Subsidies per eenheid]]","v":0}]
[null,"W&L 19","Aanwezigheidsdagen",null,0,0,{"$f":"WoonEnLeefKosten[[#This Row],[Brutokost per eenheid]]-WoonEnLeefKosten[[#This Row],[Subsidies per eenheid]]","v":0}]
[null,"W&L 20","Aanwezigheidsdagen",null,0,0,{"$f":"WoonEnLeefKosten[[#This Row],[Brutokost per eenheid]]-WoonEnLeefKosten[[#This Row],[Subsidies per eenheid]]","v":0}]
["Totaal"]

{"sheet":"Personeelsbaremas","index":16,"n_rows":29,"n_cols":5,"rows_kept":29,"cut":false,"hidden":false,"merged":[[0,1,0,2]]}
["Functiegroep","Barema",null,"Puntenwaarde/VTE","Uren per VTE"]
["Logistiek personeel klasse 4","barema 1","L4",53.5,1983.6]
["Logistiek personeel onderhoud cat II","barema 2","L4 ond II",53.5,1983.6]
["Logistiek personeel onderhoud cat III","barema 3","L4 ond III",53.5,1983.6]
["Logistiek personeel onderhoud cat IV","barema 4","L3 ond IV",56,1983.6]
["Logistiek personeel onderhoud cat V","barema 5","L2 ond V",61,1983.6]
["Logistiek personeel klasse 3 (In dienst voor 1/11/93)","barema 6","L3a",56,1983.6]
["Logistiek personeel klasse 3 (In dienst na 1/11/93)","barema 7","L3",56,1983.6]
["Logistiek personeel klasse 2","barema 8","L2    ",61,1983.6]
["Administratief + logistiek personeel klasse 1","barema 9","A1",71,1983.6]
["Administratief + logistiek personeel klasse 2","barema 10","A2",61,1983.6]
["Administratief personeel boekhouder klasse II","barema 11","A2 boekh Kl II",61.5,1983.6]
["Administratief personeel klasse 3","barema 12","A3",56,1983.6]
["Verzorgend personeel","barema 13","MV2",67,1983.6]
["Begeleidend en verzorgend personeel klasse 3","barema 14","B3",57.5,1983.6]
["Begeleidend en verzorgend personeel klasse 2B ","barema 15","B2B",61,1983.6]
["Begeleidend en verzorgend personeel klasse 2A","barema 16","B2A",63.5,1983.6]
["Opvoedend personeel klasse 1","barema 17","B1c",71,1983.6]
["Hoofdopvoeder","barema 18","B1b",79,1983.6]
["Opvoeder-groepchef","barema 19","B1a",86,1983.6]
["Sociaal paramedisch en therapeutisch personeel","barema 20","MV1",71,1983.6]
["Licentiaten en tandarts","barema 21","L1",90,1983.6]
["Onderdirecteur","barema 22","K5",90,1983.6]
["Directeur 30-59 bedden","barema 23","K3",93.5,1983.6]
["Directeur 60-89 bedden","barema 24","K2",96.5,1983.6]
["Directeur + 90 bedden","barema 25","K1",100,1983.6]
["Geneesheer omnipracticus","barema 26","G1",108,1248]
["Geneesheer specialist","barema 27","GS",143.5,1248]
["ADL-assistent","barema 28","B2B",61,1983.6]

{"sheet":"ZG personeel","index":17,"n_rows":26,"n_cols":17,"rows_kept":26,"cut":false,"hidden":false,"merged":[]}
[]
[]
[]
[]
["Naam persoon of groepsnaam","Loonkost","Aantal personen in groep","Dienst","Functiegroep","Barema","Punten","Totaal punten","Uren/jaar","Totaal uren/jaar","Jobtime","Besteedbare uren","Bezetting","Reële bezette uren","Maximale punten","Reële punten","Euro/punt"]
["Nachtdienst klasse 1",57500.85,0.75,"Nachtdienst","Opvoedend personeel klasse 1",{"$f":"VLOOKUP(ZGPB[[#This Row],[Functiegroep]],Personeelsbaremas!$A$2:$D$29,2,)","v":"barema 17"},{"$f":"VLOOKUP(ZGPB[[#This Row],[Functiegroep]],Personeelsbaremas!$A$2:$D$29,4,)","v":71},{"$f":"ZGPB[[#This Row],[Punten]]*ZGPB[[#This Row],[Aantal personen in groep]]","v":53.25},{"$f":"VLOOKUP(ZGPB[[#This Row],[Barema]],Personeelsbaremas!$B$2:$E$29,4,)","v":1983.6},{"$f":"ZGPB[[#This Row],[Uren/jaar]]*ZGPB[[#This Row],[Aantal personen in groep]]","v":1487.6999999999998},1,{"$f":"ZGPB[[#This Row],[Totaal uren/jaar]]*ZGPB[[#This Row],[Jobtime]]","v":1487.6999999999998},0.85,{"$f":"M6*L6","v":1264.5449999999998},{"$f":"ZGPB[[#This Row],[Totaal punten]]*ZGPB[[#This Row],[Jobtime]]","v":53.25},{"$f":"(ZGPB[[#This Row],[Totaal punten]]*ZGPB[[#This Row],[Jobtime]]*ZGPB[[#This Row],[Bezetting]])","v":45.262499999999996},{"$f":"IFERROR(ZGPB[[#This Row],[Loonkost]]/ZGPB[[#This Row],[Maximale punten]],0)","v":1079.8281690140846}]
["Nachtdienst klasse 2",{"$f":"473656.66-57500.85-56041.04","v":360114.77},6.05,"Nachtdienst","Begeleidend en verzorgend personeel klasse 2A",{"$f":"VLOOKUP(ZGPB[[#This Row],[Functiegroep]],Personeelsbaremas!$A$2:$D$29,2,)","v":"barema 16"},{"$f":"VLOOKUP(ZGPB[[#This Row],[Functiegroep]],Personeelsbaremas!$A$2:$D$29,4,)","v":63.5},{"$f":"ZGPB[[#This Row],[Punten]]*ZGPB[[#This Row],[Aantal personen in groep]]","v":384.17500000000001},{"$f":"VLOOKUP(ZGPB[[#This Row],[Barema]],Personeelsbaremas!$B$2:$E$29,4,)","v":1983.6},{"$f":"ZGPB[[#This Row],[Uren/jaar]]*ZGPB[[#This Row],[Aantal personen in groep]]","v":12000.779999999999},1,{"$f":"ZGPB[[#This Row],[Totaal uren/jaar]]*ZGPB[[#This Row],[Jobtime]]","v":12000.779999999999},0.9,10800.701999999999,{"$f":"ZGPB[[#This Row],[Totaal punten]]*ZGPB[[#This Row],[Jobtime]]","v":384.17500000000001},{"$f":"(ZGPB[[#This Row],[Totaal punten]]*ZGPB[[#This Row],[Jobtime]]*ZGPB[[#This Row],[Bezetting]])","v":345.75749999999999},{"$f":"IFERROR(ZGPB[[#This Row],[Loonkost]]/ZGPB[[#This Row],[Maximale punten]],0)","v":937.37169258801327}]
["Nachtdienst Verantw.",56041.04,0.75,"Nachtdienst","Hoofdopvoeder",{"$f":"VLOOKUP(ZGPB[[#This Row],[Functiegroep]],Personeelsbaremas!$A$2:$D$29,2,)","v":"barema 18"},{"$f":"VLOOKUP(ZGPB[[#This Row],[Functiegroep]],Personeelsbaremas!$A$2:$D$29,4,)","v":79},{"$f":"ZGPB[[#This Row],[Punten]]*ZGPB[[#This Row],[Aantal personen in groep]]","v":59.25},{"$f":"VLOOKUP(ZGPB[[#This Row],[Barema]],Personeelsbaremas!$B$2:$E$29,4,)","v":1983.6},{"$f":"ZGPB[[#This Row],[Uren/jaar]]*ZGPB[[#This Row],[Aantal personen in groep]]","v":1487.6999999999998},1,{"$f":"ZGPB[[#This Row],[Totaal uren/jaar]]*ZGPB[[#This Row],[Jobtime]]","v":1487.6999999999998},0.9,1338.9299999999998,{"$f":"ZGPB[[#This Row],[Totaal punten]]*ZGPB[[#This Row],[Jobtime]]","v":59.25},{"$f":"(ZGPB[[#This Row],[Totaal punten]]*ZGPB[[#This Row],[Jobtime]]*ZGPB[[#This Row],[Bezetting]])","v":53.325000000000003},{"$f":"IFERROR(ZGPB[[#This Row],[Loonkost]]/ZGPB[[#This Row],[Maximale punten]],0)","v":945.84033755274265}]
["Kine verantwoordelijke",60583.45,0.82,"Kinesist","Licentiaten en tandarts",{"$f":"VLOOKUP(ZGPB[[#This Row],[Functiegroep]],Personeelsbaremas!$A$2:$D$29,2,)","v":"barema 21"},{"$f":"VLOOKUP(ZGPB[[#This Row],[Functiegroep]],Personeelsbaremas!$A$2:$D$29,4,)","v":90},{"$f":"ZGPB[[#This Row],[Punten]]*ZGPB[[#This Row],[Aantal personen in groep]]","v":73.8},{"$f":"VLOOKUP(ZGPB[[#This Row],[Barema]],Personeelsbaremas!$B$2:$E$29,4,)","v":1983.6},{"$f":"ZGPB[[#This Row],[Uren/jaar]]*ZGPB[[#This Row],[Aantal personen in groep]]","v":1626.5519999999999},1,{"$f":"ZGPB[[#This Row],[Totaal uren/jaar]]*ZGPB[[#This Row],[Jobtime]]","v":1626.5519999999999},0.85,1382.5691999999999,{"$f":"ZGPB[[#This Row],[Totaal punten]]*ZGPB[[#This Row],[Jobtime]]","v":73.8},{"$f":"(ZGPB[[#This Row],[Totaal punten]]*ZGPB[[#This Row],[Jobtime]]*ZGPB[[#This Row],[Bezetting]])","v":62.73},{"$f":"IFERROR(ZGPB[[#This Row],[Loonkost]]/ZGPB[[#This Row],[Maximale punten]],0)","v":820.91395663956644}]
["Kinesist",{"$f":"328981.39-60583.45","v":268397.94},3.88,"Kinesist","Sociaal paramedisch en therapeutisch personeel",{"$f":"VLOOKUP(ZGPB[[#This Row],[Functiegroep]],Personeelsbaremas!$A$2:$D$29,2,)","v":"barema 20"},{"$f":"VLOOKUP(ZGPB[[#This Row],[Functiegroep]],Personeelsbaremas!$A$2:$D$29,4,)","v":71},{"$f":"ZGPB[[#This Row],[Punten]]*ZGPB[[#This Row],[Aantal personen in groep]]","v":275.48},{"$f":"VLOOKUP(ZGPB[[#This Row],[Barema]],Personeelsbaremas!$B$2:$E$29,4,)","v":1983.6},{"$f":"ZGPB[[#This Row],[Uren/jaar]]*ZGPB[[#This Row],[Aantal personen in groep]]","v":7696.3679999999995},1,{"$f":"ZGPB[[#This Row],[Totaal uren/jaar]]*ZGPB[[#This Row],[Jobtime]]","v":7696.3679999999995},0.85,6541.9127999999992,{"$f":"ZGPB[[#This Row],[Totaal punten]]*ZGPB[[#This Row],[Jobtime]]","v":275.48},{"$f":"(ZGPB[[#This Row],[Totaal punten]]*ZGPB[[#This Row],[Jobtime]]*ZGPB[[#This Row],[Bezetting]])","v":234.15800000000002},{"$f":"IFERROR(ZGPB[[#This Row],[Loonkost]]/ZGPB[[#This Row],[Maximale punten]],0)","v":974.29192681864379}]
["Logopedist",{"$f":"38992.25+8870.83","v":47863.08},1,"Logopedist","Sociaal paramedisch en therapeutisch personeel",{"$f":"VLOOKUP(ZGPB[[#This Row],[Functiegroep]],Personeelsbaremas!$A$2:$D$29,2,)","v":"barema 20"},{"$f":"VLOOKUP(ZGPB[[#This Row],[Functiegroep]],Personeelsbaremas!$A$2:$D$29,4,)","v":71},{"$f":"ZGPB[[#This Row],[Punten]]*ZGPB[[#This Row],[Aantal personen in groep]]","v":71},{"$f":"VLOOKUP(ZGPB[[#This Row],[Barema]],Personeelsbaremas!$B$2:$E$29,4,)","v":1983.6},{"$f":"ZGPB[[#This Row],[Uren/jaar]]*ZGPB[[#This Row],[Aantal personen in groep]]","v":1983.6},1,{"$f":"ZGPB[[#This Row],[Totaal uren/jaar]]*ZGPB[[#This Row],[Jobtime]]","v":1983.6},0.9,1785.24,{"$f":"ZGPB[[#This Row],[Totaal punten]]*ZGPB[[#This Row],[Jobtime]]","v":71},{"$f":"(ZGPB[[#This Row],[Totaal punten]]*ZGPB[[#This Row],[Jobtime]]*ZGPB[[#This Row],[Bezetting]])","v":63.9},{"$f":"IFERROR(ZGPB[[#This Row],[Loonkost]]/ZGPB[[#This Row],[Maximale punten]],0)","v":674.1278873239437}]
["Diëtist",43133.88,0.8,"Diëtist","Sociaal paramedisch en therapeutisch personeel",{"$f":"VLOOKUP(ZGPB[[#This Row],[Functiegroep]],Personeelsbaremas!$A$2:$D$29,2,)","v":"barema 20"},{"$f":"VLOOKUP(ZGPB[[#This Row],[Functiegroep]],Personeelsbaremas!$A$2:$D$29,4,)","v":71},{"$f":"ZGPB[[#This Row],[Punten]]*ZGPB[[#This Row],[Aantal personen in groep]]","v":56.800000000000004},{"$f":"VLOOKUP(ZGPB[[#This Row],[Barema]],Personeelsbaremas!$B$2:$E$29,4,)","v":1983.6},{"$f":"ZGPB[[#This Row],[Uren/jaar]]*ZGPB[[#This Row],[Aantal personen in groep]]","v":1586.88},1,{"$f":"ZGPB[[#This Row],[Totaal uren/jaar]]*ZGPB[[#This Row],[Jobtime]]","v":1586.88},0.95,1507.5360000000001,{"$f":"ZGPB[[#This Row],[Totaal punten]]*ZGPB[[#This Row],[Jobtime]]","v":56.800000000000004},{"$f":"(ZGPB[[#This Row],[Totaal punten]]*ZGPB[[#This Row],[Jobtime]]*ZGPB[[#This Row],[Bezetting]])","v":53.96},{"$f":"IFERROR(ZGPB[[#This Row],[Loonkost]]/ZGPB[[#This Row],[Maximale punten]],0)","v":759.39929577464784}]
["Specialist",19270.82,0.17,"Dokters","Geneesheer specialist",{"$f":"VLOOKUP(ZGPB[[#This Row],[Functiegroep]],Personeelsbaremas!$A$2:$D$29,2,)","v":"barema 27"},{"$f":"VLOOKUP(ZGPB[[#This Row],[Functiegroep]],Personeelsbaremas!$A$2:$D$29,4,)","v":143.5},{"$f":"ZGPB[[#This Row],[Punten]]*ZGPB[[#This Row],[Aantal personen in groep]]","v":24.395000000000003},{"$f":"VLOOKUP(ZGPB[[#This Row],[Barema]],Personeelsbaremas!$B$2:$E$29,4,)","v":1248},{"$f":"ZGPB[[#This Row],[Uren/jaar]]*ZGPB[[#This Row],[Aantal personen in groep]]","v":212.16000000000003},1,{"$f":"ZGPB[[#This Row],[Totaal uren/jaar]]*ZGPB[[#This Row],[Jobtime]]","v":212.16000000000003},0.9,190.94400000000002,{"$f":"ZGPB[[#This Row],[Totaal punten]]*ZGPB[[#This Row],[Jobtime]]","v":24.395000000000003},{"$f":"(ZGPB[[#This Row],[Totaal punten]]*ZGPB[[#This Row],[Jobtime]]*ZGPB[[#This Row],[Bezetting]])","v":21.955500000000004},{"$f":"IFERROR(ZGPB[[#This Row],[Loonkost]]/ZGPB[[#This Row],[Maximale punten]],0)","v":789.94957983193262}]
["Orthoagoog",164620.39000000001,2.63,"Orthoagoog","Licentiaten en tandarts",{"$f":"VLOOKUP(ZGPB[[#This Row],[Functiegroep]],Personeelsbaremas!$A$2:$D$29,2,)","v":"barema 21"},{"$f":"VLOOKUP(ZGPB[[#This Row],[Functiegroep]],Personeelsbaremas!$A$2:$D$29,4,)","v":90},{"$f":"ZGPB[[#This Row],[Punten]]*ZGPB[[#This Row],[Aantal personen in groep]]","v":236.7},{"$f":"VLOOKUP(ZGPB[[#This Row],[Barema]],Personeelsbaremas!$B$2:$E$29,4,)","v":1983.6},{"$f":"ZGPB[[#This Row],[Uren/jaar]]*ZGPB[[#This Row],[Aantal personen in groep]]","v":5216.8679999999995},1,{"$f":"ZGPB[[#This Row],[Totaal uren/jaar]]*ZGPB[[#This Row],[Jobtime]]","v":5216.8679999999995},0.85,4434.3377999999993,{"$f":"ZGPB[[#This Row],[Totaal punten]]*ZGPB[[#This Row],[Jobtime]]","v":236.7},{"$f":"(ZGPB[[#This Row],[Totaal punten]]*ZGPB[[#This Row],[Jobtime]]*ZGPB[[#This Row],[Bezetting]])","v":201.19499999999999},{"$f":"IFERROR(ZGPB[[#This Row],[Loonkost]]/ZGPB[[#This Row],[Maximale punten]],0)","v":695.48115758343909}]
["Verpleegster 2",{"$f":"36634.74+15518.01+55998.08+36943.15+44860.53+61909.94+37823.79+50405+54462.78","v":394556.02},8.85,"Verpleegkundigen","Verzorgend personeel",{"$f":"VLOOKUP(ZGPB[[#This Row],[Functiegroep]],Personeelsbaremas!$A$2:$D$29,2,)","v":"barema 13"},{"$f":"VLOOKUP(ZGPB[[#This Row],[Functiegroep]],Personeelsbaremas!$A$2:$D$29,4,)","v":67},{"$f":"ZGPB[[#This Row],[Punten]]*ZGPB[[#This Row],[Aantal personen in groep]]","v":592.94999999999993},{"$f":"VLOOKUP(ZGPB[[#This Row],[Barema]],Personeelsbaremas!$B$2:$E$29,4,)","v":1983.6},{"$f":"ZGPB[[#This Row],[Uren/jaar]]*ZGPB[[#This Row],[Aantal personen in groep]]","v":17554.859999999997},1,{"$f":"ZGPB[[#This Row],[Totaal uren/jaar]]*ZGPB[[#This Row],[Jobtime]]","v":17554.859999999997},0.85,14921.630999999998,{"$f":"ZGPB[[#This Row],[Totaal punten]]*ZGPB[[#This Row],[Jobtime]]","v":592.94999999999993},{"$f":"(ZGPB[[#This Row],[Totaal punten]]*ZGPB[[#This Row],[Jobtime]]*ZGPB[[#This Row],[Bezetting]])","v":504.00749999999994},{"$f":"IFERROR(ZGPB[[#This Row],[Loonkost]]/ZGPB[[#This Row],[Maximale punten]],0)","v":665.41195716333596}]
["Dagbesteding verantw.",73542.36,1,"Dagbestedingsbegeleider","Hoofdopvoeder",{"$f":"VLOOKUP(ZGPB[[#This Row],[Functiegroep]],Personeelsbaremas!$A$2:$D$29,2,)","v":"barema 18"},{"$f":"VLOOKUP(ZGPB[[#This Row],[Functiegroep]],Personeelsbaremas!$A$2:$D$29,4,)","v":79},{"$f":"ZGPB[[#This Row],[Punten]]*ZGPB[[#This Row],[Aantal personen in groep]]","v":79},{"$f":"VLOOKUP(ZGPB[[#This Row],[Barema]],Personeelsbaremas!$B$2:$E$29,4,)","v":1983.6},{"$f":"ZGPB[[#This Row],[Uren/jaar]]*ZGPB[[#This Row],[Aantal personen in groep]]","v":1983.6},1,{"$f":"ZGPB[[#This Row],[Totaal uren/jaar]]*ZGPB[[#This Row],[Jobtime]]","v":1983.6},0.9,1785.24,{"$f":"ZGPB[[#This Row],[Totaal punten]]*ZGPB[[#This Row],[Jobtime]]","v":79},{"$f":"(ZGPB[[#This Row],[Totaal punten]]*ZGPB[[#This Row],[Jobtime]]*ZGPB[[#This Row],[Bezetting]])","v":71.100000000000009},{"$f":"IFERROR(ZGPB[[#This Row],[Loonkost]]/ZGPB[[#This Row],[Maximale punten]],0)","v":930.91594936708861}]
["Dagbesteding ergo",{"$f":"41342.2+34365.78+54958.77","v":130666.75},2.2200000000000002,"Dagbestedingsbegeleider","Sociaal paramedisch en therapeutisch personeel",{"$f":"VLOOKUP(ZGPB[[#This Row],[Functiegroep]],Personeelsbaremas!$A$2:$D$29,2,)","v":"barema 20"},{"$f":"VLOOKUP(ZGPB[[#This Row],[Functiegroep]],Personeelsbaremas!$A$2:$D$29,4,)","v":71},{"$f":"ZGPB[[#This Row],[Punten]]*ZGPB[[#This Row],[Aantal personen in groep]]","v":157.62},{"$f":"VLOOKUP(ZGPB[[#This Row],[Barema]],Personeelsbaremas!$B$2:$E$29,4,)","v":1983.6},{"$f":"ZGPB[[#This Row],[Uren/jaar]]*ZGPB[[#This Row],[Aantal personen in groep]]","v":4403.5920000000006},1,{"$f":"ZGPB[[#This Row],[Totaal uren/jaar]]*ZGPB[[#This Row],[Jobtime]]","v":4403.5920000000006},0.95,4183.4124000000002,{"$f":"ZGPB[[#This Row],[Totaal punten]]*ZGPB[[#This Row],[Jobtime]]","v":157.62},{"$f":"(ZGPB[[#This Row],[Totaal punten]]*ZGPB[[#This Row],[Jobtime]]*ZGPB[[#This Row],[Bezetting]])","v":149.739},{"$f":"IFERROR(ZGPB[[#This Row],[Loonkost]]/ZGPB[[#This Row],[Maximale punten]],0)","v":828.99854079431543}]
["Dagbesteding A1",{"$f":"42033.9+45875.2+15319.94+44492.94","v":147721.98000000001},2.5,"Dagbestedingsbegeleider","Opvoedend personeel klasse 1",{"$f":"VLOOKUP(ZGPB[[#This Row],[Functiegroep]],Personeelsbaremas!$A$2:$D$29,2,)","v":"barema 17"},{"$f":"VLOOKUP(ZGPB[[#This Row],[Functiegroep]],Personeelsbaremas!$A$2:$D$29,4,)","v":71},{"$f":"ZGPB[[#This Row],[Punten]]*ZGPB[[#This Row],[Aantal personen in groep]]","v":177.5},{"$f":"VLOOKUP(ZGPB[[#This Row],[Barema]],Personeelsbaremas!$B$2:$E$29,4,)","v":1983.6},{"$f":"ZGPB[[#This Row],[Uren/jaar]]*ZGPB[[#This Row],[Aantal personen in groep]]","v":4959},1,{"$f":"ZGPB[[#This Row],[Totaal uren/jaar]]*ZGPB[[#This Row],[Jobtime]]","v":4959},0.85,4215.1499999999996,{"$f":"ZGPB[[#This Row],[Totaal punten]]*ZGPB[[#This Row],[Jobtime]]","v":177.5},{"$f":"(ZGPB[[#This Row],[Totaal punten]]*ZGPB[[#This Row],[Jobtime]]*ZGPB[[#This Row],[Bezetting]])","v":150.875},{"$f":"IFERROR(ZGPB[[#This Row],[Loonkost]]/ZGPB[[#This Row],[Maximale punten]],0)","v":832.23650704225361}]
["Dagbesteding A2",{"$f":"60226.32+30260.74+1686.53+42319.67+48797.1","v":183290.36000000002},3.14,"Dagbestedingsbegeleider","Begeleidend en verzorgend personeel klasse 2A",{"$f":"VLOOKUP(ZGPB[[#This Row],[Functiegroep]],Personeelsbaremas!$A$2:$D$29,2,)","v":"barema 16"},{"$f":"VLOOKUP(ZGPB[[#This Row],[Functiegroep]],Personeelsbaremas!$A$2:$D$29,4,)","v":63.5},{"$f":"ZGPB[[#This Row],[Punten]]*ZGPB[[#This Row],[Aantal personen in groep]]","v":199.39000000000001},{"$f":"VLOOKUP(ZGPB[[#This Row],[Barema]],Personeelsbaremas!$B$2:$E$29,4,)","v":1983.6},{"$f":"ZGPB[[#This Row],[Uren/jaar]]*ZGPB[[#This Row],[Aantal personen in groep]]","v":6228.5039999999999},1,{"$f":"ZGPB[[#This Row],[Totaal uren/jaar]]*ZGPB[[#This Row],[Jobtime]]","v":6228.5039999999999},0.9,5605.6535999999996,{"$f":"ZGPB[[#This Row],[Totaal punten]]*ZGPB[[#This Row],[Jobtime]]","v":199.39000000000001},{"$f":"(ZGPB[[#This Row],[Totaal punten]]*ZGPB[[#This Row],[Jobtime]]*ZGPB[[#This Row],[Bezetting]])","v":179.45100000000002},{"$f":"IFERROR(ZGPB[[#This Row],[Loonkost]]/ZGPB[[#This Row],[Maximale punten]],0)","v":919.25552936456188}]
["Dagbesteding B2",28765.27,0.5,"Dagbestedingsbegeleider","Begeleidend en verzorgend personeel klasse 2B ",{"$f":"VLOOKUP(ZGPB[[#This Row],[Functiegroep]],Personeelsbaremas!$A$2:$D$29,2,)","v":"barema 15"},{"$f":"VLOOKUP(ZGPB[[#This Row],[Functiegroep]],Personeelsbaremas!$A$2:$D$29,4,)","v":61},{"$f":"ZGPB[[#This Row],[Punten]]*ZGPB[[#This Row],[Aantal personen in groep]]","v":30.5},{"$f":"VLOOKUP(ZGPB[[#This Row],[Barema]],Personeelsbaremas!$B$2:$E$29,4,)","v":1983.6},{"$f":"ZGPB[[#This Row],[Uren/jaar]]*ZGPB[[#This Row],[Aantal personen in groep]]","v":991.8},1,{"$f":"ZGPB[[#This Row],[Totaal uren/jaar]]*ZGPB[[#This Row],[Jobtime]]","v":991.8},0.85,843.03,{"$f":"ZGPB[[#This Row],[Totaal punten]]*ZGPB[[#This Row],[Jobtime]]","v":30.5},{"$f":"(ZGPB[[#This Row],[Totaal punten]]*ZGPB[[#This Row],[Jobtime]]*ZGPB[[#This Row],[Bezetting]])","v":25.925000000000001},{"$f":"IFERROR(ZGPB[[#This Row],[Loonkost]]/ZGPB[[#This Row],[Maximale punten]],0)","v":943.12360655737712}]
["Leefgroepverantw.",{"$f":"56179.59+23173.14+53011.3+37986.69+65659.71+68660.62+51700.49+68367.45+64225.62+46158.73+63847.32+10663.33-3471.87+14610.4-8246.11","v":612526.40999999992},12.1,"Leefgroepbegeleider","Hoofdopvoeder",{"$f":"VLOOKUP(ZGPB[[#This Row],[Functiegroep]],Personeelsbaremas!$A$2:$D$29,2,)","v":"barema 18"},{"$f":"VLOOKUP(ZGPB[[#This Row],[Functiegroep]],Personeelsbaremas!$A$2:$D$29,4,)","v":79},{"$f":"ZGPB[[#This Row],[Punten]]*ZGPB[[#This Row],[Aantal personen in groep]]","v":955.9},{"$f":"VLOOKUP(ZGPB[[#This Row],[Barema]],Personeelsbaremas!$B$2:$E$29,4,)","v":1983.6},{"$f":"ZGPB[[#This Row],[Uren/jaar]]*ZGPB[[#This Row],[Aantal personen in groep]]","v":24001.559999999998},1,{"$f":"ZGPB[[#This Row],[Totaal uren/jaar]]*ZGPB[[#This Row],[Jobtime]]","v":24001.559999999998},0.95,22801.481999999996,{"$f":"ZGPB[[#This Row],[Totaal punten]]*ZGPB[[#This Row],[Jobtime]]","v":955.9},{"$f":"(ZGPB[[#This Row],[Totaal punten]]*ZGPB[[#This Row],[Jobtime]]*ZGPB[[#This Row],[Bezetting]])","v":908.1049999999999},{"$f":"IFERROR(ZGPB[[#This Row],[Loonkost]]/ZGPB[[#This Row],[Maximale punten]],0)","v":640.78502981483416}]
["Leefgroep A1",{"$f":"59487.42+69565.14+36596.1+53196.94+10532.03+3240.31+2110.5+16142.53+48874.31+32800.23+76756.78+41296.94+47263.43","v":497862.66000000003},8.7100000000000009,"Leefgroepbegeleider","Opvoedend personeel klasse 1",{"$f":"VLOOKUP(ZGPB[[#This Row],[Functiegroep]],Personeelsbaremas!$A$2:$D$29,2,)","v":"barema 17"},{"$f":"VLOOKUP(ZGPB[[#This Row],[Functiegroep]],Personeelsbaremas!$A$2:$D$29,4,)","v":71},{"$f":"ZGPB[[#This Row],[Punten]]*ZGPB[[#This Row],[Aantal personen in groep]]","v":618.41000000000008},{"$f":"VLOOKUP(ZGPB[[#This Row],[Barema]],Personeelsbaremas!$B$2:$E$29,4,)","v":1983.6},{"$f":"ZGPB[[#This Row],[Uren/jaar]]*ZGPB[[#This Row],[Aantal personen in groep]]","v":17277.156000000003},1,{"$f":"ZGPB[[#This Row],[Totaal uren/jaar]]*ZGPB[[#This Row],[Jobtime]]","v":17277.156000000003},0.9,15549.440400000003,{"$f":"ZGPB[[#This Row],[Totaal punten]]*ZGPB[[#This Row],[Jobtime]]","v":618.41000000000008},{"$f":"(ZGPB[[#This Row],[Totaal punten]]*ZGPB[[#This Row],[Jobtime]]*ZGPB[[#This Row],[Bezetting]])","v":556.56900000000007},{"$f":"IFERROR(ZGPB[[#This Row],[Loonkost]]/ZGPB[[#This Row],[Maximale punten]],0)","v":805.06890250804474}]
["Leefgroep A2",3543553.16,56.25,"Leefgroepbegeleider","Begeleidend en verzorgend personeel klasse 2A",{"$f":"VLOOKUP(ZGPB[[#This Row],[Functiegroep]],Personeelsbaremas!$A$2:$D$29,2,)","v":"barema 16"},{"$f":"VLOOKUP(ZGPB[[#This Row],[Functiegroep]],Personeelsbaremas!$A$2:$D$29,4,)","v":63.5},{"$f":"ZGPB[[#This Row],[Punten]]*ZGPB[[#This Row],[Aantal personen in groep]]","v":3571.875},{"$f":"VLOOKUP(ZGPB[[#This Row],[Barema]],Personeelsbaremas!$B$2:$E$29,4,)","v":1983.6},{"$f":"ZGPB[[#This Row],[Uren/jaar]]*ZGPB[[#This Row],[Aantal personen in groep]]","v":111577.5},1,{"$f":"ZGPB[[#This Row],[Totaal uren/jaar]]*ZGPB[[#This Row],[Jobtime]]","v":111577.5},0.85,94840.875,{"$f":"ZGPB[[#This Row],[Totaal punten]]*ZGPB[[#This Row],[Jobtime]]","v":3571.875},{"$f":"(ZGPB[[#This Row],[Totaal punten]]*ZGPB[[#This Row],[Jobtime]]*ZGPB[[#This Row],[Bezetting]])","v":3036.09375},{"$f":"IFERROR(ZGPB[[#This Row],[Loonkost]]/ZGPB[[#This Row],[Maximale punten]],0)","v":992.07087594050745}]
["Leefgroep B2",{"$f":"24788.55+2325.03+2277.71+1774.19+1552.29+1690.99+3673.98+3718.38+2078.81+1586.03+1535.16","v":47001.119999999995},1.64,"Leefgroepbegeleider","Begeleidend en verzorgend personeel klasse 2B ",{"$f":"VLOOKUP(ZGPB[[#This Row],[Functiegroep]],Personeelsbaremas!$A$2:$D$29,2,)","v":"barema 15"},{"$f":"VLOOKUP(ZGPB[[#This Row],[Functiegroep]],Personeelsbaremas!$A$2:$D$29,4,)","v":61},{"$f":"ZGPB[[#This Row],[Punten]]*ZGPB[[#This Row],[Aantal personen in groep]]","v":100.03999999999999},{"$f":"VLOOKUP(ZGPB[[#This Row],[Barema]],Personeelsbaremas!$B$2:$E$29,4,)","v":1983.6},{"$f":"ZGPB[[#This Row],[Uren/jaar]]*ZGPB[[#This Row],[Aantal personen in groep]]","v":3253.1039999999998},1,{"$f":"ZGPB[[#This Row],[Totaal uren/jaar]]*ZGPB[[#This Row],[Jobtime]]","v":3253.1039999999998},0.85,2765.1383999999998,{"$f":"ZGPB[[#This Row],[Totaal punten]]*ZGPB[[#This Row],[Jobtime]]","v":100.03999999999999},{"$f":"(ZGPB[[#This Row],[Totaal punten]]*ZGPB[[#This Row],[Jobtime]]*ZGPB[[#This Row],[Bezetting]])","v":85.033999999999992},{"$f":"IFERROR(ZGPB[[#This Row],[Loonkost]]/ZGPB[[#This Row],[Maximale punten]],0)","v":469.82327069172328}]
["Leefgroep 3",{"$f":"3809.91+1839.25+1470.22","v":7119.38},0.19,"Leefgroepbegeleider","Begeleidend en verzorgend personeel klasse 3",{"$f":"VLOOKUP(ZGPB[[#This Row],[Functiegroep]],Personeelsbaremas!$A$2:$D$29,2,)","v":"barema 14"},{"$f":"VLOOKUP(ZGPB[[#This Row],[Functiegroep]],Personeelsbaremas!$A$2:$D$29,4,)","v":57.5},{"$f":"ZGPB[[#This Row],[Punten]]*ZGPB[[#This Row],[Aantal personen in groep]]","v":10.925000000000001},{"$f":"VLOOKUP(ZGPB[[#This Row],[Barema]],Personeelsbaremas!$B$2:$E$29,4,)","v":1983.6},{"$f":"ZGPB[[#This Row],[Uren/jaar]]*ZGPB[[#This Row],[Aantal personen in groep]]","v":376.88400000000001},1,{"$f":"ZGPB[[#This Row],[Totaal uren/jaar]]*ZGPB[[#This Row],[Jobtime]]","v":376.88400000000001},0.9,339.19560000000001,{"$f":"ZGPB[[#This Row],[Totaal punten]]*ZGPB[[#This Row],[Jobtime]]","v":10.925000000000001},{"$f":"(ZGPB[[#This Row],[Totaal punten]]*ZGPB[[#This Row],[Jobtime]]*ZGPB[[#This Row],[Bezetting]])","v":9.8325000000000014},{"$f":"IFERROR(ZGPB[[#This Row],[Loonkost]]/ZGPB[[#This Row],[Maximale punten]],0)","v":651.6594965675057}]
["Totaal",{"$f":"SUBTOTAL(109,ZGPB[Loonkost])","v":6744131.6900000004},{"$f":"SUBTOTAL(109,ZGPB[Aantal personen in groep])","v":113.95}]

{"sheet":"OG personeel","index":18,"n_rows":20,"n_cols":15,"rows_kept":20,"cut":false,"hidden":false,"merged":[]}
["Aantal uren VTE",1983.6]
[]
[]
[]
["Naam persoon of groepsnaam","Totale loonkost","Loon toewijsbaar aan woon- & leefkosten","W&L","Woon - & leef activiteit","Aantal personen in groep","Dienst","Functiegroep","Barema","Punten per VTE","Punten in groep","Uren per jaar VTE","Jobtime","Totaal punten","Euro/punt"]
["Huiscoördinator",211532.47,0,{"$f":"IF(OGPB[[#This Row],[Loon toewijsbaar aan woon- & leefkosten]]>0,\"LijstWenL\",\"\")","v":""},null,3.25,"Huiscoördinatoren","Opvoeder-groepchef",{"$f":"VLOOKUP(OGPB[[#This Row],[Functiegroep]],Personeelsbaremas!$A$2:$D$29,2,)","v":"barema 19"},{"$f":"VLOOKUP(OGPB[[#This Row],[Functiegroep]],Personeelsbaremas!$A$2:$D$29,4,)","v":86},{"$f":"OGPB[[#This Row],[Punten per VTE]]*OGPB[[#This Row],[Aantal personen in groep]]","v":279.5},{"$f":"$B$1*OGPB[[#This Row],[Aantal personen in groep]]","v":6446.7},1,{"$f":"OGPB[Punten in groep]*OGPB[Jobtime]","v":279.5},{"$f":"IFERROR(OGPB[[#This Row],[Totale loonkost]]/OGPB[[#This Row],[Totaal punten]],0)","v":756.82457960644012}]
["Medewerker zinzorg en pastoraat",38404.82,0,{"$f":"IF(OGPB[[#This Row],[Loon toewijsbaar aan woon- & leefkosten]]>0,\"LijstWenL\",\"\")","v":""},null,0.5,"Zinzorg en pastoraat","Opvoeder-groepchef",{"$f":"VLOOKUP(OGPB[[#This Row],[Functiegroep]],Personeelsbaremas!$A$2:$D$29,2,)","v":"barema 19"},{"$f":"VLOOKUP(OGPB[[#This Row],[Functiegroep]],Personeelsbaremas!$A$2:$D$29,4,)","v":86},{"$f":"OGPB[[#This Row],[Punten per VTE]]*OGPB[[#This Row],[Aantal personen in groep]]","v":43},{"$f":"$B$1*OGPB[[#This Row],[Aantal personen in groep]]","v":991.8},1,{"$f":"OGPB[Punten in groep]*OGPB[Jobtime]","v":43},{"$f":"IFERROR(OGPB[[#This Row],[Totale loonkost]]/OGPB[[#This Row],[Totaal punten]],0)","v":893.13534883720934}]
["Sociale Dienst",92261.06,0,{"$f":"IF(OGPB[[#This Row],[Loon toewijsbaar aan woon- & leefkosten]]>0,\"LijstWenL\",\"\")","v":""},null,1.35,"Sociale dienst","Sociaal paramedisch en therapeutisch personeel",{"$f":"VLOOKUP(OGPB[[#This Row],[Functiegroep]],Personeelsbaremas!$A$2:$D$29,2,)","v":"barema 20"},{"$f":"VLOOKUP(OGPB[[#This Row],[Functiegroep]],Personeelsbaremas!$A$2:$D$29,4,)","v":71},{"$f":"OGPB[[#This Row],[Punten per VTE]]*OGPB[[#This Row],[Aantal personen in groep]]","v":95.850000000000009},{"$f":"$B$1*OGPB[[#This Row],[Aantal personen in groep]]","v":2677.86},1,{"$f":"OGPB[Punten in groep]*OGPB[Jobtime]","v":95.850000000000009},{"$f":"IFERROR(OGPB[[#This Row],[Totale loonkost]]/OGPB[[#This Row],[Totaal punten]],0)","v":962.55670318205523}]
["Preventieadviseur",68703.34,0,{"$f":"IF(OGPB[[#This Row],[Loon toewijsbaar aan woon- & leefkosten]]>0,\"LijstWenL\",\"\")","v":""},null,1,"Preventieadviseur","Administratief + logistiek personeel klasse 1",{"$f":"VLOOKUP(OGPB[[#This Row],[Functiegroep]],Personeelsbaremas!$A$2:$D$29,2,)","v":"barema 9"},{"$f":"VLOOKUP(OGPB[[#This Row],[Functiegroep]],Personeelsbaremas!$A$2:$D$29,4,)","v":71},{"$f":"OGPB[[#This Row],[Punten per VTE]]*OGPB[[#This Row],[Aantal personen in groep]]","v":71},{"$f":"$B$1*OGPB[[#This Row],[Aantal personen in groep]]","v":1983.6},1,{"$f":"OGPB[Punten in groep]*OGPB[Jobtime]","v":71},{"$f":"IFERROR(OGPB[[#This Row],[Totale loonkost]]/OGPB[[#This Row],[Totaal punten]],0)","v":967.65267605633801}]
["Logistiek Coördinator",34744.94,0,{"$f":"IF(OGPB[[#This Row],[Loon toewijsbaar aan woon- & leefkosten]]>0,\"LijstWenL\",\"\")","v":""},null,0.8,"Logistiek Coördinator","Opvoeder-groepchef",{"$f":"VLOOKUP(OGPB[[#This Row],[Functiegroep]],Personeelsbaremas!$A$2:$D$29,2,)","v":"barema 19"},{"$f":"VLOOKUP(OGPB[[#This Row],[Functiegroep]],Personeelsbaremas!$A$2:$D$29,4,)","v":86},{"$f":"OGPB[[#This Row],[Punten per VTE]]*OGPB[[#This Row],[Aantal personen in groep]]","v":68.8},{"$f":"$B$1*OGPB[[#This Row],[Aantal personen in groep]]","v":1586.88},1,{"$f":"OGPB[Punten in groep]*OGPB[Jobtime]","v":68.8},{"$f":"IFERROR(OGPB[[#This Row],[Totale loonkost]]/OGPB[[#This Row],[Totaal punten]],0)","v":505.01366279069771}]
["Algemeen Directeur",119171.5,0,{"$f":"IF(OGPB[[#This Row],[Loon toewijsbaar aan woon- & leefkosten]]>0,\"LijstWenL\",\"\")","v":""},null,1,"Directie","Directeur + 90 bedden",{"$f":"VLOOKUP(OGPB[[#This Row],[Functiegroep]],Personeelsbaremas!$A$2:$D$29,2,)","v":"barema 25"},{"$f":"VLOOKUP(OGPB[[#This Row],[Functiegroep]],Personeelsbaremas!$A$2:$D$29,4,)","v":100},{"$f":"OGPB[[#This Row],[Punten per VTE]]*OGPB[[#This Row],[Aantal personen in groep]]","v":100},{"$f":"$B$1*OGPB[[#This Row],[Aantal personen in groep]]","v":1983.6},1,{"$f":"OGPB[Punten in groep]*OGPB[Jobtime]","v":100},{"$f":"IFERROR(OGPB[[#This Row],[Totale loonkost]]/OGPB[[#This Row],[Totaal punten]],0)","v":1191.7149999999999}]
["Departementaal Directeur",171801.47,0,{"$f":"IF(OGPB[[#This Row],[Loon toewijsbaar aan woon- & leefkosten]]>0,\"LijstWenL\",\"\")","v":""},null,1.97,"Directie","Onderdirecteur",{"$f":"VLOOKUP(OGPB[[#This Row],[Functiegroep]],Personeelsbaremas!$A$2:$D$29,2,)","v":"barema 22"},{"$f":"VLOOKUP(OGPB[[#This Row],[Functiegroep]],Personeelsbaremas!$A$2:$D$29,4,)","v":90},{"$f":"OGPB[[#This Row],[Punten per VTE]]*OGPB[[#This Row],[Aantal personen in groep]]","v":177.3},{"$f":"$B$1*OGPB[[#This Row],[Aantal personen in groep]]","v":3907.6919999999996},1,{"$f":"OGPB[Punten in groep]*OGPB[Jobtime]","v":177.3},{"$f":"IFERROR(OGPB[[#This Row],[Totale loonkost]]/OGPB[[#This Row],[Totaal punten]],0)","v":968.98742244782852}]
["Administratie klasse 1",{"$f":"37359.3+65577.36+68548.18","v":171484.84},0,{"$f":"IF(OGPB[[#This Row],[Loon toewijsbaar aan woon- & leefkosten]]>0,\"LijstWenL\",\"\")","v":""},null,3,"Administratie","Administratief + logistiek personeel klasse 1",{"$f":"VLOOKUP(OGPB[[#This Row],[Functiegroep]],Personeelsbaremas!$A$2:$D$29,2,)","v":"barema 9"},{"$f":"VLOOKUP(OGPB[[#This Row],[Functiegroep]],Personeelsbaremas!$A$2:$D$29,4,)","v":71},{"$f":"OGPB[[#This Row],[Punten per VTE]]*OGPB[[#This Row],[Aantal personen in groep]]","v":213},{"$f":"$B$1*OGPB[[#This Row],[Aantal personen in groep]]","v":5950.7999999999993},1,{"$f":"OGPB[Punten in groep]*OGPB[Jobtime]","v":213},{"$f":"IFERROR(OGPB[[#This Row],[Totale loonkost]]/OGPB[[#This Row],[Totaal punten]],0)","v":805.09314553990612}]
["Administratie klasse 2",{"$f":"35026.21+29892.26+29894.02","v":94812.49},0,{"$f":"IF(OGPB[[#This Row],[Loon toewijsbaar aan woon- & leefkosten]]>0,\"LijstWenL\",\"\")","v":""},null,1.8,"Administratie","Administratief + logistiek personeel klasse 2",{"$f":"VLOOKUP(OGPB[[#This Row],[Functiegroep]],Personeelsbaremas!$A$2:$D$29,2,)","v":"barema 10"},{"$f":"VLOOKUP(OGPB[[#This Row],[Functiegroep]],Personeelsbaremas!$A$2:$D$29,4,)","v":61},{"$f":"OGPB[[#This Row],[Punten per VTE]]*OGPB[[#This Row],[Aantal personen in groep]]","v":109.8},{"$f":"$B$1*OGPB[[#This Row],[Aantal personen in groep]]","v":3570.48},1,{"$f":"OGPB[Punten in groep]*OGPB[Jobtime]","v":109.8},{"$f":"IFERROR(OGPB[[#This Row],[Totale loonkost]]/OGPB[[#This Row],[Totaal punten]],0)","v":863.50173041894357}]
["Technische dienst klasse 2",{"$f":"2084.89+59611.68","v":61696.57},0,{"$f":"IF(OGPB[[#This Row],[Loon toewijsbaar aan woon- & leefkosten]]>0,\"LijstWenL\",\"\")","v":""},null,1.08,"Technische Dienst","Administratief + logistiek personeel klasse 1",{"$f":"VLOOKUP(OGPB[[#This Row],[Functiegroep]],Personeelsbaremas!$A$2:$D$29,2,)","v":"barema 9"},{"$f":"VLOOKUP(OGPB[[#This Row],[Functiegroep]],Personeelsbaremas!$A$2:$D$29,4,)","v":71},{"$f":"OGPB[[#This Row],[Punten per VTE]]*OGPB[[#This Row],[Aantal personen in groep]]","v":76.680000000000007},{"$f":"$B$1*OGPB[[#This Row],[Aantal personen in groep]]","v":2142.288},1,{"$f":"OGPB[Punten in groep]*OGPB[Jobtime]","v":76.680000000000007},{"$f":"IFERROR(OGPB[[#This Row],[Totale loonkost]]/OGPB[[#This Row],[Totaal punten]],0)","v":804.5979394887845}]
["Technische dienst klasse 3",{"$f":"229315.1-61696.57","v":167618.53},0,{"$f":"IF(OGPB[[#This Row],[Loon toewijsbaar aan woon- & leefkosten]]>0,\"LijstWenL\",\"\")","v":""},null,3.08,"Technische Dienst","Logistiek personeel klasse 2",{"$f":"VLOOKUP(OGPB[[#This Row],[Functiegroep]],Personeelsbaremas!$A$2:$D$29,2,)","v":"barema 8"},{"$f":"VLOOKUP(OGPB[[#This Row],[Functiegroep]],Personeelsbaremas!$A$2:$D$29,4,)","v":61},{"$f":"OGPB[[#This Row],[Punten per VTE]]*OGPB[[#This Row],[Aantal personen in groep]]","v":187.88},{"$f":"$B$1*OGPB[[#This Row],[Aantal personen in groep]]","v":6109.4880000000003},1,{"$f":"OGPB[Punten in groep]*OGPB[Jobtime]","v":187.88},{"$f":"IFERROR(OGPB[[#This Row],[Totale loonkost]]/OGPB[[#This Row],[Totaal punten]],0)","v":892.15738769427298}]
["Onderhoud CG klasse 2",{"$f":"1646.48+1425.45+26585.22","v":29657.15},29349.22,{"$f":"IF(OGPB[[#This Row],[Loon toewijsbaar aan woon- & leefkosten]]>0,\"LijstWenL\",\"\")","v":"LijstWenL"},"Onderhoud kamer",0.62,"Onderhoud Centraal Gebouw","Logistiek personeel klasse 3 (In dienst na 1/11/93)",{"$f":"VLOOKUP(OGPB[[#This Row],[Functiegroep]],Personeelsbaremas!$A$2:$D$29,2,)","v":"barema 7"},{"$f":"VLOOKUP(OGPB[[#This Row],[Functiegroep]],Personeelsbaremas!$A$2:$D$29,4,)","v":56},{"$f":"OGPB[[#This Row],[Punten per VTE]]*OGPB[[#This Row],[Aantal personen in groep]]","v":34.72},{"$f":"$B$1*OGPB[[#This Row],[Aantal personen in groep]]","v":1229.8319999999999},1,{"$f":"OGPB[Punten in groep]*OGPB[Jobtime]","v":34.72},{"$f":"IFERROR(OGPB[[#This Row],[Totale loonkost]]/OGPB[[#This Row],[Totaal punten]],0)","v":854.18058755760376}]
["Onderhoud CG klasse 3",{"$f":"41275.46-27516.87+36206.48+24854.62+27516.85+35634.13+36641.01+27057.56+21622.32+33877.9+27516.85+35592.1+27516.85+21486.2","v":369281.45999999996},{"$f":"292840.8+21486.2","v":314327},{"$f":"IF(OGPB[[#This Row],[Loon toewijsbaar aan woon- & leefkosten]]>0,\"LijstWenL\",\"\")","v":"LijstWenL"},"Naaisters",7.42,"Onderhoud Centraal Gebouw","Logistiek personeel klasse 2",{"$f":"VLOOKUP(OGPB[[#This Row],[Functiegroep]],Personeelsbaremas!$A$2:$D$29,2,)","v":"barema 8"},{"$f":"VLOOKUP(OGPB[[#This Row],[Functiegroep]],Personeelsbaremas!$A$2:$D$29,4,)","v":61},{"$f":"OGPB[[#This Row],[Punten per VTE]]*OGPB[[#This Row],[Aantal personen in groep]]","v":452.62},{"$f":"$B$1*OGPB[[#This Row],[Aantal personen in groep]]","v":14718.312},1,{"$f":"OGPB[Punten in groep]*OGPB[Jobtime]","v":452.62},{"$f":"IFERROR(OGPB[[#This Row],[Totale loonkost]]/OGPB[[#This Row],[Totaal punten]],0)","v":815.8752595996641}]
["Naaisters klasse 2",52106.16,52106.16,{"$f":"IF(OGPB[[#This Row],[Loon toewijsbaar aan woon- & leefkosten]]>0,\"LijstWenL\",\"\")","v":"LijstWenL"},"Middagmaal",1.1399999999999999,"Naaisters","Logistiek personeel klasse 2",{"$f":"VLOOKUP(OGPB[[#This Row],[Functiegroep]],Personeelsbaremas!$A$2:$D$29,2,)","v":"barema 8"},{"$f":"VLOOKUP(OGPB[[#This Row],[Functiegroep]],Personeelsbaremas!$A$2:$D$29,4,)","v":61},{"$f":"OGPB[[#This Row],[Punten per VTE]]*OGPB[[#This Row],[Aantal personen in groep]]","v":69.539999999999992},{"$f":"$B$1*OGPB[[#This Row],[Aantal personen in groep]]","v":2261.3039999999996},1,{"$f":"OGPB[Punten in groep]*OGPB[Jobtime]","v":69.539999999999992},{"$f":"IFERROR(OGPB[[#This Row],[Totale loonkost]]/OGPB[[#This Row],[Totaal punten]],0)","v":749.29767040552213}]
["Totaal",{"$f":"SUBTOTAL(109,OGPB[Totale loonkost])","v":1683276.7999999996},{"$f":"SUBTOTAL(109,OGPB[Loon toewijsbaar aan woon- & leefkosten])","v":395782.38},null,null,{"$f":"SUBTOTAL(109,OGPB[Aantal personen in groep])","v":28.009999999999998}]

{"sheet":"Ander personeel","index":19,"n_rows":24,"n_cols":9,"rows_kept":24,"cut":false,"hidden":false,"merged":[]}
[]
[]
[]
[]
["Naam persoon of groepsnaam","Loonkost","Inkomsten","Netto kost","Categorie","Dienst","Reële bezette uren (enkel voor zorggebonden)","Loonkost/uur","Inkomsten/uur"]
["AC",24986.44,null,{"$f":"NVAPH[[#This Row],[Loonkost]]-NVAPH[[#This Row],[Inkomsten]]","v":24986.44},"Woon- en leefkost",null,null,{"$f":"IFERROR(NVAPH[[#This Row],[Loonkost]]/NVAPH[[#This Row],[Reële bezette uren (enkel voor zorggebonden)]],0)","v":0},{"$f":"IFERROR(NVAPH[[#This Row],[Inkomsten]]/NVAPH[[#This Row],[Reële bezette uren (enkel voor zorggebonden)]],0)","v":0}]
["AB",1865.14,null,{"$f":"NVAPH[[#This Row],[Loonkost]]-NVAPH[[#This Row],[Inkomsten]]","v":1865.14},"Woon- en leefkost",null,null,{"$f":"IFERROR(NVAPH[[#This Row],[Loonkost]]/NVAPH[[#This Row],[Reële bezette uren (enkel voor zorggebonden)]],0)","v":0},{"$f":"IFERROR(NVAPH[[#This Row],[Inkomsten]]/NVAPH[[#This Row],[Reële bezette uren (enkel voor zorggebonden)]],0)","v":0}]
["BJ",19522.84,null,{"$f":"NVAPH[[#This Row],[Loonkost]]-NVAPH[[#This Row],[Inkomsten]]","v":19522.84},"Zorggebonden","Leefgroepbegeleider",1200,{"$f":"IFERROR(NVAPH[[#This Row],[Loonkost]]/NVAPH[[#This Row],[Reële bezette uren (enkel voor zorggebonden)]],0)","v":16.269033333333333},{"$f":"IFERROR(NVAPH[[#This Row],[Inkomsten]]/NVAPH[[#This Row],[Reële bezette uren (enkel voor zorggebonden)]],0)","v":0}]
["DT",13231.71,null,{"$f":"NVAPH[[#This Row],[Loonkost]]-NVAPH[[#This Row],[Inkomsten]]","v":13231.71},"Woon- en leefkost",null,null,{"$f":"IFERROR(NVAPH[[#This Row],[Loonkost]]/NVAPH[[#This Row],[Reële bezette uren (enkel voor zorggebonden)]],0)","v":0},{"$f":"IFERROR(NVAPH[[#This Row],[Inkomsten]]/NVAPH[[#This Row],[Reële bezette uren (enkel voor zorggebonden)]],0)","v":0}]
["DJ",5278.18,null,{"$f":"NVAPH[[#This Row],[Loonkost]]-NVAPH[[#This Row],[Inkomsten]]","v":5278.18},"Zorggebonden","Leefgroepbegeleider",1200,{"$f":"IFERROR(NVAPH[[#This Row],[Loonkost]]/NVAPH[[#This Row],[Reële bezette uren (enkel voor zorggebonden)]],0)","v":4.398483333333334},{"$f":"IFERROR(NVAPH[[#This Row],[Inkomsten]]/NVAPH[[#This Row],[Reële bezette uren (enkel voor zorggebonden)]],0)","v":0}]
["DC",27516.87,27516.87,{"$f":"NVAPH[[#This Row],[Loonkost]]-NVAPH[[#This Row],[Inkomsten]]","v":0},"Organisatiegebonden","Onderhoud Centraal Gebouw",null,{"$f":"IFERROR(NVAPH[[#This Row],[Loonkost]]/NVAPH[[#This Row],[Reële bezette uren (enkel voor zorggebonden)]],0)","v":0},{"$f":"IFERROR(NVAPH[[#This Row],[Inkomsten]]/NVAPH[[#This Row],[Reële bezette uren (enkel voor zorggebonden)]],0)","v":0}]
["DRK",3147.64,null,{"$f":"NVAPH[[#This Row],[Loonkost]]-NVAPH[[#This Row],[Inkomsten]]","v":3147.64},"Zorggebonden","Leefgroepbegeleider",1200,{"$f":"IFERROR(NVAPH[[#This Row],[Loonkost]]/NVAPH[[#This Row],[Reële bezette uren (enkel voor zorggebonden)]],0)","v":2.6230333333333333},{"$f":"IFERROR(NVAPH[[#This Row],[Inkomsten]]/NVAPH[[#This Row],[Reële bezette uren (enkel voor zorggebonden)]],0)","v":0}]
["DA",15315.13,null,{"$f":"NVAPH[[#This Row],[Loonkost]]-NVAPH[[#This Row],[Inkomsten]]","v":15315.13},"Zorggebonden","Leefgroepbegeleider",1200,{"$f":"IFERROR(NVAPH[[#This Row],[Loonkost]]/NVAPH[[#This Row],[Reële bezette uren (enkel voor zorggebonden)]],0)","v":12.762608333333333},{"$f":"IFERROR(NVAPH[[#This Row],[Inkomsten]]/NVAPH[[#This Row],[Reële bezette uren (enkel voor zorggebonden)]],0)","v":0}]
["EM",20295.93,null,{"$f":"NVAPH[[#This Row],[Loonkost]]-NVAPH[[#This Row],[Inkomsten]]","v":20295.93},"Zorggebonden","Leefgroepbegeleider",1200,{"$f":"IFERROR(NVAPH[[#This Row],[Loonkost]]/NVAPH[[#This Row],[Reële bezette uren (enkel voor zorggebonden)]],0)","v":16.913274999999999},{"$f":"IFERROR(NVAPH[[#This Row],[Inkomsten]]/NVAPH[[#This Row],[Reële bezette uren (enkel voor zorggebonden)]],0)","v":0}]
["EVJ",4989.3900000000003,null,{"$f":"NVAPH[[#This Row],[Loonkost]]-NVAPH[[#This Row],[Inkomsten]]","v":4989.3900000000003},"Woon- en leefkost",null,null,{"$f":"IFERROR(NVAPH[[#This Row],[Loonkost]]/NVAPH[[#This Row],[Reële bezette uren (enkel voor zorggebonden)]],0)","v":0},{"$f":"IFERROR(NVAPH[[#This Row],[Inkomsten]]/NVAPH[[#This Row],[Reële bezette uren (enkel voor zorggebonden)]],0)","v":0}]
["HM",4400.46,null,{"$f":"NVAPH[[#This Row],[Loonkost]]-NVAPH[[#This Row],[Inkomsten]]","v":4400.46},"Zorggebonden","Leefgroepbegeleider",1200,{"$f":"IFERROR(NVAPH[[#This Row],[Loonkost]]/NVAPH[[#This Row],[Reële bezette uren (enkel voor zorggebonden)]],0)","v":3.6670500000000001},{"$f":"IFERROR(NVAPH[[#This Row],[Inkomsten]]/NVAPH[[#This Row],[Reële bezette uren (enkel voor zorggebonden)]],0)","v":0}]
["KK",33309.870000000003,null,{"$f":"NVAPH[[#This Row],[Loonkost]]-NVAPH[[#This Row],[Inkomsten]]","v":33309.870000000003},"Woon- en leefkost",null,null,{"$f":"IFERROR(NVAPH[[#This Row],[Loonkost]]/NVAPH[[#This Row],[Reële bezette uren (enkel voor zorggebonden)]],0)","v":0},{"$f":"IFERROR(NVAPH[[#This Row],[Inkomsten]]/NVAPH[[#This Row],[Reële bezette uren (enkel voor zorggebonden)]],0)","v":0}]
["LC",18227.86,null,{"$f":"NVAPH[[#This Row],[Loonkost]]-NVAPH[[#This Row],[Inkomsten]]","v":18227.86},"Woon- en leefkost",null,null,{"$f":"IFERROR(NVAPH[[#This Row],[Loonkost]]/NVAPH[[#This Row],[Reële bezette uren (enkel voor zorggebonden)]],0)","v":0},{"$f":"IFERROR(NVAPH[[#This Row],[Inkomsten]]/NVAPH[[#This Row],[Reële bezette uren (enkel voor zorggebonden)]],0)","v":0}]
["ME",12138.58,null,{"$f":"NVAPH[[#This Row],[Loonkost]]-NVAPH[[#This Row],[Inkomsten]]","v":12138.58},"Zorggebonden","Leefgroepbegeleider",1200,{"$f":"IFERROR(NVAPH[[#This Row],[Loonkost]]/NVAPH[[#This Row],[Reële bezette uren (enkel voor zorggebonden)]],0)","v":10.115483333333334},{"$f":"IFERROR(NVAPH[[#This Row],[Inkomsten]]/NVAPH[[#This Row],[Reële bezette uren (enkel voor zorggebonden)]],0)","v":0}]
["RS",17785.490000000002,null,{"$f":"NVAPH[[#This Row],[Loonkost]]-NVAPH[[#This Row],[Inkomsten]]","v":17785.490000000002},"Zorggebonden","Leefgroepbegeleider",1200,{"$f":"IFERROR(NVAPH[[#This Row],[Loonkost]]/NVAPH[[#This Row],[Reële bezette uren (enkel voor zorggebonden)]],0)","v":14.821241666666667},{"$f":"IFERROR(NVAPH[[#This Row],[Inkomsten]]/NVAPH[[#This Row],[Reële bezette uren (enkel voor zorggebonden)]],0)","v":0}]
["TJ",20697.75,null,{"$f":"NVAPH[[#This Row],[Loonkost]]-NVAPH[[#This Row],[Inkomsten]]","v":20697.75},"Zorggebonden","Leefgroepbegeleider",1200,{"$f":"IFERROR(NVAPH[[#This Row],[Loonkost]]/NVAPH[[#This Row],[Reële bezette uren (enkel voor zorggebonden)]],0)","v":17.248125000000002},{"$f":"IFERROR(NVAPH[[#This Row],[Inkomsten]]/NVAPH[[#This Row],[Reële bezette uren (enkel voor zorggebonden)]],0)","v":0}]
["VHT",1894.49,null,{"$f":"NVAPH[[#This Row],[Loonkost]]-NVAPH[[#This Row],[Inkomsten]]","v":1894.49},"Zorggebonden","Leefgroepbegeleider",1200,{"$f":"IFERROR(NVAPH[[#This Row],[Loonkost]]/NVAPH[[#This Row],[Reële bezette uren (enkel voor zorggebonden)]],0)","v":1.5787416666666667},{"$f":"IFERROR(NVAPH[[#This Row],[Inkomsten]]/NVAPH[[#This Row],[Reële bezette uren (enkel voor zorggebonden)]],0)","v":0}]
["VSJ",3471.87,null,{"$f":"NVAPH[[#This Row],[Loonkost]]-NVAPH[[#This Row],[Inkomsten]]","v":3471.87},"Zorggebonden","Leefgroepbegeleider",1200,{"$f":"IFERROR(NVAPH[[#This Row],[Loonkost]]/NVAPH[[#This Row],[Reële bezette uren (enkel voor zorggebonden)]],0)","v":2.8932249999999997},{"$f":"IFERROR(NVAPH[[#This Row],[Inkomsten]]/NVAPH[[#This Row],[Reële bezette uren (enkel voor zorggebonden)]],0)","v":0}]
["Totaal",{"$f":"SUBTOTAL(109,NVAPH[Loonkost])","v":248075.63999999998},{"$f":"SUBTOTAL(109,NVAPH[Inkomsten])","v":27516.87}]

{"sheet":"Vastgoed","index":20,"n_rows":131,"n_cols":11,"rows_kept":131,"cut":false,"hidden":false,"merged":[]}
[]
[]
[]
[]
["Gebouw","ZG %","OG %","W&L %","Oorspronkelijke waarde gebouw","Jaren afschrijving","Afschrijving per jaar","Vervangingskost","Te verrekenen bedrag","ZG bedrag","OG bedrag"]
["Huis 1",0,0,1,2104575.9500000002,33,{"$f":"IFERROR(VastgoedGegevens[Oorspronkelijke waarde gebouw]/VastgoedGegevens[Jaren afschrijving],0)","v":63775.028787878793},null,{"$f":"IF(VastgoedGegevens[[#This Row],[Vervangingskost]]=\"\",VastgoedGegevens[[#This Row],[Afschrijving per jaar]],VastgoedGegevens[[#This Row],[Vervangingskost]])","v":63775.028787878793},{"$f":"VastgoedGegevens[[#This Row],[ZG %]]*VastgoedGegevens[[#This Row],[Te verrekenen bedrag]]","v":0},{"$f":"VastgoedGegevens[[#This Row],[OG %]]*VastgoedGegevens[[#This Row],[Te verrekenen bedrag]]","v":0}]
["Huis 2",0,0,1,2250030.71,33,{"$f":"IFERROR(VastgoedGegevens[Oorspronkelijke waarde gebouw]/VastgoedGegevens[Jaren afschrijving],0)","v":68182.74878787878},null,{"$f":"IF(VastgoedGegevens[[#This Row],[Vervangingskost]]=\"\",VastgoedGegevens[[#This Row],[Afschrijving per jaar]],VastgoedGegevens[[#This Row],[Vervangingskost]])","v":68182.74878787878},{"$f":"VastgoedGegevens[[#This Row],[ZG %]]*VastgoedGegevens[[#This Row],[Te verrekenen bedrag]]","v":0},{"$f":"VastgoedGegevens[[#This Row],[OG %]]*VastgoedGegevens[[#This Row],[Te verrekenen bedrag]]","v":0}]
["Huis 3",0,0,1,2667968.2999999998,33,{"$f":"IFERROR(VastgoedGegevens[Oorspronkelijke waarde gebouw]/VastgoedGegevens[Jaren afschrijving],0)","v":80847.524242424231},null,{"$f":"IF(VastgoedGegevens[[#This Row],[Vervangingskost]]=\"\",VastgoedGegevens[[#This Row],[Afschrijving per jaar]],VastgoedGegevens[[#This Row],[Vervangingskost]])","v":80847.524242424231},{"$f":"VastgoedGegevens[[#This Row],[ZG %]]*VastgoedGegevens[[#This Row],[Te verrekenen bedrag]]","v":0},{"$f":"VastgoedGegevens[[#This Row],[OG %]]*VastgoedGegevens[[#This Row],[Te verrekenen bedrag]]","v":0}]
["Huis 4 + med.dienst",0,0,1,{"$f":"1583.31*2000","v":3166620},33,{"$f":"IFERROR(VastgoedGegevens[Oorspronkelijke waarde gebouw]/VastgoedGegevens[Jaren afschrijving],0)","v":95958.181818181823},null,{"$f":"IF(VastgoedGegevens[[#This Row],[Vervangingskost]]=\"\",VastgoedGegevens[[#This Row],[Afschrijving per jaar]],VastgoedGegevens[[#This Row],[Vervangingskost]])","v":95958.181818181823},{"$f":"VastgoedGegevens[[#This Row],[ZG %]]*VastgoedGegevens[[#This Row],[Te verrekenen bedrag]]","v":0},{"$f":"VastgoedGegevens[[#This Row],[OG %]]*VastgoedGegevens[[#This Row],[Te verrekenen bedrag]]","v":0}]
["Hoofdgebouw (excl.keuken en wasserij)",0,1,0,{"$f":"4898.49*2000","v":9796980},33,{"$f":"IFERROR(VastgoedGegevens[Oorspronkelijke waarde gebouw]/VastgoedGegevens[Jaren afschrijving],0)","v":296878.18181818182},null,{"$f":"IF(VastgoedGegevens[[#This Row],[Vervangingskost]]=\"\",VastgoedGegevens[[#This Row],[Afschrijving per jaar]],VastgoedGegevens[[#This Row],[Vervangingskost]])","v":296878.18181818182},{"$f":"VastgoedGegevens[[#This Row],[ZG %]]*VastgoedGegevens[[#This Row],[Te verrekenen bedrag]]","v":0},{"$f":"VastgoedGegevens[[#This Row],[OG %]]*VastgoedGegevens[[#This Row],[Te verrekenen bedrag]]","v":296878.18181818182}]
["Renovatie hoofdgebouw",0,1,0,270043.49,33,{"$f":"IFERROR(VastgoedGegevens[Oorspronkelijke waarde gebouw]/VastgoedGegevens[Jaren afschrijving],0)","v":8183.1360606060607},null,{"$f":"IF(VastgoedGegevens[[#This Row],[Vervangingskost]]=\"\",VastgoedGegevens[[#This Row],[Afschrijving per jaar]],VastgoedGegevens[[#This Row],[Vervangingskost]])","v":8183.1360606060607},{"$f":"VastgoedGegevens[[#This Row],[ZG %]]*VastgoedGegevens[[#This Row],[Te verrekenen bedrag]]","v":0},{"$f":"VastgoedGegevens[[#This Row],[OG %]]*VastgoedGegevens[[#This Row],[Te verrekenen bedrag]]","v":8183.1360606060607}]
["Totaal",null,null,null,null,null,null,null,{"$f":"SUBTOTAL(109,VastgoedGegevens[Te verrekenen bedrag])","v":613824.80151515163},{"$f":"SUBTOTAL(109,VastgoedGegevens[ZG bedrag])","v":0},{"$f":"SUBTOTAL(109,VastgoedGegevens[OG bedrag])","v":305061.31787878787}]
[""]
["Totaal zorggebonden",{"$f":"VastgoedGegevens[[#Totals],[ZG bedrag]]","v":0}]
["Zorggebonden","Percentage","Kost per jaar"]
[{"$f":"'ZG werking'!A2","v":"Beddengoed"},null,{"$f":"$B$14*VastgoedVerdelingZG[[#This Row],[Percentage]]","v":0}]
[{"$f":"'ZG werking'!A3","v":"Linnen"}]
[{"$f":"'ZG werking'!A4","v":"Kleding"}]
[{"$f":"'ZG werking'!A5","v":"Diverse kosten textiel"}]
[{"$f":"'ZG werking'!A6","v":"Recup textiel"}]
[{"$f":"'ZG werking'!A7","v":"Toiletartikels"}]
[{"$f":"'ZG werking'!A8","v":"Farmaceutische producten"}]
[{"$f":"'ZG werking'!A9","v":"Rec farm.prod."}]
[{"$f":"'ZG werking'!A10","v":"Medische gassen"}]
[{"$f":"'ZG werking'!A11","v":"Farmaceutisch materiaal"}]
[{"$f":"'ZG werking'!A12","v":"Fixatiemateriaal"}]
[{"$f":"'ZG werking'!A13","v":"Paramedische kosten"}]
[{"$f":"'ZG werking'!A14","v":"Recup paramedische kosten"}]
[{"$f":"'ZG werking'!A15","v":"Educatieve activiteiten+verplaatsingen"}]
[{"$f":"'ZG werking'!A16","v":"Recup educatieve act"}]
[{"$f":"'ZG werking'!A17","v":"Recup energie (uitstappen)"}]
[{"$f":"'ZG werking'!A18","v":"Incontinentiemateriaal"}]
[{"$f":"'ZG werking'!A19","v":"Recup incontinentiemateriaal"}]
[{"$f":"'ZG werking'!A20","v":"Wegwerpmateriaal"}]
[{"$f":"'ZG werking'!A21","v":"TV-kabel"}]
[{"$f":"'ZG werking'!A22","v":"Kampen"}]
[{"$f":"'ZG werking'!A23","v":"Recup kampen"}]
[{"$f":"'ZG werking'!A24","v":"Dokter+tandarts"}]
[{"$f":"'ZG werking'!A25","v":"Recup dokters+tandarts"}]
[{"$f":"'ZG werking'!A26","v":"Hospitalisatie"}]
[{"$f":"'ZG werking'!A27","v":"Recup hospitalisatie"}]
[{"$f":"'ZG werking'!A28","v":"Medisch vervoer"}]
[{"$f":"'ZG werking'!A29","v":"Recup medisch vervoer"}]
[{"$f":"'ZG werking'!A30","v":"Diverse medische kosten"}]
[{"$f":"'ZG werking'!A31","v":"Recup diverse medische kosten"}]
[{"$f":"'ZG werking'!A32","v":"Kinesist"}]
[{"$f":"'ZG werking'!A33","v":"Recup verzekering (kinesist)"}]
[{"$f":"'ZG werking'!A34","v":"Recup ziekenfonds (kinesist)"}]
[{"$f":"'ZG werking'!A35","v":"Elektriciteit"}]
[{"$f":"'ZG werking'!A36","v":"Water"}]
[{"$f":"'ZG werking'!A37","v":"Gas"}]
["Totaal",{"$f":"SUBTOTAL(109,VastgoedVerdelingZG[Percentage])","v":0},{"$f":"SUBTOTAL(109,VastgoedVerdelingZG[Kost per jaar])","v":0}]
[""]
["Totaal organisatiegebonden",{"$f":"VastgoedGegevens[[#Totals],[OG bedrag]]","v":305061.31787878787}]
["Organisatiegebonden","Percentage","Kost per jaar"]
[{"$f":"'OG werking'!B2","v":"Verzekeringen"},1,{"$f":"$B$54*VastgoedVerdelingOG[[#This Row],[Percentage]]","v":305061.31787878787}]
[{"$f":"'OG werking'!B3","v":"Opleidingen"},null,{"$f":"$B$54*VastgoedVerdelingOG[[#This Row],[Percentage]]","v":0}]
[{"$f":"'OG werking'!B4","v":"Recup opleidingen"},null,{"$f":"$B$54*VastgoedVerdelingOG[[#This Row],[Percentage]]","v":0}]
[{"$f":"'OG werking'!B5","v":"Recup opleidingen"},null,{"$f":"$B$54*VastgoedVerdelingOG[[#This Row],[Percentage]]","v":0}]
[{"$f":"'OG werking'!B6","v":"Dienstverplaatsingen"},null,{"$f":"$B$54*VastgoedVerdelingOG[[#This Row],[Percentage]]","v":0}]
[{"$f":"'OG werking'!B7","v":"Recup verplaatsingen"},null,{"$f":"$B$54*VastgoedVerdelingOG[[#This Row],[Percentage]]","v":0}]
[{"$f":"'OG werking'!B8","v":"Pastorale werking"},null,{"$f":"$B$54*VastgoedVerdelingOG[[#This Row],[Percentage]]","v":0}]
[{"$f":"'OG werking'!B9","v":"Klein materieel en meubilair"},null,{"$f":"$B$54*VastgoedVerdelingOG[[#This Row],[Percentage]]","v":0}]
[{"$f":"'OG werking'!B10","v":"Huur"},null,{"$f":"$B$54*VastgoedVerdelingOG[[#This Row],[Percentage]]","v":0}]
[{"$f":"'OG werking'!B11","v":"Onderhoudsproducten"},null,{"$f":"$B$54*VastgoedVerdelingOG[[#This Row],[Percentage]]","v":0}]
[{"$f":"'OG werking'!B12","v":"Benodigdheden technische dienst"},null,{"$f":"$B$54*VastgoedVerdelingOG[[#This Row],[Percentage]]","v":0}]
[{"$f":"'OG werking'!B13","v":"Kleine schilderwerken"},null,{"$f":"$B$54*VastgoedVerdelingOG[[#This Row],[Percentage]]","v":0}]
[{"$f":"'OG werking'!B14","v":"Herstel gebouwen"},null,{"$f":"$B$54*VastgoedVerdelingOG[[#This Row],[Percentage]]","v":0}]
[{"$f":"'OG werking'!B15","v":"Recup schade (brand,storm)"},null,{"$f":"$B$54*VastgoedVerdelingOG[[#This Row],[Percentage]]","v":0}]
[{"$f":"'OG werking'!B16","v":"Recup verhuur"},null,{"$f":"$B$54*VastgoedVerdelingOG[[#This Row],[Percentage]]","v":0}]
[{"$f":"'OG werking'!B17","v":"Herstel binnenschrijnwerk"},null,{"$f":"$B$54*VastgoedVerdelingOG[[#This Row],[Percentage]]","v":0}]
[{"$f":"'OG werking'!B18","v":"Herstel technische installaties"},null,{"$f":"$B$54*VastgoedVerdelingOG[[#This Row],[Percentage]]","v":0}]
[{"$f":"'OG werking'!B19","v":"Herstel medische installaties"},null,{"$f":"$B$54*VastgoedVerdelingOG[[#This Row],[Percentage]]","v":0}]
[{"$f":"'OG werking'!B20","v":"Herstel computerinstallaties"},null,{"$f":"$B$54*VastgoedVerdelingOG[[#This Row],[Percentage]]","v":0}]
[{"$f":"'OG werking'!B21","v":"Herstel verwarming/sanitair"},null,{"$f":"$B$54*VastgoedVerdelingOG[[#This Row],[Percentage]]","v":0}]
[{"$f":"'OG werking'!B22","v":"Herstel diverse installaties"},null,{"$f":"$B$54*VastgoedVerdelingOG[[#This Row],[Percentage]]","v":0}]
[{"$f":"'OG werking'!B23","v":"Herstel elektrische installaties"},null,{"$f":"$B$54*VastgoedVerdelingOG[[#This Row],[Percentage]]","v":0}]
[{"$f":"'OG werking'!B24","v":"Herstel telefooninstallatie"},null,{"$f":"$B$54*VastgoedVerdelingOG[[#This Row],[Percentage]]","v":0}]
[{"$f":"'OG werking'!B25","v":"Herstel meubilair"},null,{"$f":"$B$54*VastgoedVerdelingOG[[#This Row],[Percentage]]","v":0}]
[{"$f":"'OG werking'!B26","v":"Herstel rollend materieel"},null,{"$f":"$B$54*VastgoedVerdelingOG[[#This Row],[Percentage]]","v":0}]
[{"$f":"'OG werking'!B27","v":"Onderhoud tuinen,terreinen"},null,{"$f":"$B$54*VastgoedVerdelingOG[[#This Row],[Percentage]]","v":0}]
[{"$f":"'OG werking'!B28","v":"Huisvuil"},null,{"$f":"$B$54*VastgoedVerdelingOG[[#This Row],[Percentage]]","v":0}]
[{"$f":"'OG werking'!B29","v":"Ongediertebestrijding"},null,{"$f":"$B$54*VastgoedVerdelingOG[[#This Row],[Percentage]]","v":0}]
[{"$f":"'OG werking'!B30","v":"Brandbeveiliging"},null,{"$f":"$B$54*VastgoedVerdelingOG[[#This Row],[Percentage]]","v":0}]
[{"$f":"'OG werking'!B31","v":"Onderhoudscontracten"},null,{"$f":"$B$54*VastgoedVerdelingOG[[#This Row],[Percentage]]","v":0}]
[{"$f":"'OG werking'!B32","v":"Brandstof rollend materieel"},null,{"$f":"$B$54*VastgoedVerdelingOG[[#This Row],[Percentage]]","v":0}]
[{"$f":"'OG werking'!B33","v":"Kantoorkosten"},null,{"$f":"$B$54*VastgoedVerdelingOG[[#This Row],[Percentage]]","v":0}]
[{"$f":"'OG werking'!B34","v":"Recup kantoor gebruikers"},null,{"$f":"$B$54*VastgoedVerdelingOG[[#This Row],[Percentage]]","v":0}]
[{"$f":"'OG werking'!B35","v":"Recup kantoor personeel"},null,{"$f":"$B$54*VastgoedVerdelingOG[[#This Row],[Percentage]]","v":0}]
[{"$f":"'OG werking'!B36","v":"Recup kantoor derden"},null,{"$f":"$B$54*VastgoedVerdelingOG[[#This Row],[Percentage]]","v":0}]
[{"$f":"'OG werking'!B37","v":"Verzendingkosten"},null,{"$f":"$B$54*VastgoedVerdelingOG[[#This Row],[Percentage]]","v":0}]
[{"$f":"'OG werking'!B38","v":"Telefoon/internet"},null,{"$f":"$B$54*VastgoedVerdelingOG[[#This Row],[Percentage]]","v":0}]
[{"$f":"'OG werking'!B39","v":"Drukwerk"},null,{"$f":"$B$54*VastgoedVerdelingOG[[#This Row],[Percentage]]","v":0}]
[{"$f":"'OG werking'!B40","v":"Fotokopiekosten"},null,{"$f":"$B$54*VastgoedVerdelingOG[[#This Row],[Percentage]]","v":0}]
[{"$f":"'OG werking'!B41","v":"Papier"},null,{"$f":"$B$54*VastgoedVerdelingOG[[#This Row],[Percentage]]","v":0}]
[{"$f":"'OG werking'!B42","v":"Wettelijke formaliteiten"},null,{"$f":"$B$54*VastgoedVerdelingOG[[#This Row],[Percentage]]","v":0}]
[{"$f":"'OG werking'!B43","v":"Computerkosten"},null,{"$f":"$B$54*VastgoedVerdelingOG[[#This Row],[Percentage]]","v":0}]
[{"$f":"'OG werking'!B44","v":"Sociaal secretariaat"},null,{"$f":"$B$54*VastgoedVerdelingOG[[#This Row],[Percentage]]","v":0}]
[{"$f":"'OG werking'!B45","v":"Centrale administratie"},null,{"$f":"$B$54*VastgoedVerdelingOG[[#This Row],[Percentage]]","v":0}]
[{"$f":"'OG werking'!B46","v":"Controle en keuring"},null,{"$f":"$B$54*VastgoedVerdelingOG[[#This Row],[Percentage]]","v":0}]
[{"$f":"'OG werking'!B47","v":"Informatica-computerprestaties"},null,{"$f":"$B$54*VastgoedVerdelingOG[[#This Row],[Percentage]]","v":0}]
[{"$f":"'OG werking'!B48","v":"Boekhouding"},null,{"$f":"$B$54*VastgoedVerdelingOG[[#This Row],[Percentage]]","v":0}]
[{"$f":"'OG werking'!B49","v":"Orbis"},null,{"$f":"$B$54*VastgoedVerdelingOG[[#This Row],[Percentage]]","v":0}]
[{"$f":"'OG werking'!B50","v":"Ereloon bedrijfsrevisor"},null,{"$f":"$B$54*VastgoedVerdelingOG[[#This Row],[Percentage]]","v":0}]
[{"$f":"'OG werking'!B51","v":"Lidgeld Vlaams Welzijn"},null,{"$f":"$B$54*VastgoedVerdelingOG[[#This Row],[Percentage]]","v":0}]
[{"$f":"'OG werking'!B52","v":"Giften en geschenken"},null,{"$f":"$B$54*VastgoedVerdelingOG[[#This Row],[Percentage]]","v":0}]
[{"$f":"'OG werking'!B53","v":"Lidgelden"},null,{"$f":"$B$54*VastgoedVerdelingOG[[#This Row],[Percentage]]","v":0}]
[{"$f":"'OG werking'!B54","v":"Public relations"},null,{"$f":"$B$54*VastgoedVerdelingOG[[#This Row],[Percentage]]","v":0}]
[{"$f":"'OG werking'!B55","v":"Andere erelonen"},null,{"$f":"$B$54*VastgoedVerdelingOG[[#This Row],[Percentage]]","v":0}]
[{"$f":"'OG werking'!B56","v":"Diverse notoriteitsuitgaven"},null,{"$f":"$B$54*VastgoedVerdelingOG[[#This Row],[Percentage]]","v":0}]
[{"$f":"'OG werking'!B57","v":"Buitenwettelijke verzekeringen"},null,{"$f":"$B$54*VastgoedVerdelingOG[[#This Row],[Percentage]]","v":0}]
[{"$f":"'OG werking'!B58","v":"Verzekering arbeidsongevallen"},null,{"$f":"$B$54*VastgoedVerdelingOG[[#This Row],[Percentage]]","v":0}]
[{"$f":"'OG werking'!B59","v":"BA personeel"},null,{"$f":"$B$54*VastgoedVerdelingOG[[#This Row],[Percentage]]","v":0}]
[{"$f":"'OG werking'!B60","v":"Bedrijfsgeneeskunde"},null,{"$f":"$B$54*VastgoedVerdelingOG[[#This Row],[Percentage]]","v":0}]
[{"$f":"'OG werking'!B61","v":"Woon-werkverkeer"},null,{"$f":"$B$54*VastgoedVerdelingOG[[#This Row],[Percentage]]","v":0}]
[{"$f":"'OG werking'!B62","v":"Syndicale premie"},null,{"$f":"$B$54*VastgoedVerdelingOG[[#This Row],[Percentage]]","v":0}]
[{"$f":"'OG werking'!B63","v":"Kamppremie"},null,{"$f":"$B$54*VastgoedVerdelingOG[[#This Row],[Percentage]]","v":0}]
[{"$f":"'OG werking'!B64","v":"Werkkledij"},null,{"$f":"$B$54*VastgoedVerdelingOG[[#This Row],[Percentage]]","v":0}]
[{"$f":"'OG werking'!B65","v":"Diverse andere personeelskosten"},null,{"$f":"$B$54*VastgoedVerdelingOG[[#This Row],[Percentage]]","v":0}]
[{"$f":"'OG werking'!B66","v":"Bedrijfsbelastingen"},null,{"$f":"$B$54*VastgoedVerdelingOG[[#This Row],[Percentage]]","v":0}]
[{"$f":"'OG werking'!B67","v":"Bibliotheek"},null,{"$f":"$B$54*VastgoedVerdelingOG[[#This Row],[Percentage]]","v":0}]
[{"$f":"'OG werking'!B68","v":"Georganiseerde activiteiten"},null,{"$f":"$B$54*VastgoedVerdelingOG[[#This Row],[Percentage]]","v":0}]
[{"$f":"'OG werking'!B69","v":"Recup georganiseerde act"},null,{"$f":"$B$54*VastgoedVerdelingOG[[#This Row],[Percentage]]","v":0}]
[{"$f":"'OG werking'!B70","v":"Arbeidsgerichte activiteiten"},null,{"$f":"$B$54*VastgoedVerdelingOG[[#This Row],[Percentage]]","v":0}]
[{"$f":"'OG werking'!B71","v":"Recup arbeidsgerichte act"},null,{"$f":"$B$54*VastgoedVerdelingOG[[#This Row],[Percentage]]","v":0}]
[{"$f":"'OG werking'!B72","v":"Financiële kosten"},null,{"$f":"$B$54*VastgoedVerdelingOG[[#This Row],[Percentage]]","v":0}]
[{"$f":"'OG werking'!B73","v":"Financiële opbrengsten"},null,{"$f":"$B$54*VastgoedVerdelingOG[[#This Row],[Percentage]]","v":0}]
[{"$f":"'OG werking'!B74","v":"Elektriciteit"},null,{"$f":"$B$54*VastgoedVerdelingOG[[#This Row],[Percentage]]","v":0}]
[{"$f":"'OG werking'!B75","v":"Water"},null,{"$f":"$B$54*VastgoedVerdelingOG[[#This Row],[Percentage]]","v":0}]
[{"$f":"'OG werking'!B76","v":"Gas"},null,{"$f":"$B$54*VastgoedVerdelingOG[[#This Row],[Percentage]]","v":0}]
["Totaal",{"$f":"SUBTOTAL(109,VastgoedVerdelingOG[Percentage])","v":1},{"$f":"SUBTOTAL(109,VastgoedVerdelingOG[Kost per jaar])","v":305061.31787878787}]

{"sheet":"Hippo","index":21,"n_rows":7,"n_cols":5,"rows_kept":7,"cut":false,"hidden":false,"merged":[]}
[null,"Werkingskosten","Totaalkost","Afschrijvings-percentage","Kostprijs per jaar"]
[null,"Geactiveerde kosten loods hippo",20000,0.2,{"$f":"Hippo[[#This Row],[Totaalkost]]*Hippo[[#This Row],[Afschrijvings-percentage]]","v":4000}]
[null,"Loods hippo",5000,0.1,{"$f":"Hippo[[#This Row],[Totaalkost]]*Hippo[[#This Row],[Afschrijvings-percentage]]","v":500}]
[null,"Extra (na vgl. met AW)",10000,0.05,{"$f":"Hippo[[#This Row],[Totaalkost]]*Hippo[[#This Row],[Afschrijvings-percentage]]","v":500}]
[null,null,null,null,{"$f":"Hippo[[#This Row],[Totaalkost]]*Hippo[[#This Row],[Afschrijvings-percentage]]","v":0}]
[null,null,null,null,{"$f":"Hippo[[#This Row],[Totaalkost]]*Hippo[[#This Row],[Afschrijvings-percentage]]","v":0}]
[null,"Totaal",null,null,{"$f":"SUBTOTAL(109,Hippo[Kostprijs per jaar])","v":5000}]

{"sheet":"Energie","index":22,"n_rows":63,"n_cols":5,"rows_kept":63,"cut":false,"hidden":false,"merged":[[0,0,0,1]]}
["Grootboekrekening"]
[null,612,"Elektriciteit"]
[null,null,"Totale kost",37413.589999999997]
[]
[null,null,"Verdeling","%","Kostprijs"]
[null,null,"Hotel was",0,{"$f":"ElektriciteitVerdeling[[#This Row],[%]]*$D$3","v":0}]
[null,null,"Persoonlijke was",0.03,{"$f":"ElektriciteitVerdeling[[#This Row],[%]]*$D$3","v":1122.4076999999997}]
[null,null,"Voeding",0,{"$f":"ElektriciteitVerdeling[[#This Row],[%]]*$D$3","v":0}]
[null,null,"Overige zorggebonden",0,{"$f":"ElektriciteitVerdeling[[#This Row],[%]]*$D$3","v":0}]
[null,null,"Overige organisatiegebonden",0.97,{"$f":"ElektriciteitVerdeling[[#This Row],[%]]*$D$3","v":36291.182299999993}]
[null,null,null,null,{"$f":"ElektriciteitVerdeling[[#This Row],[%]]*$D$3","v":0}]
[null,612,"Gas"]
[null,null,"Totale kost",85426.23]
[]
[null,null,"Verdeling","%","Kostprijs"]
[null,null,"Hotel was",0,{"$f":"GasVerdeling[[#This Row],[%]]*$D$13","v":0}]
[null,null,"Persoonlijke was",0.2,{"$f":"GasVerdeling[[#This Row],[%]]*$D$13","v":17085.245999999999}]
[null,null,"Voeding",0.02,{"$f":"GasVerdeling[[#This Row],[%]]*$D$13","v":1708.5246}]
[null,null,"Overige zorggebonden",0.42,{"$f":"GasVerdeling[[#This Row],[%]]*$D$13","v":35879.016599999995}]
[null,null,"Overige organisatiegebonden",0.36,{"$f":"GasVerdeling[[#This Row],[%]]*$D$13","v":30753.442799999997}]
[null,null,null,null,{"$f":"GasVerdeling[[#This Row],[%]]*$D$13","v":0}]
[null,null,"Zonnepanelen"]
[null,null,"Totale kost",0]
[]
[null,null,"Verdeling","%","Kostprijs"]
[null,null,"Hotel was",0.05,{"$f":"ZonnepanelenVerdeling[[#This Row],[%]]*$D$23","v":0}]
[null,null,"Persoonlijke was",0.1,{"$f":"ZonnepanelenVerdeling[[#This Row],[%]]*$D$23","v":0}]
[null,null,"Voeding",0.15,{"$f":"ZonnepanelenVerdeling[[#This Row],[%]]*$D$23","v":0}]
[null,null,"Overige zorggebonden",0.4,{"$f":"ZonnepanelenVerdeling[[#This Row],[%]]*$D$23","v":0}]
[null,null,"Overige organisatiegebonden",0.3,{"$f":"ZonnepanelenVerdeling[[#This Row],[%]]*$D$23","v":0}]
[]
[null,612,"Water"]
[null,null,"Totale kost",43153.58]
[]
[null,null,"Verdeling","%","Kostprijs"]
[null,null,"Hotel was",0,{"$f":"WarmtenetVerdeling[[#This Row],[%]]*$D$33","v":0}]
[null,null,"Persoonlijke was",0.33,{"$f":"WarmtenetVerdeling[[#This Row],[%]]*$D$33","v":14240.681400000001}]
[null,null,"Voeding",0,{"$f":"WarmtenetVerdeling[[#This Row],[%]]*$D$33","v":0}]
[null,null,"Overige zorggebonden",0.54,{"$f":"WarmtenetVerdeling[[#This Row],[%]]*$D$33","v":23302.933200000003}]
[null,null,"Overige organisatiegebonden",0.13,{"$f":"WarmtenetVerdeling[[#This Row],[%]]*$D$33","v":5609.9654}]
[null,null,null,null,{"$f":"WarmtenetVerdeling[[#This Row],[%]]*$D$33","v":0}]
[]
[null,612,"Warmtenet"]
[null,null,"Totale kost",0]
[]
[null,null,"Verdeling","%","Kostprijs"]
[null,null,"Hotel was",0.05,{"$f":"MazoutVerdeling[[#This Row],[%]]*$D$44","v":0}]
[null,null,"Persoonlijke was",0.1,{"$f":"MazoutVerdeling[[#This Row],[%]]*$D$44","v":0}]
[null,null,"Voeding",0.15,{"$f":"MazoutVerdeling[[#This Row],[%]]*$D$44","v":0}]
[null,null,"Overige zorggebonden",0.4,{"$f":"MazoutVerdeling[[#This Row],[%]]*$D$44","v":0}]
[null,null,"Overige organisatiegebonden",0.3,{"$f":"MazoutVerdeling[[#This Row],[%]]*$D$44","v":0}]
[null,null,null,null,{"$f":"MazoutVerdeling[[#This Row],[%]]*$D$44","v":0}]
[]
[null,612,"Mazout"]
[null,null,"Totale kost",0]
[]
[null,null,"Verdeling","%","Kostprijs"]
[null,null,"Hotel was",0.05,{"$f":"WaterVerdeling[[#This Row],[%]]*$D$55","v":0}]
[null,null,"Persoonlijke was",0.1,{"$f":"WaterVerdeling[[#This Row],[%]]*$D$55","v":0}]
[null,null,"Voeding",0.15,{"$f":"WaterVerdeling[[#This Row],[%]]*$D$55","v":0}]
[null,null,"Overige zorggebonden",0.4,{"$f":"WaterVerdeling[[#This Row],[%]]*$D$55","v":0}]
[null,null,"Overige organisatiegebonden",0.3,{"$f":"WaterVerdeling[[#This Row],[%]]*$D$55","v":0}]
[null,null,null,null,{"$f":"WaterVerdeling[[#This Row],[%]]*$D$55","v":0}]

{"sheet":"Hotel was","index":23,"n_rows":38,"n_cols":5,"rows_kept":38,"cut":false,"hidden":false,"merged":[]}
[]
["Grootboekrekening","Algemene kosten","Kostprijs"]
[null,"Wasproduct"]
[null,"Wasserijbenodigdheden"]
["Totaal",null,{"$f":"SUBTOTAL(109,Tabel20[Kostprijs])","v":0}]
[]
["Grootboekrekening","Personeel","Totale loonkost","Totale inkomsten","Netto kost"]
[null,"VAPH personeel",null,{"$f":"Tabel2024[[#This Row],[Totale loonkost]]","v":0},{"$f":"Tabel2024[[#This Row],[Totale loonkost]]-Tabel2024[[#This Row],[Totale inkomsten]]","v":0}]
[null,"Niet VAPH personeel",null,null,{"$f":"Tabel2024[[#This Row],[Totale loonkost]]-Tabel2024[[#This Row],[Totale inkomsten]]","v":0}]
["Totaal",null,{"$f":"SUBTOTAL(109,Tabel2024[Totale loonkost])","v":0},{"$f":"SUBTOTAL(109,Tabel2024[Totale inkomsten])","v":0},{"$f":"SUBTOTAL(109,Tabel2024[Netto kost])","v":0}]
[]
["Grootboekrekening","Energie","Kostprijs"]
[null,"Elektriciteit",{"$f":"Energie!E6","v":0}]
[null,"Gas",{"$f":"Energie!E16","v":0}]
[null,"Water",{"$f":"Energie!E58","v":0}]
[null,"Zonnepanelen",{"$f":"Energie!E26","v":0}]
[null,"Warmtenet",{"$f":"Energie!E36","v":0}]
[null,"Mazout",{"$f":"Energie!E47","v":0}]
["Totaal",null,{"$f":"SUBTOTAL(109,Tabel2025[Kostprijs])","v":0}]
[]
["Grootboekrekening","Afschrijvingen","Totale kostprijs","Aantal jaren","Kostprijs per jaar"]
[null,"Ruwbouw",null,20,{"$f":"Tabel2026[[#This Row],[Totale kostprijs]]/Tabel2026[[#This Row],[Aantal jaren]]","v":0}]
[null,"Installatie",null,8,{"$f":"Tabel2026[[#This Row],[Totale kostprijs]]/Tabel2026[[#This Row],[Aantal jaren]]","v":0}]
["Totaal",null,null,null,{"$f":"SUBTOTAL(109,Tabel2026[Kostprijs per jaar])","v":0}]
[]
["Grootboekrekening","Exploitatie","Kostprijs"]
[null,"Onderhoud washuis"]
[null,"Intern vervoer"]
["Totaal",null,{"$f":"SUBTOTAL(109,Tabel2035[Kostprijs])","v":0}]
[]
["Bruto kostprijs",{"$f":"Tabel20[[#Totals],[Kostprijs]]+Tabel2024[[#Totals],[Totale loonkost]]+Tabel2025[[#Totals],[Kostprijs]]+Tabel2026[[#Totals],[Kostprijs per jaar]]+Tabel2035[[#Totals],[Kostprijs]]","v":0}]
["Subsidies",{"$f":"Tabel2024[[#Totals],[Totale inkomsten]]","v":0}]
[]
["Kilo was"]
[]
["Bruto kostprijs per eenheid",{"$f":"B31/B34","v":{"$error":"#DIV/0!"}}]
["Subsidies per eenheid",{"$f":"B32/B34","v":{"$error":"#DIV/0!"}}]
["Netto kostprijs per eenheid",{"$f":"B36-B37","v":{"$error":"#DIV/0!"}}]

{"sheet":"Persoonlijke was","index":24,"n_rows":37,"n_cols":5,"rows_kept":37,"cut":false,"hidden":false,"merged":[]}
[]
["Grootboekrekening","Algemene kosten","Kostprijs"]
[null,"Wasproduct",27323.759999999998]
[null,"Wasserijbenodigdheden",528.03]
["Totaal",null,{"$f":"SUBTOTAL(109,Tabel2036[Kostprijs])","v":27851.789999999997}]
[]
["Grootboekrekening","Personeel","Totale loonkost","Totale inkomsten","Netto kost"]
[null,"VAPH personeel",{"$f":"198501.49-58296.31+(36641.01/25.3*2)+(29018.11/19*3)+(26611.71/28.5*6)","v":153285.97463490744},{"$f":"Tabel202439[[#This Row],[Totale loonkost]]","v":153285.97463490744},{"$f":"Tabel202439[[#This Row],[Totale loonkost]]-Tabel202439[[#This Row],[Totale inkomsten]]","v":0}]
[null,"Niet VAPH personeel",{"$f":"24986.44+33309.87","v":58296.31},null,{"$f":"Tabel202439[[#This Row],[Totale loonkost]]-Tabel202439[[#This Row],[Totale inkomsten]]","v":58296.31}]
["Totaal",null,{"$f":"SUBTOTAL(109,Tabel202439[Totale loonkost])","v":211582.28463490744},{"$f":"SUBTOTAL(109,Tabel202439[Totale inkomsten])","v":153285.97463490744},{"$f":"SUBTOTAL(109,Tabel202439[Netto kost])","v":58296.31}]
[]
["Grootboekrekening","Energie","Kostprijs"]
[null,"Elektriciteit",1193.9649386469462]
[null,"Gas",17472.150958536891]
[null,"Water",14271.824307798292]
[null,"Zonnepanelen",{"$f":"Energie!E27","v":0}]
[null,"Warmtenet"]
[null,"Mazout",{"$f":"Energie!E48","v":0}]
["Totaal",null,{"$f":"SUBTOTAL(109,Tabel202540[Kostprijs])","v":32937.940204982129}]
[]
["Grootboekrekening","Afschrijvingen","Totale kostprijs","Aantal jaren","Kostprijs per jaar"]
[null,"Ruwbouw",516000,33,{"$f":"Tabel202647[[#This Row],[Totale kostprijs]]/Tabel202647[[#This Row],[Aantal jaren]]","v":15636.363636363636}]
[null,"Installatie",137594.1,10,{"$f":"Tabel202647[[#This Row],[Totale kostprijs]]/Tabel202647[[#This Row],[Aantal jaren]]","v":13759.41}]
["Totaal",null,null,null,{"$f":"SUBTOTAL(109,Tabel202647[Kostprijs per jaar])","v":29395.773636363636}]
[]
["Grootboekrekening","Exploitatie","Kostprijs"]
[null,"Onderhoud washuis",{"$f":"(12892.27+14731.46+3919.31)/3","v":10514.346666666666}]
[null,"Ekoboil",{"$f":"560.84+12.1+528.13*3","v":2157.33}]
[null,"VMM",{"$f":"3000/7*10/3","v":1428.5714285714284}]
["Totaal",null,{"$f":"SUBTOTAL(109,Tabel203548[Kostprijs])","v":14100.248095238094}]
["Bruto kostprijs",{"$f":"Tabel2036[[#Totals],[Kostprijs]]+Tabel202439[[#Totals],[Totale loonkost]]+Tabel202540[[#Totals],[Kostprijs]]+Tabel202647[[#Totals],[Kostprijs per jaar]]+Tabel203548[[#Totals],[Kostprijs]]","v":315868.03657149134}]
["Subsidies",{"$f":"Tabel202439[[#Totals],[Totale inkomsten]]","v":153285.97463490744}]
[]
["Kilo was",179140]
[]
["Bruto kostprijs per eenheid",{"$f":"B31/B34","v":1.7632468269034907}]
["Subsidies per eenheid",{"$f":"B32/B34","v":0.85567698244338197}]

{"sheet":"Voeding","index":25,"n_rows":93,"n_cols":8,"rows_kept":93,"cut":false,"hidden":false,"merged":[]}
[]
["grootboekrekeningen","kostenposten voeding","Kostprijs"]
[6000,"Algemene voeding",100000]
[6000,"Zuivelproducten",20000]
[6000,"Dranken",50000]
[6000,"Vis",30000]
[6000,"Vlees",50000]
[6000,"Brood & gebak",80000]
[6000,"Aardappelen",30000]
[6000,"Fruit ",25000]
[6000,"Groenten",15000]
[6000,"Dieetproducten",50000]
[]
[]
[null,"interne distributie / logistiek"]
[6000,"inkoop igv kant & klaar"]
[null,"Totaal",{"$f":"SUBTOTAL(109,Tabel328[Kostprijs])","v":450000}]
[]
[null,"Personeelslid","Totale brutoloonkost"]
["620 -621 - 622 -623 - 624 -628","Niet-VAPH",500000]
[null,"VAPH personeel"]
["(igv eigen personeel)","Totaal",{"$f":"SUBTOTAL(109,Tabel2[Totale brutoloonkost])","v":500000}]
[]
[]
[null,"Energie","Kostprijs"]
[612,"Elektriciteit",{"$f":"Energie!E8","v":0}]
[612,"Water",{"$f":"Energie!E60","v":0}]
[612,"Gas",{"$f":"Energie!E18","v":1708.5246}]
[612,"mazout",{"$f":"Energie!E49","v":0}]
[612,"zonnepanelen",{"$f":"Energie!E28","v":0}]
[612,"warmtenet",{"$f":"Energie!E38","v":0}]
[null,"…"]
[null,"Totaal",{"$f":"SUBTOTAL(109,Tabel429[Kostprijs])","v":1708.5246}]
[]
[null,"Afschrijvingen","Totale kostprijs","Aantal jaren","Kostprijs per jaar"]
[null,"Ruwbouw",100000,20,{"$f":"Tabel530[[#This Row],[Totale kostprijs]]/Tabel530[[#This Row],[Aantal jaren]]","v":5000}]
[null,"Technieken",5000,5,{"$f":"Tabel530[[#This Row],[Totale kostprijs]]/Tabel530[[#This Row],[Aantal jaren]]","v":1000}]
[null,"Installatie keuken",25000,10,{"$f":"Tabel530[[#This Row],[Totale kostprijs]]/Tabel530[[#This Row],[Aantal jaren]]","v":2500}]
[null,"Inrichting",8000,2,{"$f":"Tabel530[[#This Row],[Totale kostprijs]]/Tabel530[[#This Row],[Aantal jaren]]","v":4000}]
[]
[]
[null,"Totaal",null,null,{"$f":"SUBTOTAL(109,Tabel530[Kostprijs per jaar])","v":12500}]
[]
[null,"Exploitatie","Kostprijs"]
[601,"Vaatwerk",2000]
[null,"Keukenmaterieel",5000]
[611,"Herstelling keukenmaterieel",1500]
[]
[]
[]
[null,"Totaal",{"$f":"SUBTOTAL(109,Tabel631[Kostprijs])","v":8500}]
[]
[null,"Totale kostprijs",{"$f":"Tabel328[[#Totals],[Kostprijs]]+Tabel2[[#Totals],[Totale brutoloonkost]]+Tabel429[[#Totals],[Kostprijs]]+Tabel530[[#Totals],[Kostprijs per jaar]]+Tabel631[[#Totals],[Kostprijs]]","v":972708.5246}]
[]
[null,"Maaltijd","totaal aantal per jaar","aantal voor Werknemer","theoretisch aantal voor klant","aantal of % \" onvoorziene\" afwezigheid","realistisch aantal voor klant"]
[null,"Ontbijt standaard",122000,5000,{"$f":"+Tabel732[[#This Row],[totaal aantal per jaar]]-Tabel732[[#This Row],[aantal voor Werknemer]]","v":117000},0.1,{"$f":"+E56*0.9","v":105300}]
[null,"Lunch soep",244000]
[null,"lunch standaard voorgerecht"]
[null,"lunch standaard hoofdgerecht"]
[null,"lunch standaard dessert"]
[null,"vieruurtje standaard"]
[null,"Avondmaal standaard",122000]
[null,"dieet ontbijt"]
[null,"dieet middag"]
[null,"dieet vieruurtje "]
[null,"dieet avond"]
[null,"dieet ontbijt lactosevrij"]
[null,"dieet middag lactosevrij",null,null,null,null,null,"lactosevrij, glutenvrij suikervrij, "]
[null,"dieet vieruurtje lactosevrij"]
[null,"dieet avond lactosevrij"]
[null,"dieet ontbijt glutenvrij"]
[null,"dieet middag glutenvrij"]
[null,"dieet vieruurtje glutenvrij"]
[null,"dieet avond glutenvrij"]
[null,"dieet ontbijt suikervrij"]
[null,"dieet middag suikervrij"]
[null,"dieet vieruurtje suikervrij"]
[null,"dieet avond suikervrij"]
[]
[]
[null,"Totaal",{"$f":"SUBTOTAL(109,Tabel732[totaal aantal per jaar])","v":488000}]
[]
[null,"Kostenverdeling","Percentage"]
[null,"Ontbijt",0.1]
[null,"Lunch",0.8]
[null,"vieruurtje"]
[null,"Avondmaal",0.1]
[]
[null,"Maaltijd","Kostprijs","mark-up \"onvoorziene\" afwezigheid","herziene Kostprijs","mark-up voor klant","aan te rekenen kostprijs","mark-up voor Werknemer"]
[null,"Ontbijt",{"$f":"C84*$C$53/(G56+D56)","v":0.88187536228467822},null,null,0.25,{"$f":"+VoedingTotaal[[#This Row],[Kostprijs]]*1.25","v":1.1023442028558477}]
[null,"Lunch",{"$f":"C85*$C$53/C57","v":3.1892082773770496},null,null,0.25,{"$f":"+VoedingTotaal[[#This Row],[Kostprijs]]*1.25","v":3.9865103467213121}]
[null,"Avondmaal",{"$f":"C87*$C$53/C62","v":0.7973020693442624},null,null,null,{"$f":"+VoedingTotaal[[#This Row],[Kostprijs]]*1.25","v":0.99662758668032803}]
[null,"Kostprijs per dag",{"$f":"SUBTOTAL(109,VoedingTotaal[Kostprijs])","v":4.8683857090059899}]

{"sheet":"Grootboekrekeningen","index":26,"n_rows":98,"n_cols":3,"rows_kept":98,"cut":false,"hidden":false,"merged":[]}
[]
[null,6000,"Aankopen voeding"]
[null,6001,"Aankopen textiel en wasproducten"]
[null,6002,"Aankopen voor toilet en opschik"]
[null,6003,"Aankopen farmaceutische verbruiksgoederen"]
[null,6004,"Paramedische kosten"]
[null,6005,"Educatieve activiteiten, psycho-sociale noden en ontspanning"]
[null,6006,"Aankopen disposables"]
[null,6009,"Aankopen andere verbruiksgoederen"]
[null,601,"Aankopen van hulpstoffen"]
[null,602,"Aankopen van diensten, werk en studies"]
[null,603,"Algemene onderaannemingen"]
[null,604,"Aankopen van handelsgoederen"]
[null,605,"Aankopen van onroerende goederen voor verkoop"]
[null,608,"Ontvangen kortingen, ristorno’s en rabatten (-)"]
[null,609,"Wijzigingen in de voorraad"]
[null,610,"Huurlasten"]
[null,611,"Onderhoud en herstellingen"]
[null,612,"Leveringen energie, brandstof en water"]
[null,613,"Kantoorkosten"]
[null,614,"Verzekeringen"]
[null,615,"Verplaatsingen"]
[null,616,"Externe diensten"]
[null,617,"Uitzendpersoneel en personen die ter beschikking worden gesteld van de vereniging"]
[null,618,"Bezoldigingen, premies voor buitenwettelijke verzekeringen, ouderdoms- en overlevingspensioenen van bestuurders, zaakvoerders en werkende vennoten, die niet worden toegekend krachtens een arbeidscontract"]
[null,619,"Doorstorting subsidie"]
[null,620,"Bezoldigingen en rechtstreekse sociale voordelen"]
[null,621,"Werkgeversbijdragen voor sociale zekerheid"]
[null,622,"Werkgeverspremies voor buitenwettelijke verzekeringen"]
[null,623,"Andere personeelskosten"]
[null,624,"Ouderdoms- en overlevingspensioenen"]
[null,628,"Voorzieningen vakantiegeld"]
[null,630,"Afschrijvingen en waardeverminderingen op VA"]
[null,631,"Waardeverminderingen op voorraden"]
[null,632,"Waardeverminderingen op bestellingen in uitvoering"]
[null,633,"Waardeverminderingen op handelsvorderingen op meer dan één jaar"]
[null,634,"Waardeverminderingen op handelsvorderingen op ten hoogste één jaar"]
[null,635,"Voorzieningen voor pensioenen en soortgelijke verplichtingen"]
[null,636,"Voorzieningen voor grote herstellingswerken en grote onderhoudswerken"]
[null,637,"Voorzieningen voor andere risico’s en kosten"]
[null,638,"Voorzieningen voor terug te betalen subsidies en legaten en voor schenkingen met terugnemingsrecht"]
[null,640,"Bedrijfsbelastingen"]
[null,641,"Minderwaarden op courante realisatie van MVA"]
[null,642,"Minderwaarden op de realisatie van handelsvorderingen"]
[null,643,"Schenkingen"]
[null,649,"Als herstructureringskosten geactiveerde bedrijfskosten (-)"]
[null,650,"Kosten van schulden"]
[null,651,"Waardeverminderingen op vlottende activa"]
[null,652,"Minderwaarden op de verwezenlijking van vlottende activa"]
[null,653,"Discontokosten op vorderingen"]
[null,654,"Wisselresultaten"]
[null,655,"Resultaten uit de omrekening van vreemde valuta"]
[null,656,"Voorzieningen van financiële aard"]
[null,660,"Uitzonderlijke afschrijvingen en waardeverminderingen (toevoeging)"]
[null,661,"Waardeverminderingen op vaste financiële activa (toevoeging)"]
[null,662,"Voorzieningen voor uitzonderlijke risico’s en kosten"]
[null,663,"Minderwaarden op de realisatie van VA"]
[null,669,"Uitzonderlijke kosten als herstructureringskosten opgenomen onder de activa (-)"]
[null,670,"Inkomstenbelastingen"]
[null,671,"Jaarlijkse taks tot vergoeding van de successierechten"]
[null,690,"Overgedragen negatief resultaat van het vorig boekjaar"]
[null,691,"Overboeking naar de bestemde fondsen"]
[null,693,"Over te dragen positief resultaat"]
[null,701,"Opbrengsten van gebruikers, werkenden, ouders en voogden"]
[null,702,"Opbrengsten van kinderbijslagen"]
[null,703,"Opbrengsten van personen met PAB (OPH)"]
[null,704,"Opbrengsten van zorgconsulentschap (OPH)"]
[null,708,"Toegekende kortingen, ristorno’s en rabatten (-)"]
[null,712,"Wijzigingen in de voorraad goederen in bewerking"]
[null,713,"Wijzigingen in de voorraad gereed product"]
[null,715,"Wijzigingen in de voorraad onroerende goederen bestemd voor verkoop"]
[null,717,"Wijzigingen in de bestellingen in uitvoering"]
[null,730,"Lidgeld (stortingen) werkelijke leden"]
[null,731,"Lidgeld (stortingen) toegetreden leden"]
[null,732,"Schenkingen zonder terugnemingsrecht (+/-)"]
[null,733,"Schenkingen met terugnemingsrecht (+/-)"]
[null,734,"Legaten zonder terugnemingsrecht (+/-)"]
[null,735,"Legaten met terugnemingsrecht (+/-)"]
[null,736,"Kapitaal- en intrestsubsidies"]
[null,737,"Werkingssubsidies Vlaamse Overheid (exploitatiesubsidies)"]
[null,738,"Overige werkingssubsidies en werkingstoelagen (compenserende bedragen ter vermindering van de loonkost)"]
[null,740,"Recuperaties van kosten, schadevergoedingen, verzekeringen"]
[null,741,"Meerwaarden op de courante realisatie van MVA"]
[null,742,"Meerwaarden op de realisatie van handelsvorderingen"]
[null,750,"Opbrengsten uit financieel vaste activa"]
[null,751,"Opbrengsten uit Vlottende activa"]
[null,752,"Meerwaarden op de realisatie van vlottende activa"]
[null,753,"Intrestsubsidies"]
[null,754,"Wisselresultaten"]
[null,755,"Resultaten uit de omrekening van vreemde valuta"]
[null,760,"Terugneming van afschrijvingen en waardeverminderingen"]
[null,761,"Terugneming van waardeverminderingen op financiële vaste activa"]
[null,762,"Terugneming van voorzieningen voor uitzonderlijke risico’s en kosten"]
[null,763,"Meerwaarden op de realisatie van VA"]
[null,790,"Overgedragen positief resultaat van het vorige boekjaar"]
[null,791,"Onttrekking aan de bestemde fondsen"]
[null,792,"Onttrekking aan de fondsen van de vereniging"]
[null,793,"Over te dragen negatief resultaat"]